Workbook

Sheet INTRO
B2: Formulaire de demande commune de médicaments pour CP v.4.1
B4: Dans le cadre des efforts mondiaux entrepris pour accélérer l'expansion de la chimioprévention (CP) pour l'élimination de la filariose lymphatique et la lutte contre la schistosomiase et les géohelminthiases, l'Organisation mondiale de la Santé (OMS) facilite l'approvisionnement en albendazole, comprimés de 400 mg (GSK), pour les programmes nationaux d'élimination de la filariose lymphatique et programmes nationaux de lutte contre les géohelminthiases; en diethylcarbamazine, comprimés de 100 mg (Eisai), pour les programmes nationaux d'élimination de la filariose lymphatique; en mebendazole, comprimés de 500 mg (J&J) pour les programmes nationaux de lutte contre les géohelminthiases et en praziquantel, comprimés de 600 mg (Merck KGaA), destinés aux enfants d'âge scolaire, pour les programmes nationaux de lutte contre la schistosomiase. L'OMS contribue également à l'approvisionnement en ivermectine, comprimés de 3 mg (Merck), pour les programmes de donation pour l'onchocercose et la filariose lymphatique. Cet outil Excel est concu pour aider les pays à quantifier le nombre de comprimés nécessaires, selon le traitement de chimioprévention requis, pour atteindre les objectifs de couverture de traitement de populations et districts pour l'année de la demande de médicaments. Le résultat de cet outil est une demande commune de médicaments pour la chimioprévention des maladies tropicales négligées, qui peut être imprimée, signée et soumise à l'OMS pour la demande de ces médicaments.
B6: Structure de l'application (feuilles de travail) :
B8: INTRO | C8: Cette feuille contient des instructions pour compléter le formulaire de demande de médicaments pour la chimioprévention et des informations sur le statut de la chimioprévention pour les maladies d'endémie du pays.
B9: COUNTRY_INFO | C9: Cette feuille contient des informations sur la structure administrative du pays, la population par groupe d'âge, le statut d'endémicité pour chaque maladie, la population devant être traitée par chimioprévention et les interventions prévues.
B10: DEC, ALB_MBD, PZQ et IVM | C10: Ces feuilles contiennent des informations sur l'endémicité des districts ciblés pour le traitement aux médicaments spécifiques à la chimioprévention, les plans de traitement, et le nombre de comprimés requis et demandés.
B11: SUMMARY | C11: Cette feuille inclut un résumé du nombre de comprimés demandés, des informations concernant le stock et les dates de soumission de la demande de médicaments. Avant de générer le rapport (run macros), veuillez sélectionner le médicament pour lequel le rapport est nécessaire. Veuillez suivre la même règle pour voir le nombre de personnes à traiter pour les maladies spécifiques. Cette feuille doit être imprimée et soumise en tant que "Formulaire de demande commune de médicaments pour chimioprévention" (voir les instructions pour la soumission du formulaire sous la feuille SUMMARY).
B13: Instructions pour la saisie des données
B15: La plupart des cellules des feuilles de travail mentionnées ci-dessus contiennent des formules calculées automatiquement en fonction du protocole de traitement recommandé par l'OMS pour chaque maladie. Voir : https://www.who.int/publications/i/item/9789241599993.
B17: Veuillez entrer vos données dans les cellules en fonction de leur code de couleur :
C19: Blanc - la cellule n'est pas protégée. Veuillez entrer la valeur de l'indicateur demandé.
C21: Jaune - la cellule est protégée et inclut le nom de l'indicateur. Aucune entrée de données requise.
C23: Orange - la cellule n'est pas protégée et contient un menu déroulant. Veuillez sélectionner la valeur dans le menu déroulant.
C26: Vert - la cellule n'est pas protégée et contient des formules. Veuillez changer la valeur indiquée uniquement si vos données sont différentes de celles calculées automatiquement.
C29: Bleu - la cellule est protégée et contient des formules. Aucune entrée de données requise.
B31: Données pays
B33: PAYS | E33: Guinée | G33: GN | H33: GIN
E34: 5
B35: Année de la demande de médicaments | E35: 2024
B37: Le pays est-il endémique à la filariose lymphatique (FL) ? | E37: Endémique
B39: Le pays est-il endémique à l'onchocercose (ONCHO) ? | E39: Endémique
B41: Le pays est-il endémique aux géohelminthiases (STH) ? | E41: Endémique
B43: Le pays est-il endémique à la schistosomiase (SCH) ? | E43: Endémique
B45: Combien d'unités administratives compte le pays ? | E45: 38
B47: Si les données démographiques par groupe d'âge ne sont pas disponibles au second niveau administratif, veuillez entrer la proportion (%) de population, par groupe d'âge, du pays. Si les données sont disponibles, veuillez laisser les cellules vierges.
B48: 1-4 ans | C48: Enfants d'âge pré-scolaire (EAPréS) | E48: 0.157
B49: 5-14 ans | C49: Enfants d'âge scolaire (EAS) | E49: 0.272
B50: 15 ans et plus | C50: Adultes | E50: 0.55
B51: 15-49 ans | C51: Femmes en âge de procréer (FAP) | E51: 0.484

Sheet COUNTRY_INFO
A1: INFORMATIONS PAYS
A2: Struture administrative, population par groupe d'âge, statut d'endémicité et interventions planifiées
A4: TOTAL | D4: =SUBTOTAL(9,D$10:D$1010) -> 13989797 | E4: =SUBTOTAL(9,E$10:E$1010) -> 2196397 | F4: 3805228 | G4: 7694389 | L4: =SUBTOTAL(9,L$10:L$1010) -> 4858762 | M4: 8627794 | N4: 1014245 | O4: 1757166 | P4: 3126721 | Q4: 5898132 | R4: 1038931 | S4: 2399906 | T4: 4852747 | U4: 8291584
A6: Structure administrative du pays | D6: Population | H6: Endémicité | L6: Population nécessitant la CP | V6: Nombre de tournées de traitement prévues pour l'année | Z6: Criteria to apply for IVM+DEC+ALB therapy | AA6: Enquêtes épidémiologiques planifiées pour l’année
A7: Pays | B7: Région/Département | C7: District | D7: Total | E7: EAPréS | F7: EAS | G7: Adultes | H7: FL | I7: Oncho | J7: STH | K7: SCH | L7: FL | M7: ONCHO | N7: STH | R7: SCH | V7: FL | W7: Oncho | X7: STH | Y7: SCH | Z7: FL | AA7: FL | AB7: Oncho | AC7: STH | AD7: SCH
N8: EAPréS | O8: EAS | P8: FAP | Q8: TOTAL | R8: EAPréS | S8: EAS | T8: Adultes | U8: TOTAL | AH8: IU_ID | AI8: IU_NAME
AE9: x | AF9: x | AG9: x | AH9: x | AI9: x | AJ9: x | AK9: x | AL9: x | AM9: x
A10: =IF(INTRO!$E$33<>0,INTRO!$E$33, " ") -> Guinée | B10: Boke | C10: Boffa | D10: 282980 | E10: =IF(INTRO!$E$48="","",ROUND($D10*INTRO!$E$48,0)) -> 44428 | F10: =IF(INTRO!$E$49="","",ROUND($D10*INTRO!$E$49,0)) -> 76971 | G10: =IF(INTRO!$E$50="","",ROUND($D10*INTRO!$E$50,0)) -> 155639 | H10: 4 | I10: 4 | J10: 1 | K10: 0 | L10: =IF(INTRO!$E$37="Endémique",IF($H10>0,IF($H10=4,"Inconnu",IF($H10=99,"Interrompu",$D10)),0),"Non requis") -> Inconnu | M10: =IF(INTRO!$E$39="Endémique", IF($I10>0, IF($I10=4,"Inconnu",IF($I10=99,"Interrompu",$D10)), 0),"Non requis") -> Inconnu | N10: =IF(INTRO!$E$41="Endémique", IF($J10>1, IF($J10=4, "Inconnu", IF($J10=99, "Surveillance", E10)), 0),"Non requis") -> 0 | O10: =IF(INTRO!$E$41="Endémique", IF($J10>1, IF($J10=4, "Inconnu", IF($J10=99, "Surveillance", F10)), 0),"Non requis") -> 0 | P10: =IF(INTRO!$E$41="Endémique", IF($J10>1, IF($J10=4, "Inconnu", IF($J10=99, "Surveillance", ROUND(D10*INTRO!$E$51,0))), 0),"Non requis") -> 0 | Q10: =IF(INTRO!$E$41="Endémique", IF($J10>1, IF($J10=4, "Inconnu", IF($J10=99, "Surveillance", SUM($N10:$P10))), 0),"Non requis") -> 0 | R10: =IF(INTRO!$E$43="Endémique", IF($K10>1, IF($K10=4, "Inconnu", IF($K10=99, "Surveillance", ROUND(E10*0.75,0))), 0),"Non requis") -> 0 | S10: =IF(INTRO!$E$43="Endémique", IF($K10>1, IF($K10=4, "Inconnu", IF($K10=99, "Surveillance", F10)), 0),"Non requis") -> 0 | T10: =IF(INTRO!$E$43="Endémique", IF($K10>1, IF($K10=4, "Inconnu", IF($K10=99, "Surveillance", G10)), 0),"Non requis") -> 0 | U10: =IF(INTRO!$E$43="Endémique", IF($K10>1, IF($K10=4, "Inconnu", IF($K10=99, "Surveillance", SUM($R10:$T10))), 0),"Non requis") -> 0 | V10: 0 | W10: 0 | X10: 0 | Y10: 0 | AB10: Oui | AH10: 22605 | AI10: Boffa
A11: =IF(INTRO!$E$33<>0,INTRO!$E$33, " ") -> Guinée | B11: Boke | C11: Boke | D11: 599054 | E11: =IF(INTRO!$E$48="","",ROUND($D11*INTRO!$E$48,0)) -> 94051 | F11: =IF(INTRO!$E$49="","",ROUND($D11*INTRO!$E$49,0)) -> 162943 | G11: =IF(INTRO!$E$50="","",ROUND($D11*INTRO!$E$50,0)) -> 329480 | H11: 99 | I11: 4 | J11: 1 | K11: 1 | L11: =IF(INTRO!$E$37="Endémique",IF($H11>0,IF($H11=4,"Inconnu",IF($H11=99,"Interrompu",$D11)),0),"Non requis") -> Interrompu | M11: =IF(INTRO!$E$39="Endémique", IF($I11>0, IF($I11=4,"Inconnu",IF($I11=99,"Interrompu",$D11)), 0),"Non requis") -> Inconnu | N11: =IF(INTRO!$E$41="Endémique", IF($J11>1, IF($J11=4, "Inconnu", IF($J11=99, "Surveillance", E11)), 0),"Non requis") -> 0 | O11: =IF(INTRO!$E$41="Endémique", IF($J11>1, IF($J11=4, "Inconnu", IF($J11=99, "Surveillance", F11)), 0),"Non requis") -> 0 | P11: =IF(INTRO!$E$41="Endémique", IF($J11>1, IF($J11=4, "Inconnu", IF($J11=99, "Surveillance", ROUND(D11*INTRO!$E$51,0))), 0),"Non requis") -> 0 | Q11: =IF(INTRO!$E$41="Endémique", IF($J11>1, IF($J11=4, "Inconnu", IF($J11=99, "Surveillance", SUM($N11:$P11))), 0),"Non requis") -> 0 | R11: =IF(INTRO!$E$43="Endémique", IF($K11>1, IF($K11=4, "Inconnu", IF($K11=99, "Surveillance", ROUND(E11*0.75,0))), 0),"Non requis") -> 0 | S11: =IF(INTRO!$E$43="Endémique", IF($K11>1, IF($K11=4, "Inconnu", IF($K11=99, "Surveillance", F11)), 0),"Non requis") -> 0 | T11: =IF(INTRO!$E$43="Endémique", IF($K11>1, IF($K11=4, "Inconnu", IF($K11=99, "Surveillance", G11)), 0),"Non requis") -> 0 | U11: =IF(INTRO!$E$43="Endémique", IF($K11>1, IF($K11=4, "Inconnu", IF($K11=99, "Surveillance", SUM($R11:$T11))), 0),"Non requis") -> 0 | V11: 0 | W11: 0 | X11: 0 | Y11: 0 | AA11: TAS | AH11: 22606 | AI11: Boke
A12: =IF(INTRO!$E$33<>0,INTRO!$E$33, " ") -> Guinée | B12: Boke | C12: Fria | D12: 128757 | E12: =IF(INTRO!$E$48="","",ROUND($D12*INTRO!$E$48,0)) -> 20215 | F12: =IF(INTRO!$E$49="","",ROUND($D12*INTRO!$E$49,0)) -> 35022 | G12: =IF(INTRO!$E$50="","",ROUND($D12*INTRO!$E$50,0)) -> 70816 | H12: 4 | I12: 4 | J12: 1 | K12: 1 | L12: =IF(INTRO!$E$37="Endémique",IF($H12>0,IF($H12=4,"Inconnu",IF($H12=99,"Interrompu",$D12)),0),"Non requis") -> Inconnu | M12: =IF(INTRO!$E$39="Endémique", IF($I12>0, IF($I12=4,"Inconnu",IF($I12=99,"Interrompu",$D12)), 0),"Non requis") -> Inconnu | N12: =IF(INTRO!$E$41="Endémique", IF($J12>1, IF($J12=4, "Inconnu", IF($J12=99, "Surveillance", E12)), 0),"Non requis") -> 0 | O12: =IF(INTRO!$E$41="Endémique", IF($J12>1, IF($J12=4, "Inconnu", IF($J12=99, "Surveillance", F12)), 0),"Non requis") -> 0 | P12: =IF(INTRO!$E$41="Endémique", IF($J12>1, IF($J12=4, "Inconnu", IF($J12=99, "Surveillance", ROUND(D12*INTRO!$E$51,0))), 0),"Non requis") -> 0 | Q12: =IF(INTRO!$E$41="Endémique", IF($J12>1, IF($J12=4, "Inconnu", IF($J12=99, "Surveillance", SUM($N12:$P12))), 0),"Non requis") -> 0 | R12: =IF(INTRO!$E$43="Endémique", IF($K12>1, IF($K12=4, "Inconnu", IF($K12=99, "Surveillance", ROUND(E12*0.75,0))), 0),"Non requis") -> 0 | S12: =IF(INTRO!$E$43="Endémique", IF($K12>1, IF($K12=4, "Inconnu", IF($K12=99, "Surveillance", F12)), 0),"Non requis") -> 0 | T12: =IF(INTRO!$E$43="Endémique", IF($K12>1, IF($K12=4, "Inconnu", IF($K12=99, "Surveillance", G12)), 0),"Non requis") -> 0 | U12: =IF(INTRO!$E$43="Endémique", IF($K12>1, IF($K12=4, "Inconnu", IF($K12=99, "Surveillance", SUM($R12:$T12))), 0),"Non requis") -> 0 | V12: 0 | W12: 0 | X12: 0 | Y12: 0 | AA12: TAS | AB12: Oui | AH12: 22617 | AI12: Fria
A13: =IF(INTRO!$E$33<>0,INTRO!$E$33, " ") -> Guinée | B13: Boke | C13: Gaoual | D13: 257842 | E13: =IF(INTRO!$E$48="","",ROUND($D13*INTRO!$E$48,0)) -> 40481 | F13: =IF(INTRO!$E$49="","",ROUND($D13*INTRO!$E$49,0)) -> 70133 | G13: =IF(INTRO!$E$50="","",ROUND($D13*INTRO!$E$50,0)) -> 141813 | H13: 1 | I13: 1 | J13: 1 | K13: 3 | L13: =IF(INTRO!$E$37="Endémique",IF($H13>0,IF($H13=4,"Inconnu",IF($H13=99,"Interrompu",$D13)),0),"Non requis") -> 257842 | M13: =IF(INTRO!$E$39="Endémique", IF($I13>0, IF($I13=4,"Inconnu",IF($I13=99,"Interrompu",$D13)), 0),"Non requis") -> 257842 | N13: =IF(INTRO!$E$41="Endémique", IF($J13>1, IF($J13=4, "Inconnu", IF($J13=99, "Surveillance", E13)), 0),"Non requis") -> 0 | O13: =IF(INTRO!$E$41="Endémique", IF($J13>1, IF($J13=4, "Inconnu", IF($J13=99, "Surveillance", F13)), 0),"Non requis") -> 0 | P13: =IF(INTRO!$E$41="Endémique", IF($J13>1, IF($J13=4, "Inconnu", IF($J13=99, "Surveillance", ROUND(D13*INTRO!$E$51,0))), 0),"Non requis") -> 0 | Q13: =IF(INTRO!$E$41="Endémique", IF($J13>1, IF($J13=4, "Inconnu", IF($J13=99, "Surveillance", SUM($N13:$P13))), 0),"Non requis") -> 0 | R13: =IF(INTRO!$E$43="Endémique", IF($K13>1, IF($K13=4, "Inconnu", IF($K13=99, "Surveillance", ROUND(E13*0.75,0))), 0),"Non requis") -> 30361 | S13: =IF(INTRO!$E$43="Endémique", IF($K13>1, IF($K13=4, "Inconnu", IF($K13=99, "Surveillance", F13)), 0),"Non requis") -> 70133 | T13: =IF(INTRO!$E$43="Endémique", IF($K13>1, IF($K13=4, "Inconnu", IF($K13=99, "Surveillance", G13)), 0),"Non requis") -> 141813 | U13: =IF(INTRO!$E$43="Endémique", IF($K13>1, IF($K13=4, "Inconnu", IF($K13=99, "Surveillance", SUM($R13:$T13))), 0),"Non requis") -> 242307 | V13: 1 | W13: 1 | X13: 0 | Y13: 1 | AA13: TAS | AD13: Oui | AH13: 22607 | AI13: Gaoual
A14: =IF(INTRO!$E$33<>0,INTRO!$E$33, " ") -> Guinée | B14: Boke | C14: Koundara | D14: 172986 | E14: =IF(INTRO!$E$48="","",ROUND($D14*INTRO!$E$48,0)) -> 27159 | F14: =IF(INTRO!$E$49="","",ROUND($D14*INTRO!$E$49,0)) -> 47052 | G14: =IF(INTRO!$E$50="","",ROUND($D14*INTRO!$E$50,0)) -> 95142 | H14: 1 | I14: 1 | J14: 1 | K14: 2 | L14: =IF(INTRO!$E$37="Endémique",IF($H14>0,IF($H14=4,"Inconnu",IF($H14=99,"Interrompu",$D14)),0),"Non requis") -> 172986 | M14: =IF(INTRO!$E$39="Endémique", IF($I14>0, IF($I14=4,"Inconnu",IF($I14=99,"Interrompu",$D14)), 0),"Non requis") -> 172986 | N14: =IF(INTRO!$E$41="Endémique", IF($J14>1, IF($J14=4, "Inconnu", IF($J14=99, "Surveillance", E14)), 0),"Non requis") -> 0 | O14: =IF(INTRO!$E$41="Endémique", IF($J14>1, IF($J14=4, "Inconnu", IF($J14=99, "Surveillance", F14)), 0),"Non requis") -> 0 | P14: =IF(INTRO!$E$41="Endémique", IF($J14>1, IF($J14=4, "Inconnu", IF($J14=99, "Surveillance", ROUND(D14*INTRO!$E$51,0))), 0),"Non requis") -> 0 | Q14: =IF(INTRO!$E$41="Endémique", IF($J14>1, IF($J14=4, "Inconnu", IF($J14=99, "Surveillance", SUM($N14:$P14))), 0),"Non requis") -> 0 | R14: =IF(INTRO!$E$43="Endémique", IF($K14>1, IF($K14=4, "Inconnu", IF($K14=99, "Surveillance", ROUND(E14*0.75,0))), 0),"Non requis") -> 20369 | S14: =IF(INTRO!$E$43="Endémique", IF($K14>1, IF($K14=4, "Inconnu", IF($K14=99, "Surveillance", F14)), 0),"Non requis") -> 47052 | T14: =IF(INTRO!$E$43="Endémique", IF($K14>1, IF($K14=4, "Inconnu", IF($K14=99, "Surveillance", G14)), 0),"Non requis") -> 95142 | U14: =IF(INTRO!$E$43="Endémique", IF($K14>1, IF($K14=4, "Inconnu", IF($K14=99, "Surveillance", SUM($R14:$T14))), 0),"Non requis") -> 162563 | V14: 1 | W14: 1 | X14: 0 | Y14: 1 | AA14: TAS | AH14: 22608 | AI14: Koundara
A15: =IF(INTRO!$E$33<>0,INTRO!$E$33, " ") -> Guinée | B15: Conakry | C15: Dixinn | D15: 180826 | E15: =IF(INTRO!$E$48="","",ROUND($D15*INTRO!$E$48,0)) -> 28390 | F15: =IF(INTRO!$E$49="","",ROUND($D15*INTRO!$E$49,0)) -> 49185 | G15: =IF(INTRO!$E$50="","",ROUND($D15*INTRO!$E$50,0)) -> 99454 | H15: 0 | I15: 0 | J15: 1 | K15: 0 | L15: =IF(INTRO!$E$37="Endémique",IF($H15>0,IF($H15=4,"Inconnu",IF($H15=99,"Interrompu",$D15)),0),"Non requis") -> 0 | M15: =IF(INTRO!$E$39="Endémique", IF($I15>0, IF($I15=4,"Inconnu",IF($I15=99,"Interrompu",$D15)), 0),"Non requis") -> 0 | N15: =IF(INTRO!$E$41="Endémique", IF($J15>1, IF($J15=4, "Inconnu", IF($J15=99, "Surveillance", E15)), 0),"Non requis") -> 0 | O15: =IF(INTRO!$E$41="Endémique", IF($J15>1, IF($J15=4, "Inconnu", IF($J15=99, "Surveillance", F15)), 0),"Non requis") -> 0 | P15: =IF(INTRO!$E$41="Endémique", IF($J15>1, IF($J15=4, "Inconnu", IF($J15=99, "Surveillance", ROUND(D15*INTRO!$E$51,0))), 0),"Non requis") -> 0 | Q15: =IF(INTRO!$E$41="Endémique", IF($J15>1, IF($J15=4, "Inconnu", IF($J15=99, "Surveillance", SUM($N15:$P15))), 0),"Non requis") -> 0 | R15: =IF(INTRO!$E$43="Endémique", IF($K15>1, IF($K15=4, "Inconnu", IF($K15=99, "Surveillance", ROUND(E15*0.75,0))), 0),"Non requis") -> 0 | S15: =IF(INTRO!$E$43="Endémique", IF($K15>1, IF($K15=4, "Inconnu", IF($K15=99, "Surveillance", F15)), 0),"Non requis") -> 0 | T15: =IF(INTRO!$E$43="Endémique", IF($K15>1, IF($K15=4, "Inconnu", IF($K15=99, "Surveillance", G15)), 0),"Non requis") -> 0 | U15: =IF(INTRO!$E$43="Endémique", IF($K15>1, IF($K15=4, "Inconnu", IF($K15=99, "Surveillance", SUM($R15:$T15))), 0),"Non requis") -> 0 | V15: 0 | W15: 0 | X15: 0 | Y15: 0 | AH15: 22613 | AI15: Dixinn
A16: =IF(INTRO!$E$33<>0,INTRO!$E$33, " ") -> Guinée | B16: Conakry | C16: Kaloum | D16: 83190 | E16: =IF(INTRO!$E$48="","",ROUND($D16*INTRO!$E$48,0)) -> 13061 | F16: =IF(INTRO!$E$49="","",ROUND($D16*INTRO!$E$49,0)) -> 22628 | G16: =IF(INTRO!$E$50="","",ROUND($D16*INTRO!$E$50,0)) -> 45755 | H16: 0 | I16: 0 | J16: 1 | K16: 0 | L16: =IF(INTRO!$E$37="Endémique",IF($H16>0,IF($H16=4,"Inconnu",IF($H16=99,"Interrompu",$D16)),0),"Non requis") -> 0 | M16: =IF(INTRO!$E$39="Endémique", IF($I16>0, IF($I16=4,"Inconnu",IF($I16=99,"Interrompu",$D16)), 0),"Non requis") -> 0 | N16: =IF(INTRO!$E$41="Endémique", IF($J16>1, IF($J16=4, "Inconnu", IF($J16=99, "Surveillance", E16)), 0),"Non requis") -> 0 | O16: =IF(INTRO!$E$41="Endémique", IF($J16>1, IF($J16=4, "Inconnu", IF($J16=99, "Surveillance", F16)), 0),"Non requis") -> 0 | P16: =IF(INTRO!$E$41="Endémique", IF($J16>1, IF($J16=4, "Inconnu", IF($J16=99, "Surveillance", ROUND(D16*INTRO!$E$51,0))), 0),"Non requis") -> 0 | Q16: =IF(INTRO!$E$41="Endémique", IF($J16>1, IF($J16=4, "Inconnu", IF($J16=99, "Surveillance", SUM($N16:$P16))), 0),"Non requis") -> 0 | R16: =IF(INTRO!$E$43="Endémique", IF($K16>1, IF($K16=4, "Inconnu", IF($K16=99, "Surveillance", ROUND(E16*0.75,0))), 0),"Non requis") -> 0 | S16: =IF(INTRO!$E$43="Endémique", IF($K16>1, IF($K16=4, "Inconnu", IF($K16=99, "Surveillance", F16)), 0),"Non requis") -> 0 | T16: =IF(INTRO!$E$43="Endémique", IF($K16>1, IF($K16=4, "Inconnu", IF($K16=99, "Surveillance", G16)), 0),"Non requis") -> 0 | U16: =IF(INTRO!$E$43="Endémique", IF($K16>1, IF($K16=4, "Inconnu", IF($K16=99, "Surveillance", SUM($R16:$T16))), 0),"Non requis") -> 0 | V16: 0 | W16: 0 | X16: 0 | Y16: 0 | AH16: 22619 | AI16: Kaloum
A17: =IF(INTRO!$E$33<>0,INTRO!$E$33, " ") -> Guinée | B17: Conakry | C17: Matam | D17: 190811 | E17: =IF(INTRO!$E$48="","",ROUND($D17*INTRO!$E$48,0)) -> 29957 | F17: =IF(INTRO!$E$49="","",ROUND($D17*INTRO!$E$49,0)) -> 51901 | G17: =IF(INTRO!$E$50="","",ROUND($D17*INTRO!$E$50,0)) -> 104946 | H17: 0 | I17: 0 | J17: 1 | K17: 0 | L17: =IF(INTRO!$E$37="Endémique",IF($H17>0,IF($H17=4,"Inconnu",IF($H17=99,"Interrompu",$D17)),0),"Non requis") -> 0 | M17: =IF(INTRO!$E$39="Endémique", IF($I17>0, IF($I17=4,"Inconnu",IF($I17=99,"Interrompu",$D17)), 0),"Non requis") -> 0 | N17: =IF(INTRO!$E$41="Endémique", IF($J17>1, IF($J17=4, "Inconnu", IF($J17=99, "Surveillance", E17)), 0),"Non requis") -> 0 | O17: =IF(INTRO!$E$41="Endémique", IF($J17>1, IF($J17=4, "Inconnu", IF($J17=99, "Surveillance", F17)), 0),"Non requis") -> 0 | P17: =IF(INTRO!$E$41="Endémique", IF($J17>1, IF($J17=4, "Inconnu", IF($J17=99, "Surveillance", ROUND(D17*INTRO!$E$51,0))), 0),"Non requis") -> 0 | Q17: =IF(INTRO!$E$41="Endémique", IF($J17>1, IF($J17=4, "Inconnu", IF($J17=99, "Surveillance", SUM($N17:$P17))), 0),"Non requis") -> 0 | R17: =IF(INTRO!$E$43="Endémique", IF($K17>1, IF($K17=4, "Inconnu", IF($K17=99, "Surveillance", ROUND(E17*0.75,0))), 0),"Non requis") -> 0 | S17: =IF(INTRO!$E$43="Endémique", IF($K17>1, IF($K17=4, "Inconnu", IF($K17=99, "Surveillance", F17)), 0),"Non requis") -> 0 | T17: =IF(INTRO!$E$43="Endémique", IF($K17>1, IF($K17=4, "Inconnu", IF($K17=99, "Surveillance", G17)), 0),"Non requis") -> 0 | U17: =IF(INTRO!$E$43="Endémique", IF($K17>1, IF($K17=4, "Inconnu", IF($K17=99, "Surveillance", SUM($R17:$T17))), 0),"Non requis") -> 0 | V17: 0 | W17: 0 | X17: 0 | Y17: 0 | AH17: 22633 | AI17: Matam
A18: =IF(INTRO!$E$33<>0,INTRO!$E$33, " ") -> Guinée | B18: Conakry | C18: Matoto | D18: 886966 | E18: =IF(INTRO!$E$48="","",ROUND($D18*INTRO!$E$48,0)) -> 139254 | F18: =IF(INTRO!$E$49="","",ROUND($D18*INTRO!$E$49,0)) -> 241255 | G18: =IF(INTRO!$E$50="","",ROUND($D18*INTRO!$E$50,0)) -> 487831 | H18: 0 | I18: 0 | J18: 1 | K18: 2 | L18: =IF(INTRO!$E$37="Endémique",IF($H18>0,IF($H18=4,"Inconnu",IF($H18=99,"Interrompu",$D18)),0),"Non requis") -> 0 | M18: =IF(INTRO!$E$39="Endémique", IF($I18>0, IF($I18=4,"Inconnu",IF($I18=99,"Interrompu",$D18)), 0),"Non requis") -> 0 | N18: =IF(INTRO!$E$41="Endémique", IF($J18>1, IF($J18=4, "Inconnu", IF($J18=99, "Surveillance", E18)), 0),"Non requis") -> 0 | O18: =IF(INTRO!$E$41="Endémique", IF($J18>1, IF($J18=4, "Inconnu", IF($J18=99, "Surveillance", F18)), 0),"Non requis") -> 0 | P18: =IF(INTRO!$E$41="Endémique", IF($J18>1, IF($J18=4, "Inconnu", IF($J18=99, "Surveillance", ROUND(D18*INTRO!$E$51,0))), 0),"Non requis") -> 0 | Q18: =IF(INTRO!$E$41="Endémique", IF($J18>1, IF($J18=4, "Inconnu", IF($J18=99, "Surveillance", SUM($N18:$P18))), 0),"Non requis") -> 0 | R18: =IF(INTRO!$E$43="Endémique", IF($K18>1, IF($K18=4, "Inconnu", IF($K18=99, "Surveillance", ROUND(E18*0.75,0))), 0),"Non requis") -> 104441 | S18: =IF(INTRO!$E$43="Endémique", IF($K18>1, IF($K18=4, "Inconnu", IF($K18=99, "Surveillance", F18)), 0),"Non requis") -> 241255 | T18: =IF(INTRO!$E$43="Endémique", IF($K18>1, IF($K18=4, "Inconnu", IF($K18=99, "Surveillance", G18)), 0),"Non requis") -> 487831 | U18: =IF(INTRO!$E$43="Endémique", IF($K18>1, IF($K18=4, "Inconnu", IF($K18=99, "Surveillance", SUM($R18:$T18))), 0),"Non requis") -> 833527 | V18: 0 | W18: 0 | X18: 0 | Y18: 1 | AH18: 22634 | AI18: Matoto
A19: =IF(INTRO!$E$33<>0,INTRO!$E$33, " ") -> Guinée | B19: Conakry | C19: Ratoma | D19: 868981 | E19: =IF(INTRO!$E$48="","",ROUND($D19*INTRO!$E$48,0)) -> 136430 | F19: =IF(INTRO!$E$49="","",ROUND($D19*INTRO!$E$49,0)) -> 236363 | G19: =IF(INTRO!$E$50="","",ROUND($D19*INTRO!$E$50,0)) -> 477940 | H19: 0 | I19: 0 | J19: 1 | K19: 2 | L19: =IF(INTRO!$E$37="Endémique",IF($H19>0,IF($H19=4,"Inconnu",IF($H19=99,"Interrompu",$D19)),0),"Non requis") -> 0 | M19: =IF(INTRO!$E$39="Endémique", IF($I19>0, IF($I19=4,"Inconnu",IF($I19=99,"Interrompu",$D19)), 0),"Non requis") -> 0 | N19: =IF(INTRO!$E$41="Endémique", IF($J19>1, IF($J19=4, "Inconnu", IF($J19=99, "Surveillance", E19)), 0),"Non requis") -> 0 | O19: =IF(INTRO!$E$41="Endémique", IF($J19>1, IF($J19=4, "Inconnu", IF($J19=99, "Surveillance", F19)), 0),"Non requis") -> 0 | P19: =IF(INTRO!$E$41="Endémique", IF($J19>1, IF($J19=4, "Inconnu", IF($J19=99, "Surveillance", ROUND(D19*INTRO!$E$51,0))), 0),"Non requis") -> 0 | Q19: =IF(INTRO!$E$41="Endémique", IF($J19>1, IF($J19=4, "Inconnu", IF($J19=99, "Surveillance", SUM($N19:$P19))), 0),"Non requis") -> 0 | R19: =IF(INTRO!$E$43="Endémique", IF($K19>1, IF($K19=4, "Inconnu", IF($K19=99, "Surveillance", ROUND(E19*0.75,0))), 0),"Non requis") -> 102323 | S19: =IF(INTRO!$E$43="Endémique", IF($K19>1, IF($K19=4, "Inconnu", IF($K19=99, "Surveillance", F19)), 0),"Non requis") -> 236363 | T19: =IF(INTRO!$E$43="Endémique", IF($K19>1, IF($K19=4, "Inconnu", IF($K19=99, "Surveillance", G19)), 0),"Non requis") -> 477940 | U19: =IF(INTRO!$E$43="Endémique", IF($K19>1, IF($K19=4, "Inconnu", IF($K19=99, "Surveillance", SUM($R19:$T19))), 0),"Non requis") -> 816626 | V19: 0 | W19: 0 | X19: 0 | Y19: 1 | AH19: 22637 | AI19: Ratoma
A20: =IF(INTRO!$E$33<>0,INTRO!$E$33, " ") -> Guinée | B20: Faranah | C20: Dabola | D20: 241257 | E20: =IF(INTRO!$E$48="","",ROUND($D20*INTRO!$E$48,0)) -> 37877 | F20: =IF(INTRO!$E$49="","",ROUND($D20*INTRO!$E$49,0)) -> 65622 | G20: =IF(INTRO!$E$50="","",ROUND($D20*INTRO!$E$50,0)) -> 132691 | H20: 1 | I20: 1 | J20: 1 | K20: 1 | L20: =IF(INTRO!$E$37="Endémique",IF($H20>0,IF($H20=4,"Inconnu",IF($H20=99,"Interrompu",$D20)),0),"Non requis") -> 241257 | M20: =IF(INTRO!$E$39="Endémique", IF($I20>0, IF($I20=4,"Inconnu",IF($I20=99,"Interrompu",$D20)), 0),"Non requis") -> 241257 | N20: =IF(INTRO!$E$41="Endémique", IF($J20>1, IF($J20=4, "Inconnu", IF($J20=99, "Surveillance", E20)), 0),"Non requis") -> 0 | O20: =IF(INTRO!$E$41="Endémique", IF($J20>1, IF($J20=4, "Inconnu", IF($J20=99, "Surveillance", F20)), 0),"Non requis") -> 0 | P20: =IF(INTRO!$E$41="Endémique", IF($J20>1, IF($J20=4, "Inconnu", IF($J20=99, "Surveillance", ROUND(D20*INTRO!$E$51,0))), 0),"Non requis") -> 0 | Q20: =IF(INTRO!$E$41="Endémique", IF($J20>1, IF($J20=4, "Inconnu", IF($J20=99, "Surveillance", SUM($N20:$P20))), 0),"Non requis") -> 0 | R20: =IF(INTRO!$E$43="Endémique", IF($K20>1, IF($K20=4, "Inconnu", IF($K20=99, "Surveillance", ROUND(E20*0.75,0))), 0),"Non requis") -> 0 | S20: =IF(INTRO!$E$43="Endémique", IF($K20>1, IF($K20=4, "Inconnu", IF($K20=99, "Surveillance", F20)), 0),"Non requis") -> 0 | T20: =IF(INTRO!$E$43="Endémique", IF($K20>1, IF($K20=4, "Inconnu", IF($K20=99, "Surveillance", G20)), 0),"Non requis") -> 0 | U20: =IF(INTRO!$E$43="Endémique", IF($K20>1, IF($K20=4, "Inconnu", IF($K20=99, "Surveillance", SUM($R20:$T20))), 0),"Non requis") -> 0 | V20: 1 | W20: 1 | X20: 0 | Y20: 0 | AA20: TAS | AB20: Oui | AH20: 22610 | AI20: Dabola
A21: =IF(INTRO!$E$33<>0,INTRO!$E$33, " ") -> Guinée | B21: Faranah | C21: Dinguiraye | D21: 261591 | E21: =IF(INTRO!$E$48="","",ROUND($D21*INTRO!$E$48,0)) -> 41070 | F21: =IF(INTRO!$E$49="","",ROUND($D21*INTRO!$E$49,0)) -> 71153 | G21: =IF(INTRO!$E$50="","",ROUND($D21*INTRO!$E$50,0)) -> 143875 | H21: 99 | I21: 1 | J21: 1 | K21: 3 | L21: =IF(INTRO!$E$37="Endémique",IF($H21>0,IF($H21=4,"Inconnu",IF($H21=99,"Interrompu",$D21)),0),"Non requis") -> Interrompu | M21: =IF(INTRO!$E$39="Endémique", IF($I21>0, IF($I21=4,"Inconnu",IF($I21=99,"Interrompu",$D21)), 0),"Non requis") -> 261591 | N21: =IF(INTRO!$E$41="Endémique", IF($J21>1, IF($J21=4, "Inconnu", IF($J21=99, "Surveillance", E21)), 0),"Non requis") -> 0 | O21: =IF(INTRO!$E$41="Endémique", IF($J21>1, IF($J21=4, "Inconnu", IF($J21=99, "Surveillance", F21)), 0),"Non requis") -> 0 | P21: =IF(INTRO!$E$41="Endémique", IF($J21>1, IF($J21=4, "Inconnu", IF($J21=99, "Surveillance", ROUND(D21*INTRO!$E$51,0))), 0),"Non requis") -> 0 | Q21: =IF(INTRO!$E$41="Endémique", IF($J21>1, IF($J21=4, "Inconnu", IF($J21=99, "Surveillance", SUM($N21:$P21))), 0),"Non requis") -> 0 | R21: =IF(INTRO!$E$43="Endémique", IF($K21>1, IF($K21=4, "Inconnu", IF($K21=99, "Surveillance", ROUND(E21*0.75,0))), 0),"Non requis") -> 30803 | S21: =IF(INTRO!$E$43="Endémique", IF($K21>1, IF($K21=4, "Inconnu", IF($K21=99, "Surveillance", F21)), 0),"Non requis") -> 71153 | T21: =IF(INTRO!$E$43="Endémique", IF($K21>1, IF($K21=4, "Inconnu", IF($K21=99, "Surveillance", G21)), 0),"Non requis") -> 143875 | U21: =IF(INTRO!$E$43="Endémique", IF($K21>1, IF($K21=4, "Inconnu", IF($K21=99, "Surveillance", SUM($R21:$T21))), 0),"Non requis") -> 245831 | V21: 0 | W21: 1 | X21: 0 | Y21: 1 | AA21: TAS | AB21: Oui | AD21: Oui | AH21: 22612 | AI21: Dinguiraye
A22: =IF(INTRO!$E$33<>0,INTRO!$E$33, " ") -> Guinée | B22: Faranah | C22: Faranah | D22: 373142 | E22: =IF(INTRO!$E$48="","",ROUND($D22*INTRO!$E$48,0)) -> 58583 | F22: =IF(INTRO!$E$49="","",ROUND($D22*INTRO!$E$49,0)) -> 101495 | G22: =IF(INTRO!$E$50="","",ROUND($D22*INTRO!$E$50,0)) -> 205228 | H22: 1 | I22: 1 | J22: 3 | K22: 3 | L22: =IF(INTRO!$E$37="Endémique",IF($H22>0,IF($H22=4,"Inconnu",IF($H22=99,"Interrompu",$D22)),0),"Non requis") -> 373142 | M22: =IF(INTRO!$E$39="Endémique", IF($I22>0, IF($I22=4,"Inconnu",IF($I22=99,"Interrompu",$D22)), 0),"Non requis") -> 373142 | N22: =IF(INTRO!$E$41="Endémique", IF($J22>1, IF($J22=4, "Inconnu", IF($J22=99, "Surveillance", E22)), 0),"Non requis") -> 58583 | O22: =IF(INTRO!$E$41="Endémique", IF($J22>1, IF($J22=4, "Inconnu", IF($J22=99, "Surveillance", F22)), 0),"Non requis") -> 101495 | P22: =IF(INTRO!$E$41="Endémique", IF($J22>1, IF($J22=4, "Inconnu", IF($J22=99, "Surveillance", ROUND(D22*INTRO!$E$51,0))), 0),"Non requis") -> 180601 | Q22: =IF(INTRO!$E$41="Endémique", IF($J22>1, IF($J22=4, "Inconnu", IF($J22=99, "Surveillance", SUM($N22:$P22))), 0),"Non requis") -> 340679 | R22: =IF(INTRO!$E$43="Endémique", IF($K22>1, IF($K22=4, "Inconnu", IF($K22=99, "Surveillance", ROUND(E22*0.75,0))), 0),"Non requis") -> 43937 | S22: =IF(INTRO!$E$43="Endémique", IF($K22>1, IF($K22=4, "Inconnu", IF($K22=99, "Surveillance", F22)), 0),"Non requis") -> 101495 | T22: =IF(INTRO!$E$43="Endémique", IF($K22>1, IF($K22=4, "Inconnu", IF($K22=99, "Surveillance", G22)), 0),"Non requis") -> 205228 | U22: =IF(INTRO!$E$43="Endémique", IF($K22>1, IF($K22=4, "Inconnu", IF($K22=99, "Surveillance", SUM($R22:$T22))), 0),"Non requis") -> 350660 | V22: 1 | W22: 1 | X22: 2 | Y22: 1 | AB22: Oui | AC22: Oui | AD22: Oui | AH22: 22615 | AI22: Faranah
A23: =IF(INTRO!$E$33<>0,INTRO!$E$33, " ") -> Guinée | B23: Faranah | C23: Kissidougou | D23: 377288 | E23: =IF(INTRO!$E$48="","",ROUND($D23*INTRO!$E$48,0)) -> 59234 | F23: =IF(INTRO!$E$49="","",ROUND($D23*INTRO!$E$49,0)) -> 102622 | G23: =IF(INTRO!$E$50="","",ROUND($D23*INTRO!$E$50,0)) -> 207508 | H23: 1 | I23: 1 | J23: 3 | K23: 3 | L23: =IF(INTRO!$E$37="Endémique",IF($H23>0,IF($H23=4,"Inconnu",IF($H23=99,"Interrompu",$D23)),0),"Non requis") -> 377288 | M23: =IF(INTRO!$E$39="Endémique", IF($I23>0, IF($I23=4,"Inconnu",IF($I23=99,"Interrompu",$D23)), 0),"Non requis") -> 377288 | N23: =IF(INTRO!$E$41="Endémique", IF($J23>1, IF($J23=4, "Inconnu", IF($J23=99, "Surveillance", E23)), 0),"Non requis") -> 59234 | O23: =IF(INTRO!$E$41="Endémique", IF($J23>1, IF($J23=4, "Inconnu", IF($J23=99, "Surveillance", F23)), 0),"Non requis") -> 102622 | P23: =IF(INTRO!$E$41="Endémique", IF($J23>1, IF($J23=4, "Inconnu", IF($J23=99, "Surveillance", ROUND(D23*INTRO!$E$51,0))), 0),"Non requis") -> 182607 | Q23: =IF(INTRO!$E$41="Endémique", IF($J23>1, IF($J23=4, "Inconnu", IF($J23=99, "Surveillance", SUM($N23:$P23))), 0),"Non requis") -> 344463 | R23: =IF(INTRO!$E$43="Endémique", IF($K23>1, IF($K23=4, "Inconnu", IF($K23=99, "Surveillance", ROUND(E23*0.75,0))), 0),"Non requis") -> 44426 | S23: =IF(INTRO!$E$43="Endémique", IF($K23>1, IF($K23=4, "Inconnu", IF($K23=99, "Surveillance", F23)), 0),"Non requis") -> 102622 | T23: =IF(INTRO!$E$43="Endémique", IF($K23>1, IF($K23=4, "Inconnu", IF($K23=99, "Surveillance", G23)), 0),"Non requis") -> 207508 | U23: =IF(INTRO!$E$43="Endémique", IF($K23>1, IF($K23=4, "Inconnu", IF($K23=99, "Surveillance", SUM($R23:$T23))), 0),"Non requis") -> 354556 | V23: 1 | W23: 1 | X23: 2 | Y23: 1 | AA23: TAS | AB23: Oui | AD23: Oui | AH23: 22623 | AI23: Kissidougou
A24: =IF(INTRO!$E$33<>0,INTRO!$E$33, " ") -> Guinée | B24: Kankan | C24: Kankan | D24: 628094 | E24: =IF(INTRO!$E$48="","",ROUND($D24*INTRO!$E$48,0)) -> 98611 | F24: =IF(INTRO!$E$49="","",ROUND($D24*INTRO!$E$49,0)) -> 170842 | G24: =IF(INTRO!$E$50="","",ROUND($D24*INTRO!$E$50,0)) -> 345452 | H24: 1 | I24: 1 | J24: 2 | K24: 2 | L24: =IF(INTRO!$E$37="Endémique",IF($H24>0,IF($H24=4,"Inconnu",IF($H24=99,"Interrompu",$D24)),0),"Non requis") -> 628094 | M24: =IF(INTRO!$E$39="Endémique", IF($I24>0, IF($I24=4,"Inconnu",IF($I24=99,"Interrompu",$D24)), 0),"Non requis") -> 628094 | N24: =IF(INTRO!$E$41="Endémique", IF($J24>1, IF($J24=4, "Inconnu", IF($J24=99, "Surveillance", E24)), 0),"Non requis") -> 98611 | O24: =IF(INTRO!$E$41="Endémique", IF($J24>1, IF($J24=4, "Inconnu", IF($J24=99, "Surveillance", F24)), 0),"Non requis") -> 170842 | P24: =IF(INTRO!$E$41="Endémique", IF($J24>1, IF($J24=4, "Inconnu", IF($J24=99, "Surveillance", ROUND(D24*INTRO!$E$51,0))), 0),"Non requis") -> 303997 | Q24: =IF(INTRO!$E$41="Endémique", IF($J24>1, IF($J24=4, "Inconnu", IF($J24=99, "Surveillance", SUM($N24:$P24))), 0),"Non requis") -> 573450 | R24: =IF(INTRO!$E$43="Endémique", IF($K24>1, IF($K24=4, "Inconnu", IF($K24=99, "Surveillance", ROUND(E24*0.75,0))), 0),"Non requis") -> 73958 | S24: =IF(INTRO!$E$43="Endémique", IF($K24>1, IF($K24=4, "Inconnu", IF($K24=99, "Surveillance", F24)), 0),"Non requis") -> 170842 | T24: =IF(INTRO!$E$43="Endémique", IF($K24>1, IF($K24=4, "Inconnu", IF($K24=99, "Surveillance", G24)), 0),"Non requis") -> 345452 | U24: =IF(INTRO!$E$43="Endémique", IF($K24>1, IF($K24=4, "Inconnu", IF($K24=99, "Surveillance", SUM($R24:$T24))), 0),"Non requis") -> 590252 | V24: 1 | W24: 1 | X24: 1 | Y24: 1 | AB24: Oui | AH24: 22620 | AI24: Kankan
A25: =IF(INTRO!$E$33<>0,INTRO!$E$33, " ") -> Guinée | B25: Kankan | C25: Kerouane | D25: 276433 | E25: =IF(INTRO!$E$48="","",ROUND($D25*INTRO!$E$48,0)) -> 43400 | F25: =IF(INTRO!$E$49="","",ROUND($D25*INTRO!$E$49,0)) -> 75190 | G25: =IF(INTRO!$E$50="","",ROUND($D25*INTRO!$E$50,0)) -> 152038 | H25: 99 | I25: 1 | J25: 2 | K25: 3 | L25: =IF(INTRO!$E$37="Endémique",IF($H25>0,IF($H25=4,"Inconnu",IF($H25=99,"Interrompu",$D25)),0),"Non requis") -> Interrompu | M25: =IF(INTRO!$E$39="Endémique", IF($I25>0, IF($I25=4,"Inconnu",IF($I25=99,"Interrompu",$D25)), 0),"Non requis") -> 276433 | N25: =IF(INTRO!$E$41="Endémique", IF($J25>1, IF($J25=4, "Inconnu", IF($J25=99, "Surveillance", E25)), 0),"Non requis") -> 43400 | O25: =IF(INTRO!$E$41="Endémique", IF($J25>1, IF($J25=4, "Inconnu", IF($J25=99, "Surveillance", F25)), 0),"Non requis") -> 75190 | P25: =IF(INTRO!$E$41="Endémique", IF($J25>1, IF($J25=4, "Inconnu", IF($J25=99, "Surveillance", ROUND(D25*INTRO!$E$51,0))), 0),"Non requis") -> 133794 | Q25: =IF(INTRO!$E$41="Endémique", IF($J25>1, IF($J25=4, "Inconnu", IF($J25=99, "Surveillance", SUM($N25:$P25))), 0),"Non requis") -> 252384 | R25: =IF(INTRO!$E$43="Endémique", IF($K25>1, IF($K25=4, "Inconnu", IF($K25=99, "Surveillance", ROUND(E25*0.75,0))), 0),"Non requis") -> 32550 | S25: =IF(INTRO!$E$43="Endémique", IF($K25>1, IF($K25=4, "Inconnu", IF($K25=99, "Surveillance", F25)), 0),"Non requis") -> 75190 | T25: =IF(INTRO!$E$43="Endémique", IF($K25>1, IF($K25=4, "Inconnu", IF($K25=99, "Surveillance", G25)), 0),"Non requis") -> 152038 | U25: =IF(INTRO!$E$43="Endémique", IF($K25>1, IF($K25=4, "Inconnu", IF($K25=99, "Surveillance", SUM($R25:$T25))), 0),"Non requis") -> 259778 | V25: 0 | W25: 1 | X25: 1 | Y25: 1 | AA25: TAS | AB25: Oui | AD25: Oui | AH25: 22621 | AI25: Kerouane
A26: =IF(INTRO!$E$33<>0,INTRO!$E$33, " ") -> Guinée | B26: Kankan | C26: Kouroussa | D26: 357499 | E26: =IF(INTRO!$E$48="","",ROUND($D26*INTRO!$E$48,0)) -> 56127 | F26: =IF(INTRO!$E$49="","",ROUND($D26*INTRO!$E$49,0)) -> 97240 | G26: =IF(INTRO!$E$50="","",ROUND($D26*INTRO!$E$50,0)) -> 196624 | H26: 1 | I26: 1 | J26: 2 | K26: 2 | L26: =IF(INTRO!$E$37="Endémique",IF($H26>0,IF($H26=4,"Inconnu",IF($H26=99,"Interrompu",$D26)),0),"Non requis") -> 357499 | M26: =IF(INTRO!$E$39="Endémique", IF($I26>0, IF($I26=4,"Inconnu",IF($I26=99,"Interrompu",$D26)), 0),"Non requis") -> 357499 | N26: =IF(INTRO!$E$41="Endémique", IF($J26>1, IF($J26=4, "Inconnu", IF($J26=99, "Surveillance", E26)), 0),"Non requis") -> 56127 | O26: =IF(INTRO!$E$41="Endémique", IF($J26>1, IF($J26=4, "Inconnu", IF($J26=99, "Surveillance", F26)), 0),"Non requis") -> 97240 | P26: =IF(INTRO!$E$41="Endémique", IF($J26>1, IF($J26=4, "Inconnu", IF($J26=99, "Surveillance", ROUND(D26*INTRO!$E$51,0))), 0),"Non requis") -> 173030 | Q26: =IF(INTRO!$E$41="Endémique", IF($J26>1, IF($J26=4, "Inconnu", IF($J26=99, "Surveillance", SUM($N26:$P26))), 0),"Non requis") -> 326397 | R26: =IF(INTRO!$E$43="Endémique", IF($K26>1, IF($K26=4, "Inconnu", IF($K26=99, "Surveillance", ROUND(E26*0.75,0))), 0),"Non requis") -> 42095 | S26: =IF(INTRO!$E$43="Endémique", IF($K26>1, IF($K26=4, "Inconnu", IF($K26=99, "Surveillance", F26)), 0),"Non requis") -> 97240 | T26: =IF(INTRO!$E$43="Endémique", IF($K26>1, IF($K26=4, "Inconnu", IF($K26=99, "Surveillance", G26)), 0),"Non requis") -> 196624 | U26: =IF(INTRO!$E$43="Endémique", IF($K26>1, IF($K26=4, "Inconnu", IF($K26=99, "Surveillance", SUM($R26:$T26))), 0),"Non requis") -> 335959 | V26: 1 | W26: 1 | X26: 1 | Y26: 1 | AB26: Oui | AH26: 22625 | AI26: Kouroussa
A27: =IF(INTRO!$E$33<>0,INTRO!$E$33, " ") -> Guinée | B27: Kankan | C27: Mandiana | D27: 447463 | E27: =IF(INTRO!$E$48="","",ROUND($D27*INTRO!$E$48,0)) -> 70252 | F27: =IF(INTRO!$E$49="","",ROUND($D27*INTRO!$E$49,0)) -> 121710 | G27: =IF(INTRO!$E$50="","",ROUND($D27*INTRO!$E$50,0)) -> 246105 | H27: 99 | I27: 1 | J27: 2 | K27: 1 | L27: =IF(INTRO!$E$37="Endémique",IF($H27>0,IF($H27=4,"Inconnu",IF($H27=99,"Interrompu",$D27)),0),"Non requis") -> Interrompu | M27: =IF(INTRO!$E$39="Endémique", IF($I27>0, IF($I27=4,"Inconnu",IF($I27=99,"Interrompu",$D27)), 0),"Non requis") -> 447463 | N27: =IF(INTRO!$E$41="Endémique", IF($J27>1, IF($J27=4, "Inconnu", IF($J27=99, "Surveillance", E27)), 0),"Non requis") -> 70252 | O27: =IF(INTRO!$E$41="Endémique", IF($J27>1, IF($J27=4, "Inconnu", IF($J27=99, "Surveillance", F27)), 0),"Non requis") -> 121710 | P27: =IF(INTRO!$E$41="Endémique", IF($J27>1, IF($J27=4, "Inconnu", IF($J27=99, "Surveillance", ROUND(D27*INTRO!$E$51,0))), 0),"Non requis") -> 216572 | Q27: =IF(INTRO!$E$41="Endémique", IF($J27>1, IF($J27=4, "Inconnu", IF($J27=99, "Surveillance", SUM($N27:$P27))), 0),"Non requis") -> 408534 | R27: =IF(INTRO!$E$43="Endémique", IF($K27>1, IF($K27=4, "Inconnu", IF($K27=99, "Surveillance", ROUND(E27*0.75,0))), 0),"Non requis") -> 0 | S27: =IF(INTRO!$E$43="Endémique", IF($K27>1, IF($K27=4, "Inconnu", IF($K27=99, "Surveillance", F27)), 0),"Non requis") -> 0 | T27: =IF(INTRO!$E$43="Endémique", IF($K27>1, IF($K27=4, "Inconnu", IF($K27=99, "Surveillance", G27)), 0),"Non requis") -> 0 | U27: =IF(INTRO!$E$43="Endémique", IF($K27>1, IF($K27=4, "Inconnu", IF($K27=99, "Surveillance", SUM($R27:$T27))), 0),"Non requis") -> 0 | V27: 0 | W27: 1 | X27: 1 | Y27: 0 | AA27: TAS | AB27: Oui | AH27: 22632 | AI27: Mandiana
A28: =IF(INTRO!$E$33<>0,INTRO!$E$33, " ") -> Guinée | B28: Kankan | C28: Siguiri | D28: 902467 | E28: =IF(INTRO!$E$48="","",ROUND($D28*INTRO!$E$48,0)) -> 141687 | F28: =IF(INTRO!$E$49="","",ROUND($D28*INTRO!$E$49,0)) -> 245471 | G28: =IF(INTRO!$E$50="","",ROUND($D28*INTRO!$E$50,0)) -> 496357 | H28: 1 | I28: 1 | J28: 1 | K28: 2 | L28: =IF(INTRO!$E$37="Endémique",IF($H28>0,IF($H28=4,"Inconnu",IF($H28=99,"Interrompu",$D28)),0),"Non requis") -> 902467 | M28: =IF(INTRO!$E$39="Endémique", IF($I28>0, IF($I28=4,"Inconnu",IF($I28=99,"Interrompu",$D28)), 0),"Non requis") -> 902467 | N28: =IF(INTRO!$E$41="Endémique", IF($J28>1, IF($J28=4, "Inconnu", IF($J28=99, "Surveillance", E28)), 0),"Non requis") -> 0 | O28: =IF(INTRO!$E$41="Endémique", IF($J28>1, IF($J28=4, "Inconnu", IF($J28=99, "Surveillance", F28)), 0),"Non requis") -> 0 | P28: =IF(INTRO!$E$41="Endémique", IF($J28>1, IF($J28=4, "Inconnu", IF($J28=99, "Surveillance", ROUND(D28*INTRO!$E$51,0))), 0),"Non requis") -> 0 | Q28: =IF(INTRO!$E$41="Endémique", IF($J28>1, IF($J28=4, "Inconnu", IF($J28=99, "Surveillance", SUM($N28:$P28))), 0),"Non requis") -> 0 | R28: =IF(INTRO!$E$43="Endémique", IF($K28>1, IF($K28=4, "Inconnu", IF($K28=99, "Surveillance", ROUND(E28*0.75,0))), 0),"Non requis") -> 106265 | S28: =IF(INTRO!$E$43="Endémique", IF($K28>1, IF($K28=4, "Inconnu", IF($K28=99, "Surveillance", F28)), 0),"Non requis") -> 245471 | T28: =IF(INTRO!$E$43="Endémique", IF($K28>1, IF($K28=4, "Inconnu", IF($K28=99, "Surveillance", G28)), 0),"Non requis") -> 496357 | U28: =IF(INTRO!$E$43="Endémique", IF($K28>1, IF($K28=4, "Inconnu", IF($K28=99, "Surveillance", SUM($R28:$T28))), 0),"Non requis") -> 848093 | V28: 1 | W28: 1 | X28: 0 | Y28: 1 | AB28: Oui | AH28: 22638 | AI28: Siguiri
A29: =IF(INTRO!$E$33<>0,INTRO!$E$33, " ") -> Guinée | B29: Kindia | C29: Coyah | D29: 350905 | E29: =IF(INTRO!$E$48="","",ROUND($D29*INTRO!$E$48,0)) -> 55092 | F29: =IF(INTRO!$E$49="","",ROUND($D29*INTRO!$E$49,0)) -> 95446 | G29: =IF(INTRO!$E$50="","",ROUND($D29*INTRO!$E$50,0)) -> 192998 | H29: 0 | I29: 4 | J29: 1 | K29: 1 | L29: =IF(INTRO!$E$37="Endémique",IF($H29>0,IF($H29=4,"Inconnu",IF($H29=99,"Interrompu",$D29)),0),"Non requis") -> 0 | M29: =IF(INTRO!$E$39="Endémique", IF($I29>0, IF($I29=4,"Inconnu",IF($I29=99,"Interrompu",$D29)), 0),"Non requis") -> Inconnu | N29: =IF(INTRO!$E$41="Endémique", IF($J29>1, IF($J29=4, "Inconnu", IF($J29=99, "Surveillance", E29)), 0),"Non requis") -> 0 | O29: =IF(INTRO!$E$41="Endémique", IF($J29>1, IF($J29=4, "Inconnu", IF($J29=99, "Surveillance", F29)), 0),"Non requis") -> 0 | P29: =IF(INTRO!$E$41="Endémique", IF($J29>1, IF($J29=4, "Inconnu", IF($J29=99, "Surveillance", ROUND(D29*INTRO!$E$51,0))), 0),"Non requis") -> 0 | Q29: =IF(INTRO!$E$41="Endémique", IF($J29>1, IF($J29=4, "Inconnu", IF($J29=99, "Surveillance", SUM($N29:$P29))), 0),"Non requis") -> 0 | R29: =IF(INTRO!$E$43="Endémique", IF($K29>1, IF($K29=4, "Inconnu", IF($K29=99, "Surveillance", ROUND(E29*0.75,0))), 0),"Non requis") -> 0 | S29: =IF(INTRO!$E$43="Endémique", IF($K29>1, IF($K29=4, "Inconnu", IF($K29=99, "Surveillance", F29)), 0),"Non requis") -> 0 | T29: =IF(INTRO!$E$43="Endémique", IF($K29>1, IF($K29=4, "Inconnu", IF($K29=99, "Surveillance", G29)), 0),"Non requis") -> 0 | U29: =IF(INTRO!$E$43="Endémique", IF($K29>1, IF($K29=4, "Inconnu", IF($K29=99, "Surveillance", SUM($R29:$T29))), 0),"Non requis") -> 0 | V29: 0 | W29: 0 | X29: 0 | Y29: 0 | AH29: 22609 | AI29: Coyah
A30: =IF(INTRO!$E$33<>0,INTRO!$E$33, " ") -> Guinée | B30: Kindia | C30: Dubreka | D30: 439456 | E30: =IF(INTRO!$E$48="","",ROUND($D30*INTRO!$E$48,0)) -> 68995 | F30: =IF(INTRO!$E$49="","",ROUND($D30*INTRO!$E$49,0)) -> 119532 | G30: =IF(INTRO!$E$50="","",ROUND($D30*INTRO!$E$50,0)) -> 241701 | H30: 0 | I30: 4 | J30: 1 | K30: 1 | L30: =IF(INTRO!$E$37="Endémique",IF($H30>0,IF($H30=4,"Inconnu",IF($H30=99,"Interrompu",$D30)),0),"Non requis") -> 0 | M30: =IF(INTRO!$E$39="Endémique", IF($I30>0, IF($I30=4,"Inconnu",IF($I30=99,"Interrompu",$D30)), 0),"Non requis") -> Inconnu | N30: =IF(INTRO!$E$41="Endémique", IF($J30>1, IF($J30=4, "Inconnu", IF($J30=99, "Surveillance", E30)), 0),"Non requis") -> 0 | O30: =IF(INTRO!$E$41="Endémique", IF($J30>1, IF($J30=4, "Inconnu", IF($J30=99, "Surveillance", F30)), 0),"Non requis") -> 0 | P30: =IF(INTRO!$E$41="Endémique", IF($J30>1, IF($J30=4, "Inconnu", IF($J30=99, "Surveillance", ROUND(D30*INTRO!$E$51,0))), 0),"Non requis") -> 0 | Q30: =IF(INTRO!$E$41="Endémique", IF($J30>1, IF($J30=4, "Inconnu", IF($J30=99, "Surveillance", SUM($N30:$P30))), 0),"Non requis") -> 0 | R30: =IF(INTRO!$E$43="Endémique", IF($K30>1, IF($K30=4, "Inconnu", IF($K30=99, "Surveillance", ROUND(E30*0.75,0))), 0),"Non requis") -> 0 | S30: =IF(INTRO!$E$43="Endémique", IF($K30>1, IF($K30=4, "Inconnu", IF($K30=99, "Surveillance", F30)), 0),"Non requis") -> 0 | T30: =IF(INTRO!$E$43="Endémique", IF($K30>1, IF($K30=4, "Inconnu", IF($K30=99, "Surveillance", G30)), 0),"Non requis") -> 0 | U30: =IF(INTRO!$E$43="Endémique", IF($K30>1, IF($K30=4, "Inconnu", IF($K30=99, "Surveillance", SUM($R30:$T30))), 0),"Non requis") -> 0 | V30: 0 | W30: 0 | X30: 0 | Y30: 0 | AH30: 22614 | AI30: Dubreka
A31: =IF(INTRO!$E$33<>0,INTRO!$E$33, " ") -> Guinée | B31: Kindia | C31: Forecariah | D31: 323276 | E31: =IF(INTRO!$E$48="","",ROUND($D31*INTRO!$E$48,0)) -> 50754 | F31: =IF(INTRO!$E$49="","",ROUND($D31*INTRO!$E$49,0)) -> 87931 | G31: =IF(INTRO!$E$50="","",ROUND($D31*INTRO!$E$50,0)) -> 177802 | H31: 99 | I31: 1 | J31: 3 | K31: 1 | L31: =IF(INTRO!$E$37="Endémique",IF($H31>0,IF($H31=4,"Inconnu",IF($H31=99,"Interrompu",$D31)),0),"Non requis") -> Interrompu | M31: =IF(INTRO!$E$39="Endémique", IF($I31>0, IF($I31=4,"Inconnu",IF($I31=99,"Interrompu",$D31)), 0),"Non requis") -> 323276 | N31: =IF(INTRO!$E$41="Endémique", IF($J31>1, IF($J31=4, "Inconnu", IF($J31=99, "Surveillance", E31)), 0),"Non requis") -> 50754 | O31: =IF(INTRO!$E$41="Endémique", IF($J31>1, IF($J31=4, "Inconnu", IF($J31=99, "Surveillance", F31)), 0),"Non requis") -> 87931 | P31: =IF(INTRO!$E$41="Endémique", IF($J31>1, IF($J31=4, "Inconnu", IF($J31=99, "Surveillance", ROUND(D31*INTRO!$E$51,0))), 0),"Non requis") -> 156466 | Q31: =IF(INTRO!$E$41="Endémique", IF($J31>1, IF($J31=4, "Inconnu", IF($J31=99, "Surveillance", SUM($N31:$P31))), 0),"Non requis") -> 295151 | R31: =IF(INTRO!$E$43="Endémique", IF($K31>1, IF($K31=4, "Inconnu", IF($K31=99, "Surveillance", ROUND(E31*0.75,0))), 0),"Non requis") -> 0 | S31: =IF(INTRO!$E$43="Endémique", IF($K31>1, IF($K31=4, "Inconnu", IF($K31=99, "Surveillance", F31)), 0),"Non requis") -> 0 | T31: =IF(INTRO!$E$43="Endémique", IF($K31>1, IF($K31=4, "Inconnu", IF($K31=99, "Surveillance", G31)), 0),"Non requis") -> 0 | U31: =IF(INTRO!$E$43="Endémique", IF($K31>1, IF($K31=4, "Inconnu", IF($K31=99, "Surveillance", SUM($R31:$T31))), 0),"Non requis") -> 0 | V31: 0 | W31: 1 | X31: 2 | Y31: 0 | AA31: TAS | AC31: Oui | AH31: 22616 | AI31: Forecariah
A32: =IF(INTRO!$E$33<>0,INTRO!$E$33, " ") -> Guinée | B32: Kindia | C32: Kindia | D32: 584655 | E32: =IF(INTRO!$E$48="","",ROUND($D32*INTRO!$E$48,0)) -> 91791 | F32: =IF(INTRO!$E$49="","",ROUND($D32*INTRO!$E$49,0)) -> 159026 | G32: =IF(INTRO!$E$50="","",ROUND($D32*INTRO!$E$50,0)) -> 321560 | H32: 99 | I32: 1 | J32: 2 | K32: 3 | L32: =IF(INTRO!$E$37="Endémique",IF($H32>0,IF($H32=4,"Inconnu",IF($H32=99,"Interrompu",$D32)),0),"Non requis") -> Interrompu | M32: =IF(INTRO!$E$39="Endémique", IF($I32>0, IF($I32=4,"Inconnu",IF($I32=99,"Interrompu",$D32)), 0),"Non requis") -> 584655 | N32: =IF(INTRO!$E$41="Endémique", IF($J32>1, IF($J32=4, "Inconnu", IF($J32=99, "Surveillance", E32)), 0),"Non requis") -> 91791 | O32: =IF(INTRO!$E$41="Endémique", IF($J32>1, IF($J32=4, "Inconnu", IF($J32=99, "Surveillance", F32)), 0),"Non requis") -> 159026 | P32: =IF(INTRO!$E$41="Endémique", IF($J32>1, IF($J32=4, "Inconnu", IF($J32=99, "Surveillance", ROUND(D32*INTRO!$E$51,0))), 0),"Non requis") -> 282973 | Q32: =IF(INTRO!$E$41="Endémique", IF($J32>1, IF($J32=4, "Inconnu", IF($J32=99, "Surveillance", SUM($N32:$P32))), 0),"Non requis") -> 533790 | R32: =IF(INTRO!$E$43="Endémique", IF($K32>1, IF($K32=4, "Inconnu", IF($K32=99, "Surveillance", ROUND(E32*0.75,0))), 0),"Non requis") -> 68843 | S32: =IF(INTRO!$E$43="Endémique", IF($K32>1, IF($K32=4, "Inconnu", IF($K32=99, "Surveillance", F32)), 0),"Non requis") -> 159026 | T32: =IF(INTRO!$E$43="Endémique", IF($K32>1, IF($K32=4, "Inconnu", IF($K32=99, "Surveillance", G32)), 0),"Non requis") -> 321560 | U32: =IF(INTRO!$E$43="Endémique", IF($K32>1, IF($K32=4, "Inconnu", IF($K32=99, "Surveillance", SUM($R32:$T32))), 0),"Non requis") -> 549429 | V32: 0 | W32: 1 | X32: 1 | Y32: 1 | AA32: TAS | AD32: Oui | AH32: 22622 | AI32: Kindia
A33: =IF(INTRO!$E$33<>0,INTRO!$E$33, " ") -> Guinée | B33: Kindia | C33: Telimele | D33: 378681 | E33: =IF(INTRO!$E$48="","",ROUND($D33*INTRO!$E$48,0)) -> 59453 | F33: =IF(INTRO!$E$49="","",ROUND($D33*INTRO!$E$49,0)) -> 103001 | G33: =IF(INTRO!$E$50="","",ROUND($D33*INTRO!$E$50,0)) -> 208275 | H33: 99 | I33: 4 | J33: 2 | K33: 1 | L33: =IF(INTRO!$E$37="Endémique",IF($H33>0,IF($H33=4,"Inconnu",IF($H33=99,"Interrompu",$D33)),0),"Non requis") -> Interrompu | M33: =IF(INTRO!$E$39="Endémique", IF($I33>0, IF($I33=4,"Inconnu",IF($I33=99,"Interrompu",$D33)), 0),"Non requis") -> Inconnu | N33: =IF(INTRO!$E$41="Endémique", IF($J33>1, IF($J33=4, "Inconnu", IF($J33=99, "Surveillance", E33)), 0),"Non requis") -> 59453 | O33: =IF(INTRO!$E$41="Endémique", IF($J33>1, IF($J33=4, "Inconnu", IF($J33=99, "Surveillance", F33)), 0),"Non requis") -> 103001 | P33: =IF(INTRO!$E$41="Endémique", IF($J33>1, IF($J33=4, "Inconnu", IF($J33=99, "Surveillance", ROUND(D33*INTRO!$E$51,0))), 0),"Non requis") -> 183282 | Q33: =IF(INTRO!$E$41="Endémique", IF($J33>1, IF($J33=4, "Inconnu", IF($J33=99, "Surveillance", SUM($N33:$P33))), 0),"Non requis") -> 345736 | R33: =IF(INTRO!$E$43="Endémique", IF($K33>1, IF($K33=4, "Inconnu", IF($K33=99, "Surveillance", ROUND(E33*0.75,0))), 0),"Non requis") -> 0 | S33: =IF(INTRO!$E$43="Endémique", IF($K33>1, IF($K33=4, "Inconnu", IF($K33=99, "Surveillance", F33)), 0),"Non requis") -> 0 | T33: =IF(INTRO!$E$43="Endémique", IF($K33>1, IF($K33=4, "Inconnu", IF($K33=99, "Surveillance", G33)), 0),"Non requis") -> 0 | U33: =IF(INTRO!$E$43="Endémique", IF($K33>1, IF($K33=4, "Inconnu", IF($K33=99, "Surveillance", SUM($R33:$T33))), 0),"Non requis") -> 0 | V33: 0 | W33: 0 | X33: 1 | Y33: 0 | AA33: TAS | AB33: Oui | AH33: 22639 | AI33: Telimélé
A34: =IF(INTRO!$E$33<>0,INTRO!$E$33, " ") -> Guinée | B34: Labe | C34: Koubia | D34: 132883 | E34: =IF(INTRO!$E$48="","",ROUND($D34*INTRO!$E$48,0)) -> 20863 | F34: =IF(INTRO!$E$49="","",ROUND($D34*INTRO!$E$49,0)) -> 36144 | G34: =IF(INTRO!$E$50="","",ROUND($D34*INTRO!$E$50,0)) -> 73086 | H34: 0 | I34: 1 | J34: 1 | K34: 2 | L34: =IF(INTRO!$E$37="Endémique",IF($H34>0,IF($H34=4,"Inconnu",IF($H34=99,"Interrompu",$D34)),0),"Non requis") -> 0 | M34: =IF(INTRO!$E$39="Endémique", IF($I34>0, IF($I34=4,"Inconnu",IF($I34=99,"Interrompu",$D34)), 0),"Non requis") -> 132883 | N34: =IF(INTRO!$E$41="Endémique", IF($J34>1, IF($J34=4, "Inconnu", IF($J34=99, "Surveillance", E34)), 0),"Non requis") -> 0 | O34: =IF(INTRO!$E$41="Endémique", IF($J34>1, IF($J34=4, "Inconnu", IF($J34=99, "Surveillance", F34)), 0),"Non requis") -> 0 | P34: =IF(INTRO!$E$41="Endémique", IF($J34>1, IF($J34=4, "Inconnu", IF($J34=99, "Surveillance", ROUND(D34*INTRO!$E$51,0))), 0),"Non requis") -> 0 | Q34: =IF(INTRO!$E$41="Endémique", IF($J34>1, IF($J34=4, "Inconnu", IF($J34=99, "Surveillance", SUM($N34:$P34))), 0),"Non requis") -> 0 | R34: =IF(INTRO!$E$43="Endémique", IF($K34>1, IF($K34=4, "Inconnu", IF($K34=99, "Surveillance", ROUND(E34*0.75,0))), 0),"Non requis") -> 15647 | S34: =IF(INTRO!$E$43="Endémique", IF($K34>1, IF($K34=4, "Inconnu", IF($K34=99, "Surveillance", F34)), 0),"Non requis") -> 36144 | T34: =IF(INTRO!$E$43="Endémique", IF($K34>1, IF($K34=4, "Inconnu", IF($K34=99, "Surveillance", G34)), 0),"Non requis") -> 73086 | U34: =IF(INTRO!$E$43="Endémique", IF($K34>1, IF($K34=4, "Inconnu", IF($K34=99, "Surveillance", SUM($R34:$T34))), 0),"Non requis") -> 124877 | V34: 0 | W34: 1 | X34: 0 | Y34: 1 | AH34: 22624 | AI34: Koubia
A35: =IF(INTRO!$E$33<>0,INTRO!$E$33, " ") -> Guinée | B35: Labe | C35: Labe | D35: 423245 | E35: =IF(INTRO!$E$48="","",ROUND($D35*INTRO!$E$48,0)) -> 66449 | F35: =IF(INTRO!$E$49="","",ROUND($D35*INTRO!$E$49,0)) -> 115123 | G35: =IF(INTRO!$E$50="","",ROUND($D35*INTRO!$E$50,0)) -> 232785 | H35: 0 | I35: 4 | J35: 1 | K35: 1 | L35: =IF(INTRO!$E$37="Endémique",IF($H35>0,IF($H35=4,"Inconnu",IF($H35=99,"Interrompu",$D35)),0),"Non requis") -> 0 | M35: =IF(INTRO!$E$39="Endémique", IF($I35>0, IF($I35=4,"Inconnu",IF($I35=99,"Interrompu",$D35)), 0),"Non requis") -> Inconnu | N35: =IF(INTRO!$E$41="Endémique", IF($J35>1, IF($J35=4, "Inconnu", IF($J35=99, "Surveillance", E35)), 0),"Non requis") -> 0 | O35: =IF(INTRO!$E$41="Endémique", IF($J35>1, IF($J35=4, "Inconnu", IF($J35=99, "Surveillance", F35)), 0),"Non requis") -> 0 | P35: =IF(INTRO!$E$41="Endémique", IF($J35>1, IF($J35=4, "Inconnu", IF($J35=99, "Surveillance", ROUND(D35*INTRO!$E$51,0))), 0),"Non requis") -> 0 | Q35: =IF(INTRO!$E$41="Endémique", IF($J35>1, IF($J35=4, "Inconnu", IF($J35=99, "Surveillance", SUM($N35:$P35))), 0),"Non requis") -> 0 | R35: =IF(INTRO!$E$43="Endémique", IF($K35>1, IF($K35=4, "Inconnu", IF($K35=99, "Surveillance", ROUND(E35*0.75,0))), 0),"Non requis") -> 0 | S35: =IF(INTRO!$E$43="Endémique", IF($K35>1, IF($K35=4, "Inconnu", IF($K35=99, "Surveillance", F35)), 0),"Non requis") -> 0 | T35: =IF(INTRO!$E$43="Endémique", IF($K35>1, IF($K35=4, "Inconnu", IF($K35=99, "Surveillance", G35)), 0),"Non requis") -> 0 | U35: =IF(INTRO!$E$43="Endémique", IF($K35>1, IF($K35=4, "Inconnu", IF($K35=99, "Surveillance", SUM($R35:$T35))), 0),"Non requis") -> 0 | V35: 0 | W35: 0 | X35: 0 | Y35: 0 | AH35: 22626 | AI35: Labé
A36: =IF(INTRO!$E$33<>0,INTRO!$E$33, " ") -> Guinée | B36: Labe | C36: Lelouma | D36: 216953 | E36: =IF(INTRO!$E$48="","",ROUND($D36*INTRO!$E$48,0)) -> 34062 | F36: =IF(INTRO!$E$49="","",ROUND($D36*INTRO!$E$49,0)) -> 59011 | G36: =IF(INTRO!$E$50="","",ROUND($D36*INTRO!$E$50,0)) -> 119324 | H36: 1 | I36: 1 | J36: 3 | K36: 3 | L36: =IF(INTRO!$E$37="Endémique",IF($H36>0,IF($H36=4,"Inconnu",IF($H36=99,"Interrompu",$D36)),0),"Non requis") -> 216953 | M36: =IF(INTRO!$E$39="Endémique", IF($I36>0, IF($I36=4,"Inconnu",IF($I36=99,"Interrompu",$D36)), 0),"Non requis") -> 216953 | N36: =IF(INTRO!$E$41="Endémique", IF($J36>1, IF($J36=4, "Inconnu", IF($J36=99, "Surveillance", E36)), 0),"Non requis") -> 34062 | O36: =IF(INTRO!$E$41="Endémique", IF($J36>1, IF($J36=4, "Inconnu", IF($J36=99, "Surveillance", F36)), 0),"Non requis") -> 59011 | P36: =IF(INTRO!$E$41="Endémique", IF($J36>1, IF($J36=4, "Inconnu", IF($J36=99, "Surveillance", ROUND(D36*INTRO!$E$51,0))), 0),"Non requis") -> 105005 | Q36: =IF(INTRO!$E$41="Endémique", IF($J36>1, IF($J36=4, "Inconnu", IF($J36=99, "Surveillance", SUM($N36:$P36))), 0),"Non requis") -> 198078 | R36: =IF(INTRO!$E$43="Endémique", IF($K36>1, IF($K36=4, "Inconnu", IF($K36=99, "Surveillance", ROUND(E36*0.75,0))), 0),"Non requis") -> 25547 | S36: =IF(INTRO!$E$43="Endémique", IF($K36>1, IF($K36=4, "Inconnu", IF($K36=99, "Surveillance", F36)), 0),"Non requis") -> 59011 | T36: =IF(INTRO!$E$43="Endémique", IF($K36>1, IF($K36=4, "Inconnu", IF($K36=99, "Surveillance", G36)), 0),"Non requis") -> 119324 | U36: =IF(INTRO!$E$43="Endémique", IF($K36>1, IF($K36=4, "Inconnu", IF($K36=99, "Surveillance", SUM($R36:$T36))), 0),"Non requis") -> 203882 | V36: 1 | W36: 1 | X36: 2 | Y36: 1 | AC36: Oui | AD36: Oui | AH36: 22627 | AI36: Lelouma
A37: =IF(INTRO!$E$33<>0,INTRO!$E$33, " ") -> Guinée | B37: Labe | C37: Mali | D37: 383030 | E37: =IF(INTRO!$E$48="","",ROUND($D37*INTRO!$E$48,0)) -> 60136 | F37: =IF(INTRO!$E$49="","",ROUND($D37*INTRO!$E$49,0)) -> 104184 | G37: =IF(INTRO!$E$50="","",ROUND($D37*INTRO!$E$50,0)) -> 210667 | H37: 99 | I37: 1 | J37: 1 | K37: 1 | L37: =IF(INTRO!$E$37="Endémique",IF($H37>0,IF($H37=4,"Inconnu",IF($H37=99,"Interrompu",$D37)),0),"Non requis") -> Interrompu | M37: =IF(INTRO!$E$39="Endémique", IF($I37>0, IF($I37=4,"Inconnu",IF($I37=99,"Interrompu",$D37)), 0),"Non requis") -> 383030 | N37: =IF(INTRO!$E$41="Endémique", IF($J37>1, IF($J37=4, "Inconnu", IF($J37=99, "Surveillance", E37)), 0),"Non requis") -> 0 | O37: =IF(INTRO!$E$41="Endémique", IF($J37>1, IF($J37=4, "Inconnu", IF($J37=99, "Surveillance", F37)), 0),"Non requis") -> 0 | P37: =IF(INTRO!$E$41="Endémique", IF($J37>1, IF($J37=4, "Inconnu", IF($J37=99, "Surveillance", ROUND(D37*INTRO!$E$51,0))), 0),"Non requis") -> 0 | Q37: =IF(INTRO!$E$41="Endémique", IF($J37>1, IF($J37=4, "Inconnu", IF($J37=99, "Surveillance", SUM($N37:$P37))), 0),"Non requis") -> 0 | R37: =IF(INTRO!$E$43="Endémique", IF($K37>1, IF($K37=4, "Inconnu", IF($K37=99, "Surveillance", ROUND(E37*0.75,0))), 0),"Non requis") -> 0 | S37: =IF(INTRO!$E$43="Endémique", IF($K37>1, IF($K37=4, "Inconnu", IF($K37=99, "Surveillance", F37)), 0),"Non requis") -> 0 | T37: =IF(INTRO!$E$43="Endémique", IF($K37>1, IF($K37=4, "Inconnu", IF($K37=99, "Surveillance", G37)), 0),"Non requis") -> 0 | U37: =IF(INTRO!$E$43="Endémique", IF($K37>1, IF($K37=4, "Inconnu", IF($K37=99, "Surveillance", SUM($R37:$T37))), 0),"Non requis") -> 0 | V37: 0 | W37: 1 | X37: 0 | Y37: 0 | AA37: TAS | AH37: 22630 | AI37: Mali
A38: =IF(INTRO!$E$33<>0,INTRO!$E$33, " ") -> Guinée | B38: Labe | C38: Tougue | D38: 165537 | E38: =IF(INTRO!$E$48="","",ROUND($D38*INTRO!$E$48,0)) -> 25989 | F38: =IF(INTRO!$E$49="","",ROUND($D38*INTRO!$E$49,0)) -> 45026 | G38: =IF(INTRO!$E$50="","",ROUND($D38*INTRO!$E$50,0)) -> 91045 | H38: 1 | I38: 1 | J38: 1 | K38: 0 | L38: =IF(INTRO!$E$37="Endémique",IF($H38>0,IF($H38=4,"Inconnu",IF($H38=99,"Interrompu",$D38)),0),"Non requis") -> 165537 | M38: =IF(INTRO!$E$39="Endémique", IF($I38>0, IF($I38=4,"Inconnu",IF($I38=99,"Interrompu",$D38)), 0),"Non requis") -> 165537 | N38: =IF(INTRO!$E$41="Endémique", IF($J38>1, IF($J38=4, "Inconnu", IF($J38=99, "Surveillance", E38)), 0),"Non requis") -> 0 | O38: =IF(INTRO!$E$41="Endémique", IF($J38>1, IF($J38=4, "Inconnu", IF($J38=99, "Surveillance", F38)), 0),"Non requis") -> 0 | P38: =IF(INTRO!$E$41="Endémique", IF($J38>1, IF($J38=4, "Inconnu", IF($J38=99, "Surveillance", ROUND(D38*INTRO!$E$51,0))), 0),"Non requis") -> 0 | Q38: =IF(INTRO!$E$41="Endémique", IF($J38>1, IF($J38=4, "Inconnu", IF($J38=99, "Surveillance", SUM($N38:$P38))), 0),"Non requis") -> 0 | R38: =IF(INTRO!$E$43="Endémique", IF($K38>1, IF($K38=4, "Inconnu", IF($K38=99, "Surveillance", ROUND(E38*0.75,0))), 0),"Non requis") -> 0 | S38: =IF(INTRO!$E$43="Endémique", IF($K38>1, IF($K38=4, "Inconnu", IF($K38=99, "Surveillance", F38)), 0),"Non requis") -> 0 | T38: =IF(INTRO!$E$43="Endémique", IF($K38>1, IF($K38=4, "Inconnu", IF($K38=99, "Surveillance", G38)), 0),"Non requis") -> 0 | U38: =IF(INTRO!$E$43="Endémique", IF($K38>1, IF($K38=4, "Inconnu", IF($K38=99, "Surveillance", SUM($R38:$T38))), 0),"Non requis") -> 0 | V38: 1 | W38: 1 | X38: 0 | Y38: 0 | AH38: 22640 | AI38: Tougué
A39: =IF(INTRO!$E$33<>0,INTRO!$E$33, " ") -> Guinée | B39: Mamou | C39: Dalaba | D39: 177945 | E39: =IF(INTRO!$E$48="","",ROUND($D39*INTRO!$E$48,0)) -> 27937 | F39: =IF(INTRO!$E$49="","",ROUND($D39*INTRO!$E$49,0)) -> 48401 | G39: =IF(INTRO!$E$50="","",ROUND($D39*INTRO!$E$50,0)) -> 97870 | H39: 99 | I39: 4 | J39: 2 | K39: 0 | L39: =IF(INTRO!$E$37="Endémique",IF($H39>0,IF($H39=4,"Inconnu",IF($H39=99,"Interrompu",$D39)),0),"Non requis") -> Interrompu | M39: =IF(INTRO!$E$39="Endémique", IF($I39>0, IF($I39=4,"Inconnu",IF($I39=99,"Interrompu",$D39)), 0),"Non requis") -> Inconnu | N39: =IF(INTRO!$E$41="Endémique", IF($J39>1, IF($J39=4, "Inconnu", IF($J39=99, "Surveillance", E39)), 0),"Non requis") -> 27937 | O39: =IF(INTRO!$E$41="Endémique", IF($J39>1, IF($J39=4, "Inconnu", IF($J39=99, "Surveillance", F39)), 0),"Non requis") -> 48401 | P39: =IF(INTRO!$E$41="Endémique", IF($J39>1, IF($J39=4, "Inconnu", IF($J39=99, "Surveillance", ROUND(D39*INTRO!$E$51,0))), 0),"Non requis") -> 86125 | Q39: =IF(INTRO!$E$41="Endémique", IF($J39>1, IF($J39=4, "Inconnu", IF($J39=99, "Surveillance", SUM($N39:$P39))), 0),"Non requis") -> 162463 | R39: =IF(INTRO!$E$43="Endémique", IF($K39>1, IF($K39=4, "Inconnu", IF($K39=99, "Surveillance", ROUND(E39*0.75,0))), 0),"Non requis") -> 0 | S39: =IF(INTRO!$E$43="Endémique", IF($K39>1, IF($K39=4, "Inconnu", IF($K39=99, "Surveillance", F39)), 0),"Non requis") -> 0 | T39: =IF(INTRO!$E$43="Endémique", IF($K39>1, IF($K39=4, "Inconnu", IF($K39=99, "Surveillance", G39)), 0),"Non requis") -> 0 | U39: =IF(INTRO!$E$43="Endémique", IF($K39>1, IF($K39=4, "Inconnu", IF($K39=99, "Surveillance", SUM($R39:$T39))), 0),"Non requis") -> 0 | V39: 0 | W39: 0 | X39: 1 | Y39: 0 | AA39: TAS | AH39: 22611 | AI39: Dalaba
A40: =IF(INTRO!$E$33<>0,INTRO!$E$33, " ") -> Guinée | B40: Mamou | C40: Mamou | D40: 424632 | E40: =IF(INTRO!$E$48="","",ROUND($D40*INTRO!$E$48,0)) -> 66667 | F40: =IF(INTRO!$E$49="","",ROUND($D40*INTRO!$E$49,0)) -> 115500 | G40: =IF(INTRO!$E$50="","",ROUND($D40*INTRO!$E$50,0)) -> 233548 | H40: 1 | I40: 1 | J40: 1 | K40: 2 | L40: =IF(INTRO!$E$37="Endémique",IF($H40>0,IF($H40=4,"Inconnu",IF($H40=99,"Interrompu",$D40)),0),"Non requis") -> 424632 | M40: =IF(INTRO!$E$39="Endémique", IF($I40>0, IF($I40=4,"Inconnu",IF($I40=99,"Interrompu",$D40)), 0),"Non requis") -> 424632 | N40: =IF(INTRO!$E$41="Endémique", IF($J40>1, IF($J40=4, "Inconnu", IF($J40=99, "Surveillance", E40)), 0),"Non requis") -> 0 | O40: =IF(INTRO!$E$41="Endémique", IF($J40>1, IF($J40=4, "Inconnu", IF($J40=99, "Surveillance", F40)), 0),"Non requis") -> 0 | P40: =IF(INTRO!$E$41="Endémique", IF($J40>1, IF($J40=4, "Inconnu", IF($J40=99, "Surveillance", ROUND(D40*INTRO!$E$51,0))), 0),"Non requis") -> 0 | Q40: =IF(INTRO!$E$41="Endémique", IF($J40>1, IF($J40=4, "Inconnu", IF($J40=99, "Surveillance", SUM($N40:$P40))), 0),"Non requis") -> 0 | R40: =IF(INTRO!$E$43="Endémique", IF($K40>1, IF($K40=4, "Inconnu", IF($K40=99, "Surveillance", ROUND(E40*0.75,0))), 0),"Non requis") -> 50000 | S40: =IF(INTRO!$E$43="Endémique", IF($K40>1, IF($K40=4, "Inconnu", IF($K40=99, "Surveillance", F40)), 0),"Non requis") -> 115500 | T40: =IF(INTRO!$E$43="Endémique", IF($K40>1, IF($K40=4, "Inconnu", IF($K40=99, "Surveillance", G40)), 0),"Non requis") -> 233548 | U40: =IF(INTRO!$E$43="Endémique", IF($K40>1, IF($K40=4, "Inconnu", IF($K40=99, "Surveillance", SUM($R40:$T40))), 0),"Non requis") -> 399048 | V40: 1 | W40: 1 | X40: 0 | Y40: 1 | AH40: 22631 | AI40: Mamou
A41: =IF(INTRO!$E$33<>0,INTRO!$E$33, " ") -> Guinée | B41: Mamou | C41: Pita | D41: 370206 | E41: =IF(INTRO!$E$48="","",ROUND($D41*INTRO!$E$48,0)) -> 58122 | F41: =IF(INTRO!$E$49="","",ROUND($D41*INTRO!$E$49,0)) -> 100696 | G41: =IF(INTRO!$E$50="","",ROUND($D41*INTRO!$E$50,0)) -> 203613 | H41: 1 | I41: 4 | J41: 2 | K41: 0 | L41: =IF(INTRO!$E$37="Endémique",IF($H41>0,IF($H41=4,"Inconnu",IF($H41=99,"Interrompu",$D41)),0),"Non requis") -> 370206 | M41: =IF(INTRO!$E$39="Endémique", IF($I41>0, IF($I41=4,"Inconnu",IF($I41=99,"Interrompu",$D41)), 0),"Non requis") -> Inconnu | N41: =IF(INTRO!$E$41="Endémique", IF($J41>1, IF($J41=4, "Inconnu", IF($J41=99, "Surveillance", E41)), 0),"Non requis") -> 58122 | O41: =IF(INTRO!$E$41="Endémique", IF($J41>1, IF($J41=4, "Inconnu", IF($J41=99, "Surveillance", F41)), 0),"Non requis") -> 100696 | P41: =IF(INTRO!$E$41="Endémique", IF($J41>1, IF($J41=4, "Inconnu", IF($J41=99, "Surveillance", ROUND(D41*INTRO!$E$51,0))), 0),"Non requis") -> 179180 | Q41: =IF(INTRO!$E$41="Endémique", IF($J41>1, IF($J41=4, "Inconnu", IF($J41=99, "Surveillance", SUM($N41:$P41))), 0),"Non requis") -> 337998 | R41: =IF(INTRO!$E$43="Endémique", IF($K41>1, IF($K41=4, "Inconnu", IF($K41=99, "Surveillance", ROUND(E41*0.75,0))), 0),"Non requis") -> 0 | S41: =IF(INTRO!$E$43="Endémique", IF($K41>1, IF($K41=4, "Inconnu", IF($K41=99, "Surveillance", F41)), 0),"Non requis") -> 0 | T41: =IF(INTRO!$E$43="Endémique", IF($K41>1, IF($K41=4, "Inconnu", IF($K41=99, "Surveillance", G41)), 0),"Non requis") -> 0 | U41: =IF(INTRO!$E$43="Endémique", IF($K41>1, IF($K41=4, "Inconnu", IF($K41=99, "Surveillance", SUM($R41:$T41))), 0),"Non requis") -> 0 | V41: 1 | W41: 0 | X41: 1 | Y41: 0 | AH41: 22636 | AI41: Pita
A42: =IF(INTRO!$E$33<>0,INTRO!$E$33, " ") -> Guinée | B42: N'Zerekore | C42: Beyla | D42: 434334 | E42: =IF(INTRO!$E$48="","",ROUND($D42*INTRO!$E$48,0)) -> 68190 | F42: =IF(INTRO!$E$49="","",ROUND($D42*INTRO!$E$49,0)) -> 118139 | G42: =IF(INTRO!$E$50="","",ROUND($D42*INTRO!$E$50,0)) -> 238884 | H42: 99 | I42: 1 | J42: 3 | K42: 3 | L42: =IF(INTRO!$E$37="Endémique",IF($H42>0,IF($H42=4,"Inconnu",IF($H42=99,"Interrompu",$D42)),0),"Non requis") -> Interrompu | M42: =IF(INTRO!$E$39="Endémique", IF($I42>0, IF($I42=4,"Inconnu",IF($I42=99,"Interrompu",$D42)), 0),"Non requis") -> 434334 | N42: =IF(INTRO!$E$41="Endémique", IF($J42>1, IF($J42=4, "Inconnu", IF($J42=99, "Surveillance", E42)), 0),"Non requis") -> 68190 | O42: =IF(INTRO!$E$41="Endémique", IF($J42>1, IF($J42=4, "Inconnu", IF($J42=99, "Surveillance", F42)), 0),"Non requis") -> 118139 | P42: =IF(INTRO!$E$41="Endémique", IF($J42>1, IF($J42=4, "Inconnu", IF($J42=99, "Surveillance", ROUND(D42*INTRO!$E$51,0))), 0),"Non requis") -> 210218 | Q42: =IF(INTRO!$E$41="Endémique", IF($J42>1, IF($J42=4, "Inconnu", IF($J42=99, "Surveillance", SUM($N42:$P42))), 0),"Non requis") -> 396547 | R42: =IF(INTRO!$E$43="Endémique", IF($K42>1, IF($K42=4, "Inconnu", IF($K42=99, "Surveillance", ROUND(E42*0.75,0))), 0),"Non requis") -> 51143 | S42: =IF(INTRO!$E$43="Endémique", IF($K42>1, IF($K42=4, "Inconnu", IF($K42=99, "Surveillance", F42)), 0),"Non requis") -> 118139 | T42: =IF(INTRO!$E$43="Endémique", IF($K42>1, IF($K42=4, "Inconnu", IF($K42=99, "Surveillance", G42)), 0),"Non requis") -> 238884 | U42: =IF(INTRO!$E$43="Endémique", IF($K42>1, IF($K42=4, "Inconnu", IF($K42=99, "Surveillance", SUM($R42:$T42))), 0),"Non requis") -> 408166 | V42: 0 | W42: 1 | X42: 2 | Y42: 1 | AA42: TAS | AB42: Oui | AC42: Oui | AD42: Oui | AH42: 22604 | AI42: Beyla
A43: =IF(INTRO!$E$33<>0,INTRO!$E$33, " ") -> Guinée | B43: N'Zerekore | C43: Gueckedou | D43: 386829 | E43: =IF(INTRO!$E$48="","",ROUND($D43*INTRO!$E$48,0)) -> 60732 | F43: =IF(INTRO!$E$49="","",ROUND($D43*INTRO!$E$49,0)) -> 105217 | G43: =IF(INTRO!$E$50="","",ROUND($D43*INTRO!$E$50,0)) -> 212756 | H43: 99 | I43: 1 | J43: 3 | K43: 3 | L43: =IF(INTRO!$E$37="Endémique",IF($H43>0,IF($H43=4,"Inconnu",IF($H43=99,"Interrompu",$D43)),0),"Non requis") -> Interrompu | M43: =IF(INTRO!$E$39="Endémique", IF($I43>0, IF($I43=4,"Inconnu",IF($I43=99,"Interrompu",$D43)), 0),"Non requis") -> 386829 | N43: =IF(INTRO!$E$41="Endémique", IF($J43>1, IF($J43=4, "Inconnu", IF($J43=99, "Surveillance", E43)), 0),"Non requis") -> 60732 | O43: =IF(INTRO!$E$41="Endémique", IF($J43>1, IF($J43=4, "Inconnu", IF($J43=99, "Surveillance", F43)), 0),"Non requis") -> 105217 | P43: =IF(INTRO!$E$41="Endémique", IF($J43>1, IF($J43=4, "Inconnu", IF($J43=99, "Surveillance", ROUND(D43*INTRO!$E$51,0))), 0),"Non requis") -> 187225 | Q43: =IF(INTRO!$E$41="Endémique", IF($J43>1, IF($J43=4, "Inconnu", IF($J43=99, "Surveillance", SUM($N43:$P43))), 0),"Non requis") -> 353174 | R43: =IF(INTRO!$E$43="Endémique", IF($K43>1, IF($K43=4, "Inconnu", IF($K43=99, "Surveillance", ROUND(E43*0.75,0))), 0),"Non requis") -> 45549 | S43: =IF(INTRO!$E$43="Endémique", IF($K43>1, IF($K43=4, "Inconnu", IF($K43=99, "Surveillance", F43)), 0),"Non requis") -> 105217 | T43: =IF(INTRO!$E$43="Endémique", IF($K43>1, IF($K43=4, "Inconnu", IF($K43=99, "Surveillance", G43)), 0),"Non requis") -> 212756 | U43: =IF(INTRO!$E$43="Endémique", IF($K43>1, IF($K43=4, "Inconnu", IF($K43=99, "Surveillance", SUM($R43:$T43))), 0),"Non requis") -> 363522 | V43: 0 | W43: 1 | X43: 2 | Y43: 1 | AA43: TAS | AB43: Oui | AC43: Oui | AD43: Oui | AH43: 22618 | AI43: Guéckédou
A44: =IF(INTRO!$E$33<>0,INTRO!$E$33, " ") -> Guinée | B44: N'Zerekore | C44: Lola | D44: 228513 | E44: =IF(INTRO!$E$48="","",ROUND($D44*INTRO!$E$48,0)) -> 35877 | F44: =IF(INTRO!$E$49="","",ROUND($D44*INTRO!$E$49,0)) -> 62156 | G44: =IF(INTRO!$E$50="","",ROUND($D44*INTRO!$E$50,0)) -> 125682 | H44: 0 | I44: 1 | J44: 2 | K44: 3 | L44: =IF(INTRO!$E$37="Endémique",IF($H44>0,IF($H44=4,"Inconnu",IF($H44=99,"Interrompu",$D44)),0),"Non requis") -> 0 | M44: =IF(INTRO!$E$39="Endémique", IF($I44>0, IF($I44=4,"Inconnu",IF($I44=99,"Interrompu",$D44)), 0),"Non requis") -> 228513 | N44: =IF(INTRO!$E$41="Endémique", IF($J44>1, IF($J44=4, "Inconnu", IF($J44=99, "Surveillance", E44)), 0),"Non requis") -> 35877 | O44: =IF(INTRO!$E$41="Endémique", IF($J44>1, IF($J44=4, "Inconnu", IF($J44=99, "Surveillance", F44)), 0),"Non requis") -> 62156 | P44: =IF(INTRO!$E$41="Endémique", IF($J44>1, IF($J44=4, "Inconnu", IF($J44=99, "Surveillance", ROUND(D44*INTRO!$E$51,0))), 0),"Non requis") -> 110600 | Q44: =IF(INTRO!$E$41="Endémique", IF($J44>1, IF($J44=4, "Inconnu", IF($J44=99, "Surveillance", SUM($N44:$P44))), 0),"Non requis") -> 208633 | R44: =IF(INTRO!$E$43="Endémique", IF($K44>1, IF($K44=4, "Inconnu", IF($K44=99, "Surveillance", ROUND(E44*0.75,0))), 0),"Non requis") -> 26908 | S44: =IF(INTRO!$E$43="Endémique", IF($K44>1, IF($K44=4, "Inconnu", IF($K44=99, "Surveillance", F44)), 0),"Non requis") -> 62156 | T44: =IF(INTRO!$E$43="Endémique", IF($K44>1, IF($K44=4, "Inconnu", IF($K44=99, "Surveillance", G44)), 0),"Non requis") -> 125682 | U44: =IF(INTRO!$E$43="Endémique", IF($K44>1, IF($K44=4, "Inconnu", IF($K44=99, "Surveillance", SUM($R44:$T44))), 0),"Non requis") -> 214746 | V44: 0 | W44: 1 | X44: 1 | Y44: 1 | AD44: Oui | AH44: 22628 | AI44: Lola
A45: =IF(INTRO!$E$33<>0,INTRO!$E$33, " ") -> Guinée | B45: N'Zerekore | C45: Macenta | D45: 370859 | E45: =IF(INTRO!$E$48="","",ROUND($D45*INTRO!$E$48,0)) -> 58225 | F45: =IF(INTRO!$E$49="","",ROUND($D45*INTRO!$E$49,0)) -> 100874 | G45: =IF(INTRO!$E$50="","",ROUND($D45*INTRO!$E$50,0)) -> 203972 | H45: 1 | I45: 1 | J45: 3 | K45: 2 | L45: =IF(INTRO!$E$37="Endémique",IF($H45>0,IF($H45=4,"Inconnu",IF($H45=99,"Interrompu",$D45)),0),"Non requis") -> 370859 | M45: =IF(INTRO!$E$39="Endémique", IF($I45>0, IF($I45=4,"Inconnu",IF($I45=99,"Interrompu",$D45)), 0),"Non requis") -> 370859 | N45: =IF(INTRO!$E$41="Endémique", IF($J45>1, IF($J45=4, "Inconnu", IF($J45=99, "Surveillance", E45)), 0),"Non requis") -> 58225 | O45: =IF(INTRO!$E$41="Endémique", IF($J45>1, IF($J45=4, "Inconnu", IF($J45=99, "Surveillance", F45)), 0),"Non requis") -> 100874 | P45: =IF(INTRO!$E$41="Endémique", IF($J45>1, IF($J45=4, "Inconnu", IF($J45=99, "Surveillance", ROUND(D45*INTRO!$E$51,0))), 0),"Non requis") -> 179496 | Q45: =IF(INTRO!$E$41="Endémique", IF($J45>1, IF($J45=4, "Inconnu", IF($J45=99, "Surveillance", SUM($N45:$P45))), 0),"Non requis") -> 338595 | R45: =IF(INTRO!$E$43="Endémique", IF($K45>1, IF($K45=4, "Inconnu", IF($K45=99, "Surveillance", ROUND(E45*0.75,0))), 0),"Non requis") -> 43669 | S45: =IF(INTRO!$E$43="Endémique", IF($K45>1, IF($K45=4, "Inconnu", IF($K45=99, "Surveillance", F45)), 0),"Non requis") -> 100874 | T45: =IF(INTRO!$E$43="Endémique", IF($K45>1, IF($K45=4, "Inconnu", IF($K45=99, "Surveillance", G45)), 0),"Non requis") -> 203972 | U45: =IF(INTRO!$E$43="Endémique", IF($K45>1, IF($K45=4, "Inconnu", IF($K45=99, "Surveillance", SUM($R45:$T45))), 0),"Non requis") -> 348515 | V45: 1 | W45: 1 | X45: 2 | Y45: 1 | AB45: Oui | AC45: Oui | AH45: 22629 | AI45: Macenta
A46: =IF(INTRO!$E$33<>0,INTRO!$E$33, " ") -> Guinée | B46: N'Zerekore | C46: N'Zerekore | D46: 527995 | E46: =IF(INTRO!$E$48="","",ROUND($D46*INTRO!$E$48,0)) -> 82895 | F46: =IF(INTRO!$E$49="","",ROUND($D46*INTRO!$E$49,0)) -> 143615 | G46: =IF(INTRO!$E$50="","",ROUND($D46*INTRO!$E$50,0)) -> 290397 | H46: 0 | I46: 1 | J46: 3 | K46: 3 | L46: =IF(INTRO!$E$37="Endémique",IF($H46>0,IF($H46=4,"Inconnu",IF($H46=99,"Interrompu",$D46)),0),"Non requis") -> 0 | M46: =IF(INTRO!$E$39="Endémique", IF($I46>0, IF($I46=4,"Inconnu",IF($I46=99,"Interrompu",$D46)), 0),"Non requis") -> 527995 | N46: =IF(INTRO!$E$41="Endémique", IF($J46>1, IF($J46=4, "Inconnu", IF($J46=99, "Surveillance", E46)), 0),"Non requis") -> 82895 | O46: =IF(INTRO!$E$41="Endémique", IF($J46>1, IF($J46=4, "Inconnu", IF($J46=99, "Surveillance", F46)), 0),"Non requis") -> 143615 | P46: =IF(INTRO!$E$41="Endémique", IF($J46>1, IF($J46=4, "Inconnu", IF($J46=99, "Surveillance", ROUND(D46*INTRO!$E$51,0))), 0),"Non requis") -> 255550 | Q46: =IF(INTRO!$E$41="Endémique", IF($J46>1, IF($J46=4, "Inconnu", IF($J46=99, "Surveillance", SUM($N46:$P46))), 0),"Non requis") -> 482060 | R46: =IF(INTRO!$E$43="Endémique", IF($K46>1, IF($K46=4, "Inconnu", IF($K46=99, "Surveillance", ROUND(E46*0.75,0))), 0),"Non requis") -> 62171 | S46: =IF(INTRO!$E$43="Endémique", IF($K46>1, IF($K46=4, "Inconnu", IF($K46=99, "Surveillance", F46)), 0),"Non requis") -> 143615 | T46: =IF(INTRO!$E$43="Endémique", IF($K46>1, IF($K46=4, "Inconnu", IF($K46=99, "Surveillance", G46)), 0),"Non requis") -> 290397 | U46: =IF(INTRO!$E$43="Endémique", IF($K46>1, IF($K46=4, "Inconnu", IF($K46=99, "Surveillance", SUM($R46:$T46))), 0),"Non requis") -> 496183 | V46: 0 | W46: 1 | X46: 2 | Y46: 1 | AC46: Oui | AD46: Oui | AH46: 22635 | AI46: N'Zérékoré
A47: =IF(INTRO!$E$33<>0,INTRO!$E$33, " ") -> Guinée | B47: N'Zerekore | C47: Yomou | D47: 152236 | E47: =IF(INTRO!$E$48="","",ROUND($D47*INTRO!$E$48,0)) -> 23901 | F47: =IF(INTRO!$E$49="","",ROUND($D47*INTRO!$E$49,0)) -> 41408 | G47: =IF(INTRO!$E$50="","",ROUND($D47*INTRO!$E$50,0)) -> 83730 | H47: 0 | I47: 1 | J47: 1 | K47: 3 | L47: =IF(INTRO!$E$37="Endémique",IF($H47>0,IF($H47=4,"Inconnu",IF($H47=99,"Interrompu",$D47)),0),"Non requis") -> 0 | M47: =IF(INTRO!$E$39="Endémique", IF($I47>0, IF($I47=4,"Inconnu",IF($I47=99,"Interrompu",$D47)), 0),"Non requis") -> 152236 | N47: =IF(INTRO!$E$41="Endémique", IF($J47>1, IF($J47=4, "Inconnu", IF($J47=99, "Surveillance", E47)), 0),"Non requis") -> 0 | O47: =IF(INTRO!$E$41="Endémique", IF($J47>1, IF($J47=4, "Inconnu", IF($J47=99, "Surveillance", F47)), 0),"Non requis") -> 0 | P47: =IF(INTRO!$E$41="Endémique", IF($J47>1, IF($J47=4, "Inconnu", IF($J47=99, "Surveillance", ROUND(D47*INTRO!$E$51,0))), 0),"Non requis") -> 0 | Q47: =IF(INTRO!$E$41="Endémique", IF($J47>1, IF($J47=4, "Inconnu", IF($J47=99, "Surveillance", SUM($N47:$P47))), 0),"Non requis") -> 0 | R47: =IF(INTRO!$E$43="Endémique", IF($K47>1, IF($K47=4, "Inconnu", IF($K47=99, "Surveillance", ROUND(E47*0.75,0))), 0),"Non requis") -> 17926 | S47: =IF(INTRO!$E$43="Endémique", IF($K47>1, IF($K47=4, "Inconnu", IF($K47=99, "Surveillance", F47)), 0),"Non requis") -> 41408 | T47: =IF(INTRO!$E$43="Endémique", IF($K47>1, IF($K47=4, "Inconnu", IF($K47=99, "Surveillance", G47)), 0),"Non requis") -> 83730 | U47: =IF(INTRO!$E$43="Endémique", IF($K47>1, IF($K47=4, "Inconnu", IF($K47=99, "Surveillance", SUM($R47:$T47))), 0),"Non requis") -> 143064 | V47: 0 | W47: 1 | X47: 0 | Y47: 1 | AD47: Oui | AH47: 22641 | AI47: Yomou

Sheet DEC (hidden)
A1: Diethylcarbamazine (DEC)
A2: Structure administrative, population ciblée par groupe d'âge, plan de traitement et information sur les comprimés
A4: TOTAL | D4: =SUBTOTAL(9,D$10:D$1010) -> 0 | E4: 0 | F4: 0 | G4: 0 | I4: =SUBTOTAL(9,I$10:I$1010) -> 0 | J4: 0 | K4: 0 | L4: 0
A6: Structure administrative du pays | D6: Population nécessitant un traitement avec DEC | H6: Plan de traitement | I6: Population cible | J6: Diethylcarbamazine (DEC)
A7: Pays | B7: Région/Département | C7: District | D7: EAPréS | E7: EAS | F7: Adultes | G7: Total | H7: FL | I7: FL | J7: Total requis | K7: Reste en stock | L7: Comprimés devant être fournis
A10: =IF(INTRO!$E$39<>"Non endémique", " ", IF(INTRO!$E$37="Non endémique"," ", IF(COUNTRY_INFO!A10=0," ",COUNTRY_INFO!A10))) ->  | B10: =IF(INTRO!$E$39<>"Non endémique", " ", IF(INTRO!$E$37="Non endémique"," ", IF(COUNTRY_INFO!B10=0," ",COUNTRY_INFO!B10))) ->  | C10: =IF(INTRO!$E$39<>"Non endémique", " ", IF(INTRO!$E$37="Non endémique"," ", IF(COUNTRY_INFO!C10=0," ",COUNTRY_INFO!C10))) ->  | D10: =IF(INTRO!$E$39<>"Non endémique", 0, IF(INTRO!$E$37="Non endémique",0,IF(COUNTRY_INFO!$H10=1,COUNTRY_INFO!E10,0))) -> 0 | E10: =IF(INTRO!$E$39<>"Non endémique", 0, IF(INTRO!$E$37="Non endémique",0,IF(COUNTRY_INFO!$H10=1,COUNTRY_INFO!F10,0))) -> 0 | F10: =IF(INTRO!$E$39<>"Non endémique", 0, IF(INTRO!$E$37="Non endémique",0,IF(COUNTRY_INFO!$H10=1,COUNTRY_INFO!G10,0))) -> 0 | G10: =SUM(D10:F10) -> 0 | H10: =IF(INTRO!$E$39="Non endémique",IF(INTRO!$E$37="Non endémique","Non requis",COUNTRY_INFO!V10),"Traiter avec IVM") -> Traiter avec IVM | I10: =IF(H10=1,G10,0) -> 0 | J10: =IF(I10>0,I10*2.5,0) -> 0 | L10: =IF($J10>$K10,$J10-$K10,0) -> 0
A11: =IF(INTRO!$E$39<>"Non endémique", " ", IF(INTRO!$E$37="Non endémique"," ", IF(COUNTRY_INFO!A11=0," ",COUNTRY_INFO!A11))) ->  | B11: =IF(INTRO!$E$39<>"Non endémique", " ", IF(INTRO!$E$37="Non endémique"," ", IF(COUNTRY_INFO!B11=0," ",COUNTRY_INFO!B11))) ->  | C11: =IF(INTRO!$E$39<>"Non endémique", " ", IF(INTRO!$E$37="Non endémique"," ", IF(COUNTRY_INFO!C11=0," ",COUNTRY_INFO!C11))) ->  | D11: =IF(INTRO!$E$39<>"Non endémique", 0, IF(INTRO!$E$37="Non endémique",0,IF(COUNTRY_INFO!$H11=1,COUNTRY_INFO!E11,0))) -> 0 | E11: =IF(INTRO!$E$39<>"Non endémique", 0, IF(INTRO!$E$37="Non endémique",0,IF(COUNTRY_INFO!$H11=1,COUNTRY_INFO!F11,0))) -> 0 | F11: =IF(INTRO!$E$39<>"Non endémique", 0, IF(INTRO!$E$37="Non endémique",0,IF(COUNTRY_INFO!$H11=1,COUNTRY_INFO!G11,0))) -> 0 | G11: =SUM(D11:F11) -> 0 | H11: =IF(INTRO!$E$39="Non endémique",IF(INTRO!$E$37="Non endémique","Non requis",COUNTRY_INFO!V11),"Traiter avec IVM") -> Traiter avec IVM | I11: =IF(H11=1,G11,0) -> 0 | J11: =IF(I11>0,I11*2.5,0) -> 0 | L11: 0
A12: =IF(INTRO!$E$39<>"Non endémique", " ", IF(INTRO!$E$37="Non endémique"," ", IF(COUNTRY_INFO!A12=0," ",COUNTRY_INFO!A12))) ->  | B12: =IF(INTRO!$E$39<>"Non endémique", " ", IF(INTRO!$E$37="Non endémique"," ", IF(COUNTRY_INFO!B12=0," ",COUNTRY_INFO!B12))) ->  | C12: =IF(INTRO!$E$39<>"Non endémique", " ", IF(INTRO!$E$37="Non endémique"," ", IF(COUNTRY_INFO!C12=0," ",COUNTRY_INFO!C12))) ->  | D12: =IF(INTRO!$E$39<>"Non endémique", 0, IF(INTRO!$E$37="Non endémique",0,IF(COUNTRY_INFO!$H12=1,COUNTRY_INFO!E12,0))) -> 0 | E12: =IF(INTRO!$E$39<>"Non endémique", 0, IF(INTRO!$E$37="Non endémique",0,IF(COUNTRY_INFO!$H12=1,COUNTRY_INFO!F12,0))) -> 0 | F12: =IF(INTRO!$E$39<>"Non endémique", 0, IF(INTRO!$E$37="Non endémique",0,IF(COUNTRY_INFO!$H12=1,COUNTRY_INFO!G12,0))) -> 0 | G12: 0 | H12: =IF(INTRO!$E$39="Non endémique",IF(INTRO!$E$37="Non endémique","Non requis",COUNTRY_INFO!V12),"Traiter avec IVM") -> Traiter avec IVM | I12: 0 | J12: 0 | L12: 0
A13: =IF(INTRO!$E$39<>"Non endémique", " ", IF(INTRO!$E$37="Non endémique"," ", IF(COUNTRY_INFO!A13=0," ",COUNTRY_INFO!A13))) ->  | B13: =IF(INTRO!$E$39<>"Non endémique", " ", IF(INTRO!$E$37="Non endémique"," ", IF(COUNTRY_INFO!B13=0," ",COUNTRY_INFO!B13))) ->  | C13: =IF(INTRO!$E$39<>"Non endémique", " ", IF(INTRO!$E$37="Non endémique"," ", IF(COUNTRY_INFO!C13=0," ",COUNTRY_INFO!C13))) ->  | D13: =IF(INTRO!$E$39<>"Non endémique", 0, IF(INTRO!$E$37="Non endémique",0,IF(COUNTRY_INFO!$H13=1,COUNTRY_INFO!E13,0))) -> 0 | E13: =IF(INTRO!$E$39<>"Non endémique", 0, IF(INTRO!$E$37="Non endémique",0,IF(COUNTRY_INFO!$H13=1,COUNTRY_INFO!F13,0))) -> 0 | F13: =IF(INTRO!$E$39<>"Non endémique", 0, IF(INTRO!$E$37="Non endémique",0,IF(COUNTRY_INFO!$H13=1,COUNTRY_INFO!G13,0))) -> 0 | G13: 0 | H13: =IF(INTRO!$E$39="Non endémique",IF(INTRO!$E$37="Non endémique","Non requis",COUNTRY_INFO!V13),"Traiter avec IVM") -> Traiter avec IVM | I13: 0 | J13: 0 | L13: 0
A14: =IF(INTRO!$E$39<>"Non endémique", " ", IF(INTRO!$E$37="Non endémique"," ", IF(COUNTRY_INFO!A14=0," ",COUNTRY_INFO!A14))) ->  | B14: =IF(INTRO!$E$39<>"Non endémique", " ", IF(INTRO!$E$37="Non endémique"," ", IF(COUNTRY_INFO!B14=0," ",COUNTRY_INFO!B14))) ->  | C14: =IF(INTRO!$E$39<>"Non endémique", " ", IF(INTRO!$E$37="Non endémique"," ", IF(COUNTRY_INFO!C14=0," ",COUNTRY_INFO!C14))) ->  | D14: =IF(INTRO!$E$39<>"Non endémique", 0, IF(INTRO!$E$37="Non endémique",0,IF(COUNTRY_INFO!$H14=1,COUNTRY_INFO!E14,0))) -> 0 | E14: =IF(INTRO!$E$39<>"Non endémique", 0, IF(INTRO!$E$37="Non endémique",0,IF(COUNTRY_INFO!$H14=1,COUNTRY_INFO!F14,0))) -> 0 | F14: =IF(INTRO!$E$39<>"Non endémique", 0, IF(INTRO!$E$37="Non endémique",0,IF(COUNTRY_INFO!$H14=1,COUNTRY_INFO!G14,0))) -> 0 | G14: 0 | H14: =IF(INTRO!$E$39="Non endémique",IF(INTRO!$E$37="Non endémique","Non requis",COUNTRY_INFO!V14),"Traiter avec IVM") -> Traiter avec IVM | I14: 0 | J14: 0 | L14: 0
A15: =IF(INTRO!$E$39<>"Non endémique", " ", IF(INTRO!$E$37="Non endémique"," ", IF(COUNTRY_INFO!A15=0," ",COUNTRY_INFO!A15))) ->  | B15: =IF(INTRO!$E$39<>"Non endémique", " ", IF(INTRO!$E$37="Non endémique"," ", IF(COUNTRY_INFO!B15=0," ",COUNTRY_INFO!B15))) ->  | C15: =IF(INTRO!$E$39<>"Non endémique", " ", IF(INTRO!$E$37="Non endémique"," ", IF(COUNTRY_INFO!C15=0," ",COUNTRY_INFO!C15))) ->  | D15: =IF(INTRO!$E$39<>"Non endémique", 0, IF(INTRO!$E$37="Non endémique",0,IF(COUNTRY_INFO!$H15=1,COUNTRY_INFO!E15,0))) -> 0 | E15: =IF(INTRO!$E$39<>"Non endémique", 0, IF(INTRO!$E$37="Non endémique",0,IF(COUNTRY_INFO!$H15=1,COUNTRY_INFO!F15,0))) -> 0 | F15: =IF(INTRO!$E$39<>"Non endémique", 0, IF(INTRO!$E$37="Non endémique",0,IF(COUNTRY_INFO!$H15=1,COUNTRY_INFO!G15,0))) -> 0 | G15: 0 | H15: =IF(INTRO!$E$39="Non endémique",IF(INTRO!$E$37="Non endémique","Non requis",COUNTRY_INFO!V15),"Traiter avec IVM") -> Traiter avec IVM | I15: 0 | J15: 0 | L15: 0
A16: =IF(INTRO!$E$39<>"Non endémique", " ", IF(INTRO!$E$37="Non endémique"," ", IF(COUNTRY_INFO!A16=0," ",COUNTRY_INFO!A16))) ->  | B16: =IF(INTRO!$E$39<>"Non endémique", " ", IF(INTRO!$E$37="Non endémique"," ", IF(COUNTRY_INFO!B16=0," ",COUNTRY_INFO!B16))) ->  | C16: =IF(INTRO!$E$39<>"Non endémique", " ", IF(INTRO!$E$37="Non endémique"," ", IF(COUNTRY_INFO!C16=0," ",COUNTRY_INFO!C16))) ->  | D16: =IF(INTRO!$E$39<>"Non endémique", 0, IF(INTRO!$E$37="Non endémique",0,IF(COUNTRY_INFO!$H16=1,COUNTRY_INFO!E16,0))) -> 0 | E16: =IF(INTRO!$E$39<>"Non endémique", 0, IF(INTRO!$E$37="Non endémique",0,IF(COUNTRY_INFO!$H16=1,COUNTRY_INFO!F16,0))) -> 0 | F16: =IF(INTRO!$E$39<>"Non endémique", 0, IF(INTRO!$E$37="Non endémique",0,IF(COUNTRY_INFO!$H16=1,COUNTRY_INFO!G16,0))) -> 0 | G16: 0 | H16: =IF(INTRO!$E$39="Non endémique",IF(INTRO!$E$37="Non endémique","Non requis",COUNTRY_INFO!V16),"Traiter avec IVM") -> Traiter avec IVM | I16: 0 | J16: 0 | L16: 0
A17: =IF(INTRO!$E$39<>"Non endémique", " ", IF(INTRO!$E$37="Non endémique"," ", IF(COUNTRY_INFO!A17=0," ",COUNTRY_INFO!A17))) ->  | B17: =IF(INTRO!$E$39<>"Non endémique", " ", IF(INTRO!$E$37="Non endémique"," ", IF(COUNTRY_INFO!B17=0," ",COUNTRY_INFO!B17))) ->  | C17: =IF(INTRO!$E$39<>"Non endémique", " ", IF(INTRO!$E$37="Non endémique"," ", IF(COUNTRY_INFO!C17=0," ",COUNTRY_INFO!C17))) ->  | D17: =IF(INTRO!$E$39<>"Non endémique", 0, IF(INTRO!$E$37="Non endémique",0,IF(COUNTRY_INFO!$H17=1,COUNTRY_INFO!E17,0))) -> 0 | E17: =IF(INTRO!$E$39<>"Non endémique", 0, IF(INTRO!$E$37="Non endémique",0,IF(COUNTRY_INFO!$H17=1,COUNTRY_INFO!F17,0))) -> 0 | F17: =IF(INTRO!$E$39<>"Non endémique", 0, IF(INTRO!$E$37="Non endémique",0,IF(COUNTRY_INFO!$H17=1,COUNTRY_INFO!G17,0))) -> 0 | G17: 0 | H17: =IF(INTRO!$E$39="Non endémique",IF(INTRO!$E$37="Non endémique","Non requis",COUNTRY_INFO!V17),"Traiter avec IVM") -> Traiter avec IVM | I17: 0 | J17: 0 | L17: 0
A18: =IF(INTRO!$E$39<>"Non endémique", " ", IF(INTRO!$E$37="Non endémique"," ", IF(COUNTRY_INFO!A18=0," ",COUNTRY_INFO!A18))) ->  | B18: =IF(INTRO!$E$39<>"Non endémique", " ", IF(INTRO!$E$37="Non endémique"," ", IF(COUNTRY_INFO!B18=0," ",COUNTRY_INFO!B18))) ->  | C18: =IF(INTRO!$E$39<>"Non endémique", " ", IF(INTRO!$E$37="Non endémique"," ", IF(COUNTRY_INFO!C18=0," ",COUNTRY_INFO!C18))) ->  | D18: =IF(INTRO!$E$39<>"Non endémique", 0, IF(INTRO!$E$37="Non endémique",0,IF(COUNTRY_INFO!$H18=1,COUNTRY_INFO!E18,0))) -> 0 | E18: =IF(INTRO!$E$39<>"Non endémique", 0, IF(INTRO!$E$37="Non endémique",0,IF(COUNTRY_INFO!$H18=1,COUNTRY_INFO!F18,0))) -> 0 | F18: =IF(INTRO!$E$39<>"Non endémique", 0, IF(INTRO!$E$37="Non endémique",0,IF(COUNTRY_INFO!$H18=1,COUNTRY_INFO!G18,0))) -> 0 | G18: 0 | H18: =IF(INTRO!$E$39="Non endémique",IF(INTRO!$E$37="Non endémique","Non requis",COUNTRY_INFO!V18),"Traiter avec IVM") -> Traiter avec IVM | I18: 0 | J18: 0 | L18: 0
A19: =IF(INTRO!$E$39<>"Non endémique", " ", IF(INTRO!$E$37="Non endémique"," ", IF(COUNTRY_INFO!A19=0," ",COUNTRY_INFO!A19))) ->  | B19: =IF(INTRO!$E$39<>"Non endémique", " ", IF(INTRO!$E$37="Non endémique"," ", IF(COUNTRY_INFO!B19=0," ",COUNTRY_INFO!B19))) ->  | C19: =IF(INTRO!$E$39<>"Non endémique", " ", IF(INTRO!$E$37="Non endémique"," ", IF(COUNTRY_INFO!C19=0," ",COUNTRY_INFO!C19))) ->  | D19: =IF(INTRO!$E$39<>"Non endémique", 0, IF(INTRO!$E$37="Non endémique",0,IF(COUNTRY_INFO!$H19=1,COUNTRY_INFO!E19,0))) -> 0 | E19: =IF(INTRO!$E$39<>"Non endémique", 0, IF(INTRO!$E$37="Non endémique",0,IF(COUNTRY_INFO!$H19=1,COUNTRY_INFO!F19,0))) -> 0 | F19: =IF(INTRO!$E$39<>"Non endémique", 0, IF(INTRO!$E$37="Non endémique",0,IF(COUNTRY_INFO!$H19=1,COUNTRY_INFO!G19,0))) -> 0 | G19: 0 | H19: =IF(INTRO!$E$39="Non endémique",IF(INTRO!$E$37="Non endémique","Non requis",COUNTRY_INFO!V19),"Traiter avec IVM") -> Traiter avec IVM | I19: 0 | J19: 0 | L19: 0
A20: =IF(INTRO!$E$39<>"Non endémique", " ", IF(INTRO!$E$37="Non endémique"," ", IF(COUNTRY_INFO!A20=0," ",COUNTRY_INFO!A20))) ->  | B20: =IF(INTRO!$E$39<>"Non endémique", " ", IF(INTRO!$E$37="Non endémique"," ", IF(COUNTRY_INFO!B20=0," ",COUNTRY_INFO!B20))) ->  | C20: =IF(INTRO!$E$39<>"Non endémique", " ", IF(INTRO!$E$37="Non endémique"," ", IF(COUNTRY_INFO!C20=0," ",COUNTRY_INFO!C20))) ->  | D20: =IF(INTRO!$E$39<>"Non endémique", 0, IF(INTRO!$E$37="Non endémique",0,IF(COUNTRY_INFO!$H20=1,COUNTRY_INFO!E20,0))) -> 0 | E20: =IF(INTRO!$E$39<>"Non endémique", 0, IF(INTRO!$E$37="Non endémique",0,IF(COUNTRY_INFO!$H20=1,COUNTRY_INFO!F20,0))) -> 0 | F20: =IF(INTRO!$E$39<>"Non endémique", 0, IF(INTRO!$E$37="Non endémique",0,IF(COUNTRY_INFO!$H20=1,COUNTRY_INFO!G20,0))) -> 0 | G20: 0 | H20: =IF(INTRO!$E$39="Non endémique",IF(INTRO!$E$37="Non endémique","Non requis",COUNTRY_INFO!V20),"Traiter avec IVM") -> Traiter avec IVM | I20: 0 | J20: 0 | L20: 0
A21: =IF(INTRO!$E$39<>"Non endémique", " ", IF(INTRO!$E$37="Non endémique"," ", IF(COUNTRY_INFO!A21=0," ",COUNTRY_INFO!A21))) ->  | B21: =IF(INTRO!$E$39<>"Non endémique", " ", IF(INTRO!$E$37="Non endémique"," ", IF(COUNTRY_INFO!B21=0," ",COUNTRY_INFO!B21))) ->  | C21: =IF(INTRO!$E$39<>"Non endémique", " ", IF(INTRO!$E$37="Non endémique"," ", IF(COUNTRY_INFO!C21=0," ",COUNTRY_INFO!C21))) ->  | D21: =IF(INTRO!$E$39<>"Non endémique", 0, IF(INTRO!$E$37="Non endémique",0,IF(COUNTRY_INFO!$H21=1,COUNTRY_INFO!E21,0))) -> 0 | E21: =IF(INTRO!$E$39<>"Non endémique", 0, IF(INTRO!$E$37="Non endémique",0,IF(COUNTRY_INFO!$H21=1,COUNTRY_INFO!F21,0))) -> 0 | F21: =IF(INTRO!$E$39<>"Non endémique", 0, IF(INTRO!$E$37="Non endémique",0,IF(COUNTRY_INFO!$H21=1,COUNTRY_INFO!G21,0))) -> 0 | G21: 0 | H21: =IF(INTRO!$E$39="Non endémique",IF(INTRO!$E$37="Non endémique","Non requis",COUNTRY_INFO!V21),"Traiter avec IVM") -> Traiter avec IVM | I21: 0 | J21: 0 | L21: 0
A22: =IF(INTRO!$E$39<>"Non endémique", " ", IF(INTRO!$E$37="Non endémique"," ", IF(COUNTRY_INFO!A22=0," ",COUNTRY_INFO!A22))) ->  | B22: =IF(INTRO!$E$39<>"Non endémique", " ", IF(INTRO!$E$37="Non endémique"," ", IF(COUNTRY_INFO!B22=0," ",COUNTRY_INFO!B22))) ->  | C22: =IF(INTRO!$E$39<>"Non endémique", " ", IF(INTRO!$E$37="Non endémique"," ", IF(COUNTRY_INFO!C22=0," ",COUNTRY_INFO!C22))) ->  | D22: =IF(INTRO!$E$39<>"Non endémique", 0, IF(INTRO!$E$37="Non endémique",0,IF(COUNTRY_INFO!$H22=1,COUNTRY_INFO!E22,0))) -> 0 | E22: =IF(INTRO!$E$39<>"Non endémique", 0, IF(INTRO!$E$37="Non endémique",0,IF(COUNTRY_INFO!$H22=1,COUNTRY_INFO!F22,0))) -> 0 | F22: =IF(INTRO!$E$39<>"Non endémique", 0, IF(INTRO!$E$37="Non endémique",0,IF(COUNTRY_INFO!$H22=1,COUNTRY_INFO!G22,0))) -> 0 | G22: 0 | H22: =IF(INTRO!$E$39="Non endémique",IF(INTRO!$E$37="Non endémique","Non requis",COUNTRY_INFO!V22),"Traiter avec IVM") -> Traiter avec IVM | I22: 0 | J22: 0 | L22: 0
A23: =IF(INTRO!$E$39<>"Non endémique", " ", IF(INTRO!$E$37="Non endémique"," ", IF(COUNTRY_INFO!A23=0," ",COUNTRY_INFO!A23))) ->  | B23: =IF(INTRO!$E$39<>"Non endémique", " ", IF(INTRO!$E$37="Non endémique"," ", IF(COUNTRY_INFO!B23=0," ",COUNTRY_INFO!B23))) ->  | C23: =IF(INTRO!$E$39<>"Non endémique", " ", IF(INTRO!$E$37="Non endémique"," ", IF(COUNTRY_INFO!C23=0," ",COUNTRY_INFO!C23))) ->  | D23: =IF(INTRO!$E$39<>"Non endémique", 0, IF(INTRO!$E$37="Non endémique",0,IF(COUNTRY_INFO!$H23=1,COUNTRY_INFO!E23,0))) -> 0 | E23: =IF(INTRO!$E$39<>"Non endémique", 0, IF(INTRO!$E$37="Non endémique",0,IF(COUNTRY_INFO!$H23=1,COUNTRY_INFO!F23,0))) -> 0 | F23: =IF(INTRO!$E$39<>"Non endémique", 0, IF(INTRO!$E$37="Non endémique",0,IF(COUNTRY_INFO!$H23=1,COUNTRY_INFO!G23,0))) -> 0 | G23: 0 | H23: =IF(INTRO!$E$39="Non endémique",IF(INTRO!$E$37="Non endémique","Non requis",COUNTRY_INFO!V23),"Traiter avec IVM") -> Traiter avec IVM | I23: 0 | J23: 0 | L23: 0
A24: =IF(INTRO!$E$39<>"Non endémique", " ", IF(INTRO!$E$37="Non endémique"," ", IF(COUNTRY_INFO!A24=0," ",COUNTRY_INFO!A24))) ->  | B24: =IF(INTRO!$E$39<>"Non endémique", " ", IF(INTRO!$E$37="Non endémique"," ", IF(COUNTRY_INFO!B24=0," ",COUNTRY_INFO!B24))) ->  | C24: =IF(INTRO!$E$39<>"Non endémique", " ", IF(INTRO!$E$37="Non endémique"," ", IF(COUNTRY_INFO!C24=0," ",COUNTRY_INFO!C24))) ->  | D24: =IF(INTRO!$E$39<>"Non endémique", 0, IF(INTRO!$E$37="Non endémique",0,IF(COUNTRY_INFO!$H24=1,COUNTRY_INFO!E24,0))) -> 0 | E24: =IF(INTRO!$E$39<>"Non endémique", 0, IF(INTRO!$E$37="Non endémique",0,IF(COUNTRY_INFO!$H24=1,COUNTRY_INFO!F24,0))) -> 0 | F24: =IF(INTRO!$E$39<>"Non endémique", 0, IF(INTRO!$E$37="Non endémique",0,IF(COUNTRY_INFO!$H24=1,COUNTRY_INFO!G24,0))) -> 0 | G24: 0 | H24: =IF(INTRO!$E$39="Non endémique",IF(INTRO!$E$37="Non endémique","Non requis",COUNTRY_INFO!V24),"Traiter avec IVM") -> Traiter avec IVM | I24: 0 | J24: 0 | L24: 0
A25: =IF(INTRO!$E$39<>"Non endémique", " ", IF(INTRO!$E$37="Non endémique"," ", IF(COUNTRY_INFO!A25=0," ",COUNTRY_INFO!A25))) ->  | B25: =IF(INTRO!$E$39<>"Non endémique", " ", IF(INTRO!$E$37="Non endémique"," ", IF(COUNTRY_INFO!B25=0," ",COUNTRY_INFO!B25))) ->  | C25: =IF(INTRO!$E$39<>"Non endémique", " ", IF(INTRO!$E$37="Non endémique"," ", IF(COUNTRY_INFO!C25=0," ",COUNTRY_INFO!C25))) ->  | D25: =IF(INTRO!$E$39<>"Non endémique", 0, IF(INTRO!$E$37="Non endémique",0,IF(COUNTRY_INFO!$H25=1,COUNTRY_INFO!E25,0))) -> 0 | E25: =IF(INTRO!$E$39<>"Non endémique", 0, IF(INTRO!$E$37="Non endémique",0,IF(COUNTRY_INFO!$H25=1,COUNTRY_INFO!F25,0))) -> 0 | F25: =IF(INTRO!$E$39<>"Non endémique", 0, IF(INTRO!$E$37="Non endémique",0,IF(COUNTRY_INFO!$H25=1,COUNTRY_INFO!G25,0))) -> 0 | G25: 0 | H25: =IF(INTRO!$E$39="Non endémique",IF(INTRO!$E$37="Non endémique","Non requis",COUNTRY_INFO!V25),"Traiter avec IVM") -> Traiter avec IVM | I25: 0 | J25: 0 | L25: 0
A26: =IF(INTRO!$E$39<>"Non endémique", " ", IF(INTRO!$E$37="Non endémique"," ", IF(COUNTRY_INFO!A26=0," ",COUNTRY_INFO!A26))) ->  | B26: =IF(INTRO!$E$39<>"Non endémique", " ", IF(INTRO!$E$37="Non endémique"," ", IF(COUNTRY_INFO!B26=0," ",COUNTRY_INFO!B26))) ->  | C26: =IF(INTRO!$E$39<>"Non endémique", " ", IF(INTRO!$E$37="Non endémique"," ", IF(COUNTRY_INFO!C26=0," ",COUNTRY_INFO!C26))) ->  | D26: =IF(INTRO!$E$39<>"Non endémique", 0, IF(INTRO!$E$37="Non endémique",0,IF(COUNTRY_INFO!$H26=1,COUNTRY_INFO!E26,0))) -> 0 | E26: =IF(INTRO!$E$39<>"Non endémique", 0, IF(INTRO!$E$37="Non endémique",0,IF(COUNTRY_INFO!$H26=1,COUNTRY_INFO!F26,0))) -> 0 | F26: =IF(INTRO!$E$39<>"Non endémique", 0, IF(INTRO!$E$37="Non endémique",0,IF(COUNTRY_INFO!$H26=1,COUNTRY_INFO!G26,0))) -> 0 | G26: 0 | H26: =IF(INTRO!$E$39="Non endémique",IF(INTRO!$E$37="Non endémique","Non requis",COUNTRY_INFO!V26),"Traiter avec IVM") -> Traiter avec IVM | I26: 0 | J26: 0 | L26: 0
A27: =IF(INTRO!$E$39<>"Non endémique", " ", IF(INTRO!$E$37="Non endémique"," ", IF(COUNTRY_INFO!A27=0," ",COUNTRY_INFO!A27))) ->  | B27: =IF(INTRO!$E$39<>"Non endémique", " ", IF(INTRO!$E$37="Non endémique"," ", IF(COUNTRY_INFO!B27=0," ",COUNTRY_INFO!B27))) ->  | C27: =IF(INTRO!$E$39<>"Non endémique", " ", IF(INTRO!$E$37="Non endémique"," ", IF(COUNTRY_INFO!C27=0," ",COUNTRY_INFO!C27))) ->  | D27: =IF(INTRO!$E$39<>"Non endémique", 0, IF(INTRO!$E$37="Non endémique",0,IF(COUNTRY_INFO!$H27=1,COUNTRY_INFO!E27,0))) -> 0 | E27: =IF(INTRO!$E$39<>"Non endémique", 0, IF(INTRO!$E$37="Non endémique",0,IF(COUNTRY_INFO!$H27=1,COUNTRY_INFO!F27,0))) -> 0 | F27: =IF(INTRO!$E$39<>"Non endémique", 0, IF(INTRO!$E$37="Non endémique",0,IF(COUNTRY_INFO!$H27=1,COUNTRY_INFO!G27,0))) -> 0 | G27: 0 | H27: =IF(INTRO!$E$39="Non endémique",IF(INTRO!$E$37="Non endémique","Non requis",COUNTRY_INFO!V27),"Traiter avec IVM") -> Traiter avec IVM | I27: 0 | J27: 0 | L27: 0
A28: =IF(INTRO!$E$39<>"Non endémique", " ", IF(INTRO!$E$37="Non endémique"," ", IF(COUNTRY_INFO!A28=0," ",COUNTRY_INFO!A28))) ->  | B28: =IF(INTRO!$E$39<>"Non endémique", " ", IF(INTRO!$E$37="Non endémique"," ", IF(COUNTRY_INFO!B28=0," ",COUNTRY_INFO!B28))) ->  | C28: =IF(INTRO!$E$39<>"Non endémique", " ", IF(INTRO!$E$37="Non endémique"," ", IF(COUNTRY_INFO!C28=0," ",COUNTRY_INFO!C28))) ->  | D28: =IF(INTRO!$E$39<>"Non endémique", 0, IF(INTRO!$E$37="Non endémique",0,IF(COUNTRY_INFO!$H28=1,COUNTRY_INFO!E28,0))) -> 0 | E28: =IF(INTRO!$E$39<>"Non endémique", 0, IF(INTRO!$E$37="Non endémique",0,IF(COUNTRY_INFO!$H28=1,COUNTRY_INFO!F28,0))) -> 0 | F28: =IF(INTRO!$E$39<>"Non endémique", 0, IF(INTRO!$E$37="Non endémique",0,IF(COUNTRY_INFO!$H28=1,COUNTRY_INFO!G28,0))) -> 0 | G28: 0 | H28: =IF(INTRO!$E$39="Non endémique",IF(INTRO!$E$37="Non endémique","Non requis",COUNTRY_INFO!V28),"Traiter avec IVM") -> Traiter avec IVM | I28: 0 | J28: 0 | L28: 0
A29: =IF(INTRO!$E$39<>"Non endémique", " ", IF(INTRO!$E$37="Non endémique"," ", IF(COUNTRY_INFO!A29=0," ",COUNTRY_INFO!A29))) ->  | B29: =IF(INTRO!$E$39<>"Non endémique", " ", IF(INTRO!$E$37="Non endémique"," ", IF(COUNTRY_INFO!B29=0," ",COUNTRY_INFO!B29))) ->  | C29: =IF(INTRO!$E$39<>"Non endémique", " ", IF(INTRO!$E$37="Non endémique"," ", IF(COUNTRY_INFO!C29=0," ",COUNTRY_INFO!C29))) ->  | D29: =IF(INTRO!$E$39<>"Non endémique", 0, IF(INTRO!$E$37="Non endémique",0,IF(COUNTRY_INFO!$H29=1,COUNTRY_INFO!E29,0))) -> 0 | E29: =IF(INTRO!$E$39<>"Non endémique", 0, IF(INTRO!$E$37="Non endémique",0,IF(COUNTRY_INFO!$H29=1,COUNTRY_INFO!F29,0))) -> 0 | F29: =IF(INTRO!$E$39<>"Non endémique", 0, IF(INTRO!$E$37="Non endémique",0,IF(COUNTRY_INFO!$H29=1,COUNTRY_INFO!G29,0))) -> 0 | G29: 0 | H29: =IF(INTRO!$E$39="Non endémique",IF(INTRO!$E$37="Non endémique","Non requis",COUNTRY_INFO!V29),"Traiter avec IVM") -> Traiter avec IVM | I29: 0 | J29: 0 | L29: 0
A30: =IF(INTRO!$E$39<>"Non endémique", " ", IF(INTRO!$E$37="Non endémique"," ", IF(COUNTRY_INFO!A30=0," ",COUNTRY_INFO!A30))) ->  | B30: =IF(INTRO!$E$39<>"Non endémique", " ", IF(INTRO!$E$37="Non endémique"," ", IF(COUNTRY_INFO!B30=0," ",COUNTRY_INFO!B30))) ->  | C30: =IF(INTRO!$E$39<>"Non endémique", " ", IF(INTRO!$E$37="Non endémique"," ", IF(COUNTRY_INFO!C30=0," ",COUNTRY_INFO!C30))) ->  | D30: =IF(INTRO!$E$39<>"Non endémique", 0, IF(INTRO!$E$37="Non endémique",0,IF(COUNTRY_INFO!$H30=1,COUNTRY_INFO!E30,0))) -> 0 | E30: =IF(INTRO!$E$39<>"Non endémique", 0, IF(INTRO!$E$37="Non endémique",0,IF(COUNTRY_INFO!$H30=1,COUNTRY_INFO!F30,0))) -> 0 | F30: =IF(INTRO!$E$39<>"Non endémique", 0, IF(INTRO!$E$37="Non endémique",0,IF(COUNTRY_INFO!$H30=1,COUNTRY_INFO!G30,0))) -> 0 | G30: 0 | H30: =IF(INTRO!$E$39="Non endémique",IF(INTRO!$E$37="Non endémique","Non requis",COUNTRY_INFO!V30),"Traiter avec IVM") -> Traiter avec IVM | I30: 0 | J30: 0 | L30: 0
A31: =IF(INTRO!$E$39<>"Non endémique", " ", IF(INTRO!$E$37="Non endémique"," ", IF(COUNTRY_INFO!A31=0," ",COUNTRY_INFO!A31))) ->  | B31: =IF(INTRO!$E$39<>"Non endémique", " ", IF(INTRO!$E$37="Non endémique"," ", IF(COUNTRY_INFO!B31=0," ",COUNTRY_INFO!B31))) ->  | C31: =IF(INTRO!$E$39<>"Non endémique", " ", IF(INTRO!$E$37="Non endémique"," ", IF(COUNTRY_INFO!C31=0," ",COUNTRY_INFO!C31))) ->  | D31: =IF(INTRO!$E$39<>"Non endémique", 0, IF(INTRO!$E$37="Non endémique",0,IF(COUNTRY_INFO!$H31=1,COUNTRY_INFO!E31,0))) -> 0 | E31: =IF(INTRO!$E$39<>"Non endémique", 0, IF(INTRO!$E$37="Non endémique",0,IF(COUNTRY_INFO!$H31=1,COUNTRY_INFO!F31,0))) -> 0 | F31: =IF(INTRO!$E$39<>"Non endémique", 0, IF(INTRO!$E$37="Non endémique",0,IF(COUNTRY_INFO!$H31=1,COUNTRY_INFO!G31,0))) -> 0 | G31: 0 | H31: =IF(INTRO!$E$39="Non endémique",IF(INTRO!$E$37="Non endémique","Non requis",COUNTRY_INFO!V31),"Traiter avec IVM") -> Traiter avec IVM | I31: 0 | J31: 0 | L31: 0
A32: =IF(INTRO!$E$39<>"Non endémique", " ", IF(INTRO!$E$37="Non endémique"," ", IF(COUNTRY_INFO!A32=0," ",COUNTRY_INFO!A32))) ->  | B32: =IF(INTRO!$E$39<>"Non endémique", " ", IF(INTRO!$E$37="Non endémique"," ", IF(COUNTRY_INFO!B32=0," ",COUNTRY_INFO!B32))) ->  | C32: =IF(INTRO!$E$39<>"Non endémique", " ", IF(INTRO!$E$37="Non endémique"," ", IF(COUNTRY_INFO!C32=0," ",COUNTRY_INFO!C32))) ->  | D32: =IF(INTRO!$E$39<>"Non endémique", 0, IF(INTRO!$E$37="Non endémique",0,IF(COUNTRY_INFO!$H32=1,COUNTRY_INFO!E32,0))) -> 0 | E32: =IF(INTRO!$E$39<>"Non endémique", 0, IF(INTRO!$E$37="Non endémique",0,IF(COUNTRY_INFO!$H32=1,COUNTRY_INFO!F32,0))) -> 0 | F32: =IF(INTRO!$E$39<>"Non endémique", 0, IF(INTRO!$E$37="Non endémique",0,IF(COUNTRY_INFO!$H32=1,COUNTRY_INFO!G32,0))) -> 0 | G32: 0 | H32: =IF(INTRO!$E$39="Non endémique",IF(INTRO!$E$37="Non endémique","Non requis",COUNTRY_INFO!V32),"Traiter avec IVM") -> Traiter avec IVM | I32: 0 | J32: 0 | L32: 0
A33: =IF(INTRO!$E$39<>"Non endémique", " ", IF(INTRO!$E$37="Non endémique"," ", IF(COUNTRY_INFO!A33=0," ",COUNTRY_INFO!A33))) ->  | B33: =IF(INTRO!$E$39<>"Non endémique", " ", IF(INTRO!$E$37="Non endémique"," ", IF(COUNTRY_INFO!B33=0," ",COUNTRY_INFO!B33))) ->  | C33: =IF(INTRO!$E$39<>"Non endémique", " ", IF(INTRO!$E$37="Non endémique"," ", IF(COUNTRY_INFO!C33=0," ",COUNTRY_INFO!C33))) ->  | D33: =IF(INTRO!$E$39<>"Non endémique", 0, IF(INTRO!$E$37="Non endémique",0,IF(COUNTRY_INFO!$H33=1,COUNTRY_INFO!E33,0))) -> 0 | E33: =IF(INTRO!$E$39<>"Non endémique", 0, IF(INTRO!$E$37="Non endémique",0,IF(COUNTRY_INFO!$H33=1,COUNTRY_INFO!F33,0))) -> 0 | F33: =IF(INTRO!$E$39<>"Non endémique", 0, IF(INTRO!$E$37="Non endémique",0,IF(COUNTRY_INFO!$H33=1,COUNTRY_INFO!G33,0))) -> 0 | G33: 0 | H33: =IF(INTRO!$E$39="Non endémique",IF(INTRO!$E$37="Non endémique","Non requis",COUNTRY_INFO!V33),"Traiter avec IVM") -> Traiter avec IVM | I33: 0 | J33: 0 | L33: 0
A34: =IF(INTRO!$E$39<>"Non endémique", " ", IF(INTRO!$E$37="Non endémique"," ", IF(COUNTRY_INFO!A34=0," ",COUNTRY_INFO!A34))) ->  | B34: =IF(INTRO!$E$39<>"Non endémique", " ", IF(INTRO!$E$37="Non endémique"," ", IF(COUNTRY_INFO!B34=0," ",COUNTRY_INFO!B34))) ->  | C34: =IF(INTRO!$E$39<>"Non endémique", " ", IF(INTRO!$E$37="Non endémique"," ", IF(COUNTRY_INFO!C34=0," ",COUNTRY_INFO!C34))) ->  | D34: =IF(INTRO!$E$39<>"Non endémique", 0, IF(INTRO!$E$37="Non endémique",0,IF(COUNTRY_INFO!$H34=1,COUNTRY_INFO!E34,0))) -> 0 | E34: =IF(INTRO!$E$39<>"Non endémique", 0, IF(INTRO!$E$37="Non endémique",0,IF(COUNTRY_INFO!$H34=1,COUNTRY_INFO!F34,0))) -> 0 | F34: =IF(INTRO!$E$39<>"Non endémique", 0, IF(INTRO!$E$37="Non endémique",0,IF(COUNTRY_INFO!$H34=1,COUNTRY_INFO!G34,0))) -> 0 | G34: 0 | H34: =IF(INTRO!$E$39="Non endémique",IF(INTRO!$E$37="Non endémique","Non requis",COUNTRY_INFO!V34),"Traiter avec IVM") -> Traiter avec IVM | I34: 0 | J34: 0 | L34: 0
A35: =IF(INTRO!$E$39<>"Non endémique", " ", IF(INTRO!$E$37="Non endémique"," ", IF(COUNTRY_INFO!A35=0," ",COUNTRY_INFO!A35))) ->  | B35: =IF(INTRO!$E$39<>"Non endémique", " ", IF(INTRO!$E$37="Non endémique"," ", IF(COUNTRY_INFO!B35=0," ",COUNTRY_INFO!B35))) ->  | C35: =IF(INTRO!$E$39<>"Non endémique", " ", IF(INTRO!$E$37="Non endémique"," ", IF(COUNTRY_INFO!C35=0," ",COUNTRY_INFO!C35))) ->  | D35: =IF(INTRO!$E$39<>"Non endémique", 0, IF(INTRO!$E$37="Non endémique",0,IF(COUNTRY_INFO!$H35=1,COUNTRY_INFO!E35,0))) -> 0 | E35: =IF(INTRO!$E$39<>"Non endémique", 0, IF(INTRO!$E$37="Non endémique",0,IF(COUNTRY_INFO!$H35=1,COUNTRY_INFO!F35,0))) -> 0 | F35: =IF(INTRO!$E$39<>"Non endémique", 0, IF(INTRO!$E$37="Non endémique",0,IF(COUNTRY_INFO!$H35=1,COUNTRY_INFO!G35,0))) -> 0 | G35: 0 | H35: =IF(INTRO!$E$39="Non endémique",IF(INTRO!$E$37="Non endémique","Non requis",COUNTRY_INFO!V35),"Traiter avec IVM") -> Traiter avec IVM | I35: 0 | J35: 0 | L35: 0
A36: =IF(INTRO!$E$39<>"Non endémique", " ", IF(INTRO!$E$37="Non endémique"," ", IF(COUNTRY_INFO!A36=0," ",COUNTRY_INFO!A36))) ->  | B36: =IF(INTRO!$E$39<>"Non endémique", " ", IF(INTRO!$E$37="Non endémique"," ", IF(COUNTRY_INFO!B36=0," ",COUNTRY_INFO!B36))) ->  | C36: =IF(INTRO!$E$39<>"Non endémique", " ", IF(INTRO!$E$37="Non endémique"," ", IF(COUNTRY_INFO!C36=0," ",COUNTRY_INFO!C36))) ->  | D36: =IF(INTRO!$E$39<>"Non endémique", 0, IF(INTRO!$E$37="Non endémique",0,IF(COUNTRY_INFO!$H36=1,COUNTRY_INFO!E36,0))) -> 0 | E36: =IF(INTRO!$E$39<>"Non endémique", 0, IF(INTRO!$E$37="Non endémique",0,IF(COUNTRY_INFO!$H36=1,COUNTRY_INFO!F36,0))) -> 0 | F36: =IF(INTRO!$E$39<>"Non endémique", 0, IF(INTRO!$E$37="Non endémique",0,IF(COUNTRY_INFO!$H36=1,COUNTRY_INFO!G36,0))) -> 0 | G36: 0 | H36: =IF(INTRO!$E$39="Non endémique",IF(INTRO!$E$37="Non endémique","Non requis",COUNTRY_INFO!V36),"Traiter avec IVM") -> Traiter avec IVM | I36: 0 | J36: 0 | L36: 0
A37: =IF(INTRO!$E$39<>"Non endémique", " ", IF(INTRO!$E$37="Non endémique"," ", IF(COUNTRY_INFO!A37=0," ",COUNTRY_INFO!A37))) ->  | B37: =IF(INTRO!$E$39<>"Non endémique", " ", IF(INTRO!$E$37="Non endémique"," ", IF(COUNTRY_INFO!B37=0," ",COUNTRY_INFO!B37))) ->  | C37: =IF(INTRO!$E$39<>"Non endémique", " ", IF(INTRO!$E$37="Non endémique"," ", IF(COUNTRY_INFO!C37=0," ",COUNTRY_INFO!C37))) ->  | D37: =IF(INTRO!$E$39<>"Non endémique", 0, IF(INTRO!$E$37="Non endémique",0,IF(COUNTRY_INFO!$H37=1,COUNTRY_INFO!E37,0))) -> 0 | E37: =IF(INTRO!$E$39<>"Non endémique", 0, IF(INTRO!$E$37="Non endémique",0,IF(COUNTRY_INFO!$H37=1,COUNTRY_INFO!F37,0))) -> 0 | F37: =IF(INTRO!$E$39<>"Non endémique", 0, IF(INTRO!$E$37="Non endémique",0,IF(COUNTRY_INFO!$H37=1,COUNTRY_INFO!G37,0))) -> 0 | G37: 0 | H37: =IF(INTRO!$E$39="Non endémique",IF(INTRO!$E$37="Non endémique","Non requis",COUNTRY_INFO!V37),"Traiter avec IVM") -> Traiter avec IVM | I37: 0 | J37: 0 | L37: 0
A38: =IF(INTRO!$E$39<>"Non endémique", " ", IF(INTRO!$E$37="Non endémique"," ", IF(COUNTRY_INFO!A38=0," ",COUNTRY_INFO!A38))) ->  | B38: =IF(INTRO!$E$39<>"Non endémique", " ", IF(INTRO!$E$37="Non endémique"," ", IF(COUNTRY_INFO!B38=0," ",COUNTRY_INFO!B38))) ->  | C38: =IF(INTRO!$E$39<>"Non endémique", " ", IF(INTRO!$E$37="Non endémique"," ", IF(COUNTRY_INFO!C38=0," ",COUNTRY_INFO!C38))) ->  | D38: =IF(INTRO!$E$39<>"Non endémique", 0, IF(INTRO!$E$37="Non endémique",0,IF(COUNTRY_INFO!$H38=1,COUNTRY_INFO!E38,0))) -> 0 | E38: =IF(INTRO!$E$39<>"Non endémique", 0, IF(INTRO!$E$37="Non endémique",0,IF(COUNTRY_INFO!$H38=1,COUNTRY_INFO!F38,0))) -> 0 | F38: =IF(INTRO!$E$39<>"Non endémique", 0, IF(INTRO!$E$37="Non endémique",0,IF(COUNTRY_INFO!$H38=1,COUNTRY_INFO!G38,0))) -> 0 | G38: 0 | H38: =IF(INTRO!$E$39="Non endémique",IF(INTRO!$E$37="Non endémique","Non requis",COUNTRY_INFO!V38),"Traiter avec IVM") -> Traiter avec IVM | I38: 0 | J38: 0 | L38: 0
A39: =IF(INTRO!$E$39<>"Non endémique", " ", IF(INTRO!$E$37="Non endémique"," ", IF(COUNTRY_INFO!A39=0," ",COUNTRY_INFO!A39))) ->  | B39: =IF(INTRO!$E$39<>"Non endémique", " ", IF(INTRO!$E$37="Non endémique"," ", IF(COUNTRY_INFO!B39=0," ",COUNTRY_INFO!B39))) ->  | C39: =IF(INTRO!$E$39<>"Non endémique", " ", IF(INTRO!$E$37="Non endémique"," ", IF(COUNTRY_INFO!C39=0," ",COUNTRY_INFO!C39))) ->  | D39: =IF(INTRO!$E$39<>"Non endémique", 0, IF(INTRO!$E$37="Non endémique",0,IF(COUNTRY_INFO!$H39=1,COUNTRY_INFO!E39,0))) -> 0 | E39: =IF(INTRO!$E$39<>"Non endémique", 0, IF(INTRO!$E$37="Non endémique",0,IF(COUNTRY_INFO!$H39=1,COUNTRY_INFO!F39,0))) -> 0 | F39: =IF(INTRO!$E$39<>"Non endémique", 0, IF(INTRO!$E$37="Non endémique",0,IF(COUNTRY_INFO!$H39=1,COUNTRY_INFO!G39,0))) -> 0 | G39: 0 | H39: =IF(INTRO!$E$39="Non endémique",IF(INTRO!$E$37="Non endémique","Non requis",COUNTRY_INFO!V39),"Traiter avec IVM") -> Traiter avec IVM | I39: 0 | J39: 0 | L39: 0
A40: =IF(INTRO!$E$39<>"Non endémique", " ", IF(INTRO!$E$37="Non endémique"," ", IF(COUNTRY_INFO!A40=0," ",COUNTRY_INFO!A40))) ->  | B40: =IF(INTRO!$E$39<>"Non endémique", " ", IF(INTRO!$E$37="Non endémique"," ", IF(COUNTRY_INFO!B40=0," ",COUNTRY_INFO!B40))) ->  | C40: =IF(INTRO!$E$39<>"Non endémique", " ", IF(INTRO!$E$37="Non endémique"," ", IF(COUNTRY_INFO!C40=0," ",COUNTRY_INFO!C40))) ->  | D40: =IF(INTRO!$E$39<>"Non endémique", 0, IF(INTRO!$E$37="Non endémique",0,IF(COUNTRY_INFO!$H40=1,COUNTRY_INFO!E40,0))) -> 0 | E40: =IF(INTRO!$E$39<>"Non endémique", 0, IF(INTRO!$E$37="Non endémique",0,IF(COUNTRY_INFO!$H40=1,COUNTRY_INFO!F40,0))) -> 0 | F40: =IF(INTRO!$E$39<>"Non endémique", 0, IF(INTRO!$E$37="Non endémique",0,IF(COUNTRY_INFO!$H40=1,COUNTRY_INFO!G40,0))) -> 0 | G40: 0 | H40: =IF(INTRO!$E$39="Non endémique",IF(INTRO!$E$37="Non endémique","Non requis",COUNTRY_INFO!V40),"Traiter avec IVM") -> Traiter avec IVM | I40: 0 | J40: 0 | L40: 0
A41: =IF(INTRO!$E$39<>"Non endémique", " ", IF(INTRO!$E$37="Non endémique"," ", IF(COUNTRY_INFO!A41=0," ",COUNTRY_INFO!A41))) ->  | B41: =IF(INTRO!$E$39<>"Non endémique", " ", IF(INTRO!$E$37="Non endémique"," ", IF(COUNTRY_INFO!B41=0," ",COUNTRY_INFO!B41))) ->  | C41: =IF(INTRO!$E$39<>"Non endémique", " ", IF(INTRO!$E$37="Non endémique"," ", IF(COUNTRY_INFO!C41=0," ",COUNTRY_INFO!C41))) ->  | D41: =IF(INTRO!$E$39<>"Non endémique", 0, IF(INTRO!$E$37="Non endémique",0,IF(COUNTRY_INFO!$H41=1,COUNTRY_INFO!E41,0))) -> 0 | E41: =IF(INTRO!$E$39<>"Non endémique", 0, IF(INTRO!$E$37="Non endémique",0,IF(COUNTRY_INFO!$H41=1,COUNTRY_INFO!F41,0))) -> 0 | F41: =IF(INTRO!$E$39<>"Non endémique", 0, IF(INTRO!$E$37="Non endémique",0,IF(COUNTRY_INFO!$H41=1,COUNTRY_INFO!G41,0))) -> 0 | G41: 0 | H41: =IF(INTRO!$E$39="Non endémique",IF(INTRO!$E$37="Non endémique","Non requis",COUNTRY_INFO!V41),"Traiter avec IVM") -> Traiter avec IVM | I41: 0 | J41: 0 | L41: 0
A42: =IF(INTRO!$E$39<>"Non endémique", " ", IF(INTRO!$E$37="Non endémique"," ", IF(COUNTRY_INFO!A42=0," ",COUNTRY_INFO!A42))) ->  | B42: =IF(INTRO!$E$39<>"Non endémique", " ", IF(INTRO!$E$37="Non endémique"," ", IF(COUNTRY_INFO!B42=0," ",COUNTRY_INFO!B42))) ->  | C42: =IF(INTRO!$E$39<>"Non endémique", " ", IF(INTRO!$E$37="Non endémique"," ", IF(COUNTRY_INFO!C42=0," ",COUNTRY_INFO!C42))) ->  | D42: =IF(INTRO!$E$39<>"Non endémique", 0, IF(INTRO!$E$37="Non endémique",0,IF(COUNTRY_INFO!$H42=1,COUNTRY_INFO!E42,0))) -> 0 | E42: =IF(INTRO!$E$39<>"Non endémique", 0, IF(INTRO!$E$37="Non endémique",0,IF(COUNTRY_INFO!$H42=1,COUNTRY_INFO!F42,0))) -> 0 | F42: =IF(INTRO!$E$39<>"Non endémique", 0, IF(INTRO!$E$37="Non endémique",0,IF(COUNTRY_INFO!$H42=1,COUNTRY_INFO!G42,0))) -> 0 | G42: 0 | H42: =IF(INTRO!$E$39="Non endémique",IF(INTRO!$E$37="Non endémique","Non requis",COUNTRY_INFO!V42),"Traiter avec IVM") -> Traiter avec IVM | I42: 0 | J42: 0 | L42: 0
A43: =IF(INTRO!$E$39<>"Non endémique", " ", IF(INTRO!$E$37="Non endémique"," ", IF(COUNTRY_INFO!A43=0," ",COUNTRY_INFO!A43))) ->  | B43: =IF(INTRO!$E$39<>"Non endémique", " ", IF(INTRO!$E$37="Non endémique"," ", IF(COUNTRY_INFO!B43=0," ",COUNTRY_INFO!B43))) ->  | C43: =IF(INTRO!$E$39<>"Non endémique", " ", IF(INTRO!$E$37="Non endémique"," ", IF(COUNTRY_INFO!C43=0," ",COUNTRY_INFO!C43))) ->  | D43: =IF(INTRO!$E$39<>"Non endémique", 0, IF(INTRO!$E$37="Non endémique",0,IF(COUNTRY_INFO!$H43=1,COUNTRY_INFO!E43,0))) -> 0 | E43: =IF(INTRO!$E$39<>"Non endémique", 0, IF(INTRO!$E$37="Non endémique",0,IF(COUNTRY_INFO!$H43=1,COUNTRY_INFO!F43,0))) -> 0 | F43: =IF(INTRO!$E$39<>"Non endémique", 0, IF(INTRO!$E$37="Non endémique",0,IF(COUNTRY_INFO!$H43=1,COUNTRY_INFO!G43,0))) -> 0 | G43: 0 | H43: =IF(INTRO!$E$39="Non endémique",IF(INTRO!$E$37="Non endémique","Non requis",COUNTRY_INFO!V43),"Traiter avec IVM") -> Traiter avec IVM | I43: 0 | J43: 0 | L43: 0
A44: =IF(INTRO!$E$39<>"Non endémique", " ", IF(INTRO!$E$37="Non endémique"," ", IF(COUNTRY_INFO!A44=0," ",COUNTRY_INFO!A44))) ->  | B44: =IF(INTRO!$E$39<>"Non endémique", " ", IF(INTRO!$E$37="Non endémique"," ", IF(COUNTRY_INFO!B44=0," ",COUNTRY_INFO!B44))) ->  | C44: =IF(INTRO!$E$39<>"Non endémique", " ", IF(INTRO!$E$37="Non endémique"," ", IF(COUNTRY_INFO!C44=0," ",COUNTRY_INFO!C44))) ->  | D44: =IF(INTRO!$E$39<>"Non endémique", 0, IF(INTRO!$E$37="Non endémique",0,IF(COUNTRY_INFO!$H44=1,COUNTRY_INFO!E44,0))) -> 0 | E44: =IF(INTRO!$E$39<>"Non endémique", 0, IF(INTRO!$E$37="Non endémique",0,IF(COUNTRY_INFO!$H44=1,COUNTRY_INFO!F44,0))) -> 0 | F44: =IF(INTRO!$E$39<>"Non endémique", 0, IF(INTRO!$E$37="Non endémique",0,IF(COUNTRY_INFO!$H44=1,COUNTRY_INFO!G44,0))) -> 0 | G44: 0 | H44: =IF(INTRO!$E$39="Non endémique",IF(INTRO!$E$37="Non endémique","Non requis",COUNTRY_INFO!V44),"Traiter avec IVM") -> Traiter avec IVM | I44: 0 | J44: 0 | L44: 0
A45: =IF(INTRO!$E$39<>"Non endémique", " ", IF(INTRO!$E$37="Non endémique"," ", IF(COUNTRY_INFO!A45=0," ",COUNTRY_INFO!A45))) ->  | B45: =IF(INTRO!$E$39<>"Non endémique", " ", IF(INTRO!$E$37="Non endémique"," ", IF(COUNTRY_INFO!B45=0," ",COUNTRY_INFO!B45))) ->  | C45: =IF(INTRO!$E$39<>"Non endémique", " ", IF(INTRO!$E$37="Non endémique"," ", IF(COUNTRY_INFO!C45=0," ",COUNTRY_INFO!C45))) ->  | D45: =IF(INTRO!$E$39<>"Non endémique", 0, IF(INTRO!$E$37="Non endémique",0,IF(COUNTRY_INFO!$H45=1,COUNTRY_INFO!E45,0))) -> 0 | E45: =IF(INTRO!$E$39<>"Non endémique", 0, IF(INTRO!$E$37="Non endémique",0,IF(COUNTRY_INFO!$H45=1,COUNTRY_INFO!F45,0))) -> 0 | F45: =IF(INTRO!$E$39<>"Non endémique", 0, IF(INTRO!$E$37="Non endémique",0,IF(COUNTRY_INFO!$H45=1,COUNTRY_INFO!G45,0))) -> 0 | G45: 0 | H45: =IF(INTRO!$E$39="Non endémique",IF(INTRO!$E$37="Non endémique","Non requis",COUNTRY_INFO!V45),"Traiter avec IVM") -> Traiter avec IVM | I45: 0 | J45: 0 | L45: 0
A46: =IF(INTRO!$E$39<>"Non endémique", " ", IF(INTRO!$E$37="Non endémique"," ", IF(COUNTRY_INFO!A46=0," ",COUNTRY_INFO!A46))) ->  | B46: =IF(INTRO!$E$39<>"Non endémique", " ", IF(INTRO!$E$37="Non endémique"," ", IF(COUNTRY_INFO!B46=0," ",COUNTRY_INFO!B46))) ->  | C46: =IF(INTRO!$E$39<>"Non endémique", " ", IF(INTRO!$E$37="Non endémique"," ", IF(COUNTRY_INFO!C46=0," ",COUNTRY_INFO!C46))) ->  | D46: =IF(INTRO!$E$39<>"Non endémique", 0, IF(INTRO!$E$37="Non endémique",0,IF(COUNTRY_INFO!$H46=1,COUNTRY_INFO!E46,0))) -> 0 | E46: =IF(INTRO!$E$39<>"Non endémique", 0, IF(INTRO!$E$37="Non endémique",0,IF(COUNTRY_INFO!$H46=1,COUNTRY_INFO!F46,0))) -> 0 | F46: =IF(INTRO!$E$39<>"Non endémique", 0, IF(INTRO!$E$37="Non endémique",0,IF(COUNTRY_INFO!$H46=1,COUNTRY_INFO!G46,0))) -> 0 | G46: 0 | H46: =IF(INTRO!$E$39="Non endémique",IF(INTRO!$E$37="Non endémique","Non requis",COUNTRY_INFO!V46),"Traiter avec IVM") -> Traiter avec IVM | I46: 0 | J46: 0 | L46: 0
A47: =IF(INTRO!$E$39<>"Non endémique", " ", IF(INTRO!$E$37="Non endémique"," ", IF(COUNTRY_INFO!A47=0," ",COUNTRY_INFO!A47))) ->  | B47: =IF(INTRO!$E$39<>"Non endémique", " ", IF(INTRO!$E$37="Non endémique"," ", IF(COUNTRY_INFO!B47=0," ",COUNTRY_INFO!B47))) ->  | C47: =IF(INTRO!$E$39<>"Non endémique", " ", IF(INTRO!$E$37="Non endémique"," ", IF(COUNTRY_INFO!C47=0," ",COUNTRY_INFO!C47))) ->  | D47: =IF(INTRO!$E$39<>"Non endémique", 0, IF(INTRO!$E$37="Non endémique",0,IF(COUNTRY_INFO!$H47=1,COUNTRY_INFO!E47,0))) -> 0 | E47: =IF(INTRO!$E$39<>"Non endémique", 0, IF(INTRO!$E$37="Non endémique",0,IF(COUNTRY_INFO!$H47=1,COUNTRY_INFO!F47,0))) -> 0 | F47: =IF(INTRO!$E$39<>"Non endémique", 0, IF(INTRO!$E$37="Non endémique",0,IF(COUNTRY_INFO!$H47=1,COUNTRY_INFO!G47,0))) -> 0 | G47: 0 | H47: =IF(INTRO!$E$39="Non endémique",IF(INTRO!$E$37="Non endémique","Non requis",COUNTRY_INFO!V47),"Traiter avec IVM") -> Traiter avec IVM | I47: 0 | J47: 0 | L47: 0

Sheet ALB_MBD
A1: Albendazole (ALB) et Mebendazole (MBD) | G1: Choisir le médicament pour le traitement de STH pour chaque groupe d'âge
A2: Structure administrative, population ciblée par groupe d'âge, plan de traitement et information sur les comprimés | G2: ALB | I2: ALB | J2: ALB
A4: TOTAL | F4: =SUBTOTAL(9,F$10:F$1010) -> 3993901 | H4: =SUBTOTAL(9,H$10:H$1010) -> 1486920 | I4: 1843290 | K4: 3279973 | L4: 6610183 | M4: 3993901 | N4: 0 | O4: 3993901 | P4: 6610183 | Q4: 0 | R4: 6610183 | S4: 0 | T4: 0 | U4: 0
A6: Structure administrative du pays | D6: Plan de traitement | F6: Population couverte par le PEFL avec ALB | G6: Population cible pour STH | M6: Albendazole (ALB) | S6: Mebendazole (MBD)
A7: Pays | B7: Région/Département | C7: District | D7: FL | E7: STH | G7: EAPréS | I7: EAS | J7: FAP | L7: Total | M7: Total requis (FL) | N7: Reste en stock (FL) | O7: Comprimés devant être fournis (FL) | P7: Total requis (STH) | Q7: Reste en stock (STH) | R7: Comprimés devant être fournis (STH) | S7: Total requis | T7: Reste en stock | U7: Comprimés devant être fournis
G8: Tournées | H8: Personnes | I8: Personnes | J8: Tournées | K8: Personnes
A10: =IF(AND(INTRO!$E$37="Non endémique",INTRO!$E$41="Non endémique")," ",IF(COUNTRY_INFO!A10=0," ",COUNTRY_INFO!A10)) -> Guinée | B10: =IF(AND(INTRO!$E$37="Non endémique",INTRO!$E$41="Non endémique")," ",IF(COUNTRY_INFO!B10=0," ",COUNTRY_INFO!B10)) -> Boke | C10: =IF(AND(INTRO!$E$37="Non endémique",INTRO!$E$41="Non endémique")," ",IF(COUNTRY_INFO!C10=0," ",COUNTRY_INFO!C10)) -> Boffa | D10: =IF(AND(INTRO!$E$37="Non endémique",INTRO!$E$41="Non endémique"),0,COUNTRY_INFO!V10) -> 0 | E10: =IF(AND(INTRO!$E$37="Non endémique",INTRO!$E$41="Non endémique"),0,COUNTRY_INFO!X10) -> 0 | F10: =IF(INTRO!$E$39="Non endémique",IF($D10=1,DEC!I10,0),IF($D10=1,IVM!G10,0)) -> 0 | G10: 0 | H10: =IF(OR(COUNTRY_INFO!N10="Inconnu",COUNTRY_INFO!N10="Surveillance",COUNTRY_INFO!N10="Non requis",COUNTRY_INFO!N10=0),0,IF(INTRO!$E$39="Non endémique",IF(AND($E10<>0,$G10=""),IF($F10=0,COUNTRY_INFO!N10*$E10,COUNTRY_INFO!N10*($E10-$D10)),IF(AND($E10<>0,$G10<>0),IF($F10=0,COUNTRY_INFO!N10*$G10,COUNTRY_INFO!N10*($G10-$D10)),0)),IF($G10="",COUNTRY_INFO!N10*$E10,COUNTRY_INFO!N10*$G10))) -> 0 | I10: =IF(OR(COUNTRY_INFO!O10="Inconnu",COUNTRY_INFO!O10="Surveillance",COUNTRY_INFO!O10="Non requis",COUNTRY_INFO!O10=0),0,IF($E10<>0, IF($F10=0,COUNTRY_INFO!O10*$E10,COUNTRY_INFO!O10*($E10-$D10)),COUNTRY_INFO!O10*$E10)) -> 0 | K10: =IF(OR(COUNTRY_INFO!P10="Inconnu",COUNTRY_INFO!P10="Surveillance",COUNTRY_INFO!P10="Non requis",COUNTRY_INFO!P10=0),0,IF(AND($E10<>0,$J10=""),IF($F10=0,COUNTRY_INFO!P10*$E10,COUNTRY_INFO!P10*($E10-$D10)), IF(AND($E10<>0,$J10<>0),IF($F10=0,COUNTRY_INFO!P10*$J10,COUNTRY_INFO!P10*($J10-$D10)), COUNTRY_INFO!P10*$J10))) -> 0 | L10: =ROUND($H10,0)+ROUND($I10,0)+ROUND($K10,0) -> 0 | M10: =$F10 -> 0 | O10: =IF($M10>$N10, $M10-$N10,0) -> 0 | P10: =ROUND((IF($G$2="ALB",$H10,0)+IF($I$2="ALB",$I10,0)+IF($J$2="ALB",$K10,0)),0) -> 0 | R10: =IF($P10>$Q10,$P10-$Q10,0) -> 0 | S10: =ROUND((IF($G$2="MBD",$H10,0)+IF($I$2="MBD",$I10,0)+IF($J$2="MBD",$K10,0)),0) -> 0 | U10: =IF($S10>$T10,$S10-$T10,0) -> 0
A11: =IF(AND(INTRO!$E$37="Non endémique",INTRO!$E$41="Non endémique")," ",IF(COUNTRY_INFO!A11=0," ",COUNTRY_INFO!A11)) -> Guinée | B11: =IF(AND(INTRO!$E$37="Non endémique",INTRO!$E$41="Non endémique")," ",IF(COUNTRY_INFO!B11=0," ",COUNTRY_INFO!B11)) -> Boke | C11: =IF(AND(INTRO!$E$37="Non endémique",INTRO!$E$41="Non endémique")," ",IF(COUNTRY_INFO!C11=0," ",COUNTRY_INFO!C11)) -> Boke | D11: =IF(AND(INTRO!$E$37="Non endémique",INTRO!$E$41="Non endémique"),0,COUNTRY_INFO!V11) -> 0 | E11: =IF(AND(INTRO!$E$37="Non endémique",INTRO!$E$41="Non endémique"),0,COUNTRY_INFO!X11) -> 0 | F11: =IF(INTRO!$E$39="Non endémique",IF($D11=1,DEC!I11,0),IF($D11=1,IVM!G11,0)) -> 0 | G11: 0 | H11: =IF(OR(COUNTRY_INFO!N11="Inconnu",COUNTRY_INFO!N11="Surveillance",COUNTRY_INFO!N11="Non requis",COUNTRY_INFO!N11=0),0,IF(INTRO!$E$39="Non endémique",IF(AND($E11<>0,$G11=""),IF($F11=0,COUNTRY_INFO!N11*$E11,COUNTRY_INFO!N11*($E11-$D11)),IF(AND($E11<>0,$G11<>0),IF($F11=0,COUNTRY_INFO!N11*$G11,COUNTRY_INFO!N11*($G11-$D11)),0)),IF($G11="",COUNTRY_INFO!N11*$E11,COUNTRY_INFO!N11*$G11))) -> 0 | I11: =IF(OR(COUNTRY_INFO!O11="Inconnu",COUNTRY_INFO!O11="Surveillance",COUNTRY_INFO!O11="Non requis",COUNTRY_INFO!O11=0),0,IF($E11<>0, IF($F11=0,COUNTRY_INFO!O11*$E11,COUNTRY_INFO!O11*($E11-$D11)),COUNTRY_INFO!O11*$E11)) -> 0 | K11: =IF(OR(COUNTRY_INFO!P11="Inconnu",COUNTRY_INFO!P11="Surveillance",COUNTRY_INFO!P11="Non requis",COUNTRY_INFO!P11=0),0,IF(AND($E11<>0,$J11=""),IF($F11=0,COUNTRY_INFO!P11*$E11,COUNTRY_INFO!P11*($E11-$D11)), IF(AND($E11<>0,$J11<>0),IF($F11=0,COUNTRY_INFO!P11*$J11,COUNTRY_INFO!P11*($J11-$D11)), COUNTRY_INFO!P11*$J11))) -> 0 | L11: 0 | M11: 0 | O11: 0 | P11: 0 | R11: 0 | S11: 0 | U11: 0
A12: =IF(AND(INTRO!$E$37="Non endémique",INTRO!$E$41="Non endémique")," ",IF(COUNTRY_INFO!A12=0," ",COUNTRY_INFO!A12)) -> Guinée | B12: =IF(AND(INTRO!$E$37="Non endémique",INTRO!$E$41="Non endémique")," ",IF(COUNTRY_INFO!B12=0," ",COUNTRY_INFO!B12)) -> Boke | C12: =IF(AND(INTRO!$E$37="Non endémique",INTRO!$E$41="Non endémique")," ",IF(COUNTRY_INFO!C12=0," ",COUNTRY_INFO!C12)) -> Fria | D12: =IF(AND(INTRO!$E$37="Non endémique",INTRO!$E$41="Non endémique"),0,COUNTRY_INFO!V12) -> 0 | E12: =IF(AND(INTRO!$E$37="Non endémique",INTRO!$E$41="Non endémique"),0,COUNTRY_INFO!X12) -> 0 | F12: =IF(INTRO!$E$39="Non endémique",IF($D12=1,DEC!I12,0),IF($D12=1,IVM!G12,0)) -> 0 | G12: 0 | H12: =IF(OR(COUNTRY_INFO!N12="Inconnu",COUNTRY_INFO!N12="Surveillance",COUNTRY_INFO!N12="Non requis",COUNTRY_INFO!N12=0),0,IF(INTRO!$E$39="Non endémique",IF(AND($E12<>0,$G12=""),IF($F12=0,COUNTRY_INFO!N12*$E12,COUNTRY_INFO!N12*($E12-$D12)),IF(AND($E12<>0,$G12<>0),IF($F12=0,COUNTRY_INFO!N12*$G12,COUNTRY_INFO!N12*($G12-$D12)),0)),IF($G12="",COUNTRY_INFO!N12*$E12,COUNTRY_INFO!N12*$G12))) -> 0 | I12: =IF(OR(COUNTRY_INFO!O12="Inconnu",COUNTRY_INFO!O12="Surveillance",COUNTRY_INFO!O12="Non requis",COUNTRY_INFO!O12=0),0,IF($E12<>0, IF($F12=0,COUNTRY_INFO!O12*$E12,COUNTRY_INFO!O12*($E12-$D12)),COUNTRY_INFO!O12*$E12)) -> 0 | K12: =IF(OR(COUNTRY_INFO!P12="Inconnu",COUNTRY_INFO!P12="Surveillance",COUNTRY_INFO!P12="Non requis",COUNTRY_INFO!P12=0),0,IF(AND($E12<>0,$J12=""),IF($F12=0,COUNTRY_INFO!P12*$E12,COUNTRY_INFO!P12*($E12-$D12)), IF(AND($E12<>0,$J12<>0),IF($F12=0,COUNTRY_INFO!P12*$J12,COUNTRY_INFO!P12*($J12-$D12)), COUNTRY_INFO!P12*$J12))) -> 0 | L12: 0 | M12: 0 | O12: 0 | P12: 0 | R12: 0 | S12: 0 | U12: 0
A13: =IF(AND(INTRO!$E$37="Non endémique",INTRO!$E$41="Non endémique")," ",IF(COUNTRY_INFO!A13=0," ",COUNTRY_INFO!A13)) -> Guinée | B13: =IF(AND(INTRO!$E$37="Non endémique",INTRO!$E$41="Non endémique")," ",IF(COUNTRY_INFO!B13=0," ",COUNTRY_INFO!B13)) -> Boke | C13: =IF(AND(INTRO!$E$37="Non endémique",INTRO!$E$41="Non endémique")," ",IF(COUNTRY_INFO!C13=0," ",COUNTRY_INFO!C13)) -> Gaoual | D13: =IF(AND(INTRO!$E$37="Non endémique",INTRO!$E$41="Non endémique"),0,COUNTRY_INFO!V13) -> 1 | E13: =IF(AND(INTRO!$E$37="Non endémique",INTRO!$E$41="Non endémique"),0,COUNTRY_INFO!X13) -> 0 | F13: =IF(INTRO!$E$39="Non endémique",IF($D13=1,DEC!I13,0),IF($D13=1,IVM!G13,0)) -> 211946 | G13: 0 | H13: =IF(OR(COUNTRY_INFO!N13="Inconnu",COUNTRY_INFO!N13="Surveillance",COUNTRY_INFO!N13="Non requis",COUNTRY_INFO!N13=0),0,IF(INTRO!$E$39="Non endémique",IF(AND($E13<>0,$G13=""),IF($F13=0,COUNTRY_INFO!N13*$E13,COUNTRY_INFO!N13*($E13-$D13)),IF(AND($E13<>0,$G13<>0),IF($F13=0,COUNTRY_INFO!N13*$G13,COUNTRY_INFO!N13*($G13-$D13)),0)),IF($G13="",COUNTRY_INFO!N13*$E13,COUNTRY_INFO!N13*$G13))) -> 0 | I13: =IF(OR(COUNTRY_INFO!O13="Inconnu",COUNTRY_INFO!O13="Surveillance",COUNTRY_INFO!O13="Non requis",COUNTRY_INFO!O13=0),0,IF($E13<>0, IF($F13=0,COUNTRY_INFO!O13*$E13,COUNTRY_INFO!O13*($E13-$D13)),COUNTRY_INFO!O13*$E13)) -> 0 | K13: =IF(OR(COUNTRY_INFO!P13="Inconnu",COUNTRY_INFO!P13="Surveillance",COUNTRY_INFO!P13="Non requis",COUNTRY_INFO!P13=0),0,IF(AND($E13<>0,$J13=""),IF($F13=0,COUNTRY_INFO!P13*$E13,COUNTRY_INFO!P13*($E13-$D13)), IF(AND($E13<>0,$J13<>0),IF($F13=0,COUNTRY_INFO!P13*$J13,COUNTRY_INFO!P13*($J13-$D13)), COUNTRY_INFO!P13*$J13))) -> 0 | L13: 0 | M13: 211946 | O13: 211946 | P13: 0 | R13: 0 | S13: 0 | U13: 0
A14: =IF(AND(INTRO!$E$37="Non endémique",INTRO!$E$41="Non endémique")," ",IF(COUNTRY_INFO!A14=0," ",COUNTRY_INFO!A14)) -> Guinée | B14: =IF(AND(INTRO!$E$37="Non endémique",INTRO!$E$41="Non endémique")," ",IF(COUNTRY_INFO!B14=0," ",COUNTRY_INFO!B14)) -> Boke | C14: =IF(AND(INTRO!$E$37="Non endémique",INTRO!$E$41="Non endémique")," ",IF(COUNTRY_INFO!C14=0," ",COUNTRY_INFO!C14)) -> Koundara | D14: =IF(AND(INTRO!$E$37="Non endémique",INTRO!$E$41="Non endémique"),0,COUNTRY_INFO!V14) -> 1 | E14: =IF(AND(INTRO!$E$37="Non endémique",INTRO!$E$41="Non endémique"),0,COUNTRY_INFO!X14) -> 0 | F14: =IF(INTRO!$E$39="Non endémique",IF($D14=1,DEC!I14,0),IF($D14=1,IVM!G14,0)) -> 142194 | G14: 0 | H14: =IF(OR(COUNTRY_INFO!N14="Inconnu",COUNTRY_INFO!N14="Surveillance",COUNTRY_INFO!N14="Non requis",COUNTRY_INFO!N14=0),0,IF(INTRO!$E$39="Non endémique",IF(AND($E14<>0,$G14=""),IF($F14=0,COUNTRY_INFO!N14*$E14,COUNTRY_INFO!N14*($E14-$D14)),IF(AND($E14<>0,$G14<>0),IF($F14=0,COUNTRY_INFO!N14*$G14,COUNTRY_INFO!N14*($G14-$D14)),0)),IF($G14="",COUNTRY_INFO!N14*$E14,COUNTRY_INFO!N14*$G14))) -> 0 | I14: =IF(OR(COUNTRY_INFO!O14="Inconnu",COUNTRY_INFO!O14="Surveillance",COUNTRY_INFO!O14="Non requis",COUNTRY_INFO!O14=0),0,IF($E14<>0, IF($F14=0,COUNTRY_INFO!O14*$E14,COUNTRY_INFO!O14*($E14-$D14)),COUNTRY_INFO!O14*$E14)) -> 0 | K14: =IF(OR(COUNTRY_INFO!P14="Inconnu",COUNTRY_INFO!P14="Surveillance",COUNTRY_INFO!P14="Non requis",COUNTRY_INFO!P14=0),0,IF(AND($E14<>0,$J14=""),IF($F14=0,COUNTRY_INFO!P14*$E14,COUNTRY_INFO!P14*($E14-$D14)), IF(AND($E14<>0,$J14<>0),IF($F14=0,COUNTRY_INFO!P14*$J14,COUNTRY_INFO!P14*($J14-$D14)), COUNTRY_INFO!P14*$J14))) -> 0 | L14: 0 | M14: 142194 | O14: 142194 | P14: 0 | R14: 0 | S14: 0 | U14: 0
A15: =IF(AND(INTRO!$E$37="Non endémique",INTRO!$E$41="Non endémique")," ",IF(COUNTRY_INFO!A15=0," ",COUNTRY_INFO!A15)) -> Guinée | B15: =IF(AND(INTRO!$E$37="Non endémique",INTRO!$E$41="Non endémique")," ",IF(COUNTRY_INFO!B15=0," ",COUNTRY_INFO!B15)) -> Conakry | C15: =IF(AND(INTRO!$E$37="Non endémique",INTRO!$E$41="Non endémique")," ",IF(COUNTRY_INFO!C15=0," ",COUNTRY_INFO!C15)) -> Dixinn | D15: =IF(AND(INTRO!$E$37="Non endémique",INTRO!$E$41="Non endémique"),0,COUNTRY_INFO!V15) -> 0 | E15: =IF(AND(INTRO!$E$37="Non endémique",INTRO!$E$41="Non endémique"),0,COUNTRY_INFO!X15) -> 0 | F15: =IF(INTRO!$E$39="Non endémique",IF($D15=1,DEC!I15,0),IF($D15=1,IVM!G15,0)) -> 0 | G15: 0 | H15: =IF(OR(COUNTRY_INFO!N15="Inconnu",COUNTRY_INFO!N15="Surveillance",COUNTRY_INFO!N15="Non requis",COUNTRY_INFO!N15=0),0,IF(INTRO!$E$39="Non endémique",IF(AND($E15<>0,$G15=""),IF($F15=0,COUNTRY_INFO!N15*$E15,COUNTRY_INFO!N15*($E15-$D15)),IF(AND($E15<>0,$G15<>0),IF($F15=0,COUNTRY_INFO!N15*$G15,COUNTRY_INFO!N15*($G15-$D15)),0)),IF($G15="",COUNTRY_INFO!N15*$E15,COUNTRY_INFO!N15*$G15))) -> 0 | I15: =IF(OR(COUNTRY_INFO!O15="Inconnu",COUNTRY_INFO!O15="Surveillance",COUNTRY_INFO!O15="Non requis",COUNTRY_INFO!O15=0),0,IF($E15<>0, IF($F15=0,COUNTRY_INFO!O15*$E15,COUNTRY_INFO!O15*($E15-$D15)),COUNTRY_INFO!O15*$E15)) -> 0 | K15: =IF(OR(COUNTRY_INFO!P15="Inconnu",COUNTRY_INFO!P15="Surveillance",COUNTRY_INFO!P15="Non requis",COUNTRY_INFO!P15=0),0,IF(AND($E15<>0,$J15=""),IF($F15=0,COUNTRY_INFO!P15*$E15,COUNTRY_INFO!P15*($E15-$D15)), IF(AND($E15<>0,$J15<>0),IF($F15=0,COUNTRY_INFO!P15*$J15,COUNTRY_INFO!P15*($J15-$D15)), COUNTRY_INFO!P15*$J15))) -> 0 | L15: 0 | M15: 0 | O15: 0 | P15: 0 | R15: 0 | S15: 0 | U15: 0
A16: =IF(AND(INTRO!$E$37="Non endémique",INTRO!$E$41="Non endémique")," ",IF(COUNTRY_INFO!A16=0," ",COUNTRY_INFO!A16)) -> Guinée | B16: =IF(AND(INTRO!$E$37="Non endémique",INTRO!$E$41="Non endémique")," ",IF(COUNTRY_INFO!B16=0," ",COUNTRY_INFO!B16)) -> Conakry | C16: =IF(AND(INTRO!$E$37="Non endémique",INTRO!$E$41="Non endémique")," ",IF(COUNTRY_INFO!C16=0," ",COUNTRY_INFO!C16)) -> Kaloum | D16: =IF(AND(INTRO!$E$37="Non endémique",INTRO!$E$41="Non endémique"),0,COUNTRY_INFO!V16) -> 0 | E16: =IF(AND(INTRO!$E$37="Non endémique",INTRO!$E$41="Non endémique"),0,COUNTRY_INFO!X16) -> 0 | F16: =IF(INTRO!$E$39="Non endémique",IF($D16=1,DEC!I16,0),IF($D16=1,IVM!G16,0)) -> 0 | G16: 0 | H16: =IF(OR(COUNTRY_INFO!N16="Inconnu",COUNTRY_INFO!N16="Surveillance",COUNTRY_INFO!N16="Non requis",COUNTRY_INFO!N16=0),0,IF(INTRO!$E$39="Non endémique",IF(AND($E16<>0,$G16=""),IF($F16=0,COUNTRY_INFO!N16*$E16,COUNTRY_INFO!N16*($E16-$D16)),IF(AND($E16<>0,$G16<>0),IF($F16=0,COUNTRY_INFO!N16*$G16,COUNTRY_INFO!N16*($G16-$D16)),0)),IF($G16="",COUNTRY_INFO!N16*$E16,COUNTRY_INFO!N16*$G16))) -> 0 | I16: =IF(OR(COUNTRY_INFO!O16="Inconnu",COUNTRY_INFO!O16="Surveillance",COUNTRY_INFO!O16="Non requis",COUNTRY_INFO!O16=0),0,IF($E16<>0, IF($F16=0,COUNTRY_INFO!O16*$E16,COUNTRY_INFO!O16*($E16-$D16)),COUNTRY_INFO!O16*$E16)) -> 0 | K16: =IF(OR(COUNTRY_INFO!P16="Inconnu",COUNTRY_INFO!P16="Surveillance",COUNTRY_INFO!P16="Non requis",COUNTRY_INFO!P16=0),0,IF(AND($E16<>0,$J16=""),IF($F16=0,COUNTRY_INFO!P16*$E16,COUNTRY_INFO!P16*($E16-$D16)), IF(AND($E16<>0,$J16<>0),IF($F16=0,COUNTRY_INFO!P16*$J16,COUNTRY_INFO!P16*($J16-$D16)), COUNTRY_INFO!P16*$J16))) -> 0 | L16: 0 | M16: 0 | O16: 0 | P16: 0 | R16: 0 | S16: 0 | U16: 0
A17: =IF(AND(INTRO!$E$37="Non endémique",INTRO!$E$41="Non endémique")," ",IF(COUNTRY_INFO!A17=0," ",COUNTRY_INFO!A17)) -> Guinée | B17: =IF(AND(INTRO!$E$37="Non endémique",INTRO!$E$41="Non endémique")," ",IF(COUNTRY_INFO!B17=0," ",COUNTRY_INFO!B17)) -> Conakry | C17: =IF(AND(INTRO!$E$37="Non endémique",INTRO!$E$41="Non endémique")," ",IF(COUNTRY_INFO!C17=0," ",COUNTRY_INFO!C17)) -> Matam | D17: =IF(AND(INTRO!$E$37="Non endémique",INTRO!$E$41="Non endémique"),0,COUNTRY_INFO!V17) -> 0 | E17: =IF(AND(INTRO!$E$37="Non endémique",INTRO!$E$41="Non endémique"),0,COUNTRY_INFO!X17) -> 0 | F17: =IF(INTRO!$E$39="Non endémique",IF($D17=1,DEC!I17,0),IF($D17=1,IVM!G17,0)) -> 0 | G17: 0 | H17: =IF(OR(COUNTRY_INFO!N17="Inconnu",COUNTRY_INFO!N17="Surveillance",COUNTRY_INFO!N17="Non requis",COUNTRY_INFO!N17=0),0,IF(INTRO!$E$39="Non endémique",IF(AND($E17<>0,$G17=""),IF($F17=0,COUNTRY_INFO!N17*$E17,COUNTRY_INFO!N17*($E17-$D17)),IF(AND($E17<>0,$G17<>0),IF($F17=0,COUNTRY_INFO!N17*$G17,COUNTRY_INFO!N17*($G17-$D17)),0)),IF($G17="",COUNTRY_INFO!N17*$E17,COUNTRY_INFO!N17*$G17))) -> 0 | I17: =IF(OR(COUNTRY_INFO!O17="Inconnu",COUNTRY_INFO!O17="Surveillance",COUNTRY_INFO!O17="Non requis",COUNTRY_INFO!O17=0),0,IF($E17<>0, IF($F17=0,COUNTRY_INFO!O17*$E17,COUNTRY_INFO!O17*($E17-$D17)),COUNTRY_INFO!O17*$E17)) -> 0 | K17: =IF(OR(COUNTRY_INFO!P17="Inconnu",COUNTRY_INFO!P17="Surveillance",COUNTRY_INFO!P17="Non requis",COUNTRY_INFO!P17=0),0,IF(AND($E17<>0,$J17=""),IF($F17=0,COUNTRY_INFO!P17*$E17,COUNTRY_INFO!P17*($E17-$D17)), IF(AND($E17<>0,$J17<>0),IF($F17=0,COUNTRY_INFO!P17*$J17,COUNTRY_INFO!P17*($J17-$D17)), COUNTRY_INFO!P17*$J17))) -> 0 | L17: 0 | M17: 0 | O17: 0 | P17: 0 | R17: 0 | S17: 0 | U17: 0
A18: =IF(AND(INTRO!$E$37="Non endémique",INTRO!$E$41="Non endémique")," ",IF(COUNTRY_INFO!A18=0," ",COUNTRY_INFO!A18)) -> Guinée | B18: =IF(AND(INTRO!$E$37="Non endémique",INTRO!$E$41="Non endémique")," ",IF(COUNTRY_INFO!B18=0," ",COUNTRY_INFO!B18)) -> Conakry | C18: =IF(AND(INTRO!$E$37="Non endémique",INTRO!$E$41="Non endémique")," ",IF(COUNTRY_INFO!C18=0," ",COUNTRY_INFO!C18)) -> Matoto | D18: =IF(AND(INTRO!$E$37="Non endémique",INTRO!$E$41="Non endémique"),0,COUNTRY_INFO!V18) -> 0 | E18: =IF(AND(INTRO!$E$37="Non endémique",INTRO!$E$41="Non endémique"),0,COUNTRY_INFO!X18) -> 0 | F18: =IF(INTRO!$E$39="Non endémique",IF($D18=1,DEC!I18,0),IF($D18=1,IVM!G18,0)) -> 0 | G18: 0 | H18: =IF(OR(COUNTRY_INFO!N18="Inconnu",COUNTRY_INFO!N18="Surveillance",COUNTRY_INFO!N18="Non requis",COUNTRY_INFO!N18=0),0,IF(INTRO!$E$39="Non endémique",IF(AND($E18<>0,$G18=""),IF($F18=0,COUNTRY_INFO!N18*$E18,COUNTRY_INFO!N18*($E18-$D18)),IF(AND($E18<>0,$G18<>0),IF($F18=0,COUNTRY_INFO!N18*$G18,COUNTRY_INFO!N18*($G18-$D18)),0)),IF($G18="",COUNTRY_INFO!N18*$E18,COUNTRY_INFO!N18*$G18))) -> 0 | I18: =IF(OR(COUNTRY_INFO!O18="Inconnu",COUNTRY_INFO!O18="Surveillance",COUNTRY_INFO!O18="Non requis",COUNTRY_INFO!O18=0),0,IF($E18<>0, IF($F18=0,COUNTRY_INFO!O18*$E18,COUNTRY_INFO!O18*($E18-$D18)),COUNTRY_INFO!O18*$E18)) -> 0 | K18: =IF(OR(COUNTRY_INFO!P18="Inconnu",COUNTRY_INFO!P18="Surveillance",COUNTRY_INFO!P18="Non requis",COUNTRY_INFO!P18=0),0,IF(AND($E18<>0,$J18=""),IF($F18=0,COUNTRY_INFO!P18*$E18,COUNTRY_INFO!P18*($E18-$D18)), IF(AND($E18<>0,$J18<>0),IF($F18=0,COUNTRY_INFO!P18*$J18,COUNTRY_INFO!P18*($J18-$D18)), COUNTRY_INFO!P18*$J18))) -> 0 | L18: 0 | M18: 0 | O18: 0 | P18: 0 | R18: 0 | S18: 0 | U18: 0
A19: =IF(AND(INTRO!$E$37="Non endémique",INTRO!$E$41="Non endémique")," ",IF(COUNTRY_INFO!A19=0," ",COUNTRY_INFO!A19)) -> Guinée | B19: =IF(AND(INTRO!$E$37="Non endémique",INTRO!$E$41="Non endémique")," ",IF(COUNTRY_INFO!B19=0," ",COUNTRY_INFO!B19)) -> Conakry | C19: =IF(AND(INTRO!$E$37="Non endémique",INTRO!$E$41="Non endémique")," ",IF(COUNTRY_INFO!C19=0," ",COUNTRY_INFO!C19)) -> Ratoma | D19: =IF(AND(INTRO!$E$37="Non endémique",INTRO!$E$41="Non endémique"),0,COUNTRY_INFO!V19) -> 0 | E19: =IF(AND(INTRO!$E$37="Non endémique",INTRO!$E$41="Non endémique"),0,COUNTRY_INFO!X19) -> 0 | F19: =IF(INTRO!$E$39="Non endémique",IF($D19=1,DEC!I19,0),IF($D19=1,IVM!G19,0)) -> 0 | G19: 0 | H19: =IF(OR(COUNTRY_INFO!N19="Inconnu",COUNTRY_INFO!N19="Surveillance",COUNTRY_INFO!N19="Non requis",COUNTRY_INFO!N19=0),0,IF(INTRO!$E$39="Non endémique",IF(AND($E19<>0,$G19=""),IF($F19=0,COUNTRY_INFO!N19*$E19,COUNTRY_INFO!N19*($E19-$D19)),IF(AND($E19<>0,$G19<>0),IF($F19=0,COUNTRY_INFO!N19*$G19,COUNTRY_INFO!N19*($G19-$D19)),0)),IF($G19="",COUNTRY_INFO!N19*$E19,COUNTRY_INFO!N19*$G19))) -> 0 | I19: =IF(OR(COUNTRY_INFO!O19="Inconnu",COUNTRY_INFO!O19="Surveillance",COUNTRY_INFO!O19="Non requis",COUNTRY_INFO!O19=0),0,IF($E19<>0, IF($F19=0,COUNTRY_INFO!O19*$E19,COUNTRY_INFO!O19*($E19-$D19)),COUNTRY_INFO!O19*$E19)) -> 0 | K19: =IF(OR(COUNTRY_INFO!P19="Inconnu",COUNTRY_INFO!P19="Surveillance",COUNTRY_INFO!P19="Non requis",COUNTRY_INFO!P19=0),0,IF(AND($E19<>0,$J19=""),IF($F19=0,COUNTRY_INFO!P19*$E19,COUNTRY_INFO!P19*($E19-$D19)), IF(AND($E19<>0,$J19<>0),IF($F19=0,COUNTRY_INFO!P19*$J19,COUNTRY_INFO!P19*($J19-$D19)), COUNTRY_INFO!P19*$J19))) -> 0 | L19: 0 | M19: 0 | O19: 0 | P19: 0 | R19: 0 | S19: 0 | U19: 0
A20: =IF(AND(INTRO!$E$37="Non endémique",INTRO!$E$41="Non endémique")," ",IF(COUNTRY_INFO!A20=0," ",COUNTRY_INFO!A20)) -> Guinée | B20: =IF(AND(INTRO!$E$37="Non endémique",INTRO!$E$41="Non endémique")," ",IF(COUNTRY_INFO!B20=0," ",COUNTRY_INFO!B20)) -> Faranah | C20: =IF(AND(INTRO!$E$37="Non endémique",INTRO!$E$41="Non endémique")," ",IF(COUNTRY_INFO!C20=0," ",COUNTRY_INFO!C20)) -> Dabola | D20: =IF(AND(INTRO!$E$37="Non endémique",INTRO!$E$41="Non endémique"),0,COUNTRY_INFO!V20) -> 1 | E20: =IF(AND(INTRO!$E$37="Non endémique",INTRO!$E$41="Non endémique"),0,COUNTRY_INFO!X20) -> 0 | F20: =IF(INTRO!$E$39="Non endémique",IF($D20=1,DEC!I20,0),IF($D20=1,IVM!G20,0)) -> 198313 | G20: 0 | H20: =IF(OR(COUNTRY_INFO!N20="Inconnu",COUNTRY_INFO!N20="Surveillance",COUNTRY_INFO!N20="Non requis",COUNTRY_INFO!N20=0),0,IF(INTRO!$E$39="Non endémique",IF(AND($E20<>0,$G20=""),IF($F20=0,COUNTRY_INFO!N20*$E20,COUNTRY_INFO!N20*($E20-$D20)),IF(AND($E20<>0,$G20<>0),IF($F20=0,COUNTRY_INFO!N20*$G20,COUNTRY_INFO!N20*($G20-$D20)),0)),IF($G20="",COUNTRY_INFO!N20*$E20,COUNTRY_INFO!N20*$G20))) -> 0 | I20: =IF(OR(COUNTRY_INFO!O20="Inconnu",COUNTRY_INFO!O20="Surveillance",COUNTRY_INFO!O20="Non requis",COUNTRY_INFO!O20=0),0,IF($E20<>0, IF($F20=0,COUNTRY_INFO!O20*$E20,COUNTRY_INFO!O20*($E20-$D20)),COUNTRY_INFO!O20*$E20)) -> 0 | K20: =IF(OR(COUNTRY_INFO!P20="Inconnu",COUNTRY_INFO!P20="Surveillance",COUNTRY_INFO!P20="Non requis",COUNTRY_INFO!P20=0),0,IF(AND($E20<>0,$J20=""),IF($F20=0,COUNTRY_INFO!P20*$E20,COUNTRY_INFO!P20*($E20-$D20)), IF(AND($E20<>0,$J20<>0),IF($F20=0,COUNTRY_INFO!P20*$J20,COUNTRY_INFO!P20*($J20-$D20)), COUNTRY_INFO!P20*$J20))) -> 0 | L20: 0 | M20: 198313 | O20: 198313 | P20: 0 | R20: 0 | S20: 0 | U20: 0
A21: =IF(AND(INTRO!$E$37="Non endémique",INTRO!$E$41="Non endémique")," ",IF(COUNTRY_INFO!A21=0," ",COUNTRY_INFO!A21)) -> Guinée | B21: =IF(AND(INTRO!$E$37="Non endémique",INTRO!$E$41="Non endémique")," ",IF(COUNTRY_INFO!B21=0," ",COUNTRY_INFO!B21)) -> Faranah | C21: =IF(AND(INTRO!$E$37="Non endémique",INTRO!$E$41="Non endémique")," ",IF(COUNTRY_INFO!C21=0," ",COUNTRY_INFO!C21)) -> Dinguiraye | D21: =IF(AND(INTRO!$E$37="Non endémique",INTRO!$E$41="Non endémique"),0,COUNTRY_INFO!V21) -> 0 | E21: =IF(AND(INTRO!$E$37="Non endémique",INTRO!$E$41="Non endémique"),0,COUNTRY_INFO!X21) -> 0 | F21: =IF(INTRO!$E$39="Non endémique",IF($D21=1,DEC!I21,0),IF($D21=1,IVM!G21,0)) -> 0 | G21: 0 | H21: =IF(OR(COUNTRY_INFO!N21="Inconnu",COUNTRY_INFO!N21="Surveillance",COUNTRY_INFO!N21="Non requis",COUNTRY_INFO!N21=0),0,IF(INTRO!$E$39="Non endémique",IF(AND($E21<>0,$G21=""),IF($F21=0,COUNTRY_INFO!N21*$E21,COUNTRY_INFO!N21*($E21-$D21)),IF(AND($E21<>0,$G21<>0),IF($F21=0,COUNTRY_INFO!N21*$G21,COUNTRY_INFO!N21*($G21-$D21)),0)),IF($G21="",COUNTRY_INFO!N21*$E21,COUNTRY_INFO!N21*$G21))) -> 0 | I21: =IF(OR(COUNTRY_INFO!O21="Inconnu",COUNTRY_INFO!O21="Surveillance",COUNTRY_INFO!O21="Non requis",COUNTRY_INFO!O21=0),0,IF($E21<>0, IF($F21=0,COUNTRY_INFO!O21*$E21,COUNTRY_INFO!O21*($E21-$D21)),COUNTRY_INFO!O21*$E21)) -> 0 | K21: =IF(OR(COUNTRY_INFO!P21="Inconnu",COUNTRY_INFO!P21="Surveillance",COUNTRY_INFO!P21="Non requis",COUNTRY_INFO!P21=0),0,IF(AND($E21<>0,$J21=""),IF($F21=0,COUNTRY_INFO!P21*$E21,COUNTRY_INFO!P21*($E21-$D21)), IF(AND($E21<>0,$J21<>0),IF($F21=0,COUNTRY_INFO!P21*$J21,COUNTRY_INFO!P21*($J21-$D21)), COUNTRY_INFO!P21*$J21))) -> 0 | L21: 0 | M21: 0 | O21: 0 | P21: 0 | R21: 0 | S21: 0 | U21: 0
A22: =IF(AND(INTRO!$E$37="Non endémique",INTRO!$E$41="Non endémique")," ",IF(COUNTRY_INFO!A22=0," ",COUNTRY_INFO!A22)) -> Guinée | B22: =IF(AND(INTRO!$E$37="Non endémique",INTRO!$E$41="Non endémique")," ",IF(COUNTRY_INFO!B22=0," ",COUNTRY_INFO!B22)) -> Faranah | C22: =IF(AND(INTRO!$E$37="Non endémique",INTRO!$E$41="Non endémique")," ",IF(COUNTRY_INFO!C22=0," ",COUNTRY_INFO!C22)) -> Faranah | D22: =IF(AND(INTRO!$E$37="Non endémique",INTRO!$E$41="Non endémique"),0,COUNTRY_INFO!V22) -> 1 | E22: =IF(AND(INTRO!$E$37="Non endémique",INTRO!$E$41="Non endémique"),0,COUNTRY_INFO!X22) -> 2 | F22: =IF(INTRO!$E$39="Non endémique",IF($D22=1,DEC!I22,0),IF($D22=1,IVM!G22,0)) -> 306723 | G22: 2 | H22: =IF(OR(COUNTRY_INFO!N22="Inconnu",COUNTRY_INFO!N22="Surveillance",COUNTRY_INFO!N22="Non requis",COUNTRY_INFO!N22=0),0,IF(INTRO!$E$39="Non endémique",IF(AND($E22<>0,$G22=""),IF($F22=0,COUNTRY_INFO!N22*$E22,COUNTRY_INFO!N22*($E22-$D22)),IF(AND($E22<>0,$G22<>0),IF($F22=0,COUNTRY_INFO!N22*$G22,COUNTRY_INFO!N22*($G22-$D22)),0)),IF($G22="",COUNTRY_INFO!N22*$E22,COUNTRY_INFO!N22*$G22))) -> 117166 | I22: =IF(OR(COUNTRY_INFO!O22="Inconnu",COUNTRY_INFO!O22="Surveillance",COUNTRY_INFO!O22="Non requis",COUNTRY_INFO!O22=0),0,IF($E22<>0, IF($F22=0,COUNTRY_INFO!O22*$E22,COUNTRY_INFO!O22*($E22-$D22)),COUNTRY_INFO!O22*$E22)) -> 101495 | K22: =IF(OR(COUNTRY_INFO!P22="Inconnu",COUNTRY_INFO!P22="Surveillance",COUNTRY_INFO!P22="Non requis",COUNTRY_INFO!P22=0),0,IF(AND($E22<>0,$J22=""),IF($F22=0,COUNTRY_INFO!P22*$E22,COUNTRY_INFO!P22*($E22-$D22)), IF(AND($E22<>0,$J22<>0),IF($F22=0,COUNTRY_INFO!P22*$J22,COUNTRY_INFO!P22*($J22-$D22)), COUNTRY_INFO!P22*$J22))) -> 180601 | L22: 399262 | M22: 306723 | O22: 306723 | P22: 399262 | R22: 399262 | S22: 0 | U22: 0
A23: =IF(AND(INTRO!$E$37="Non endémique",INTRO!$E$41="Non endémique")," ",IF(COUNTRY_INFO!A23=0," ",COUNTRY_INFO!A23)) -> Guinée | B23: =IF(AND(INTRO!$E$37="Non endémique",INTRO!$E$41="Non endémique")," ",IF(COUNTRY_INFO!B23=0," ",COUNTRY_INFO!B23)) -> Faranah | C23: =IF(AND(INTRO!$E$37="Non endémique",INTRO!$E$41="Non endémique")," ",IF(COUNTRY_INFO!C23=0," ",COUNTRY_INFO!C23)) -> Kissidougou | D23: =IF(AND(INTRO!$E$37="Non endémique",INTRO!$E$41="Non endémique"),0,COUNTRY_INFO!V23) -> 1 | E23: =IF(AND(INTRO!$E$37="Non endémique",INTRO!$E$41="Non endémique"),0,COUNTRY_INFO!X23) -> 2 | F23: =IF(INTRO!$E$39="Non endémique",IF($D23=1,DEC!I23,0),IF($D23=1,IVM!G23,0)) -> 310130 | G23: 2 | H23: =IF(OR(COUNTRY_INFO!N23="Inconnu",COUNTRY_INFO!N23="Surveillance",COUNTRY_INFO!N23="Non requis",COUNTRY_INFO!N23=0),0,IF(INTRO!$E$39="Non endémique",IF(AND($E23<>0,$G23=""),IF($F23=0,COUNTRY_INFO!N23*$E23,COUNTRY_INFO!N23*($E23-$D23)),IF(AND($E23<>0,$G23<>0),IF($F23=0,COUNTRY_INFO!N23*$G23,COUNTRY_INFO!N23*($G23-$D23)),0)),IF($G23="",COUNTRY_INFO!N23*$E23,COUNTRY_INFO!N23*$G23))) -> 118468 | I23: =IF(OR(COUNTRY_INFO!O23="Inconnu",COUNTRY_INFO!O23="Surveillance",COUNTRY_INFO!O23="Non requis",COUNTRY_INFO!O23=0),0,IF($E23<>0, IF($F23=0,COUNTRY_INFO!O23*$E23,COUNTRY_INFO!O23*($E23-$D23)),COUNTRY_INFO!O23*$E23)) -> 102622 | K23: =IF(OR(COUNTRY_INFO!P23="Inconnu",COUNTRY_INFO!P23="Surveillance",COUNTRY_INFO!P23="Non requis",COUNTRY_INFO!P23=0),0,IF(AND($E23<>0,$J23=""),IF($F23=0,COUNTRY_INFO!P23*$E23,COUNTRY_INFO!P23*($E23-$D23)), IF(AND($E23<>0,$J23<>0),IF($F23=0,COUNTRY_INFO!P23*$J23,COUNTRY_INFO!P23*($J23-$D23)), COUNTRY_INFO!P23*$J23))) -> 182607 | L23: 403697 | M23: 310130 | O23: 310130 | P23: 403697 | R23: 403697 | S23: 0 | U23: 0
A24: =IF(AND(INTRO!$E$37="Non endémique",INTRO!$E$41="Non endémique")," ",IF(COUNTRY_INFO!A24=0," ",COUNTRY_INFO!A24)) -> Guinée | B24: =IF(AND(INTRO!$E$37="Non endémique",INTRO!$E$41="Non endémique")," ",IF(COUNTRY_INFO!B24=0," ",COUNTRY_INFO!B24)) -> Kankan | C24: =IF(AND(INTRO!$E$37="Non endémique",INTRO!$E$41="Non endémique")," ",IF(COUNTRY_INFO!C24=0," ",COUNTRY_INFO!C24)) -> Kankan | D24: =IF(AND(INTRO!$E$37="Non endémique",INTRO!$E$41="Non endémique"),0,COUNTRY_INFO!V24) -> 1 | E24: =IF(AND(INTRO!$E$37="Non endémique",INTRO!$E$41="Non endémique"),0,COUNTRY_INFO!X24) -> 1 | F24: =IF(INTRO!$E$39="Non endémique",IF($D24=1,DEC!I24,0),IF($D24=1,IVM!G24,0)) -> 516294 | G24: 1 | H24: =IF(OR(COUNTRY_INFO!N24="Inconnu",COUNTRY_INFO!N24="Surveillance",COUNTRY_INFO!N24="Non requis",COUNTRY_INFO!N24=0),0,IF(INTRO!$E$39="Non endémique",IF(AND($E24<>0,$G24=""),IF($F24=0,COUNTRY_INFO!N24*$E24,COUNTRY_INFO!N24*($E24-$D24)),IF(AND($E24<>0,$G24<>0),IF($F24=0,COUNTRY_INFO!N24*$G24,COUNTRY_INFO!N24*($G24-$D24)),0)),IF($G24="",COUNTRY_INFO!N24*$E24,COUNTRY_INFO!N24*$G24))) -> 98611 | I24: =IF(OR(COUNTRY_INFO!O24="Inconnu",COUNTRY_INFO!O24="Surveillance",COUNTRY_INFO!O24="Non requis",COUNTRY_INFO!O24=0),0,IF($E24<>0, IF($F24=0,COUNTRY_INFO!O24*$E24,COUNTRY_INFO!O24*($E24-$D24)),COUNTRY_INFO!O24*$E24)) -> 0 | K24: =IF(OR(COUNTRY_INFO!P24="Inconnu",COUNTRY_INFO!P24="Surveillance",COUNTRY_INFO!P24="Non requis",COUNTRY_INFO!P24=0),0,IF(AND($E24<>0,$J24=""),IF($F24=0,COUNTRY_INFO!P24*$E24,COUNTRY_INFO!P24*($E24-$D24)), IF(AND($E24<>0,$J24<>0),IF($F24=0,COUNTRY_INFO!P24*$J24,COUNTRY_INFO!P24*($J24-$D24)), COUNTRY_INFO!P24*$J24))) -> 0 | L24: 98611 | M24: 516294 | O24: 516294 | P24: 98611 | R24: 98611 | S24: 0 | U24: 0
A25: =IF(AND(INTRO!$E$37="Non endémique",INTRO!$E$41="Non endémique")," ",IF(COUNTRY_INFO!A25=0," ",COUNTRY_INFO!A25)) -> Guinée | B25: =IF(AND(INTRO!$E$37="Non endémique",INTRO!$E$41="Non endémique")," ",IF(COUNTRY_INFO!B25=0," ",COUNTRY_INFO!B25)) -> Kankan | C25: =IF(AND(INTRO!$E$37="Non endémique",INTRO!$E$41="Non endémique")," ",IF(COUNTRY_INFO!C25=0," ",COUNTRY_INFO!C25)) -> Kerouane | D25: =IF(AND(INTRO!$E$37="Non endémique",INTRO!$E$41="Non endémique"),0,COUNTRY_INFO!V25) -> 0 | E25: =IF(AND(INTRO!$E$37="Non endémique",INTRO!$E$41="Non endémique"),0,COUNTRY_INFO!X25) -> 1 | F25: =IF(INTRO!$E$39="Non endémique",IF($D25=1,DEC!I25,0),IF($D25=1,IVM!G25,0)) -> 0 | G25: 1 | H25: =IF(OR(COUNTRY_INFO!N25="Inconnu",COUNTRY_INFO!N25="Surveillance",COUNTRY_INFO!N25="Non requis",COUNTRY_INFO!N25=0),0,IF(INTRO!$E$39="Non endémique",IF(AND($E25<>0,$G25=""),IF($F25=0,COUNTRY_INFO!N25*$E25,COUNTRY_INFO!N25*($E25-$D25)),IF(AND($E25<>0,$G25<>0),IF($F25=0,COUNTRY_INFO!N25*$G25,COUNTRY_INFO!N25*($G25-$D25)),0)),IF($G25="",COUNTRY_INFO!N25*$E25,COUNTRY_INFO!N25*$G25))) -> 43400 | I25: =IF(OR(COUNTRY_INFO!O25="Inconnu",COUNTRY_INFO!O25="Surveillance",COUNTRY_INFO!O25="Non requis",COUNTRY_INFO!O25=0),0,IF($E25<>0, IF($F25=0,COUNTRY_INFO!O25*$E25,COUNTRY_INFO!O25*($E25-$D25)),COUNTRY_INFO!O25*$E25)) -> 75190 | K25: =IF(OR(COUNTRY_INFO!P25="Inconnu",COUNTRY_INFO!P25="Surveillance",COUNTRY_INFO!P25="Non requis",COUNTRY_INFO!P25=0),0,IF(AND($E25<>0,$J25=""),IF($F25=0,COUNTRY_INFO!P25*$E25,COUNTRY_INFO!P25*($E25-$D25)), IF(AND($E25<>0,$J25<>0),IF($F25=0,COUNTRY_INFO!P25*$J25,COUNTRY_INFO!P25*($J25-$D25)), COUNTRY_INFO!P25*$J25))) -> 133794 | L25: 252384 | M25: 0 | O25: 0 | P25: 252384 | R25: 252384 | S25: 0 | U25: 0
A26: =IF(AND(INTRO!$E$37="Non endémique",INTRO!$E$41="Non endémique")," ",IF(COUNTRY_INFO!A26=0," ",COUNTRY_INFO!A26)) -> Guinée | B26: =IF(AND(INTRO!$E$37="Non endémique",INTRO!$E$41="Non endémique")," ",IF(COUNTRY_INFO!B26=0," ",COUNTRY_INFO!B26)) -> Kankan | C26: =IF(AND(INTRO!$E$37="Non endémique",INTRO!$E$41="Non endémique")," ",IF(COUNTRY_INFO!C26=0," ",COUNTRY_INFO!C26)) -> Kouroussa | D26: =IF(AND(INTRO!$E$37="Non endémique",INTRO!$E$41="Non endémique"),0,COUNTRY_INFO!V26) -> 1 | E26: =IF(AND(INTRO!$E$37="Non endémique",INTRO!$E$41="Non endémique"),0,COUNTRY_INFO!X26) -> 1 | F26: =IF(INTRO!$E$39="Non endémique",IF($D26=1,DEC!I26,0),IF($D26=1,IVM!G26,0)) -> 293864 | G26: 1 | H26: =IF(OR(COUNTRY_INFO!N26="Inconnu",COUNTRY_INFO!N26="Surveillance",COUNTRY_INFO!N26="Non requis",COUNTRY_INFO!N26=0),0,IF(INTRO!$E$39="Non endémique",IF(AND($E26<>0,$G26=""),IF($F26=0,COUNTRY_INFO!N26*$E26,COUNTRY_INFO!N26*($E26-$D26)),IF(AND($E26<>0,$G26<>0),IF($F26=0,COUNTRY_INFO!N26*$G26,COUNTRY_INFO!N26*($G26-$D26)),0)),IF($G26="",COUNTRY_INFO!N26*$E26,COUNTRY_INFO!N26*$G26))) -> 56127 | I26: =IF(OR(COUNTRY_INFO!O26="Inconnu",COUNTRY_INFO!O26="Surveillance",COUNTRY_INFO!O26="Non requis",COUNTRY_INFO!O26=0),0,IF($E26<>0, IF($F26=0,COUNTRY_INFO!O26*$E26,COUNTRY_INFO!O26*($E26-$D26)),COUNTRY_INFO!O26*$E26)) -> 0 | K26: =IF(OR(COUNTRY_INFO!P26="Inconnu",COUNTRY_INFO!P26="Surveillance",COUNTRY_INFO!P26="Non requis",COUNTRY_INFO!P26=0),0,IF(AND($E26<>0,$J26=""),IF($F26=0,COUNTRY_INFO!P26*$E26,COUNTRY_INFO!P26*($E26-$D26)), IF(AND($E26<>0,$J26<>0),IF($F26=0,COUNTRY_INFO!P26*$J26,COUNTRY_INFO!P26*($J26-$D26)), COUNTRY_INFO!P26*$J26))) -> 0 | L26: 56127 | M26: 293864 | O26: 293864 | P26: 56127 | R26: 56127 | S26: 0 | U26: 0
A27: =IF(AND(INTRO!$E$37="Non endémique",INTRO!$E$41="Non endémique")," ",IF(COUNTRY_INFO!A27=0," ",COUNTRY_INFO!A27)) -> Guinée | B27: =IF(AND(INTRO!$E$37="Non endémique",INTRO!$E$41="Non endémique")," ",IF(COUNTRY_INFO!B27=0," ",COUNTRY_INFO!B27)) -> Kankan | C27: =IF(AND(INTRO!$E$37="Non endémique",INTRO!$E$41="Non endémique")," ",IF(COUNTRY_INFO!C27=0," ",COUNTRY_INFO!C27)) -> Mandiana | D27: =IF(AND(INTRO!$E$37="Non endémique",INTRO!$E$41="Non endémique"),0,COUNTRY_INFO!V27) -> 0 | E27: =IF(AND(INTRO!$E$37="Non endémique",INTRO!$E$41="Non endémique"),0,COUNTRY_INFO!X27) -> 1 | F27: =IF(INTRO!$E$39="Non endémique",IF($D27=1,DEC!I27,0),IF($D27=1,IVM!G27,0)) -> 0 | G27: 1 | H27: =IF(OR(COUNTRY_INFO!N27="Inconnu",COUNTRY_INFO!N27="Surveillance",COUNTRY_INFO!N27="Non requis",COUNTRY_INFO!N27=0),0,IF(INTRO!$E$39="Non endémique",IF(AND($E27<>0,$G27=""),IF($F27=0,COUNTRY_INFO!N27*$E27,COUNTRY_INFO!N27*($E27-$D27)),IF(AND($E27<>0,$G27<>0),IF($F27=0,COUNTRY_INFO!N27*$G27,COUNTRY_INFO!N27*($G27-$D27)),0)),IF($G27="",COUNTRY_INFO!N27*$E27,COUNTRY_INFO!N27*$G27))) -> 70252 | I27: =IF(OR(COUNTRY_INFO!O27="Inconnu",COUNTRY_INFO!O27="Surveillance",COUNTRY_INFO!O27="Non requis",COUNTRY_INFO!O27=0),0,IF($E27<>0, IF($F27=0,COUNTRY_INFO!O27*$E27,COUNTRY_INFO!O27*($E27-$D27)),COUNTRY_INFO!O27*$E27)) -> 121710 | K27: =IF(OR(COUNTRY_INFO!P27="Inconnu",COUNTRY_INFO!P27="Surveillance",COUNTRY_INFO!P27="Non requis",COUNTRY_INFO!P27=0),0,IF(AND($E27<>0,$J27=""),IF($F27=0,COUNTRY_INFO!P27*$E27,COUNTRY_INFO!P27*($E27-$D27)), IF(AND($E27<>0,$J27<>0),IF($F27=0,COUNTRY_INFO!P27*$J27,COUNTRY_INFO!P27*($J27-$D27)), COUNTRY_INFO!P27*$J27))) -> 216572 | L27: 408534 | M27: 0 | O27: 0 | P27: 408534 | R27: 408534 | S27: 0 | U27: 0
A28: =IF(AND(INTRO!$E$37="Non endémique",INTRO!$E$41="Non endémique")," ",IF(COUNTRY_INFO!A28=0," ",COUNTRY_INFO!A28)) -> Guinée | B28: =IF(AND(INTRO!$E$37="Non endémique",INTRO!$E$41="Non endémique")," ",IF(COUNTRY_INFO!B28=0," ",COUNTRY_INFO!B28)) -> Kankan | C28: =IF(AND(INTRO!$E$37="Non endémique",INTRO!$E$41="Non endémique")," ",IF(COUNTRY_INFO!C28=0," ",COUNTRY_INFO!C28)) -> Siguiri | D28: =IF(AND(INTRO!$E$37="Non endémique",INTRO!$E$41="Non endémique"),0,COUNTRY_INFO!V28) -> 1 | E28: =IF(AND(INTRO!$E$37="Non endémique",INTRO!$E$41="Non endémique"),0,COUNTRY_INFO!X28) -> 0 | F28: =IF(INTRO!$E$39="Non endémique",IF($D28=1,DEC!I28,0),IF($D28=1,IVM!G28,0)) -> 741828 | G28: 0 | H28: =IF(OR(COUNTRY_INFO!N28="Inconnu",COUNTRY_INFO!N28="Surveillance",COUNTRY_INFO!N28="Non requis",COUNTRY_INFO!N28=0),0,IF(INTRO!$E$39="Non endémique",IF(AND($E28<>0,$G28=""),IF($F28=0,COUNTRY_INFO!N28*$E28,COUNTRY_INFO!N28*($E28-$D28)),IF(AND($E28<>0,$G28<>0),IF($F28=0,COUNTRY_INFO!N28*$G28,COUNTRY_INFO!N28*($G28-$D28)),0)),IF($G28="",COUNTRY_INFO!N28*$E28,COUNTRY_INFO!N28*$G28))) -> 0 | I28: =IF(OR(COUNTRY_INFO!O28="Inconnu",COUNTRY_INFO!O28="Surveillance",COUNTRY_INFO!O28="Non requis",COUNTRY_INFO!O28=0),0,IF($E28<>0, IF($F28=0,COUNTRY_INFO!O28*$E28,COUNTRY_INFO!O28*($E28-$D28)),COUNTRY_INFO!O28*$E28)) -> 0 | K28: =IF(OR(COUNTRY_INFO!P28="Inconnu",COUNTRY_INFO!P28="Surveillance",COUNTRY_INFO!P28="Non requis",COUNTRY_INFO!P28=0),0,IF(AND($E28<>0,$J28=""),IF($F28=0,COUNTRY_INFO!P28*$E28,COUNTRY_INFO!P28*($E28-$D28)), IF(AND($E28<>0,$J28<>0),IF($F28=0,COUNTRY_INFO!P28*$J28,COUNTRY_INFO!P28*($J28-$D28)), COUNTRY_INFO!P28*$J28))) -> 0 | L28: 0 | M28: 741828 | O28: 741828 | P28: 0 | R28: 0 | S28: 0 | U28: 0
A29: =IF(AND(INTRO!$E$37="Non endémique",INTRO!$E$41="Non endémique")," ",IF(COUNTRY_INFO!A29=0," ",COUNTRY_INFO!A29)) -> Guinée | B29: =IF(AND(INTRO!$E$37="Non endémique",INTRO!$E$41="Non endémique")," ",IF(COUNTRY_INFO!B29=0," ",COUNTRY_INFO!B29)) -> Kindia | C29: =IF(AND(INTRO!$E$37="Non endémique",INTRO!$E$41="Non endémique")," ",IF(COUNTRY_INFO!C29=0," ",COUNTRY_INFO!C29)) -> Coyah | D29: =IF(AND(INTRO!$E$37="Non endémique",INTRO!$E$41="Non endémique"),0,COUNTRY_INFO!V29) -> 0 | E29: =IF(AND(INTRO!$E$37="Non endémique",INTRO!$E$41="Non endémique"),0,COUNTRY_INFO!X29) -> 0 | F29: =IF(INTRO!$E$39="Non endémique",IF($D29=1,DEC!I29,0),IF($D29=1,IVM!G29,0)) -> 0 | G29: 0 | H29: =IF(OR(COUNTRY_INFO!N29="Inconnu",COUNTRY_INFO!N29="Surveillance",COUNTRY_INFO!N29="Non requis",COUNTRY_INFO!N29=0),0,IF(INTRO!$E$39="Non endémique",IF(AND($E29<>0,$G29=""),IF($F29=0,COUNTRY_INFO!N29*$E29,COUNTRY_INFO!N29*($E29-$D29)),IF(AND($E29<>0,$G29<>0),IF($F29=0,COUNTRY_INFO!N29*$G29,COUNTRY_INFO!N29*($G29-$D29)),0)),IF($G29="",COUNTRY_INFO!N29*$E29,COUNTRY_INFO!N29*$G29))) -> 0 | I29: =IF(OR(COUNTRY_INFO!O29="Inconnu",COUNTRY_INFO!O29="Surveillance",COUNTRY_INFO!O29="Non requis",COUNTRY_INFO!O29=0),0,IF($E29<>0, IF($F29=0,COUNTRY_INFO!O29*$E29,COUNTRY_INFO!O29*($E29-$D29)),COUNTRY_INFO!O29*$E29)) -> 0 | K29: =IF(OR(COUNTRY_INFO!P29="Inconnu",COUNTRY_INFO!P29="Surveillance",COUNTRY_INFO!P29="Non requis",COUNTRY_INFO!P29=0),0,IF(AND($E29<>0,$J29=""),IF($F29=0,COUNTRY_INFO!P29*$E29,COUNTRY_INFO!P29*($E29-$D29)), IF(AND($E29<>0,$J29<>0),IF($F29=0,COUNTRY_INFO!P29*$J29,COUNTRY_INFO!P29*($J29-$D29)), COUNTRY_INFO!P29*$J29))) -> 0 | L29: 0 | M29: 0 | O29: 0 | P29: 0 | R29: 0 | S29: 0 | U29: 0
A30: =IF(AND(INTRO!$E$37="Non endémique",INTRO!$E$41="Non endémique")," ",IF(COUNTRY_INFO!A30=0," ",COUNTRY_INFO!A30)) -> Guinée | B30: =IF(AND(INTRO!$E$37="Non endémique",INTRO!$E$41="Non endémique")," ",IF(COUNTRY_INFO!B30=0," ",COUNTRY_INFO!B30)) -> Kindia | C30: =IF(AND(INTRO!$E$37="Non endémique",INTRO!$E$41="Non endémique")," ",IF(COUNTRY_INFO!C30=0," ",COUNTRY_INFO!C30)) -> Dubreka | D30: =IF(AND(INTRO!$E$37="Non endémique",INTRO!$E$41="Non endémique"),0,COUNTRY_INFO!V30) -> 0 | E30: =IF(AND(INTRO!$E$37="Non endémique",INTRO!$E$41="Non endémique"),0,COUNTRY_INFO!X30) -> 0 | F30: =IF(INTRO!$E$39="Non endémique",IF($D30=1,DEC!I30,0),IF($D30=1,IVM!G30,0)) -> 0 | G30: 0 | H30: =IF(OR(COUNTRY_INFO!N30="Inconnu",COUNTRY_INFO!N30="Surveillance",COUNTRY_INFO!N30="Non requis",COUNTRY_INFO!N30=0),0,IF(INTRO!$E$39="Non endémique",IF(AND($E30<>0,$G30=""),IF($F30=0,COUNTRY_INFO!N30*$E30,COUNTRY_INFO!N30*($E30-$D30)),IF(AND($E30<>0,$G30<>0),IF($F30=0,COUNTRY_INFO!N30*$G30,COUNTRY_INFO!N30*($G30-$D30)),0)),IF($G30="",COUNTRY_INFO!N30*$E30,COUNTRY_INFO!N30*$G30))) -> 0 | I30: =IF(OR(COUNTRY_INFO!O30="Inconnu",COUNTRY_INFO!O30="Surveillance",COUNTRY_INFO!O30="Non requis",COUNTRY_INFO!O30=0),0,IF($E30<>0, IF($F30=0,COUNTRY_INFO!O30*$E30,COUNTRY_INFO!O30*($E30-$D30)),COUNTRY_INFO!O30*$E30)) -> 0 | K30: =IF(OR(COUNTRY_INFO!P30="Inconnu",COUNTRY_INFO!P30="Surveillance",COUNTRY_INFO!P30="Non requis",COUNTRY_INFO!P30=0),0,IF(AND($E30<>0,$J30=""),IF($F30=0,COUNTRY_INFO!P30*$E30,COUNTRY_INFO!P30*($E30-$D30)), IF(AND($E30<>0,$J30<>0),IF($F30=0,COUNTRY_INFO!P30*$J30,COUNTRY_INFO!P30*($J30-$D30)), COUNTRY_INFO!P30*$J30))) -> 0 | L30: 0 | M30: 0 | O30: 0 | P30: 0 | R30: 0 | S30: 0 | U30: 0
A31: =IF(AND(INTRO!$E$37="Non endémique",INTRO!$E$41="Non endémique")," ",IF(COUNTRY_INFO!A31=0," ",COUNTRY_INFO!A31)) -> Guinée | B31: =IF(AND(INTRO!$E$37="Non endémique",INTRO!$E$41="Non endémique")," ",IF(COUNTRY_INFO!B31=0," ",COUNTRY_INFO!B31)) -> Kindia | C31: =IF(AND(INTRO!$E$37="Non endémique",INTRO!$E$41="Non endémique")," ",IF(COUNTRY_INFO!C31=0," ",COUNTRY_INFO!C31)) -> Forecariah | D31: =IF(AND(INTRO!$E$37="Non endémique",INTRO!$E$41="Non endémique"),0,COUNTRY_INFO!V31) -> 0 | E31: =IF(AND(INTRO!$E$37="Non endémique",INTRO!$E$41="Non endémique"),0,COUNTRY_INFO!X31) -> 2 | F31: =IF(INTRO!$E$39="Non endémique",IF($D31=1,DEC!I31,0),IF($D31=1,IVM!G31,0)) -> 0 | G31: 2 | H31: =IF(OR(COUNTRY_INFO!N31="Inconnu",COUNTRY_INFO!N31="Surveillance",COUNTRY_INFO!N31="Non requis",COUNTRY_INFO!N31=0),0,IF(INTRO!$E$39="Non endémique",IF(AND($E31<>0,$G31=""),IF($F31=0,COUNTRY_INFO!N31*$E31,COUNTRY_INFO!N31*($E31-$D31)),IF(AND($E31<>0,$G31<>0),IF($F31=0,COUNTRY_INFO!N31*$G31,COUNTRY_INFO!N31*($G31-$D31)),0)),IF($G31="",COUNTRY_INFO!N31*$E31,COUNTRY_INFO!N31*$G31))) -> 101508 | I31: =IF(OR(COUNTRY_INFO!O31="Inconnu",COUNTRY_INFO!O31="Surveillance",COUNTRY_INFO!O31="Non requis",COUNTRY_INFO!O31=0),0,IF($E31<>0, IF($F31=0,COUNTRY_INFO!O31*$E31,COUNTRY_INFO!O31*($E31-$D31)),COUNTRY_INFO!O31*$E31)) -> 175862 | K31: =IF(OR(COUNTRY_INFO!P31="Inconnu",COUNTRY_INFO!P31="Surveillance",COUNTRY_INFO!P31="Non requis",COUNTRY_INFO!P31=0),0,IF(AND($E31<>0,$J31=""),IF($F31=0,COUNTRY_INFO!P31*$E31,COUNTRY_INFO!P31*($E31-$D31)), IF(AND($E31<>0,$J31<>0),IF($F31=0,COUNTRY_INFO!P31*$J31,COUNTRY_INFO!P31*($J31-$D31)), COUNTRY_INFO!P31*$J31))) -> 312932 | L31: 590302 | M31: 0 | O31: 0 | P31: 590302 | R31: 590302 | S31: 0 | U31: 0
A32: =IF(AND(INTRO!$E$37="Non endémique",INTRO!$E$41="Non endémique")," ",IF(COUNTRY_INFO!A32=0," ",COUNTRY_INFO!A32)) -> Guinée | B32: =IF(AND(INTRO!$E$37="Non endémique",INTRO!$E$41="Non endémique")," ",IF(COUNTRY_INFO!B32=0," ",COUNTRY_INFO!B32)) -> Kindia | C32: =IF(AND(INTRO!$E$37="Non endémique",INTRO!$E$41="Non endémique")," ",IF(COUNTRY_INFO!C32=0," ",COUNTRY_INFO!C32)) -> Kindia | D32: =IF(AND(INTRO!$E$37="Non endémique",INTRO!$E$41="Non endémique"),0,COUNTRY_INFO!V32) -> 0 | E32: =IF(AND(INTRO!$E$37="Non endémique",INTRO!$E$41="Non endémique"),0,COUNTRY_INFO!X32) -> 1 | F32: =IF(INTRO!$E$39="Non endémique",IF($D32=1,DEC!I32,0),IF($D32=1,IVM!G32,0)) -> 0 | G32: 1 | H32: =IF(OR(COUNTRY_INFO!N32="Inconnu",COUNTRY_INFO!N32="Surveillance",COUNTRY_INFO!N32="Non requis",COUNTRY_INFO!N32=0),0,IF(INTRO!$E$39="Non endémique",IF(AND($E32<>0,$G32=""),IF($F32=0,COUNTRY_INFO!N32*$E32,COUNTRY_INFO!N32*($E32-$D32)),IF(AND($E32<>0,$G32<>0),IF($F32=0,COUNTRY_INFO!N32*$G32,COUNTRY_INFO!N32*($G32-$D32)),0)),IF($G32="",COUNTRY_INFO!N32*$E32,COUNTRY_INFO!N32*$G32))) -> 91791 | I32: =IF(OR(COUNTRY_INFO!O32="Inconnu",COUNTRY_INFO!O32="Surveillance",COUNTRY_INFO!O32="Non requis",COUNTRY_INFO!O32=0),0,IF($E32<>0, IF($F32=0,COUNTRY_INFO!O32*$E32,COUNTRY_INFO!O32*($E32-$D32)),COUNTRY_INFO!O32*$E32)) -> 159026 | K32: =IF(OR(COUNTRY_INFO!P32="Inconnu",COUNTRY_INFO!P32="Surveillance",COUNTRY_INFO!P32="Non requis",COUNTRY_INFO!P32=0),0,IF(AND($E32<>0,$J32=""),IF($F32=0,COUNTRY_INFO!P32*$E32,COUNTRY_INFO!P32*($E32-$D32)), IF(AND($E32<>0,$J32<>0),IF($F32=0,COUNTRY_INFO!P32*$J32,COUNTRY_INFO!P32*($J32-$D32)), COUNTRY_INFO!P32*$J32))) -> 282973 | L32: 533790 | M32: 0 | O32: 0 | P32: 533790 | R32: 533790 | S32: 0 | U32: 0
A33: =IF(AND(INTRO!$E$37="Non endémique",INTRO!$E$41="Non endémique")," ",IF(COUNTRY_INFO!A33=0," ",COUNTRY_INFO!A33)) -> Guinée | B33: =IF(AND(INTRO!$E$37="Non endémique",INTRO!$E$41="Non endémique")," ",IF(COUNTRY_INFO!B33=0," ",COUNTRY_INFO!B33)) -> Kindia | C33: =IF(AND(INTRO!$E$37="Non endémique",INTRO!$E$41="Non endémique")," ",IF(COUNTRY_INFO!C33=0," ",COUNTRY_INFO!C33)) -> Telimele | D33: =IF(AND(INTRO!$E$37="Non endémique",INTRO!$E$41="Non endémique"),0,COUNTRY_INFO!V33) -> 0 | E33: =IF(AND(INTRO!$E$37="Non endémique",INTRO!$E$41="Non endémique"),0,COUNTRY_INFO!X33) -> 1 | F33: =IF(INTRO!$E$39="Non endémique",IF($D33=1,DEC!I33,0),IF($D33=1,IVM!G33,0)) -> 0 | G33: 1 | H33: =IF(OR(COUNTRY_INFO!N33="Inconnu",COUNTRY_INFO!N33="Surveillance",COUNTRY_INFO!N33="Non requis",COUNTRY_INFO!N33=0),0,IF(INTRO!$E$39="Non endémique",IF(AND($E33<>0,$G33=""),IF($F33=0,COUNTRY_INFO!N33*$E33,COUNTRY_INFO!N33*($E33-$D33)),IF(AND($E33<>0,$G33<>0),IF($F33=0,COUNTRY_INFO!N33*$G33,COUNTRY_INFO!N33*($G33-$D33)),0)),IF($G33="",COUNTRY_INFO!N33*$E33,COUNTRY_INFO!N33*$G33))) -> 59453 | I33: =IF(OR(COUNTRY_INFO!O33="Inconnu",COUNTRY_INFO!O33="Surveillance",COUNTRY_INFO!O33="Non requis",COUNTRY_INFO!O33=0),0,IF($E33<>0, IF($F33=0,COUNTRY_INFO!O33*$E33,COUNTRY_INFO!O33*($E33-$D33)),COUNTRY_INFO!O33*$E33)) -> 103001 | K33: =IF(OR(COUNTRY_INFO!P33="Inconnu",COUNTRY_INFO!P33="Surveillance",COUNTRY_INFO!P33="Non requis",COUNTRY_INFO!P33=0),0,IF(AND($E33<>0,$J33=""),IF($F33=0,COUNTRY_INFO!P33*$E33,COUNTRY_INFO!P33*($E33-$D33)), IF(AND($E33<>0,$J33<>0),IF($F33=0,COUNTRY_INFO!P33*$J33,COUNTRY_INFO!P33*($J33-$D33)), COUNTRY_INFO!P33*$J33))) -> 183282 | L33: 345736 | M33: 0 | O33: 0 | P33: 345736 | R33: 345736 | S33: 0 | U33: 0
A34: =IF(AND(INTRO!$E$37="Non endémique",INTRO!$E$41="Non endémique")," ",IF(COUNTRY_INFO!A34=0," ",COUNTRY_INFO!A34)) -> Guinée | B34: =IF(AND(INTRO!$E$37="Non endémique",INTRO!$E$41="Non endémique")," ",IF(COUNTRY_INFO!B34=0," ",COUNTRY_INFO!B34)) -> Labe | C34: =IF(AND(INTRO!$E$37="Non endémique",INTRO!$E$41="Non endémique")," ",IF(COUNTRY_INFO!C34=0," ",COUNTRY_INFO!C34)) -> Koubia | D34: =IF(AND(INTRO!$E$37="Non endémique",INTRO!$E$41="Non endémique"),0,COUNTRY_INFO!V34) -> 0 | E34: =IF(AND(INTRO!$E$37="Non endémique",INTRO!$E$41="Non endémique"),0,COUNTRY_INFO!X34) -> 0 | F34: =IF(INTRO!$E$39="Non endémique",IF($D34=1,DEC!I34,0),IF($D34=1,IVM!G34,0)) -> 0 | G34: 0 | H34: =IF(OR(COUNTRY_INFO!N34="Inconnu",COUNTRY_INFO!N34="Surveillance",COUNTRY_INFO!N34="Non requis",COUNTRY_INFO!N34=0),0,IF(INTRO!$E$39="Non endémique",IF(AND($E34<>0,$G34=""),IF($F34=0,COUNTRY_INFO!N34*$E34,COUNTRY_INFO!N34*($E34-$D34)),IF(AND($E34<>0,$G34<>0),IF($F34=0,COUNTRY_INFO!N34*$G34,COUNTRY_INFO!N34*($G34-$D34)),0)),IF($G34="",COUNTRY_INFO!N34*$E34,COUNTRY_INFO!N34*$G34))) -> 0 | I34: =IF(OR(COUNTRY_INFO!O34="Inconnu",COUNTRY_INFO!O34="Surveillance",COUNTRY_INFO!O34="Non requis",COUNTRY_INFO!O34=0),0,IF($E34<>0, IF($F34=0,COUNTRY_INFO!O34*$E34,COUNTRY_INFO!O34*($E34-$D34)),COUNTRY_INFO!O34*$E34)) -> 0 | K34: =IF(OR(COUNTRY_INFO!P34="Inconnu",COUNTRY_INFO!P34="Surveillance",COUNTRY_INFO!P34="Non requis",COUNTRY_INFO!P34=0),0,IF(AND($E34<>0,$J34=""),IF($F34=0,COUNTRY_INFO!P34*$E34,COUNTRY_INFO!P34*($E34-$D34)), IF(AND($E34<>0,$J34<>0),IF($F34=0,COUNTRY_INFO!P34*$J34,COUNTRY_INFO!P34*($J34-$D34)), COUNTRY_INFO!P34*$J34))) -> 0 | L34: 0 | M34: 0 | O34: 0 | P34: 0 | R34: 0 | S34: 0 | U34: 0
A35: =IF(AND(INTRO!$E$37="Non endémique",INTRO!$E$41="Non endémique")," ",IF(COUNTRY_INFO!A35=0," ",COUNTRY_INFO!A35)) -> Guinée | B35: =IF(AND(INTRO!$E$37="Non endémique",INTRO!$E$41="Non endémique")," ",IF(COUNTRY_INFO!B35=0," ",COUNTRY_INFO!B35)) -> Labe | C35: =IF(AND(INTRO!$E$37="Non endémique",INTRO!$E$41="Non endémique")," ",IF(COUNTRY_INFO!C35=0," ",COUNTRY_INFO!C35)) -> Labe | D35: =IF(AND(INTRO!$E$37="Non endémique",INTRO!$E$41="Non endémique"),0,COUNTRY_INFO!V35) -> 0 | E35: =IF(AND(INTRO!$E$37="Non endémique",INTRO!$E$41="Non endémique"),0,COUNTRY_INFO!X35) -> 0 | F35: =IF(INTRO!$E$39="Non endémique",IF($D35=1,DEC!I35,0),IF($D35=1,IVM!G35,0)) -> 0 | G35: 0 | H35: =IF(OR(COUNTRY_INFO!N35="Inconnu",COUNTRY_INFO!N35="Surveillance",COUNTRY_INFO!N35="Non requis",COUNTRY_INFO!N35=0),0,IF(INTRO!$E$39="Non endémique",IF(AND($E35<>0,$G35=""),IF($F35=0,COUNTRY_INFO!N35*$E35,COUNTRY_INFO!N35*($E35-$D35)),IF(AND($E35<>0,$G35<>0),IF($F35=0,COUNTRY_INFO!N35*$G35,COUNTRY_INFO!N35*($G35-$D35)),0)),IF($G35="",COUNTRY_INFO!N35*$E35,COUNTRY_INFO!N35*$G35))) -> 0 | I35: =IF(OR(COUNTRY_INFO!O35="Inconnu",COUNTRY_INFO!O35="Surveillance",COUNTRY_INFO!O35="Non requis",COUNTRY_INFO!O35=0),0,IF($E35<>0, IF($F35=0,COUNTRY_INFO!O35*$E35,COUNTRY_INFO!O35*($E35-$D35)),COUNTRY_INFO!O35*$E35)) -> 0 | K35: =IF(OR(COUNTRY_INFO!P35="Inconnu",COUNTRY_INFO!P35="Surveillance",COUNTRY_INFO!P35="Non requis",COUNTRY_INFO!P35=0),0,IF(AND($E35<>0,$J35=""),IF($F35=0,COUNTRY_INFO!P35*$E35,COUNTRY_INFO!P35*($E35-$D35)), IF(AND($E35<>0,$J35<>0),IF($F35=0,COUNTRY_INFO!P35*$J35,COUNTRY_INFO!P35*($J35-$D35)), COUNTRY_INFO!P35*$J35))) -> 0 | L35: 0 | M35: 0 | O35: 0 | P35: 0 | R35: 0 | S35: 0 | U35: 0
A36: =IF(AND(INTRO!$E$37="Non endémique",INTRO!$E$41="Non endémique")," ",IF(COUNTRY_INFO!A36=0," ",COUNTRY_INFO!A36)) -> Guinée | B36: =IF(AND(INTRO!$E$37="Non endémique",INTRO!$E$41="Non endémique")," ",IF(COUNTRY_INFO!B36=0," ",COUNTRY_INFO!B36)) -> Labe | C36: =IF(AND(INTRO!$E$37="Non endémique",INTRO!$E$41="Non endémique")," ",IF(COUNTRY_INFO!C36=0," ",COUNTRY_INFO!C36)) -> Lelouma | D36: =IF(AND(INTRO!$E$37="Non endémique",INTRO!$E$41="Non endémique"),0,COUNTRY_INFO!V36) -> 1 | E36: =IF(AND(INTRO!$E$37="Non endémique",INTRO!$E$41="Non endémique"),0,COUNTRY_INFO!X36) -> 2 | F36: =IF(INTRO!$E$39="Non endémique",IF($D36=1,DEC!I36,0),IF($D36=1,IVM!G36,0)) -> 178335 | G36: 2 | H36: =IF(OR(COUNTRY_INFO!N36="Inconnu",COUNTRY_INFO!N36="Surveillance",COUNTRY_INFO!N36="Non requis",COUNTRY_INFO!N36=0),0,IF(INTRO!$E$39="Non endémique",IF(AND($E36<>0,$G36=""),IF($F36=0,COUNTRY_INFO!N36*$E36,COUNTRY_INFO!N36*($E36-$D36)),IF(AND($E36<>0,$G36<>0),IF($F36=0,COUNTRY_INFO!N36*$G36,COUNTRY_INFO!N36*($G36-$D36)),0)),IF($G36="",COUNTRY_INFO!N36*$E36,COUNTRY_INFO!N36*$G36))) -> 68124 | I36: =IF(OR(COUNTRY_INFO!O36="Inconnu",COUNTRY_INFO!O36="Surveillance",COUNTRY_INFO!O36="Non requis",COUNTRY_INFO!O36=0),0,IF($E36<>0, IF($F36=0,COUNTRY_INFO!O36*$E36,COUNTRY_INFO!O36*($E36-$D36)),COUNTRY_INFO!O36*$E36)) -> 59011 | K36: =IF(OR(COUNTRY_INFO!P36="Inconnu",COUNTRY_INFO!P36="Surveillance",COUNTRY_INFO!P36="Non requis",COUNTRY_INFO!P36=0),0,IF(AND($E36<>0,$J36=""),IF($F36=0,COUNTRY_INFO!P36*$E36,COUNTRY_INFO!P36*($E36-$D36)), IF(AND($E36<>0,$J36<>0),IF($F36=0,COUNTRY_INFO!P36*$J36,COUNTRY_INFO!P36*($J36-$D36)), COUNTRY_INFO!P36*$J36))) -> 105005 | L36: 232140 | M36: 178335 | O36: 178335 | P36: 232140 | R36: 232140 | S36: 0 | U36: 0
A37: =IF(AND(INTRO!$E$37="Non endémique",INTRO!$E$41="Non endémique")," ",IF(COUNTRY_INFO!A37=0," ",COUNTRY_INFO!A37)) -> Guinée | B37: =IF(AND(INTRO!$E$37="Non endémique",INTRO!$E$41="Non endémique")," ",IF(COUNTRY_INFO!B37=0," ",COUNTRY_INFO!B37)) -> Labe | C37: =IF(AND(INTRO!$E$37="Non endémique",INTRO!$E$41="Non endémique")," ",IF(COUNTRY_INFO!C37=0," ",COUNTRY_INFO!C37)) -> Mali | D37: =IF(AND(INTRO!$E$37="Non endémique",INTRO!$E$41="Non endémique"),0,COUNTRY_INFO!V37) -> 0 | E37: =IF(AND(INTRO!$E$37="Non endémique",INTRO!$E$41="Non endémique"),0,COUNTRY_INFO!X37) -> 0 | F37: =IF(INTRO!$E$39="Non endémique",IF($D37=1,DEC!I37,0),IF($D37=1,IVM!G37,0)) -> 0 | G37: 0 | H37: =IF(OR(COUNTRY_INFO!N37="Inconnu",COUNTRY_INFO!N37="Surveillance",COUNTRY_INFO!N37="Non requis",COUNTRY_INFO!N37=0),0,IF(INTRO!$E$39="Non endémique",IF(AND($E37<>0,$G37=""),IF($F37=0,COUNTRY_INFO!N37*$E37,COUNTRY_INFO!N37*($E37-$D37)),IF(AND($E37<>0,$G37<>0),IF($F37=0,COUNTRY_INFO!N37*$G37,COUNTRY_INFO!N37*($G37-$D37)),0)),IF($G37="",COUNTRY_INFO!N37*$E37,COUNTRY_INFO!N37*$G37))) -> 0 | I37: =IF(OR(COUNTRY_INFO!O37="Inconnu",COUNTRY_INFO!O37="Surveillance",COUNTRY_INFO!O37="Non requis",COUNTRY_INFO!O37=0),0,IF($E37<>0, IF($F37=0,COUNTRY_INFO!O37*$E37,COUNTRY_INFO!O37*($E37-$D37)),COUNTRY_INFO!O37*$E37)) -> 0 | K37: =IF(OR(COUNTRY_INFO!P37="Inconnu",COUNTRY_INFO!P37="Surveillance",COUNTRY_INFO!P37="Non requis",COUNTRY_INFO!P37=0),0,IF(AND($E37<>0,$J37=""),IF($F37=0,COUNTRY_INFO!P37*$E37,COUNTRY_INFO!P37*($E37-$D37)), IF(AND($E37<>0,$J37<>0),IF($F37=0,COUNTRY_INFO!P37*$J37,COUNTRY_INFO!P37*($J37-$D37)), COUNTRY_INFO!P37*$J37))) -> 0 | L37: 0 | M37: 0 | O37: 0 | P37: 0 | R37: 0 | S37: 0 | U37: 0
A38: =IF(AND(INTRO!$E$37="Non endémique",INTRO!$E$41="Non endémique")," ",IF(COUNTRY_INFO!A38=0," ",COUNTRY_INFO!A38)) -> Guinée | B38: =IF(AND(INTRO!$E$37="Non endémique",INTRO!$E$41="Non endémique")," ",IF(COUNTRY_INFO!B38=0," ",COUNTRY_INFO!B38)) -> Labe | C38: =IF(AND(INTRO!$E$37="Non endémique",INTRO!$E$41="Non endémique")," ",IF(COUNTRY_INFO!C38=0," ",COUNTRY_INFO!C38)) -> Tougue | D38: =IF(AND(INTRO!$E$37="Non endémique",INTRO!$E$41="Non endémique"),0,COUNTRY_INFO!V38) -> 1 | E38: =IF(AND(INTRO!$E$37="Non endémique",INTRO!$E$41="Non endémique"),0,COUNTRY_INFO!X38) -> 0 | F38: =IF(INTRO!$E$39="Non endémique",IF($D38=1,DEC!I38,0),IF($D38=1,IVM!G38,0)) -> 136071 | G38: 0 | H38: =IF(OR(COUNTRY_INFO!N38="Inconnu",COUNTRY_INFO!N38="Surveillance",COUNTRY_INFO!N38="Non requis",COUNTRY_INFO!N38=0),0,IF(INTRO!$E$39="Non endémique",IF(AND($E38<>0,$G38=""),IF($F38=0,COUNTRY_INFO!N38*$E38,COUNTRY_INFO!N38*($E38-$D38)),IF(AND($E38<>0,$G38<>0),IF($F38=0,COUNTRY_INFO!N38*$G38,COUNTRY_INFO!N38*($G38-$D38)),0)),IF($G38="",COUNTRY_INFO!N38*$E38,COUNTRY_INFO!N38*$G38))) -> 0 | I38: =IF(OR(COUNTRY_INFO!O38="Inconnu",COUNTRY_INFO!O38="Surveillance",COUNTRY_INFO!O38="Non requis",COUNTRY_INFO!O38=0),0,IF($E38<>0, IF($F38=0,COUNTRY_INFO!O38*$E38,COUNTRY_INFO!O38*($E38-$D38)),COUNTRY_INFO!O38*$E38)) -> 0 | K38: =IF(OR(COUNTRY_INFO!P38="Inconnu",COUNTRY_INFO!P38="Surveillance",COUNTRY_INFO!P38="Non requis",COUNTRY_INFO!P38=0),0,IF(AND($E38<>0,$J38=""),IF($F38=0,COUNTRY_INFO!P38*$E38,COUNTRY_INFO!P38*($E38-$D38)), IF(AND($E38<>0,$J38<>0),IF($F38=0,COUNTRY_INFO!P38*$J38,COUNTRY_INFO!P38*($J38-$D38)), COUNTRY_INFO!P38*$J38))) -> 0 | L38: 0 | M38: 136071 | O38: 136071 | P38: 0 | R38: 0 | S38: 0 | U38: 0
A39: =IF(AND(INTRO!$E$37="Non endémique",INTRO!$E$41="Non endémique")," ",IF(COUNTRY_INFO!A39=0," ",COUNTRY_INFO!A39)) -> Guinée | B39: =IF(AND(INTRO!$E$37="Non endémique",INTRO!$E$41="Non endémique")," ",IF(COUNTRY_INFO!B39=0," ",COUNTRY_INFO!B39)) -> Mamou | C39: =IF(AND(INTRO!$E$37="Non endémique",INTRO!$E$41="Non endémique")," ",IF(COUNTRY_INFO!C39=0," ",COUNTRY_INFO!C39)) -> Dalaba | D39: =IF(AND(INTRO!$E$37="Non endémique",INTRO!$E$41="Non endémique"),0,COUNTRY_INFO!V39) -> 0 | E39: =IF(AND(INTRO!$E$37="Non endémique",INTRO!$E$41="Non endémique"),0,COUNTRY_INFO!X39) -> 1 | F39: =IF(INTRO!$E$39="Non endémique",IF($D39=1,DEC!I39,0),IF($D39=1,IVM!G39,0)) -> 0 | G39: 1 | H39: =IF(OR(COUNTRY_INFO!N39="Inconnu",COUNTRY_INFO!N39="Surveillance",COUNTRY_INFO!N39="Non requis",COUNTRY_INFO!N39=0),0,IF(INTRO!$E$39="Non endémique",IF(AND($E39<>0,$G39=""),IF($F39=0,COUNTRY_INFO!N39*$E39,COUNTRY_INFO!N39*($E39-$D39)),IF(AND($E39<>0,$G39<>0),IF($F39=0,COUNTRY_INFO!N39*$G39,COUNTRY_INFO!N39*($G39-$D39)),0)),IF($G39="",COUNTRY_INFO!N39*$E39,COUNTRY_INFO!N39*$G39))) -> 27937 | I39: =IF(OR(COUNTRY_INFO!O39="Inconnu",COUNTRY_INFO!O39="Surveillance",COUNTRY_INFO!O39="Non requis",COUNTRY_INFO!O39=0),0,IF($E39<>0, IF($F39=0,COUNTRY_INFO!O39*$E39,COUNTRY_INFO!O39*($E39-$D39)),COUNTRY_INFO!O39*$E39)) -> 48401 | K39: =IF(OR(COUNTRY_INFO!P39="Inconnu",COUNTRY_INFO!P39="Surveillance",COUNTRY_INFO!P39="Non requis",COUNTRY_INFO!P39=0),0,IF(AND($E39<>0,$J39=""),IF($F39=0,COUNTRY_INFO!P39*$E39,COUNTRY_INFO!P39*($E39-$D39)), IF(AND($E39<>0,$J39<>0),IF($F39=0,COUNTRY_INFO!P39*$J39,COUNTRY_INFO!P39*($J39-$D39)), COUNTRY_INFO!P39*$J39))) -> 86125 | L39: 162463 | M39: 0 | O39: 0 | P39: 162463 | R39: 162463 | S39: 0 | U39: 0
A40: =IF(AND(INTRO!$E$37="Non endémique",INTRO!$E$41="Non endémique")," ",IF(COUNTRY_INFO!A40=0," ",COUNTRY_INFO!A40)) -> Guinée | B40: =IF(AND(INTRO!$E$37="Non endémique",INTRO!$E$41="Non endémique")," ",IF(COUNTRY_INFO!B40=0," ",COUNTRY_INFO!B40)) -> Mamou | C40: =IF(AND(INTRO!$E$37="Non endémique",INTRO!$E$41="Non endémique")," ",IF(COUNTRY_INFO!C40=0," ",COUNTRY_INFO!C40)) -> Mamou | D40: =IF(AND(INTRO!$E$37="Non endémique",INTRO!$E$41="Non endémique"),0,COUNTRY_INFO!V40) -> 1 | E40: =IF(AND(INTRO!$E$37="Non endémique",INTRO!$E$41="Non endémique"),0,COUNTRY_INFO!X40) -> 0 | F40: =IF(INTRO!$E$39="Non endémique",IF($D40=1,DEC!I40,0),IF($D40=1,IVM!G40,0)) -> 349048 | G40: 0 | H40: =IF(OR(COUNTRY_INFO!N40="Inconnu",COUNTRY_INFO!N40="Surveillance",COUNTRY_INFO!N40="Non requis",COUNTRY_INFO!N40=0),0,IF(INTRO!$E$39="Non endémique",IF(AND($E40<>0,$G40=""),IF($F40=0,COUNTRY_INFO!N40*$E40,COUNTRY_INFO!N40*($E40-$D40)),IF(AND($E40<>0,$G40<>0),IF($F40=0,COUNTRY_INFO!N40*$G40,COUNTRY_INFO!N40*($G40-$D40)),0)),IF($G40="",COUNTRY_INFO!N40*$E40,COUNTRY_INFO!N40*$G40))) -> 0 | I40: =IF(OR(COUNTRY_INFO!O40="Inconnu",COUNTRY_INFO!O40="Surveillance",COUNTRY_INFO!O40="Non requis",COUNTRY_INFO!O40=0),0,IF($E40<>0, IF($F40=0,COUNTRY_INFO!O40*$E40,COUNTRY_INFO!O40*($E40-$D40)),COUNTRY_INFO!O40*$E40)) -> 0 | K40: =IF(OR(COUNTRY_INFO!P40="Inconnu",COUNTRY_INFO!P40="Surveillance",COUNTRY_INFO!P40="Non requis",COUNTRY_INFO!P40=0),0,IF(AND($E40<>0,$J40=""),IF($F40=0,COUNTRY_INFO!P40*$E40,COUNTRY_INFO!P40*($E40-$D40)), IF(AND($E40<>0,$J40<>0),IF($F40=0,COUNTRY_INFO!P40*$J40,COUNTRY_INFO!P40*($J40-$D40)), COUNTRY_INFO!P40*$J40))) -> 0 | L40: 0 | M40: 349048 | O40: 349048 | P40: 0 | R40: 0 | S40: 0 | U40: 0
A41: =IF(AND(INTRO!$E$37="Non endémique",INTRO!$E$41="Non endémique")," ",IF(COUNTRY_INFO!A41=0," ",COUNTRY_INFO!A41)) -> Guinée | B41: =IF(AND(INTRO!$E$37="Non endémique",INTRO!$E$41="Non endémique")," ",IF(COUNTRY_INFO!B41=0," ",COUNTRY_INFO!B41)) -> Mamou | C41: =IF(AND(INTRO!$E$37="Non endémique",INTRO!$E$41="Non endémique")," ",IF(COUNTRY_INFO!C41=0," ",COUNTRY_INFO!C41)) -> Pita | D41: =IF(AND(INTRO!$E$37="Non endémique",INTRO!$E$41="Non endémique"),0,COUNTRY_INFO!V41) -> 1 | E41: =IF(AND(INTRO!$E$37="Non endémique",INTRO!$E$41="Non endémique"),0,COUNTRY_INFO!X41) -> 1 | F41: =IF(INTRO!$E$39="Non endémique",IF($D41=1,DEC!I41,0),IF($D41=1,IVM!G41,0)) -> 304309 | G41: 1 | H41: =IF(OR(COUNTRY_INFO!N41="Inconnu",COUNTRY_INFO!N41="Surveillance",COUNTRY_INFO!N41="Non requis",COUNTRY_INFO!N41=0),0,IF(INTRO!$E$39="Non endémique",IF(AND($E41<>0,$G41=""),IF($F41=0,COUNTRY_INFO!N41*$E41,COUNTRY_INFO!N41*($E41-$D41)),IF(AND($E41<>0,$G41<>0),IF($F41=0,COUNTRY_INFO!N41*$G41,COUNTRY_INFO!N41*($G41-$D41)),0)),IF($G41="",COUNTRY_INFO!N41*$E41,COUNTRY_INFO!N41*$G41))) -> 58122 | I41: =IF(OR(COUNTRY_INFO!O41="Inconnu",COUNTRY_INFO!O41="Surveillance",COUNTRY_INFO!O41="Non requis",COUNTRY_INFO!O41=0),0,IF($E41<>0, IF($F41=0,COUNTRY_INFO!O41*$E41,COUNTRY_INFO!O41*($E41-$D41)),COUNTRY_INFO!O41*$E41)) -> 0 | K41: =IF(OR(COUNTRY_INFO!P41="Inconnu",COUNTRY_INFO!P41="Surveillance",COUNTRY_INFO!P41="Non requis",COUNTRY_INFO!P41=0),0,IF(AND($E41<>0,$J41=""),IF($F41=0,COUNTRY_INFO!P41*$E41,COUNTRY_INFO!P41*($E41-$D41)), IF(AND($E41<>0,$J41<>0),IF($F41=0,COUNTRY_INFO!P41*$J41,COUNTRY_INFO!P41*($J41-$D41)), COUNTRY_INFO!P41*$J41))) -> 0 | L41: 58122 | M41: 304309 | O41: 304309 | P41: 58122 | R41: 58122 | S41: 0 | U41: 0
A42: =IF(AND(INTRO!$E$37="Non endémique",INTRO!$E$41="Non endémique")," ",IF(COUNTRY_INFO!A42=0," ",COUNTRY_INFO!A42)) -> Guinée | B42: =IF(AND(INTRO!$E$37="Non endémique",INTRO!$E$41="Non endémique")," ",IF(COUNTRY_INFO!B42=0," ",COUNTRY_INFO!B42)) -> N'Zerekore | C42: =IF(AND(INTRO!$E$37="Non endémique",INTRO!$E$41="Non endémique")," ",IF(COUNTRY_INFO!C42=0," ",COUNTRY_INFO!C42)) -> Beyla | D42: =IF(AND(INTRO!$E$37="Non endémique",INTRO!$E$41="Non endémique"),0,COUNTRY_INFO!V42) -> 0 | E42: =IF(AND(INTRO!$E$37="Non endémique",INTRO!$E$41="Non endémique"),0,COUNTRY_INFO!X42) -> 2 | F42: =IF(INTRO!$E$39="Non endémique",IF($D42=1,DEC!I42,0),IF($D42=1,IVM!G42,0)) -> 0 | G42: 2 | H42: =IF(OR(COUNTRY_INFO!N42="Inconnu",COUNTRY_INFO!N42="Surveillance",COUNTRY_INFO!N42="Non requis",COUNTRY_INFO!N42=0),0,IF(INTRO!$E$39="Non endémique",IF(AND($E42<>0,$G42=""),IF($F42=0,COUNTRY_INFO!N42*$E42,COUNTRY_INFO!N42*($E42-$D42)),IF(AND($E42<>0,$G42<>0),IF($F42=0,COUNTRY_INFO!N42*$G42,COUNTRY_INFO!N42*($G42-$D42)),0)),IF($G42="",COUNTRY_INFO!N42*$E42,COUNTRY_INFO!N42*$G42))) -> 136380 | I42: =IF(OR(COUNTRY_INFO!O42="Inconnu",COUNTRY_INFO!O42="Surveillance",COUNTRY_INFO!O42="Non requis",COUNTRY_INFO!O42=0),0,IF($E42<>0, IF($F42=0,COUNTRY_INFO!O42*$E42,COUNTRY_INFO!O42*($E42-$D42)),COUNTRY_INFO!O42*$E42)) -> 236278 | K42: =IF(OR(COUNTRY_INFO!P42="Inconnu",COUNTRY_INFO!P42="Surveillance",COUNTRY_INFO!P42="Non requis",COUNTRY_INFO!P42=0),0,IF(AND($E42<>0,$J42=""),IF($F42=0,COUNTRY_INFO!P42*$E42,COUNTRY_INFO!P42*($E42-$D42)), IF(AND($E42<>0,$J42<>0),IF($F42=0,COUNTRY_INFO!P42*$J42,COUNTRY_INFO!P42*($J42-$D42)), COUNTRY_INFO!P42*$J42))) -> 420436 | L42: 793094 | M42: 0 | O42: 0 | P42: 793094 | R42: 793094 | S42: 0 | U42: 0
A43: =IF(AND(INTRO!$E$37="Non endémique",INTRO!$E$41="Non endémique")," ",IF(COUNTRY_INFO!A43=0," ",COUNTRY_INFO!A43)) -> Guinée | B43: =IF(AND(INTRO!$E$37="Non endémique",INTRO!$E$41="Non endémique")," ",IF(COUNTRY_INFO!B43=0," ",COUNTRY_INFO!B43)) -> N'Zerekore | C43: =IF(AND(INTRO!$E$37="Non endémique",INTRO!$E$41="Non endémique")," ",IF(COUNTRY_INFO!C43=0," ",COUNTRY_INFO!C43)) -> Gueckedou | D43: =IF(AND(INTRO!$E$37="Non endémique",INTRO!$E$41="Non endémique"),0,COUNTRY_INFO!V43) -> 0 | E43: =IF(AND(INTRO!$E$37="Non endémique",INTRO!$E$41="Non endémique"),0,COUNTRY_INFO!X43) -> 2 | F43: =IF(INTRO!$E$39="Non endémique",IF($D43=1,DEC!I43,0),IF($D43=1,IVM!G43,0)) -> 0 | G43: 2 | H43: =IF(OR(COUNTRY_INFO!N43="Inconnu",COUNTRY_INFO!N43="Surveillance",COUNTRY_INFO!N43="Non requis",COUNTRY_INFO!N43=0),0,IF(INTRO!$E$39="Non endémique",IF(AND($E43<>0,$G43=""),IF($F43=0,COUNTRY_INFO!N43*$E43,COUNTRY_INFO!N43*($E43-$D43)),IF(AND($E43<>0,$G43<>0),IF($F43=0,COUNTRY_INFO!N43*$G43,COUNTRY_INFO!N43*($G43-$D43)),0)),IF($G43="",COUNTRY_INFO!N43*$E43,COUNTRY_INFO!N43*$G43))) -> 121464 | I43: =IF(OR(COUNTRY_INFO!O43="Inconnu",COUNTRY_INFO!O43="Surveillance",COUNTRY_INFO!O43="Non requis",COUNTRY_INFO!O43=0),0,IF($E43<>0, IF($F43=0,COUNTRY_INFO!O43*$E43,COUNTRY_INFO!O43*($E43-$D43)),COUNTRY_INFO!O43*$E43)) -> 210434 | K43: =IF(OR(COUNTRY_INFO!P43="Inconnu",COUNTRY_INFO!P43="Surveillance",COUNTRY_INFO!P43="Non requis",COUNTRY_INFO!P43=0),0,IF(AND($E43<>0,$J43=""),IF($F43=0,COUNTRY_INFO!P43*$E43,COUNTRY_INFO!P43*($E43-$D43)), IF(AND($E43<>0,$J43<>0),IF($F43=0,COUNTRY_INFO!P43*$J43,COUNTRY_INFO!P43*($J43-$D43)), COUNTRY_INFO!P43*$J43))) -> 374450 | L43: 706348 | M43: 0 | O43: 0 | P43: 706348 | R43: 706348 | S43: 0 | U43: 0
A44: =IF(AND(INTRO!$E$37="Non endémique",INTRO!$E$41="Non endémique")," ",IF(COUNTRY_INFO!A44=0," ",COUNTRY_INFO!A44)) -> Guinée | B44: =IF(AND(INTRO!$E$37="Non endémique",INTRO!$E$41="Non endémique")," ",IF(COUNTRY_INFO!B44=0," ",COUNTRY_INFO!B44)) -> N'Zerekore | C44: =IF(AND(INTRO!$E$37="Non endémique",INTRO!$E$41="Non endémique")," ",IF(COUNTRY_INFO!C44=0," ",COUNTRY_INFO!C44)) -> Lola | D44: =IF(AND(INTRO!$E$37="Non endémique",INTRO!$E$41="Non endémique"),0,COUNTRY_INFO!V44) -> 0 | E44: =IF(AND(INTRO!$E$37="Non endémique",INTRO!$E$41="Non endémique"),0,COUNTRY_INFO!X44) -> 1 | F44: =IF(INTRO!$E$39="Non endémique",IF($D44=1,DEC!I44,0),IF($D44=1,IVM!G44,0)) -> 0 | G44: 1 | H44: =IF(OR(COUNTRY_INFO!N44="Inconnu",COUNTRY_INFO!N44="Surveillance",COUNTRY_INFO!N44="Non requis",COUNTRY_INFO!N44=0),0,IF(INTRO!$E$39="Non endémique",IF(AND($E44<>0,$G44=""),IF($F44=0,COUNTRY_INFO!N44*$E44,COUNTRY_INFO!N44*($E44-$D44)),IF(AND($E44<>0,$G44<>0),IF($F44=0,COUNTRY_INFO!N44*$G44,COUNTRY_INFO!N44*($G44-$D44)),0)),IF($G44="",COUNTRY_INFO!N44*$E44,COUNTRY_INFO!N44*$G44))) -> 35877 | I44: =IF(OR(COUNTRY_INFO!O44="Inconnu",COUNTRY_INFO!O44="Surveillance",COUNTRY_INFO!O44="Non requis",COUNTRY_INFO!O44=0),0,IF($E44<>0, IF($F44=0,COUNTRY_INFO!O44*$E44,COUNTRY_INFO!O44*($E44-$D44)),COUNTRY_INFO!O44*$E44)) -> 62156 | K44: =IF(OR(COUNTRY_INFO!P44="Inconnu",COUNTRY_INFO!P44="Surveillance",COUNTRY_INFO!P44="Non requis",COUNTRY_INFO!P44=0),0,IF(AND($E44<>0,$J44=""),IF($F44=0,COUNTRY_INFO!P44*$E44,COUNTRY_INFO!P44*($E44-$D44)), IF(AND($E44<>0,$J44<>0),IF($F44=0,COUNTRY_INFO!P44*$J44,COUNTRY_INFO!P44*($J44-$D44)), COUNTRY_INFO!P44*$J44))) -> 110600 | L44: 208633 | M44: 0 | O44: 0 | P44: 208633 | R44: 208633 | S44: 0 | U44: 0
A45: =IF(AND(INTRO!$E$37="Non endémique",INTRO!$E$41="Non endémique")," ",IF(COUNTRY_INFO!A45=0," ",COUNTRY_INFO!A45)) -> Guinée | B45: =IF(AND(INTRO!$E$37="Non endémique",INTRO!$E$41="Non endémique")," ",IF(COUNTRY_INFO!B45=0," ",COUNTRY_INFO!B45)) -> N'Zerekore | C45: =IF(AND(INTRO!$E$37="Non endémique",INTRO!$E$41="Non endémique")," ",IF(COUNTRY_INFO!C45=0," ",COUNTRY_INFO!C45)) -> Macenta | D45: =IF(AND(INTRO!$E$37="Non endémique",INTRO!$E$41="Non endémique"),0,COUNTRY_INFO!V45) -> 1 | E45: =IF(AND(INTRO!$E$37="Non endémique",INTRO!$E$41="Non endémique"),0,COUNTRY_INFO!X45) -> 2 | F45: =IF(INTRO!$E$39="Non endémique",IF($D45=1,DEC!I45,0),IF($D45=1,IVM!G45,0)) -> 304846 | G45: 2 | H45: =IF(OR(COUNTRY_INFO!N45="Inconnu",COUNTRY_INFO!N45="Surveillance",COUNTRY_INFO!N45="Non requis",COUNTRY_INFO!N45=0),0,IF(INTRO!$E$39="Non endémique",IF(AND($E45<>0,$G45=""),IF($F45=0,COUNTRY_INFO!N45*$E45,COUNTRY_INFO!N45*($E45-$D45)),IF(AND($E45<>0,$G45<>0),IF($F45=0,COUNTRY_INFO!N45*$G45,COUNTRY_INFO!N45*($G45-$D45)),0)),IF($G45="",COUNTRY_INFO!N45*$E45,COUNTRY_INFO!N45*$G45))) -> 116450 | I45: =IF(OR(COUNTRY_INFO!O45="Inconnu",COUNTRY_INFO!O45="Surveillance",COUNTRY_INFO!O45="Non requis",COUNTRY_INFO!O45=0),0,IF($E45<>0, IF($F45=0,COUNTRY_INFO!O45*$E45,COUNTRY_INFO!O45*($E45-$D45)),COUNTRY_INFO!O45*$E45)) -> 100874 | K45: =IF(OR(COUNTRY_INFO!P45="Inconnu",COUNTRY_INFO!P45="Surveillance",COUNTRY_INFO!P45="Non requis",COUNTRY_INFO!P45=0),0,IF(AND($E45<>0,$J45=""),IF($F45=0,COUNTRY_INFO!P45*$E45,COUNTRY_INFO!P45*($E45-$D45)), IF(AND($E45<>0,$J45<>0),IF($F45=0,COUNTRY_INFO!P45*$J45,COUNTRY_INFO!P45*($J45-$D45)), COUNTRY_INFO!P45*$J45))) -> 179496 | L45: 396820 | M45: 304846 | O45: 304846 | P45: 396820 | R45: 396820 | S45: 0 | U45: 0
A46: =IF(AND(INTRO!$E$37="Non endémique",INTRO!$E$41="Non endémique")," ",IF(COUNTRY_INFO!A46=0," ",COUNTRY_INFO!A46)) -> Guinée | B46: =IF(AND(INTRO!$E$37="Non endémique",INTRO!$E$41="Non endémique")," ",IF(COUNTRY_INFO!B46=0," ",COUNTRY_INFO!B46)) -> N'Zerekore | C46: =IF(AND(INTRO!$E$37="Non endémique",INTRO!$E$41="Non endémique")," ",IF(COUNTRY_INFO!C46=0," ",COUNTRY_INFO!C46)) -> N'Zerekore | D46: =IF(AND(INTRO!$E$37="Non endémique",INTRO!$E$41="Non endémique"),0,COUNTRY_INFO!V46) -> 0 | E46: =IF(AND(INTRO!$E$37="Non endémique",INTRO!$E$41="Non endémique"),0,COUNTRY_INFO!X46) -> 2 | F46: =IF(INTRO!$E$39="Non endémique",IF($D46=1,DEC!I46,0),IF($D46=1,IVM!G46,0)) -> 0 | G46: 2 | H46: =IF(OR(COUNTRY_INFO!N46="Inconnu",COUNTRY_INFO!N46="Surveillance",COUNTRY_INFO!N46="Non requis",COUNTRY_INFO!N46=0),0,IF(INTRO!$E$39="Non endémique",IF(AND($E46<>0,$G46=""),IF($F46=0,COUNTRY_INFO!N46*$E46,COUNTRY_INFO!N46*($E46-$D46)),IF(AND($E46<>0,$G46<>0),IF($F46=0,COUNTRY_INFO!N46*$G46,COUNTRY_INFO!N46*($G46-$D46)),0)),IF($G46="",COUNTRY_INFO!N46*$E46,COUNTRY_INFO!N46*$G46))) -> 165790 | I46: =IF(OR(COUNTRY_INFO!O46="Inconnu",COUNTRY_INFO!O46="Surveillance",COUNTRY_INFO!O46="Non requis",COUNTRY_INFO!O46=0),0,IF($E46<>0, IF($F46=0,COUNTRY_INFO!O46*$E46,COUNTRY_INFO!O46*($E46-$D46)),COUNTRY_INFO!O46*$E46)) -> 287230 | K46: =IF(OR(COUNTRY_INFO!P46="Inconnu",COUNTRY_INFO!P46="Surveillance",COUNTRY_INFO!P46="Non requis",COUNTRY_INFO!P46=0),0,IF(AND($E46<>0,$J46=""),IF($F46=0,COUNTRY_INFO!P46*$E46,COUNTRY_INFO!P46*($E46-$D46)), IF(AND($E46<>0,$J46<>0),IF($F46=0,COUNTRY_INFO!P46*$J46,COUNTRY_INFO!P46*($J46-$D46)), COUNTRY_INFO!P46*$J46))) -> 511100 | L46: 964120 | M46: 0 | O46: 0 | P46: 964120 | R46: 964120 | S46: 0 | U46: 0
A47: =IF(AND(INTRO!$E$37="Non endémique",INTRO!$E$41="Non endémique")," ",IF(COUNTRY_INFO!A47=0," ",COUNTRY_INFO!A47)) -> Guinée | B47: =IF(AND(INTRO!$E$37="Non endémique",INTRO!$E$41="Non endémique")," ",IF(COUNTRY_INFO!B47=0," ",COUNTRY_INFO!B47)) -> N'Zerekore | C47: =IF(AND(INTRO!$E$37="Non endémique",INTRO!$E$41="Non endémique")," ",IF(COUNTRY_INFO!C47=0," ",COUNTRY_INFO!C47)) -> Yomou | D47: =IF(AND(INTRO!$E$37="Non endémique",INTRO!$E$41="Non endémique"),0,COUNTRY_INFO!V47) -> 0 | E47: =IF(AND(INTRO!$E$37="Non endémique",INTRO!$E$41="Non endémique"),0,COUNTRY_INFO!X47) -> 0 | F47: =IF(INTRO!$E$39="Non endémique",IF($D47=1,DEC!I47,0),IF($D47=1,IVM!G47,0)) -> 0 | G47: 0 | H47: =IF(OR(COUNTRY_INFO!N47="Inconnu",COUNTRY_INFO!N47="Surveillance",COUNTRY_INFO!N47="Non requis",COUNTRY_INFO!N47=0),0,IF(INTRO!$E$39="Non endémique",IF(AND($E47<>0,$G47=""),IF($F47=0,COUNTRY_INFO!N47*$E47,COUNTRY_INFO!N47*($E47-$D47)),IF(AND($E47<>0,$G47<>0),IF($F47=0,COUNTRY_INFO!N47*$G47,COUNTRY_INFO!N47*($G47-$D47)),0)),IF($G47="",COUNTRY_INFO!N47*$E47,COUNTRY_INFO!N47*$G47))) -> 0 | I47: =IF(OR(COUNTRY_INFO!O47="Inconnu",COUNTRY_INFO!O47="Surveillance",COUNTRY_INFO!O47="Non requis",COUNTRY_INFO!O47=0),0,IF($E47<>0, IF($F47=0,COUNTRY_INFO!O47*$E47,COUNTRY_INFO!O47*($E47-$D47)),COUNTRY_INFO!O47*$E47)) -> 0 | K47: =IF(OR(COUNTRY_INFO!P47="Inconnu",COUNTRY_INFO!P47="Surveillance",COUNTRY_INFO!P47="Non requis",COUNTRY_INFO!P47=0),0,IF(AND($E47<>0,$J47=""),IF($F47=0,COUNTRY_INFO!P47*$E47,COUNTRY_INFO!P47*($E47-$D47)), IF(AND($E47<>0,$J47<>0),IF($F47=0,COUNTRY_INFO!P47*$J47,COUNTRY_INFO!P47*($J47-$D47)), COUNTRY_INFO!P47*$J47))) -> 0 | L47: 0 | M47: 0 | O47: 0 | P47: 0 | R47: 0 | S47: 0 | U47: 0

Sheet PZQ
A1: Praziquantel (PZQ)
A2: Structure administrative, population ciblée par groupe d'âge, plan de traitement et information sur les comprimés
A4: TOTAL | E4: =SUBTOTAL(9,E$10:E$1010) -> 1038931 | F4: 2399906 | G4: 4852747 | H4: 8291584 | J4: 0 | M4: =SUBTOTAL(9,M$10:M$1010) -> 0 | N4: 4799812 | O4: 14558241 | P4: 19358053 | Q4: 0 | R4: 19358053
A6: Structure administrative du pays | D6: Plan de traitement SCH | E6: Population cible pour SCH | I6: Hotspots | K6: Année précédent l’AMM | M6: Praziquantel (PZQ)
A7: Pays | B7: Région/Département | C7: District | E7: EAPréS | F7: EAS | G7: Adultes | H7: Total | I7: Prévue | J7: Population | K7: Tournées | L7: Groupes d'âge | M7: EAPréS | N7: EAS | O7: Adultes | P7: Total requis | Q7: Reste en stock | R7: Comprimés devant être fournis
A10: =IF(INTRO!$E$43="Non endémique"," ", IF(COUNTRY_INFO!A10=0," ",COUNTRY_INFO!A10)) -> Guinée | B10: =IF(INTRO!$E$43="Non endémique"," ", IF(COUNTRY_INFO!B10=0," ",COUNTRY_INFO!B10)) -> Boke | C10: =IF(INTRO!$E$43="Non endémique"," ", IF(COUNTRY_INFO!C10=0," ",COUNTRY_INFO!C10)) -> Boffa | D10: =IF(INTRO!$E$43="Non endémique", "Non requis", COUNTRY_INFO!Y10) -> 0 | E10: =IF(OR(COUNTRY_INFO!R10="Inconnu",COUNTRY_INFO!R10="Surveillance",COUNTRY_INFO!R10="Non requis",COUNTRY_INFO!R10=0),0,IF($D10<>0, COUNTRY_INFO!R10,0)) -> 0 | F10: =IF(OR(COUNTRY_INFO!S10="Inconnu",COUNTRY_INFO!S10="Surveillance",COUNTRY_INFO!S10="Non requis",COUNTRY_INFO!S10=0),0,IF($D10<>0, COUNTRY_INFO!S10,0)) -> 0 | G10: =IF(OR(COUNTRY_INFO!T10="Inconnu",COUNTRY_INFO!T10="Surveillance",COUNTRY_INFO!T10="Non requis",COUNTRY_INFO!T10=0),0,IF($D10<>0, COUNTRY_INFO!T10,0)) -> 0 | H10: =SUM(E10:G10) -> 0 | K10: 0 | N10: =IF($I10<>"Oui",$F10*2,($F10+ROUND(J10*$F10/SUM(COUNTRY_INFO!$E10:$G10),0))*2) -> 0 | O10: =IF($I10<>"Oui",$G10*3,($G10+ROUND(J10*$G10/SUM(COUNTRY_INFO!$E10:$G10),0))*3) -> 0 | P10: =SUM(M10:O10) -> 0 | R10: =IF($P10>$Q10,P10-Q10,0) -> 0
A11: =IF(INTRO!$E$43="Non endémique"," ", IF(COUNTRY_INFO!A11=0," ",COUNTRY_INFO!A11)) -> Guinée | B11: =IF(INTRO!$E$43="Non endémique"," ", IF(COUNTRY_INFO!B11=0," ",COUNTRY_INFO!B11)) -> Boke | C11: =IF(INTRO!$E$43="Non endémique"," ", IF(COUNTRY_INFO!C11=0," ",COUNTRY_INFO!C11)) -> Boke | D11: =IF(INTRO!$E$43="Non endémique", "Non requis", COUNTRY_INFO!Y11) -> 0 | E11: =IF(OR(COUNTRY_INFO!R11="Inconnu",COUNTRY_INFO!R11="Surveillance",COUNTRY_INFO!R11="Non requis",COUNTRY_INFO!R11=0),0,IF($D11<>0, COUNTRY_INFO!R11,0)) -> 0 | F11: =IF(OR(COUNTRY_INFO!S11="Inconnu",COUNTRY_INFO!S11="Surveillance",COUNTRY_INFO!S11="Non requis",COUNTRY_INFO!S11=0),0,IF($D11<>0, COUNTRY_INFO!S11,0)) -> 0 | G11: =IF(OR(COUNTRY_INFO!T11="Inconnu",COUNTRY_INFO!T11="Surveillance",COUNTRY_INFO!T11="Non requis",COUNTRY_INFO!T11=0),0,IF($D11<>0, COUNTRY_INFO!T11,0)) -> 0 | H11: =SUM(E11:G11) -> 0 | K11: 0 | N11: =IF($I11<>"Oui",$F11*2,($F11+ROUND(J11*$F11/SUM(COUNTRY_INFO!$E11:$G11),0))*2) -> 0 | O11: =IF($I11<>"Oui",$G11*3,($G11+ROUND(J11*$G11/SUM(COUNTRY_INFO!$E11:$G11),0))*3) -> 0 | P11: =SUM(M11:O11) -> 0 | R11: =IF($P11>$Q11,P11-Q11,0) -> 0
A12: =IF(INTRO!$E$43="Non endémique"," ", IF(COUNTRY_INFO!A12=0," ",COUNTRY_INFO!A12)) -> Guinée | B12: =IF(INTRO!$E$43="Non endémique"," ", IF(COUNTRY_INFO!B12=0," ",COUNTRY_INFO!B12)) -> Boke | C12: =IF(INTRO!$E$43="Non endémique"," ", IF(COUNTRY_INFO!C12=0," ",COUNTRY_INFO!C12)) -> Fria | D12: =IF(INTRO!$E$43="Non endémique", "Non requis", COUNTRY_INFO!Y12) -> 0 | E12: =IF(OR(COUNTRY_INFO!R12="Inconnu",COUNTRY_INFO!R12="Surveillance",COUNTRY_INFO!R12="Non requis",COUNTRY_INFO!R12=0),0,IF($D12<>0, COUNTRY_INFO!R12,0)) -> 0 | F12: =IF(OR(COUNTRY_INFO!S12="Inconnu",COUNTRY_INFO!S12="Surveillance",COUNTRY_INFO!S12="Non requis",COUNTRY_INFO!S12=0),0,IF($D12<>0, COUNTRY_INFO!S12,0)) -> 0 | G12: =IF(OR(COUNTRY_INFO!T12="Inconnu",COUNTRY_INFO!T12="Surveillance",COUNTRY_INFO!T12="Non requis",COUNTRY_INFO!T12=0),0,IF($D12<>0, COUNTRY_INFO!T12,0)) -> 0 | H12: 0 | K12: 0 | N12: =IF($I12<>"Oui",$F12*2,($F12+ROUND(J12*$F12/SUM(COUNTRY_INFO!$E12:$G12),0))*2) -> 0 | O12: =IF($I12<>"Oui",$G12*3,($G12+ROUND(J12*$G12/SUM(COUNTRY_INFO!$E12:$G12),0))*3) -> 0 | P12: 0 | R12: 0
A13: =IF(INTRO!$E$43="Non endémique"," ", IF(COUNTRY_INFO!A13=0," ",COUNTRY_INFO!A13)) -> Guinée | B13: =IF(INTRO!$E$43="Non endémique"," ", IF(COUNTRY_INFO!B13=0," ",COUNTRY_INFO!B13)) -> Boke | C13: =IF(INTRO!$E$43="Non endémique"," ", IF(COUNTRY_INFO!C13=0," ",COUNTRY_INFO!C13)) -> Gaoual | D13: =IF(INTRO!$E$43="Non endémique", "Non requis", COUNTRY_INFO!Y13) -> 1 | E13: =IF(OR(COUNTRY_INFO!R13="Inconnu",COUNTRY_INFO!R13="Surveillance",COUNTRY_INFO!R13="Non requis",COUNTRY_INFO!R13=0),0,IF($D13<>0, COUNTRY_INFO!R13,0)) -> 30361 | F13: =IF(OR(COUNTRY_INFO!S13="Inconnu",COUNTRY_INFO!S13="Surveillance",COUNTRY_INFO!S13="Non requis",COUNTRY_INFO!S13=0),0,IF($D13<>0, COUNTRY_INFO!S13,0)) -> 70133 | G13: =IF(OR(COUNTRY_INFO!T13="Inconnu",COUNTRY_INFO!T13="Surveillance",COUNTRY_INFO!T13="Non requis",COUNTRY_INFO!T13=0),0,IF($D13<>0, COUNTRY_INFO!T13,0)) -> 141813 | H13: 242307 | K13: 1 | L13: EAS | N13: =IF($I13<>"Oui",$F13*2,($F13+ROUND(J13*$F13/SUM(COUNTRY_INFO!$E13:$G13),0))*2) -> 140266 | O13: =IF($I13<>"Oui",$G13*3,($G13+ROUND(J13*$G13/SUM(COUNTRY_INFO!$E13:$G13),0))*3) -> 425439 | P13: 565705 | R13: 565705
A14: =IF(INTRO!$E$43="Non endémique"," ", IF(COUNTRY_INFO!A14=0," ",COUNTRY_INFO!A14)) -> Guinée | B14: =IF(INTRO!$E$43="Non endémique"," ", IF(COUNTRY_INFO!B14=0," ",COUNTRY_INFO!B14)) -> Boke | C14: =IF(INTRO!$E$43="Non endémique"," ", IF(COUNTRY_INFO!C14=0," ",COUNTRY_INFO!C14)) -> Koundara | D14: =IF(INTRO!$E$43="Non endémique", "Non requis", COUNTRY_INFO!Y14) -> 1 | E14: =IF(OR(COUNTRY_INFO!R14="Inconnu",COUNTRY_INFO!R14="Surveillance",COUNTRY_INFO!R14="Non requis",COUNTRY_INFO!R14=0),0,IF($D14<>0, COUNTRY_INFO!R14,0)) -> 20369 | F14: =IF(OR(COUNTRY_INFO!S14="Inconnu",COUNTRY_INFO!S14="Surveillance",COUNTRY_INFO!S14="Non requis",COUNTRY_INFO!S14=0),0,IF($D14<>0, COUNTRY_INFO!S14,0)) -> 47052 | G14: =IF(OR(COUNTRY_INFO!T14="Inconnu",COUNTRY_INFO!T14="Surveillance",COUNTRY_INFO!T14="Non requis",COUNTRY_INFO!T14=0),0,IF($D14<>0, COUNTRY_INFO!T14,0)) -> 95142 | H14: 162563 | K14: 1 | L14: EAS | N14: =IF($I14<>"Oui",$F14*2,($F14+ROUND(J14*$F14/SUM(COUNTRY_INFO!$E14:$G14),0))*2) -> 94104 | O14: =IF($I14<>"Oui",$G14*3,($G14+ROUND(J14*$G14/SUM(COUNTRY_INFO!$E14:$G14),0))*3) -> 285426 | P14: 379530 | R14: 379530
A15: =IF(INTRO!$E$43="Non endémique"," ", IF(COUNTRY_INFO!A15=0," ",COUNTRY_INFO!A15)) -> Guinée | B15: =IF(INTRO!$E$43="Non endémique"," ", IF(COUNTRY_INFO!B15=0," ",COUNTRY_INFO!B15)) -> Conakry | C15: =IF(INTRO!$E$43="Non endémique"," ", IF(COUNTRY_INFO!C15=0," ",COUNTRY_INFO!C15)) -> Dixinn | D15: =IF(INTRO!$E$43="Non endémique", "Non requis", COUNTRY_INFO!Y15) -> 0 | E15: =IF(OR(COUNTRY_INFO!R15="Inconnu",COUNTRY_INFO!R15="Surveillance",COUNTRY_INFO!R15="Non requis",COUNTRY_INFO!R15=0),0,IF($D15<>0, COUNTRY_INFO!R15,0)) -> 0 | F15: =IF(OR(COUNTRY_INFO!S15="Inconnu",COUNTRY_INFO!S15="Surveillance",COUNTRY_INFO!S15="Non requis",COUNTRY_INFO!S15=0),0,IF($D15<>0, COUNTRY_INFO!S15,0)) -> 0 | G15: =IF(OR(COUNTRY_INFO!T15="Inconnu",COUNTRY_INFO!T15="Surveillance",COUNTRY_INFO!T15="Non requis",COUNTRY_INFO!T15=0),0,IF($D15<>0, COUNTRY_INFO!T15,0)) -> 0 | H15: 0 | K15: 0 | N15: =IF($I15<>"Oui",$F15*2,($F15+ROUND(J15*$F15/SUM(COUNTRY_INFO!$E15:$G15),0))*2) -> 0 | O15: =IF($I15<>"Oui",$G15*3,($G15+ROUND(J15*$G15/SUM(COUNTRY_INFO!$E15:$G15),0))*3) -> 0 | P15: 0 | R15: 0
A16: =IF(INTRO!$E$43="Non endémique"," ", IF(COUNTRY_INFO!A16=0," ",COUNTRY_INFO!A16)) -> Guinée | B16: =IF(INTRO!$E$43="Non endémique"," ", IF(COUNTRY_INFO!B16=0," ",COUNTRY_INFO!B16)) -> Conakry | C16: =IF(INTRO!$E$43="Non endémique"," ", IF(COUNTRY_INFO!C16=0," ",COUNTRY_INFO!C16)) -> Kaloum | D16: =IF(INTRO!$E$43="Non endémique", "Non requis", COUNTRY_INFO!Y16) -> 0 | E16: =IF(OR(COUNTRY_INFO!R16="Inconnu",COUNTRY_INFO!R16="Surveillance",COUNTRY_INFO!R16="Non requis",COUNTRY_INFO!R16=0),0,IF($D16<>0, COUNTRY_INFO!R16,0)) -> 0 | F16: =IF(OR(COUNTRY_INFO!S16="Inconnu",COUNTRY_INFO!S16="Surveillance",COUNTRY_INFO!S16="Non requis",COUNTRY_INFO!S16=0),0,IF($D16<>0, COUNTRY_INFO!S16,0)) -> 0 | G16: =IF(OR(COUNTRY_INFO!T16="Inconnu",COUNTRY_INFO!T16="Surveillance",COUNTRY_INFO!T16="Non requis",COUNTRY_INFO!T16=0),0,IF($D16<>0, COUNTRY_INFO!T16,0)) -> 0 | H16: 0 | K16: 0 | N16: =IF($I16<>"Oui",$F16*2,($F16+ROUND(J16*$F16/SUM(COUNTRY_INFO!$E16:$G16),0))*2) -> 0 | O16: =IF($I16<>"Oui",$G16*3,($G16+ROUND(J16*$G16/SUM(COUNTRY_INFO!$E16:$G16),0))*3) -> 0 | P16: 0 | R16: 0
A17: =IF(INTRO!$E$43="Non endémique"," ", IF(COUNTRY_INFO!A17=0," ",COUNTRY_INFO!A17)) -> Guinée | B17: =IF(INTRO!$E$43="Non endémique"," ", IF(COUNTRY_INFO!B17=0," ",COUNTRY_INFO!B17)) -> Conakry | C17: =IF(INTRO!$E$43="Non endémique"," ", IF(COUNTRY_INFO!C17=0," ",COUNTRY_INFO!C17)) -> Matam | D17: =IF(INTRO!$E$43="Non endémique", "Non requis", COUNTRY_INFO!Y17) -> 0 | E17: =IF(OR(COUNTRY_INFO!R17="Inconnu",COUNTRY_INFO!R17="Surveillance",COUNTRY_INFO!R17="Non requis",COUNTRY_INFO!R17=0),0,IF($D17<>0, COUNTRY_INFO!R17,0)) -> 0 | F17: =IF(OR(COUNTRY_INFO!S17="Inconnu",COUNTRY_INFO!S17="Surveillance",COUNTRY_INFO!S17="Non requis",COUNTRY_INFO!S17=0),0,IF($D17<>0, COUNTRY_INFO!S17,0)) -> 0 | G17: =IF(OR(COUNTRY_INFO!T17="Inconnu",COUNTRY_INFO!T17="Surveillance",COUNTRY_INFO!T17="Non requis",COUNTRY_INFO!T17=0),0,IF($D17<>0, COUNTRY_INFO!T17,0)) -> 0 | H17: 0 | K17: 0 | N17: =IF($I17<>"Oui",$F17*2,($F17+ROUND(J17*$F17/SUM(COUNTRY_INFO!$E17:$G17),0))*2) -> 0 | O17: =IF($I17<>"Oui",$G17*3,($G17+ROUND(J17*$G17/SUM(COUNTRY_INFO!$E17:$G17),0))*3) -> 0 | P17: 0 | R17: 0
A18: =IF(INTRO!$E$43="Non endémique"," ", IF(COUNTRY_INFO!A18=0," ",COUNTRY_INFO!A18)) -> Guinée | B18: =IF(INTRO!$E$43="Non endémique"," ", IF(COUNTRY_INFO!B18=0," ",COUNTRY_INFO!B18)) -> Conakry | C18: =IF(INTRO!$E$43="Non endémique"," ", IF(COUNTRY_INFO!C18=0," ",COUNTRY_INFO!C18)) -> Matoto | D18: =IF(INTRO!$E$43="Non endémique", "Non requis", COUNTRY_INFO!Y18) -> 1 | E18: =IF(OR(COUNTRY_INFO!R18="Inconnu",COUNTRY_INFO!R18="Surveillance",COUNTRY_INFO!R18="Non requis",COUNTRY_INFO!R18=0),0,IF($D18<>0, COUNTRY_INFO!R18,0)) -> 104441 | F18: =IF(OR(COUNTRY_INFO!S18="Inconnu",COUNTRY_INFO!S18="Surveillance",COUNTRY_INFO!S18="Non requis",COUNTRY_INFO!S18=0),0,IF($D18<>0, COUNTRY_INFO!S18,0)) -> 241255 | G18: =IF(OR(COUNTRY_INFO!T18="Inconnu",COUNTRY_INFO!T18="Surveillance",COUNTRY_INFO!T18="Non requis",COUNTRY_INFO!T18=0),0,IF($D18<>0, COUNTRY_INFO!T18,0)) -> 487831 | H18: 833527 | K18: 1 | L18: EAS | N18: =IF($I18<>"Oui",$F18*2,($F18+ROUND(J18*$F18/SUM(COUNTRY_INFO!$E18:$G18),0))*2) -> 482510 | O18: =IF($I18<>"Oui",$G18*3,($G18+ROUND(J18*$G18/SUM(COUNTRY_INFO!$E18:$G18),0))*3) -> 1463493 | P18: 1946003 | R18: 1946003
A19: =IF(INTRO!$E$43="Non endémique"," ", IF(COUNTRY_INFO!A19=0," ",COUNTRY_INFO!A19)) -> Guinée | B19: =IF(INTRO!$E$43="Non endémique"," ", IF(COUNTRY_INFO!B19=0," ",COUNTRY_INFO!B19)) -> Conakry | C19: =IF(INTRO!$E$43="Non endémique"," ", IF(COUNTRY_INFO!C19=0," ",COUNTRY_INFO!C19)) -> Ratoma | D19: =IF(INTRO!$E$43="Non endémique", "Non requis", COUNTRY_INFO!Y19) -> 1 | E19: =IF(OR(COUNTRY_INFO!R19="Inconnu",COUNTRY_INFO!R19="Surveillance",COUNTRY_INFO!R19="Non requis",COUNTRY_INFO!R19=0),0,IF($D19<>0, COUNTRY_INFO!R19,0)) -> 102323 | F19: =IF(OR(COUNTRY_INFO!S19="Inconnu",COUNTRY_INFO!S19="Surveillance",COUNTRY_INFO!S19="Non requis",COUNTRY_INFO!S19=0),0,IF($D19<>0, COUNTRY_INFO!S19,0)) -> 236363 | G19: =IF(OR(COUNTRY_INFO!T19="Inconnu",COUNTRY_INFO!T19="Surveillance",COUNTRY_INFO!T19="Non requis",COUNTRY_INFO!T19=0),0,IF($D19<>0, COUNTRY_INFO!T19,0)) -> 477940 | H19: 816626 | K19: 1 | L19: EAS | N19: =IF($I19<>"Oui",$F19*2,($F19+ROUND(J19*$F19/SUM(COUNTRY_INFO!$E19:$G19),0))*2) -> 472726 | O19: =IF($I19<>"Oui",$G19*3,($G19+ROUND(J19*$G19/SUM(COUNTRY_INFO!$E19:$G19),0))*3) -> 1433820 | P19: 1906546 | R19: 1906546
A20: =IF(INTRO!$E$43="Non endémique"," ", IF(COUNTRY_INFO!A20=0," ",COUNTRY_INFO!A20)) -> Guinée | B20: =IF(INTRO!$E$43="Non endémique"," ", IF(COUNTRY_INFO!B20=0," ",COUNTRY_INFO!B20)) -> Faranah | C20: =IF(INTRO!$E$43="Non endémique"," ", IF(COUNTRY_INFO!C20=0," ",COUNTRY_INFO!C20)) -> Dabola | D20: =IF(INTRO!$E$43="Non endémique", "Non requis", COUNTRY_INFO!Y20) -> 0 | E20: =IF(OR(COUNTRY_INFO!R20="Inconnu",COUNTRY_INFO!R20="Surveillance",COUNTRY_INFO!R20="Non requis",COUNTRY_INFO!R20=0),0,IF($D20<>0, COUNTRY_INFO!R20,0)) -> 0 | F20: =IF(OR(COUNTRY_INFO!S20="Inconnu",COUNTRY_INFO!S20="Surveillance",COUNTRY_INFO!S20="Non requis",COUNTRY_INFO!S20=0),0,IF($D20<>0, COUNTRY_INFO!S20,0)) -> 0 | G20: =IF(OR(COUNTRY_INFO!T20="Inconnu",COUNTRY_INFO!T20="Surveillance",COUNTRY_INFO!T20="Non requis",COUNTRY_INFO!T20=0),0,IF($D20<>0, COUNTRY_INFO!T20,0)) -> 0 | H20: 0 | K20: 0 | N20: =IF($I20<>"Oui",$F20*2,($F20+ROUND(J20*$F20/SUM(COUNTRY_INFO!$E20:$G20),0))*2) -> 0 | O20: =IF($I20<>"Oui",$G20*3,($G20+ROUND(J20*$G20/SUM(COUNTRY_INFO!$E20:$G20),0))*3) -> 0 | P20: 0 | R20: 0
A21: =IF(INTRO!$E$43="Non endémique"," ", IF(COUNTRY_INFO!A21=0," ",COUNTRY_INFO!A21)) -> Guinée | B21: =IF(INTRO!$E$43="Non endémique"," ", IF(COUNTRY_INFO!B21=0," ",COUNTRY_INFO!B21)) -> Faranah | C21: =IF(INTRO!$E$43="Non endémique"," ", IF(COUNTRY_INFO!C21=0," ",COUNTRY_INFO!C21)) -> Dinguiraye | D21: =IF(INTRO!$E$43="Non endémique", "Non requis", COUNTRY_INFO!Y21) -> 1 | E21: =IF(OR(COUNTRY_INFO!R21="Inconnu",COUNTRY_INFO!R21="Surveillance",COUNTRY_INFO!R21="Non requis",COUNTRY_INFO!R21=0),0,IF($D21<>0, COUNTRY_INFO!R21,0)) -> 30803 | F21: =IF(OR(COUNTRY_INFO!S21="Inconnu",COUNTRY_INFO!S21="Surveillance",COUNTRY_INFO!S21="Non requis",COUNTRY_INFO!S21=0),0,IF($D21<>0, COUNTRY_INFO!S21,0)) -> 71153 | G21: =IF(OR(COUNTRY_INFO!T21="Inconnu",COUNTRY_INFO!T21="Surveillance",COUNTRY_INFO!T21="Non requis",COUNTRY_INFO!T21=0),0,IF($D21<>0, COUNTRY_INFO!T21,0)) -> 143875 | H21: 245831 | K21: 1 | L21: EAS | N21: =IF($I21<>"Oui",$F21*2,($F21+ROUND(J21*$F21/SUM(COUNTRY_INFO!$E21:$G21),0))*2) -> 142306 | O21: =IF($I21<>"Oui",$G21*3,($G21+ROUND(J21*$G21/SUM(COUNTRY_INFO!$E21:$G21),0))*3) -> 431625 | P21: 573931 | R21: 573931
A22: =IF(INTRO!$E$43="Non endémique"," ", IF(COUNTRY_INFO!A22=0," ",COUNTRY_INFO!A22)) -> Guinée | B22: =IF(INTRO!$E$43="Non endémique"," ", IF(COUNTRY_INFO!B22=0," ",COUNTRY_INFO!B22)) -> Faranah | C22: =IF(INTRO!$E$43="Non endémique"," ", IF(COUNTRY_INFO!C22=0," ",COUNTRY_INFO!C22)) -> Faranah | D22: =IF(INTRO!$E$43="Non endémique", "Non requis", COUNTRY_INFO!Y22) -> 1 | E22: =IF(OR(COUNTRY_INFO!R22="Inconnu",COUNTRY_INFO!R22="Surveillance",COUNTRY_INFO!R22="Non requis",COUNTRY_INFO!R22=0),0,IF($D22<>0, COUNTRY_INFO!R22,0)) -> 43937 | F22: =IF(OR(COUNTRY_INFO!S22="Inconnu",COUNTRY_INFO!S22="Surveillance",COUNTRY_INFO!S22="Non requis",COUNTRY_INFO!S22=0),0,IF($D22<>0, COUNTRY_INFO!S22,0)) -> 101495 | G22: =IF(OR(COUNTRY_INFO!T22="Inconnu",COUNTRY_INFO!T22="Surveillance",COUNTRY_INFO!T22="Non requis",COUNTRY_INFO!T22=0),0,IF($D22<>0, COUNTRY_INFO!T22,0)) -> 205228 | H22: 350660 | K22: 1 | L22: EAS | N22: =IF($I22<>"Oui",$F22*2,($F22+ROUND(J22*$F22/SUM(COUNTRY_INFO!$E22:$G22),0))*2) -> 202990 | O22: =IF($I22<>"Oui",$G22*3,($G22+ROUND(J22*$G22/SUM(COUNTRY_INFO!$E22:$G22),0))*3) -> 615684 | P22: 818674 | R22: 818674
A23: =IF(INTRO!$E$43="Non endémique"," ", IF(COUNTRY_INFO!A23=0," ",COUNTRY_INFO!A23)) -> Guinée | B23: =IF(INTRO!$E$43="Non endémique"," ", IF(COUNTRY_INFO!B23=0," ",COUNTRY_INFO!B23)) -> Faranah | C23: =IF(INTRO!$E$43="Non endémique"," ", IF(COUNTRY_INFO!C23=0," ",COUNTRY_INFO!C23)) -> Kissidougou | D23: =IF(INTRO!$E$43="Non endémique", "Non requis", COUNTRY_INFO!Y23) -> 1 | E23: =IF(OR(COUNTRY_INFO!R23="Inconnu",COUNTRY_INFO!R23="Surveillance",COUNTRY_INFO!R23="Non requis",COUNTRY_INFO!R23=0),0,IF($D23<>0, COUNTRY_INFO!R23,0)) -> 44426 | F23: =IF(OR(COUNTRY_INFO!S23="Inconnu",COUNTRY_INFO!S23="Surveillance",COUNTRY_INFO!S23="Non requis",COUNTRY_INFO!S23=0),0,IF($D23<>0, COUNTRY_INFO!S23,0)) -> 102622 | G23: =IF(OR(COUNTRY_INFO!T23="Inconnu",COUNTRY_INFO!T23="Surveillance",COUNTRY_INFO!T23="Non requis",COUNTRY_INFO!T23=0),0,IF($D23<>0, COUNTRY_INFO!T23,0)) -> 207508 | H23: 354556 | K23: 1 | L23: EAS | N23: =IF($I23<>"Oui",$F23*2,($F23+ROUND(J23*$F23/SUM(COUNTRY_INFO!$E23:$G23),0))*2) -> 205244 | O23: =IF($I23<>"Oui",$G23*3,($G23+ROUND(J23*$G23/SUM(COUNTRY_INFO!$E23:$G23),0))*3) -> 622524 | P23: 827768 | R23: 827768
A24: =IF(INTRO!$E$43="Non endémique"," ", IF(COUNTRY_INFO!A24=0," ",COUNTRY_INFO!A24)) -> Guinée | B24: =IF(INTRO!$E$43="Non endémique"," ", IF(COUNTRY_INFO!B24=0," ",COUNTRY_INFO!B24)) -> Kankan | C24: =IF(INTRO!$E$43="Non endémique"," ", IF(COUNTRY_INFO!C24=0," ",COUNTRY_INFO!C24)) -> Kankan | D24: =IF(INTRO!$E$43="Non endémique", "Non requis", COUNTRY_INFO!Y24) -> 1 | E24: =IF(OR(COUNTRY_INFO!R24="Inconnu",COUNTRY_INFO!R24="Surveillance",COUNTRY_INFO!R24="Non requis",COUNTRY_INFO!R24=0),0,IF($D24<>0, COUNTRY_INFO!R24,0)) -> 73958 | F24: =IF(OR(COUNTRY_INFO!S24="Inconnu",COUNTRY_INFO!S24="Surveillance",COUNTRY_INFO!S24="Non requis",COUNTRY_INFO!S24=0),0,IF($D24<>0, COUNTRY_INFO!S24,0)) -> 170842 | G24: =IF(OR(COUNTRY_INFO!T24="Inconnu",COUNTRY_INFO!T24="Surveillance",COUNTRY_INFO!T24="Non requis",COUNTRY_INFO!T24=0),0,IF($D24<>0, COUNTRY_INFO!T24,0)) -> 345452 | H24: 590252 | K24: 1 | L24: EAS | N24: =IF($I24<>"Oui",$F24*2,($F24+ROUND(J24*$F24/SUM(COUNTRY_INFO!$E24:$G24),0))*2) -> 341684 | O24: =IF($I24<>"Oui",$G24*3,($G24+ROUND(J24*$G24/SUM(COUNTRY_INFO!$E24:$G24),0))*3) -> 1036356 | P24: 1378040 | R24: 1378040
A25: =IF(INTRO!$E$43="Non endémique"," ", IF(COUNTRY_INFO!A25=0," ",COUNTRY_INFO!A25)) -> Guinée | B25: =IF(INTRO!$E$43="Non endémique"," ", IF(COUNTRY_INFO!B25=0," ",COUNTRY_INFO!B25)) -> Kankan | C25: =IF(INTRO!$E$43="Non endémique"," ", IF(COUNTRY_INFO!C25=0," ",COUNTRY_INFO!C25)) -> Kerouane | D25: =IF(INTRO!$E$43="Non endémique", "Non requis", COUNTRY_INFO!Y25) -> 1 | E25: =IF(OR(COUNTRY_INFO!R25="Inconnu",COUNTRY_INFO!R25="Surveillance",COUNTRY_INFO!R25="Non requis",COUNTRY_INFO!R25=0),0,IF($D25<>0, COUNTRY_INFO!R25,0)) -> 32550 | F25: =IF(OR(COUNTRY_INFO!S25="Inconnu",COUNTRY_INFO!S25="Surveillance",COUNTRY_INFO!S25="Non requis",COUNTRY_INFO!S25=0),0,IF($D25<>0, COUNTRY_INFO!S25,0)) -> 75190 | G25: =IF(OR(COUNTRY_INFO!T25="Inconnu",COUNTRY_INFO!T25="Surveillance",COUNTRY_INFO!T25="Non requis",COUNTRY_INFO!T25=0),0,IF($D25<>0, COUNTRY_INFO!T25,0)) -> 152038 | H25: 259778 | K25: 1 | L25: EAS | N25: =IF($I25<>"Oui",$F25*2,($F25+ROUND(J25*$F25/SUM(COUNTRY_INFO!$E25:$G25),0))*2) -> 150380 | O25: =IF($I25<>"Oui",$G25*3,($G25+ROUND(J25*$G25/SUM(COUNTRY_INFO!$E25:$G25),0))*3) -> 456114 | P25: 606494 | R25: 606494
A26: =IF(INTRO!$E$43="Non endémique"," ", IF(COUNTRY_INFO!A26=0," ",COUNTRY_INFO!A26)) -> Guinée | B26: =IF(INTRO!$E$43="Non endémique"," ", IF(COUNTRY_INFO!B26=0," ",COUNTRY_INFO!B26)) -> Kankan | C26: =IF(INTRO!$E$43="Non endémique"," ", IF(COUNTRY_INFO!C26=0," ",COUNTRY_INFO!C26)) -> Kouroussa | D26: =IF(INTRO!$E$43="Non endémique", "Non requis", COUNTRY_INFO!Y26) -> 1 | E26: =IF(OR(COUNTRY_INFO!R26="Inconnu",COUNTRY_INFO!R26="Surveillance",COUNTRY_INFO!R26="Non requis",COUNTRY_INFO!R26=0),0,IF($D26<>0, COUNTRY_INFO!R26,0)) -> 42095 | F26: =IF(OR(COUNTRY_INFO!S26="Inconnu",COUNTRY_INFO!S26="Surveillance",COUNTRY_INFO!S26="Non requis",COUNTRY_INFO!S26=0),0,IF($D26<>0, COUNTRY_INFO!S26,0)) -> 97240 | G26: =IF(OR(COUNTRY_INFO!T26="Inconnu",COUNTRY_INFO!T26="Surveillance",COUNTRY_INFO!T26="Non requis",COUNTRY_INFO!T26=0),0,IF($D26<>0, COUNTRY_INFO!T26,0)) -> 196624 | H26: 335959 | K26: 1 | L26: EAS | N26: =IF($I26<>"Oui",$F26*2,($F26+ROUND(J26*$F26/SUM(COUNTRY_INFO!$E26:$G26),0))*2) -> 194480 | O26: =IF($I26<>"Oui",$G26*3,($G26+ROUND(J26*$G26/SUM(COUNTRY_INFO!$E26:$G26),0))*3) -> 589872 | P26: 784352 | R26: 784352
A27: =IF(INTRO!$E$43="Non endémique"," ", IF(COUNTRY_INFO!A27=0," ",COUNTRY_INFO!A27)) -> Guinée | B27: =IF(INTRO!$E$43="Non endémique"," ", IF(COUNTRY_INFO!B27=0," ",COUNTRY_INFO!B27)) -> Kankan | C27: =IF(INTRO!$E$43="Non endémique"," ", IF(COUNTRY_INFO!C27=0," ",COUNTRY_INFO!C27)) -> Mandiana | D27: =IF(INTRO!$E$43="Non endémique", "Non requis", COUNTRY_INFO!Y27) -> 0 | E27: =IF(OR(COUNTRY_INFO!R27="Inconnu",COUNTRY_INFO!R27="Surveillance",COUNTRY_INFO!R27="Non requis",COUNTRY_INFO!R27=0),0,IF($D27<>0, COUNTRY_INFO!R27,0)) -> 0 | F27: =IF(OR(COUNTRY_INFO!S27="Inconnu",COUNTRY_INFO!S27="Surveillance",COUNTRY_INFO!S27="Non requis",COUNTRY_INFO!S27=0),0,IF($D27<>0, COUNTRY_INFO!S27,0)) -> 0 | G27: =IF(OR(COUNTRY_INFO!T27="Inconnu",COUNTRY_INFO!T27="Surveillance",COUNTRY_INFO!T27="Non requis",COUNTRY_INFO!T27=0),0,IF($D27<>0, COUNTRY_INFO!T27,0)) -> 0 | H27: 0 | K27: 0 | N27: =IF($I27<>"Oui",$F27*2,($F27+ROUND(J27*$F27/SUM(COUNTRY_INFO!$E27:$G27),0))*2) -> 0 | O27: =IF($I27<>"Oui",$G27*3,($G27+ROUND(J27*$G27/SUM(COUNTRY_INFO!$E27:$G27),0))*3) -> 0 | P27: 0 | R27: 0
A28: =IF(INTRO!$E$43="Non endémique"," ", IF(COUNTRY_INFO!A28=0," ",COUNTRY_INFO!A28)) -> Guinée | B28: =IF(INTRO!$E$43="Non endémique"," ", IF(COUNTRY_INFO!B28=0," ",COUNTRY_INFO!B28)) -> Kankan | C28: =IF(INTRO!$E$43="Non endémique"," ", IF(COUNTRY_INFO!C28=0," ",COUNTRY_INFO!C28)) -> Siguiri | D28: =IF(INTRO!$E$43="Non endémique", "Non requis", COUNTRY_INFO!Y28) -> 1 | E28: =IF(OR(COUNTRY_INFO!R28="Inconnu",COUNTRY_INFO!R28="Surveillance",COUNTRY_INFO!R28="Non requis",COUNTRY_INFO!R28=0),0,IF($D28<>0, COUNTRY_INFO!R28,0)) -> 106265 | F28: =IF(OR(COUNTRY_INFO!S28="Inconnu",COUNTRY_INFO!S28="Surveillance",COUNTRY_INFO!S28="Non requis",COUNTRY_INFO!S28=0),0,IF($D28<>0, COUNTRY_INFO!S28,0)) -> 245471 | G28: =IF(OR(COUNTRY_INFO!T28="Inconnu",COUNTRY_INFO!T28="Surveillance",COUNTRY_INFO!T28="Non requis",COUNTRY_INFO!T28=0),0,IF($D28<>0, COUNTRY_INFO!T28,0)) -> 496357 | H28: 848093 | K28: 1 | L28: EAS | N28: =IF($I28<>"Oui",$F28*2,($F28+ROUND(J28*$F28/SUM(COUNTRY_INFO!$E28:$G28),0))*2) -> 490942 | O28: =IF($I28<>"Oui",$G28*3,($G28+ROUND(J28*$G28/SUM(COUNTRY_INFO!$E28:$G28),0))*3) -> 1489071 | P28: 1980013 | R28: 1980013
A29: =IF(INTRO!$E$43="Non endémique"," ", IF(COUNTRY_INFO!A29=0," ",COUNTRY_INFO!A29)) -> Guinée | B29: =IF(INTRO!$E$43="Non endémique"," ", IF(COUNTRY_INFO!B29=0," ",COUNTRY_INFO!B29)) -> Kindia | C29: =IF(INTRO!$E$43="Non endémique"," ", IF(COUNTRY_INFO!C29=0," ",COUNTRY_INFO!C29)) -> Coyah | D29: =IF(INTRO!$E$43="Non endémique", "Non requis", COUNTRY_INFO!Y29) -> 0 | E29: =IF(OR(COUNTRY_INFO!R29="Inconnu",COUNTRY_INFO!R29="Surveillance",COUNTRY_INFO!R29="Non requis",COUNTRY_INFO!R29=0),0,IF($D29<>0, COUNTRY_INFO!R29,0)) -> 0 | F29: =IF(OR(COUNTRY_INFO!S29="Inconnu",COUNTRY_INFO!S29="Surveillance",COUNTRY_INFO!S29="Non requis",COUNTRY_INFO!S29=0),0,IF($D29<>0, COUNTRY_INFO!S29,0)) -> 0 | G29: =IF(OR(COUNTRY_INFO!T29="Inconnu",COUNTRY_INFO!T29="Surveillance",COUNTRY_INFO!T29="Non requis",COUNTRY_INFO!T29=0),0,IF($D29<>0, COUNTRY_INFO!T29,0)) -> 0 | H29: 0 | K29: 0 | N29: =IF($I29<>"Oui",$F29*2,($F29+ROUND(J29*$F29/SUM(COUNTRY_INFO!$E29:$G29),0))*2) -> 0 | O29: =IF($I29<>"Oui",$G29*3,($G29+ROUND(J29*$G29/SUM(COUNTRY_INFO!$E29:$G29),0))*3) -> 0 | P29: 0 | R29: 0
A30: =IF(INTRO!$E$43="Non endémique"," ", IF(COUNTRY_INFO!A30=0," ",COUNTRY_INFO!A30)) -> Guinée | B30: =IF(INTRO!$E$43="Non endémique"," ", IF(COUNTRY_INFO!B30=0," ",COUNTRY_INFO!B30)) -> Kindia | C30: =IF(INTRO!$E$43="Non endémique"," ", IF(COUNTRY_INFO!C30=0," ",COUNTRY_INFO!C30)) -> Dubreka | D30: =IF(INTRO!$E$43="Non endémique", "Non requis", COUNTRY_INFO!Y30) -> 0 | E30: =IF(OR(COUNTRY_INFO!R30="Inconnu",COUNTRY_INFO!R30="Surveillance",COUNTRY_INFO!R30="Non requis",COUNTRY_INFO!R30=0),0,IF($D30<>0, COUNTRY_INFO!R30,0)) -> 0 | F30: =IF(OR(COUNTRY_INFO!S30="Inconnu",COUNTRY_INFO!S30="Surveillance",COUNTRY_INFO!S30="Non requis",COUNTRY_INFO!S30=0),0,IF($D30<>0, COUNTRY_INFO!S30,0)) -> 0 | G30: =IF(OR(COUNTRY_INFO!T30="Inconnu",COUNTRY_INFO!T30="Surveillance",COUNTRY_INFO!T30="Non requis",COUNTRY_INFO!T30=0),0,IF($D30<>0, COUNTRY_INFO!T30,0)) -> 0 | H30: 0 | K30: 0 | N30: =IF($I30<>"Oui",$F30*2,($F30+ROUND(J30*$F30/SUM(COUNTRY_INFO!$E30:$G30),0))*2) -> 0 | O30: =IF($I30<>"Oui",$G30*3,($G30+ROUND(J30*$G30/SUM(COUNTRY_INFO!$E30:$G30),0))*3) -> 0 | P30: 0 | R30: 0
A31: =IF(INTRO!$E$43="Non endémique"," ", IF(COUNTRY_INFO!A31=0," ",COUNTRY_INFO!A31)) -> Guinée | B31: =IF(INTRO!$E$43="Non endémique"," ", IF(COUNTRY_INFO!B31=0," ",COUNTRY_INFO!B31)) -> Kindia | C31: =IF(INTRO!$E$43="Non endémique"," ", IF(COUNTRY_INFO!C31=0," ",COUNTRY_INFO!C31)) -> Forecariah | D31: =IF(INTRO!$E$43="Non endémique", "Non requis", COUNTRY_INFO!Y31) -> 0 | E31: =IF(OR(COUNTRY_INFO!R31="Inconnu",COUNTRY_INFO!R31="Surveillance",COUNTRY_INFO!R31="Non requis",COUNTRY_INFO!R31=0),0,IF($D31<>0, COUNTRY_INFO!R31,0)) -> 0 | F31: =IF(OR(COUNTRY_INFO!S31="Inconnu",COUNTRY_INFO!S31="Surveillance",COUNTRY_INFO!S31="Non requis",COUNTRY_INFO!S31=0),0,IF($D31<>0, COUNTRY_INFO!S31,0)) -> 0 | G31: =IF(OR(COUNTRY_INFO!T31="Inconnu",COUNTRY_INFO!T31="Surveillance",COUNTRY_INFO!T31="Non requis",COUNTRY_INFO!T31=0),0,IF($D31<>0, COUNTRY_INFO!T31,0)) -> 0 | H31: 0 | K31: 0 | N31: =IF($I31<>"Oui",$F31*2,($F31+ROUND(J31*$F31/SUM(COUNTRY_INFO!$E31:$G31),0))*2) -> 0 | O31: =IF($I31<>"Oui",$G31*3,($G31+ROUND(J31*$G31/SUM(COUNTRY_INFO!$E31:$G31),0))*3) -> 0 | P31: 0 | R31: 0
A32: =IF(INTRO!$E$43="Non endémique"," ", IF(COUNTRY_INFO!A32=0," ",COUNTRY_INFO!A32)) -> Guinée | B32: =IF(INTRO!$E$43="Non endémique"," ", IF(COUNTRY_INFO!B32=0," ",COUNTRY_INFO!B32)) -> Kindia | C32: =IF(INTRO!$E$43="Non endémique"," ", IF(COUNTRY_INFO!C32=0," ",COUNTRY_INFO!C32)) -> Kindia | D32: =IF(INTRO!$E$43="Non endémique", "Non requis", COUNTRY_INFO!Y32) -> 1 | E32: =IF(OR(COUNTRY_INFO!R32="Inconnu",COUNTRY_INFO!R32="Surveillance",COUNTRY_INFO!R32="Non requis",COUNTRY_INFO!R32=0),0,IF($D32<>0, COUNTRY_INFO!R32,0)) -> 68843 | F32: =IF(OR(COUNTRY_INFO!S32="Inconnu",COUNTRY_INFO!S32="Surveillance",COUNTRY_INFO!S32="Non requis",COUNTRY_INFO!S32=0),0,IF($D32<>0, COUNTRY_INFO!S32,0)) -> 159026 | G32: =IF(OR(COUNTRY_INFO!T32="Inconnu",COUNTRY_INFO!T32="Surveillance",COUNTRY_INFO!T32="Non requis",COUNTRY_INFO!T32=0),0,IF($D32<>0, COUNTRY_INFO!T32,0)) -> 321560 | H32: 549429 | K32: 1 | L32: EAS | N32: =IF($I32<>"Oui",$F32*2,($F32+ROUND(J32*$F32/SUM(COUNTRY_INFO!$E32:$G32),0))*2) -> 318052 | O32: =IF($I32<>"Oui",$G32*3,($G32+ROUND(J32*$G32/SUM(COUNTRY_INFO!$E32:$G32),0))*3) -> 964680 | P32: 1282732 | R32: 1282732
A33: =IF(INTRO!$E$43="Non endémique"," ", IF(COUNTRY_INFO!A33=0," ",COUNTRY_INFO!A33)) -> Guinée | B33: =IF(INTRO!$E$43="Non endémique"," ", IF(COUNTRY_INFO!B33=0," ",COUNTRY_INFO!B33)) -> Kindia | C33: =IF(INTRO!$E$43="Non endémique"," ", IF(COUNTRY_INFO!C33=0," ",COUNTRY_INFO!C33)) -> Telimele | D33: =IF(INTRO!$E$43="Non endémique", "Non requis", COUNTRY_INFO!Y33) -> 0 | E33: =IF(OR(COUNTRY_INFO!R33="Inconnu",COUNTRY_INFO!R33="Surveillance",COUNTRY_INFO!R33="Non requis",COUNTRY_INFO!R33=0),0,IF($D33<>0, COUNTRY_INFO!R33,0)) -> 0 | F33: =IF(OR(COUNTRY_INFO!S33="Inconnu",COUNTRY_INFO!S33="Surveillance",COUNTRY_INFO!S33="Non requis",COUNTRY_INFO!S33=0),0,IF($D33<>0, COUNTRY_INFO!S33,0)) -> 0 | G33: =IF(OR(COUNTRY_INFO!T33="Inconnu",COUNTRY_INFO!T33="Surveillance",COUNTRY_INFO!T33="Non requis",COUNTRY_INFO!T33=0),0,IF($D33<>0, COUNTRY_INFO!T33,0)) -> 0 | H33: 0 | K33: 0 | N33: =IF($I33<>"Oui",$F33*2,($F33+ROUND(J33*$F33/SUM(COUNTRY_INFO!$E33:$G33),0))*2) -> 0 | O33: =IF($I33<>"Oui",$G33*3,($G33+ROUND(J33*$G33/SUM(COUNTRY_INFO!$E33:$G33),0))*3) -> 0 | P33: 0 | R33: 0
A34: =IF(INTRO!$E$43="Non endémique"," ", IF(COUNTRY_INFO!A34=0," ",COUNTRY_INFO!A34)) -> Guinée | B34: =IF(INTRO!$E$43="Non endémique"," ", IF(COUNTRY_INFO!B34=0," ",COUNTRY_INFO!B34)) -> Labe | C34: =IF(INTRO!$E$43="Non endémique"," ", IF(COUNTRY_INFO!C34=0," ",COUNTRY_INFO!C34)) -> Koubia | D34: =IF(INTRO!$E$43="Non endémique", "Non requis", COUNTRY_INFO!Y34) -> 1 | E34: =IF(OR(COUNTRY_INFO!R34="Inconnu",COUNTRY_INFO!R34="Surveillance",COUNTRY_INFO!R34="Non requis",COUNTRY_INFO!R34=0),0,IF($D34<>0, COUNTRY_INFO!R34,0)) -> 15647 | F34: =IF(OR(COUNTRY_INFO!S34="Inconnu",COUNTRY_INFO!S34="Surveillance",COUNTRY_INFO!S34="Non requis",COUNTRY_INFO!S34=0),0,IF($D34<>0, COUNTRY_INFO!S34,0)) -> 36144 | G34: =IF(OR(COUNTRY_INFO!T34="Inconnu",COUNTRY_INFO!T34="Surveillance",COUNTRY_INFO!T34="Non requis",COUNTRY_INFO!T34=0),0,IF($D34<>0, COUNTRY_INFO!T34,0)) -> 73086 | H34: 124877 | K34: 1 | L34: EAS | N34: =IF($I34<>"Oui",$F34*2,($F34+ROUND(J34*$F34/SUM(COUNTRY_INFO!$E34:$G34),0))*2) -> 72288 | O34: =IF($I34<>"Oui",$G34*3,($G34+ROUND(J34*$G34/SUM(COUNTRY_INFO!$E34:$G34),0))*3) -> 219258 | P34: 291546 | R34: 291546
A35: =IF(INTRO!$E$43="Non endémique"," ", IF(COUNTRY_INFO!A35=0," ",COUNTRY_INFO!A35)) -> Guinée | B35: =IF(INTRO!$E$43="Non endémique"," ", IF(COUNTRY_INFO!B35=0," ",COUNTRY_INFO!B35)) -> Labe | C35: =IF(INTRO!$E$43="Non endémique"," ", IF(COUNTRY_INFO!C35=0," ",COUNTRY_INFO!C35)) -> Labe | D35: =IF(INTRO!$E$43="Non endémique", "Non requis", COUNTRY_INFO!Y35) -> 0 | E35: =IF(OR(COUNTRY_INFO!R35="Inconnu",COUNTRY_INFO!R35="Surveillance",COUNTRY_INFO!R35="Non requis",COUNTRY_INFO!R35=0),0,IF($D35<>0, COUNTRY_INFO!R35,0)) -> 0 | F35: =IF(OR(COUNTRY_INFO!S35="Inconnu",COUNTRY_INFO!S35="Surveillance",COUNTRY_INFO!S35="Non requis",COUNTRY_INFO!S35=0),0,IF($D35<>0, COUNTRY_INFO!S35,0)) -> 0 | G35: =IF(OR(COUNTRY_INFO!T35="Inconnu",COUNTRY_INFO!T35="Surveillance",COUNTRY_INFO!T35="Non requis",COUNTRY_INFO!T35=0),0,IF($D35<>0, COUNTRY_INFO!T35,0)) -> 0 | H35: 0 | K35: 0 | N35: =IF($I35<>"Oui",$F35*2,($F35+ROUND(J35*$F35/SUM(COUNTRY_INFO!$E35:$G35),0))*2) -> 0 | O35: =IF($I35<>"Oui",$G35*3,($G35+ROUND(J35*$G35/SUM(COUNTRY_INFO!$E35:$G35),0))*3) -> 0 | P35: 0 | R35: 0
A36: =IF(INTRO!$E$43="Non endémique"," ", IF(COUNTRY_INFO!A36=0," ",COUNTRY_INFO!A36)) -> Guinée | B36: =IF(INTRO!$E$43="Non endémique"," ", IF(COUNTRY_INFO!B36=0," ",COUNTRY_INFO!B36)) -> Labe | C36: =IF(INTRO!$E$43="Non endémique"," ", IF(COUNTRY_INFO!C36=0," ",COUNTRY_INFO!C36)) -> Lelouma | D36: =IF(INTRO!$E$43="Non endémique", "Non requis", COUNTRY_INFO!Y36) -> 1 | E36: =IF(OR(COUNTRY_INFO!R36="Inconnu",COUNTRY_INFO!R36="Surveillance",COUNTRY_INFO!R36="Non requis",COUNTRY_INFO!R36=0),0,IF($D36<>0, COUNTRY_INFO!R36,0)) -> 25547 | F36: =IF(OR(COUNTRY_INFO!S36="Inconnu",COUNTRY_INFO!S36="Surveillance",COUNTRY_INFO!S36="Non requis",COUNTRY_INFO!S36=0),0,IF($D36<>0, COUNTRY_INFO!S36,0)) -> 59011 | G36: =IF(OR(COUNTRY_INFO!T36="Inconnu",COUNTRY_INFO!T36="Surveillance",COUNTRY_INFO!T36="Non requis",COUNTRY_INFO!T36=0),0,IF($D36<>0, COUNTRY_INFO!T36,0)) -> 119324 | H36: 203882 | K36: 1 | L36: EAS | N36: =IF($I36<>"Oui",$F36*2,($F36+ROUND(J36*$F36/SUM(COUNTRY_INFO!$E36:$G36),0))*2) -> 118022 | O36: =IF($I36<>"Oui",$G36*3,($G36+ROUND(J36*$G36/SUM(COUNTRY_INFO!$E36:$G36),0))*3) -> 357972 | P36: 475994 | R36: 475994
A37: =IF(INTRO!$E$43="Non endémique"," ", IF(COUNTRY_INFO!A37=0," ",COUNTRY_INFO!A37)) -> Guinée | B37: =IF(INTRO!$E$43="Non endémique"," ", IF(COUNTRY_INFO!B37=0," ",COUNTRY_INFO!B37)) -> Labe | C37: =IF(INTRO!$E$43="Non endémique"," ", IF(COUNTRY_INFO!C37=0," ",COUNTRY_INFO!C37)) -> Mali | D37: =IF(INTRO!$E$43="Non endémique", "Non requis", COUNTRY_INFO!Y37) -> 0 | E37: =IF(OR(COUNTRY_INFO!R37="Inconnu",COUNTRY_INFO!R37="Surveillance",COUNTRY_INFO!R37="Non requis",COUNTRY_INFO!R37=0),0,IF($D37<>0, COUNTRY_INFO!R37,0)) -> 0 | F37: =IF(OR(COUNTRY_INFO!S37="Inconnu",COUNTRY_INFO!S37="Surveillance",COUNTRY_INFO!S37="Non requis",COUNTRY_INFO!S37=0),0,IF($D37<>0, COUNTRY_INFO!S37,0)) -> 0 | G37: =IF(OR(COUNTRY_INFO!T37="Inconnu",COUNTRY_INFO!T37="Surveillance",COUNTRY_INFO!T37="Non requis",COUNTRY_INFO!T37=0),0,IF($D37<>0, COUNTRY_INFO!T37,0)) -> 0 | H37: 0 | K37: 0 | N37: =IF($I37<>"Oui",$F37*2,($F37+ROUND(J37*$F37/SUM(COUNTRY_INFO!$E37:$G37),0))*2) -> 0 | O37: =IF($I37<>"Oui",$G37*3,($G37+ROUND(J37*$G37/SUM(COUNTRY_INFO!$E37:$G37),0))*3) -> 0 | P37: 0 | R37: 0
A38: =IF(INTRO!$E$43="Non endémique"," ", IF(COUNTRY_INFO!A38=0," ",COUNTRY_INFO!A38)) -> Guinée | B38: =IF(INTRO!$E$43="Non endémique"," ", IF(COUNTRY_INFO!B38=0," ",COUNTRY_INFO!B38)) -> Labe | C38: =IF(INTRO!$E$43="Non endémique"," ", IF(COUNTRY_INFO!C38=0," ",COUNTRY_INFO!C38)) -> Tougue | D38: =IF(INTRO!$E$43="Non endémique", "Non requis", COUNTRY_INFO!Y38) -> 0 | E38: =IF(OR(COUNTRY_INFO!R38="Inconnu",COUNTRY_INFO!R38="Surveillance",COUNTRY_INFO!R38="Non requis",COUNTRY_INFO!R38=0),0,IF($D38<>0, COUNTRY_INFO!R38,0)) -> 0 | F38: =IF(OR(COUNTRY_INFO!S38="Inconnu",COUNTRY_INFO!S38="Surveillance",COUNTRY_INFO!S38="Non requis",COUNTRY_INFO!S38=0),0,IF($D38<>0, COUNTRY_INFO!S38,0)) -> 0 | G38: =IF(OR(COUNTRY_INFO!T38="Inconnu",COUNTRY_INFO!T38="Surveillance",COUNTRY_INFO!T38="Non requis",COUNTRY_INFO!T38=0),0,IF($D38<>0, COUNTRY_INFO!T38,0)) -> 0 | H38: 0 | K38: 0 | N38: =IF($I38<>"Oui",$F38*2,($F38+ROUND(J38*$F38/SUM(COUNTRY_INFO!$E38:$G38),0))*2) -> 0 | O38: =IF($I38<>"Oui",$G38*3,($G38+ROUND(J38*$G38/SUM(COUNTRY_INFO!$E38:$G38),0))*3) -> 0 | P38: 0 | R38: 0
A39: =IF(INTRO!$E$43="Non endémique"," ", IF(COUNTRY_INFO!A39=0," ",COUNTRY_INFO!A39)) -> Guinée | B39: =IF(INTRO!$E$43="Non endémique"," ", IF(COUNTRY_INFO!B39=0," ",COUNTRY_INFO!B39)) -> Mamou | C39: =IF(INTRO!$E$43="Non endémique"," ", IF(COUNTRY_INFO!C39=0," ",COUNTRY_INFO!C39)) -> Dalaba | D39: =IF(INTRO!$E$43="Non endémique", "Non requis", COUNTRY_INFO!Y39) -> 0 | E39: =IF(OR(COUNTRY_INFO!R39="Inconnu",COUNTRY_INFO!R39="Surveillance",COUNTRY_INFO!R39="Non requis",COUNTRY_INFO!R39=0),0,IF($D39<>0, COUNTRY_INFO!R39,0)) -> 0 | F39: =IF(OR(COUNTRY_INFO!S39="Inconnu",COUNTRY_INFO!S39="Surveillance",COUNTRY_INFO!S39="Non requis",COUNTRY_INFO!S39=0),0,IF($D39<>0, COUNTRY_INFO!S39,0)) -> 0 | G39: =IF(OR(COUNTRY_INFO!T39="Inconnu",COUNTRY_INFO!T39="Surveillance",COUNTRY_INFO!T39="Non requis",COUNTRY_INFO!T39=0),0,IF($D39<>0, COUNTRY_INFO!T39,0)) -> 0 | H39: 0 | K39: 0 | N39: =IF($I39<>"Oui",$F39*2,($F39+ROUND(J39*$F39/SUM(COUNTRY_INFO!$E39:$G39),0))*2) -> 0 | O39: =IF($I39<>"Oui",$G39*3,($G39+ROUND(J39*$G39/SUM(COUNTRY_INFO!$E39:$G39),0))*3) -> 0 | P39: 0 | R39: 0
A40: =IF(INTRO!$E$43="Non endémique"," ", IF(COUNTRY_INFO!A40=0," ",COUNTRY_INFO!A40)) -> Guinée | B40: =IF(INTRO!$E$43="Non endémique"," ", IF(COUNTRY_INFO!B40=0," ",COUNTRY_INFO!B40)) -> Mamou | C40: =IF(INTRO!$E$43="Non endémique"," ", IF(COUNTRY_INFO!C40=0," ",COUNTRY_INFO!C40)) -> Mamou | D40: =IF(INTRO!$E$43="Non endémique", "Non requis", COUNTRY_INFO!Y40) -> 1 | E40: =IF(OR(COUNTRY_INFO!R40="Inconnu",COUNTRY_INFO!R40="Surveillance",COUNTRY_INFO!R40="Non requis",COUNTRY_INFO!R40=0),0,IF($D40<>0, COUNTRY_INFO!R40,0)) -> 50000 | F40: =IF(OR(COUNTRY_INFO!S40="Inconnu",COUNTRY_INFO!S40="Surveillance",COUNTRY_INFO!S40="Non requis",COUNTRY_INFO!S40=0),0,IF($D40<>0, COUNTRY_INFO!S40,0)) -> 115500 | G40: =IF(OR(COUNTRY_INFO!T40="Inconnu",COUNTRY_INFO!T40="Surveillance",COUNTRY_INFO!T40="Non requis",COUNTRY_INFO!T40=0),0,IF($D40<>0, COUNTRY_INFO!T40,0)) -> 233548 | H40: 399048 | K40: 1 | L40: EAS | N40: =IF($I40<>"Oui",$F40*2,($F40+ROUND(J40*$F40/SUM(COUNTRY_INFO!$E40:$G40),0))*2) -> 231000 | O40: =IF($I40<>"Oui",$G40*3,($G40+ROUND(J40*$G40/SUM(COUNTRY_INFO!$E40:$G40),0))*3) -> 700644 | P40: 931644 | R40: 931644
A41: =IF(INTRO!$E$43="Non endémique"," ", IF(COUNTRY_INFO!A41=0," ",COUNTRY_INFO!A41)) -> Guinée | B41: =IF(INTRO!$E$43="Non endémique"," ", IF(COUNTRY_INFO!B41=0," ",COUNTRY_INFO!B41)) -> Mamou | C41: =IF(INTRO!$E$43="Non endémique"," ", IF(COUNTRY_INFO!C41=0," ",COUNTRY_INFO!C41)) -> Pita | D41: =IF(INTRO!$E$43="Non endémique", "Non requis", COUNTRY_INFO!Y41) -> 0 | E41: =IF(OR(COUNTRY_INFO!R41="Inconnu",COUNTRY_INFO!R41="Surveillance",COUNTRY_INFO!R41="Non requis",COUNTRY_INFO!R41=0),0,IF($D41<>0, COUNTRY_INFO!R41,0)) -> 0 | F41: =IF(OR(COUNTRY_INFO!S41="Inconnu",COUNTRY_INFO!S41="Surveillance",COUNTRY_INFO!S41="Non requis",COUNTRY_INFO!S41=0),0,IF($D41<>0, COUNTRY_INFO!S41,0)) -> 0 | G41: =IF(OR(COUNTRY_INFO!T41="Inconnu",COUNTRY_INFO!T41="Surveillance",COUNTRY_INFO!T41="Non requis",COUNTRY_INFO!T41=0),0,IF($D41<>0, COUNTRY_INFO!T41,0)) -> 0 | H41: 0 | K41: 0 | N41: =IF($I41<>"Oui",$F41*2,($F41+ROUND(J41*$F41/SUM(COUNTRY_INFO!$E41:$G41),0))*2) -> 0 | O41: =IF($I41<>"Oui",$G41*3,($G41+ROUND(J41*$G41/SUM(COUNTRY_INFO!$E41:$G41),0))*3) -> 0 | P41: 0 | R41: 0
A42: =IF(INTRO!$E$43="Non endémique"," ", IF(COUNTRY_INFO!A42=0," ",COUNTRY_INFO!A42)) -> Guinée | B42: =IF(INTRO!$E$43="Non endémique"," ", IF(COUNTRY_INFO!B42=0," ",COUNTRY_INFO!B42)) -> N'Zerekore | C42: =IF(INTRO!$E$43="Non endémique"," ", IF(COUNTRY_INFO!C42=0," ",COUNTRY_INFO!C42)) -> Beyla | D42: =IF(INTRO!$E$43="Non endémique", "Non requis", COUNTRY_INFO!Y42) -> 1 | E42: =IF(OR(COUNTRY_INFO!R42="Inconnu",COUNTRY_INFO!R42="Surveillance",COUNTRY_INFO!R42="Non requis",COUNTRY_INFO!R42=0),0,IF($D42<>0, COUNTRY_INFO!R42,0)) -> 51143 | F42: =IF(OR(COUNTRY_INFO!S42="Inconnu",COUNTRY_INFO!S42="Surveillance",COUNTRY_INFO!S42="Non requis",COUNTRY_INFO!S42=0),0,IF($D42<>0, COUNTRY_INFO!S42,0)) -> 118139 | G42: =IF(OR(COUNTRY_INFO!T42="Inconnu",COUNTRY_INFO!T42="Surveillance",COUNTRY_INFO!T42="Non requis",COUNTRY_INFO!T42=0),0,IF($D42<>0, COUNTRY_INFO!T42,0)) -> 238884 | H42: 408166 | K42: 1 | L42: EAS | N42: =IF($I42<>"Oui",$F42*2,($F42+ROUND(J42*$F42/SUM(COUNTRY_INFO!$E42:$G42),0))*2) -> 236278 | O42: =IF($I42<>"Oui",$G42*3,($G42+ROUND(J42*$G42/SUM(COUNTRY_INFO!$E42:$G42),0))*3) -> 716652 | P42: 952930 | R42: 952930
A43: =IF(INTRO!$E$43="Non endémique"," ", IF(COUNTRY_INFO!A43=0," ",COUNTRY_INFO!A43)) -> Guinée | B43: =IF(INTRO!$E$43="Non endémique"," ", IF(COUNTRY_INFO!B43=0," ",COUNTRY_INFO!B43)) -> N'Zerekore | C43: =IF(INTRO!$E$43="Non endémique"," ", IF(COUNTRY_INFO!C43=0," ",COUNTRY_INFO!C43)) -> Gueckedou | D43: =IF(INTRO!$E$43="Non endémique", "Non requis", COUNTRY_INFO!Y43) -> 1 | E43: =IF(OR(COUNTRY_INFO!R43="Inconnu",COUNTRY_INFO!R43="Surveillance",COUNTRY_INFO!R43="Non requis",COUNTRY_INFO!R43=0),0,IF($D43<>0, COUNTRY_INFO!R43,0)) -> 45549 | F43: =IF(OR(COUNTRY_INFO!S43="Inconnu",COUNTRY_INFO!S43="Surveillance",COUNTRY_INFO!S43="Non requis",COUNTRY_INFO!S43=0),0,IF($D43<>0, COUNTRY_INFO!S43,0)) -> 105217 | G43: =IF(OR(COUNTRY_INFO!T43="Inconnu",COUNTRY_INFO!T43="Surveillance",COUNTRY_INFO!T43="Non requis",COUNTRY_INFO!T43=0),0,IF($D43<>0, COUNTRY_INFO!T43,0)) -> 212756 | H43: 363522 | K43: 1 | L43: EAS | N43: =IF($I43<>"Oui",$F43*2,($F43+ROUND(J43*$F43/SUM(COUNTRY_INFO!$E43:$G43),0))*2) -> 210434 | O43: =IF($I43<>"Oui",$G43*3,($G43+ROUND(J43*$G43/SUM(COUNTRY_INFO!$E43:$G43),0))*3) -> 638268 | P43: 848702 | R43: 848702
A44: =IF(INTRO!$E$43="Non endémique"," ", IF(COUNTRY_INFO!A44=0," ",COUNTRY_INFO!A44)) -> Guinée | B44: =IF(INTRO!$E$43="Non endémique"," ", IF(COUNTRY_INFO!B44=0," ",COUNTRY_INFO!B44)) -> N'Zerekore | C44: =IF(INTRO!$E$43="Non endémique"," ", IF(COUNTRY_INFO!C44=0," ",COUNTRY_INFO!C44)) -> Lola | D44: =IF(INTRO!$E$43="Non endémique", "Non requis", COUNTRY_INFO!Y44) -> 1 | E44: =IF(OR(COUNTRY_INFO!R44="Inconnu",COUNTRY_INFO!R44="Surveillance",COUNTRY_INFO!R44="Non requis",COUNTRY_INFO!R44=0),0,IF($D44<>0, COUNTRY_INFO!R44,0)) -> 26908 | F44: =IF(OR(COUNTRY_INFO!S44="Inconnu",COUNTRY_INFO!S44="Surveillance",COUNTRY_INFO!S44="Non requis",COUNTRY_INFO!S44=0),0,IF($D44<>0, COUNTRY_INFO!S44,0)) -> 62156 | G44: =IF(OR(COUNTRY_INFO!T44="Inconnu",COUNTRY_INFO!T44="Surveillance",COUNTRY_INFO!T44="Non requis",COUNTRY_INFO!T44=0),0,IF($D44<>0, COUNTRY_INFO!T44,0)) -> 125682 | H44: 214746 | K44: 1 | L44: EAS | N44: =IF($I44<>"Oui",$F44*2,($F44+ROUND(J44*$F44/SUM(COUNTRY_INFO!$E44:$G44),0))*2) -> 124312 | O44: =IF($I44<>"Oui",$G44*3,($G44+ROUND(J44*$G44/SUM(COUNTRY_INFO!$E44:$G44),0))*3) -> 377046 | P44: 501358 | R44: 501358
A45: =IF(INTRO!$E$43="Non endémique"," ", IF(COUNTRY_INFO!A45=0," ",COUNTRY_INFO!A45)) -> Guinée | B45: =IF(INTRO!$E$43="Non endémique"," ", IF(COUNTRY_INFO!B45=0," ",COUNTRY_INFO!B45)) -> N'Zerekore | C45: =IF(INTRO!$E$43="Non endémique"," ", IF(COUNTRY_INFO!C45=0," ",COUNTRY_INFO!C45)) -> Macenta | D45: =IF(INTRO!$E$43="Non endémique", "Non requis", COUNTRY_INFO!Y45) -> 1 | E45: =IF(OR(COUNTRY_INFO!R45="Inconnu",COUNTRY_INFO!R45="Surveillance",COUNTRY_INFO!R45="Non requis",COUNTRY_INFO!R45=0),0,IF($D45<>0, COUNTRY_INFO!R45,0)) -> 43669 | F45: =IF(OR(COUNTRY_INFO!S45="Inconnu",COUNTRY_INFO!S45="Surveillance",COUNTRY_INFO!S45="Non requis",COUNTRY_INFO!S45=0),0,IF($D45<>0, COUNTRY_INFO!S45,0)) -> 100874 | G45: =IF(OR(COUNTRY_INFO!T45="Inconnu",COUNTRY_INFO!T45="Surveillance",COUNTRY_INFO!T45="Non requis",COUNTRY_INFO!T45=0),0,IF($D45<>0, COUNTRY_INFO!T45,0)) -> 203972 | H45: 348515 | K45: 1 | L45: EAS | N45: =IF($I45<>"Oui",$F45*2,($F45+ROUND(J45*$F45/SUM(COUNTRY_INFO!$E45:$G45),0))*2) -> 201748 | O45: =IF($I45<>"Oui",$G45*3,($G45+ROUND(J45*$G45/SUM(COUNTRY_INFO!$E45:$G45),0))*3) -> 611916 | P45: 813664 | R45: 813664
A46: =IF(INTRO!$E$43="Non endémique"," ", IF(COUNTRY_INFO!A46=0," ",COUNTRY_INFO!A46)) -> Guinée | B46: =IF(INTRO!$E$43="Non endémique"," ", IF(COUNTRY_INFO!B46=0," ",COUNTRY_INFO!B46)) -> N'Zerekore | C46: =IF(INTRO!$E$43="Non endémique"," ", IF(COUNTRY_INFO!C46=0," ",COUNTRY_INFO!C46)) -> N'Zerekore | D46: =IF(INTRO!$E$43="Non endémique", "Non requis", COUNTRY_INFO!Y46) -> 1 | E46: =IF(OR(COUNTRY_INFO!R46="Inconnu",COUNTRY_INFO!R46="Surveillance",COUNTRY_INFO!R46="Non requis",COUNTRY_INFO!R46=0),0,IF($D46<>0, COUNTRY_INFO!R46,0)) -> 62171 | F46: =IF(OR(COUNTRY_INFO!S46="Inconnu",COUNTRY_INFO!S46="Surveillance",COUNTRY_INFO!S46="Non requis",COUNTRY_INFO!S46=0),0,IF($D46<>0, COUNTRY_INFO!S46,0)) -> 143615 | G46: =IF(OR(COUNTRY_INFO!T46="Inconnu",COUNTRY_INFO!T46="Surveillance",COUNTRY_INFO!T46="Non requis",COUNTRY_INFO!T46=0),0,IF($D46<>0, COUNTRY_INFO!T46,0)) -> 290397 | H46: 496183 | K46: 1 | L46: EAS | N46: =IF($I46<>"Oui",$F46*2,($F46+ROUND(J46*$F46/SUM(COUNTRY_INFO!$E46:$G46),0))*2) -> 287230 | O46: =IF($I46<>"Oui",$G46*3,($G46+ROUND(J46*$G46/SUM(COUNTRY_INFO!$E46:$G46),0))*3) -> 871191 | P46: 1158421 | R46: 1158421
A47: =IF(INTRO!$E$43="Non endémique"," ", IF(COUNTRY_INFO!A47=0," ",COUNTRY_INFO!A47)) -> Guinée | B47: =IF(INTRO!$E$43="Non endémique"," ", IF(COUNTRY_INFO!B47=0," ",COUNTRY_INFO!B47)) -> N'Zerekore | C47: =IF(INTRO!$E$43="Non endémique"," ", IF(COUNTRY_INFO!C47=0," ",COUNTRY_INFO!C47)) -> Yomou | D47: =IF(INTRO!$E$43="Non endémique", "Non requis", COUNTRY_INFO!Y47) -> 1 | E47: =IF(OR(COUNTRY_INFO!R47="Inconnu",COUNTRY_INFO!R47="Surveillance",COUNTRY_INFO!R47="Non requis",COUNTRY_INFO!R47=0),0,IF($D47<>0, COUNTRY_INFO!R47,0)) -> 17926 | F47: =IF(OR(COUNTRY_INFO!S47="Inconnu",COUNTRY_INFO!S47="Surveillance",COUNTRY_INFO!S47="Non requis",COUNTRY_INFO!S47=0),0,IF($D47<>0, COUNTRY_INFO!S47,0)) -> 41408 | G47: =IF(OR(COUNTRY_INFO!T47="Inconnu",COUNTRY_INFO!T47="Surveillance",COUNTRY_INFO!T47="Non requis",COUNTRY_INFO!T47=0),0,IF($D47<>0, COUNTRY_INFO!T47,0)) -> 83730 | H47: 143064 | K47: 1 | L47: EAS | N47: =IF($I47<>"Oui",$F47*2,($F47+ROUND(J47*$F47/SUM(COUNTRY_INFO!$E47:$G47),0))*2) -> 82816 | O47: =IF($I47<>"Oui",$G47*3,($G47+ROUND(J47*$G47/SUM(COUNTRY_INFO!$E47:$G47),0))*3) -> 251190 | P47: 334006 | R47: 334006

Sheet IVM
A1: Ivermectine (IVM)
A2: Structure administrative, population ciblée par groupe d'âge, plan de traitement et information sur les comprimés
A4: TOTAL | D4: =SUBTOTAL(9,D$10:D$1010) -> 7396356 | G4: =SUBTOTAL(9,G$10:G$1010) -> 3993901 | H4: 7092047 | I4: 852065.2 | J4: 9526874 | K4: 10330857.6 | L4: 20709796.8 | M4: 0 | N4: 20709796.8
A6: Structure administrative du pays | D6: Population nécessitant un traitement avec IVM | E6: Plan de traitement | G6: Population cible | I6: Ivermectine (IVM)
A7: Pays | B7: Région/Département | C7: District | E7: FL | F7: Oncho | G7: FL | H7: Oncho | I7: FL uniquement | J7: Oncho uniquement | K7: FL+Oncho | L7: Total requis | M7: Reste en stock | N7: Comprimés devant être fournis
A10: =IF(INTRO!$E$39="Non endémique"," ",IF(COUNTRY_INFO!A10=0," ",COUNTRY_INFO!A10)) -> Guinée | B10: =IF(INTRO!$E$39="Non endémique"," ",IF(COUNTRY_INFO!B10=0," ",COUNTRY_INFO!B10)) -> Boke | C10: =IF(INTRO!$E$39="Non endémique"," ",IF(COUNTRY_INFO!C10=0," ",COUNTRY_INFO!C10)) -> Boffa | D10: =IF(INTRO!$E$39="Non endémique",0,IF(INTRO!$E$39="Endémique mais pas de CP",IF(COUNTRY_INFO!$H10=1,COUNTRY_INFO!F10+COUNTRY_INFO!G10,0),IF(COUNTRY_INFO!$H10=1,COUNTRY_INFO!F10+COUNTRY_INFO!G10,IF(COUNTRY_INFO!$I10=1,IF(COUNTRY_INFO!M10>=(COUNTRY_INFO!F10+COUNTRY_INFO!G10),COUNTRY_INFO!F10+COUNTRY_INFO!G10,COUNTRY_INFO!$M10),0)))) -> 0 | E10: =IF(AND(INTRO!$E$39="Non endémique",INTRO!$E$37="Non endémique"),"Non requis",IF(INTRO!$E$39="Non endémique","Traiter avec DEC",COUNTRY_INFO!V10)) -> 0 | F10: =IF(INTRO!$E$39<>"Non endémique",COUNTRY_INFO!W10,"Non requis") -> 0 | G10: =IF(COUNTRY_INFO!H10=1, IF($E10=1,$D10, 0),0) -> 0 | H10: =IF(COUNTRY_INFO!I10=1, IF(AND(COUNTRY_INFO!$I10=1,$F10<>0),IF(COUNTRY_INFO!M10>=(COUNTRY_INFO!F10+COUNTRY_INFO!G10),COUNTRY_INFO!F10+COUNTRY_INFO!G10,COUNTRY_INFO!$M10), 0),0) -> 0 | I10: =IF(G10<H10,0,IF($E10=1, (G10-H10)*2.8, 0)) -> 0 | J10: =IF($E10<$F10, H10*(F10-E10)*2.8, 0) -> 0 | K10: =IF(AND($E10=1, $F10<>0), H10*2.8, 0) -> 0 | L10: =SUM(I10:K10) -> 0 | N10: =IF($L10>$M10,$L10-$M10,0) -> 0
A11: =IF(INTRO!$E$39="Non endémique"," ",IF(COUNTRY_INFO!A11=0," ",COUNTRY_INFO!A11)) -> Guinée | B11: =IF(INTRO!$E$39="Non endémique"," ",IF(COUNTRY_INFO!B11=0," ",COUNTRY_INFO!B11)) -> Boke | C11: =IF(INTRO!$E$39="Non endémique"," ",IF(COUNTRY_INFO!C11=0," ",COUNTRY_INFO!C11)) -> Boke | D11: =IF(INTRO!$E$39="Non endémique",0,IF(INTRO!$E$39="Endémique mais pas de CP",IF(COUNTRY_INFO!$H11=1,COUNTRY_INFO!F11+COUNTRY_INFO!G11,0),IF(COUNTRY_INFO!$H11=1,COUNTRY_INFO!F11+COUNTRY_INFO!G11,IF(COUNTRY_INFO!$I11=1,IF(COUNTRY_INFO!M11>=(COUNTRY_INFO!F11+COUNTRY_INFO!G11),COUNTRY_INFO!F11+COUNTRY_INFO!G11,COUNTRY_INFO!$M11),0)))) -> 0 | E11: =IF(AND(INTRO!$E$39="Non endémique",INTRO!$E$37="Non endémique"),"Non requis",IF(INTRO!$E$39="Non endémique","Traiter avec DEC",COUNTRY_INFO!V11)) -> 0 | F11: =IF(INTRO!$E$39<>"Non endémique",COUNTRY_INFO!W11,"Non requis") -> 0 | G11: =IF(COUNTRY_INFO!H11=1, IF($E11=1,$D11, 0),0) -> 0 | H11: =IF(COUNTRY_INFO!I11=1, IF(AND(COUNTRY_INFO!$I11=1,$F11<>0),IF(COUNTRY_INFO!M11>=(COUNTRY_INFO!F11+COUNTRY_INFO!G11),COUNTRY_INFO!F11+COUNTRY_INFO!G11,COUNTRY_INFO!$M11), 0),0) -> 0 | I11: 0 | J11: 0 | K11: =IF(AND($E11=1, $F11<>0), H11*2.8, 0) -> 0 | L11: =SUM(I11:K11) -> 0 | N11: 0
A12: =IF(INTRO!$E$39="Non endémique"," ",IF(COUNTRY_INFO!A12=0," ",COUNTRY_INFO!A12)) -> Guinée | B12: =IF(INTRO!$E$39="Non endémique"," ",IF(COUNTRY_INFO!B12=0," ",COUNTRY_INFO!B12)) -> Boke | C12: =IF(INTRO!$E$39="Non endémique"," ",IF(COUNTRY_INFO!C12=0," ",COUNTRY_INFO!C12)) -> Fria | D12: =IF(INTRO!$E$39="Non endémique",0,IF(INTRO!$E$39="Endémique mais pas de CP",IF(COUNTRY_INFO!$H12=1,COUNTRY_INFO!F12+COUNTRY_INFO!G12,0),IF(COUNTRY_INFO!$H12=1,COUNTRY_INFO!F12+COUNTRY_INFO!G12,IF(COUNTRY_INFO!$I12=1,IF(COUNTRY_INFO!M12>=(COUNTRY_INFO!F12+COUNTRY_INFO!G12),COUNTRY_INFO!F12+COUNTRY_INFO!G12,COUNTRY_INFO!$M12),0)))) -> 0 | E12: =IF(AND(INTRO!$E$39="Non endémique",INTRO!$E$37="Non endémique"),"Non requis",IF(INTRO!$E$39="Non endémique","Traiter avec DEC",COUNTRY_INFO!V12)) -> 0 | F12: =IF(INTRO!$E$39<>"Non endémique",COUNTRY_INFO!W12,"Non requis") -> 0 | G12: =IF(COUNTRY_INFO!H12=1, IF($E12=1,$D12, 0),0) -> 0 | H12: =IF(COUNTRY_INFO!I12=1, IF(AND(COUNTRY_INFO!$I12=1,$F12<>0),IF(COUNTRY_INFO!M12>=(COUNTRY_INFO!F12+COUNTRY_INFO!G12),COUNTRY_INFO!F12+COUNTRY_INFO!G12,COUNTRY_INFO!$M12), 0),0) -> 0 | I12: 0 | J12: 0 | K12: 0 | L12: 0 | N12: 0
A13: =IF(INTRO!$E$39="Non endémique"," ",IF(COUNTRY_INFO!A13=0," ",COUNTRY_INFO!A13)) -> Guinée | B13: =IF(INTRO!$E$39="Non endémique"," ",IF(COUNTRY_INFO!B13=0," ",COUNTRY_INFO!B13)) -> Boke | C13: =IF(INTRO!$E$39="Non endémique"," ",IF(COUNTRY_INFO!C13=0," ",COUNTRY_INFO!C13)) -> Gaoual | D13: =IF(INTRO!$E$39="Non endémique",0,IF(INTRO!$E$39="Endémique mais pas de CP",IF(COUNTRY_INFO!$H13=1,COUNTRY_INFO!F13+COUNTRY_INFO!G13,0),IF(COUNTRY_INFO!$H13=1,COUNTRY_INFO!F13+COUNTRY_INFO!G13,IF(COUNTRY_INFO!$I13=1,IF(COUNTRY_INFO!M13>=(COUNTRY_INFO!F13+COUNTRY_INFO!G13),COUNTRY_INFO!F13+COUNTRY_INFO!G13,COUNTRY_INFO!$M13),0)))) -> 211946 | E13: =IF(AND(INTRO!$E$39="Non endémique",INTRO!$E$37="Non endémique"),"Non requis",IF(INTRO!$E$39="Non endémique","Traiter avec DEC",COUNTRY_INFO!V13)) -> 1 | F13: =IF(INTRO!$E$39<>"Non endémique",COUNTRY_INFO!W13,"Non requis") -> 1 | G13: =IF(COUNTRY_INFO!H13=1, IF($E13=1,$D13, 0),0) -> 211946 | H13: =IF(COUNTRY_INFO!I13=1, IF(AND(COUNTRY_INFO!$I13=1,$F13<>0),IF(COUNTRY_INFO!M13>=(COUNTRY_INFO!F13+COUNTRY_INFO!G13),COUNTRY_INFO!F13+COUNTRY_INFO!G13,COUNTRY_INFO!$M13), 0),0) -> 211946 | I13: 0 | J13: 0 | K13: 593448.8 | L13: 593448.8 | N13: 593448.8
A14: =IF(INTRO!$E$39="Non endémique"," ",IF(COUNTRY_INFO!A14=0," ",COUNTRY_INFO!A14)) -> Guinée | B14: =IF(INTRO!$E$39="Non endémique"," ",IF(COUNTRY_INFO!B14=0," ",COUNTRY_INFO!B14)) -> Boke | C14: =IF(INTRO!$E$39="Non endémique"," ",IF(COUNTRY_INFO!C14=0," ",COUNTRY_INFO!C14)) -> Koundara | D14: =IF(INTRO!$E$39="Non endémique",0,IF(INTRO!$E$39="Endémique mais pas de CP",IF(COUNTRY_INFO!$H14=1,COUNTRY_INFO!F14+COUNTRY_INFO!G14,0),IF(COUNTRY_INFO!$H14=1,COUNTRY_INFO!F14+COUNTRY_INFO!G14,IF(COUNTRY_INFO!$I14=1,IF(COUNTRY_INFO!M14>=(COUNTRY_INFO!F14+COUNTRY_INFO!G14),COUNTRY_INFO!F14+COUNTRY_INFO!G14,COUNTRY_INFO!$M14),0)))) -> 142194 | E14: =IF(AND(INTRO!$E$39="Non endémique",INTRO!$E$37="Non endémique"),"Non requis",IF(INTRO!$E$39="Non endémique","Traiter avec DEC",COUNTRY_INFO!V14)) -> 1 | F14: =IF(INTRO!$E$39<>"Non endémique",COUNTRY_INFO!W14,"Non requis") -> 1 | G14: =IF(COUNTRY_INFO!H14=1, IF($E14=1,$D14, 0),0) -> 142194 | H14: =IF(COUNTRY_INFO!I14=1, IF(AND(COUNTRY_INFO!$I14=1,$F14<>0),IF(COUNTRY_INFO!M14>=(COUNTRY_INFO!F14+COUNTRY_INFO!G14),COUNTRY_INFO!F14+COUNTRY_INFO!G14,COUNTRY_INFO!$M14), 0),0) -> 142194 | I14: 0 | J14: 0 | K14: 398143.2 | L14: 398143.2 | N14: 398143.2
A15: =IF(INTRO!$E$39="Non endémique"," ",IF(COUNTRY_INFO!A15=0," ",COUNTRY_INFO!A15)) -> Guinée | B15: =IF(INTRO!$E$39="Non endémique"," ",IF(COUNTRY_INFO!B15=0," ",COUNTRY_INFO!B15)) -> Conakry | C15: =IF(INTRO!$E$39="Non endémique"," ",IF(COUNTRY_INFO!C15=0," ",COUNTRY_INFO!C15)) -> Dixinn | D15: =IF(INTRO!$E$39="Non endémique",0,IF(INTRO!$E$39="Endémique mais pas de CP",IF(COUNTRY_INFO!$H15=1,COUNTRY_INFO!F15+COUNTRY_INFO!G15,0),IF(COUNTRY_INFO!$H15=1,COUNTRY_INFO!F15+COUNTRY_INFO!G15,IF(COUNTRY_INFO!$I15=1,IF(COUNTRY_INFO!M15>=(COUNTRY_INFO!F15+COUNTRY_INFO!G15),COUNTRY_INFO!F15+COUNTRY_INFO!G15,COUNTRY_INFO!$M15),0)))) -> 0 | E15: =IF(AND(INTRO!$E$39="Non endémique",INTRO!$E$37="Non endémique"),"Non requis",IF(INTRO!$E$39="Non endémique","Traiter avec DEC",COUNTRY_INFO!V15)) -> 0 | F15: =IF(INTRO!$E$39<>"Non endémique",COUNTRY_INFO!W15,"Non requis") -> 0 | G15: =IF(COUNTRY_INFO!H15=1, IF($E15=1,$D15, 0),0) -> 0 | H15: =IF(COUNTRY_INFO!I15=1, IF(AND(COUNTRY_INFO!$I15=1,$F15<>0),IF(COUNTRY_INFO!M15>=(COUNTRY_INFO!F15+COUNTRY_INFO!G15),COUNTRY_INFO!F15+COUNTRY_INFO!G15,COUNTRY_INFO!$M15), 0),0) -> 0 | I15: 0 | J15: 0 | K15: 0 | L15: 0 | N15: 0
A16: =IF(INTRO!$E$39="Non endémique"," ",IF(COUNTRY_INFO!A16=0," ",COUNTRY_INFO!A16)) -> Guinée | B16: =IF(INTRO!$E$39="Non endémique"," ",IF(COUNTRY_INFO!B16=0," ",COUNTRY_INFO!B16)) -> Conakry | C16: =IF(INTRO!$E$39="Non endémique"," ",IF(COUNTRY_INFO!C16=0," ",COUNTRY_INFO!C16)) -> Kaloum | D16: =IF(INTRO!$E$39="Non endémique",0,IF(INTRO!$E$39="Endémique mais pas de CP",IF(COUNTRY_INFO!$H16=1,COUNTRY_INFO!F16+COUNTRY_INFO!G16,0),IF(COUNTRY_INFO!$H16=1,COUNTRY_INFO!F16+COUNTRY_INFO!G16,IF(COUNTRY_INFO!$I16=1,IF(COUNTRY_INFO!M16>=(COUNTRY_INFO!F16+COUNTRY_INFO!G16),COUNTRY_INFO!F16+COUNTRY_INFO!G16,COUNTRY_INFO!$M16),0)))) -> 0 | E16: =IF(AND(INTRO!$E$39="Non endémique",INTRO!$E$37="Non endémique"),"Non requis",IF(INTRO!$E$39="Non endémique","Traiter avec DEC",COUNTRY_INFO!V16)) -> 0 | F16: =IF(INTRO!$E$39<>"Non endémique",COUNTRY_INFO!W16,"Non requis") -> 0 | G16: =IF(COUNTRY_INFO!H16=1, IF($E16=1,$D16, 0),0) -> 0 | H16: =IF(COUNTRY_INFO!I16=1, IF(AND(COUNTRY_INFO!$I16=1,$F16<>0),IF(COUNTRY_INFO!M16>=(COUNTRY_INFO!F16+COUNTRY_INFO!G16),COUNTRY_INFO!F16+COUNTRY_INFO!G16,COUNTRY_INFO!$M16), 0),0) -> 0 | I16: 0 | J16: 0 | K16: 0 | L16: 0 | N16: 0
A17: =IF(INTRO!$E$39="Non endémique"," ",IF(COUNTRY_INFO!A17=0," ",COUNTRY_INFO!A17)) -> Guinée | B17: =IF(INTRO!$E$39="Non endémique"," ",IF(COUNTRY_INFO!B17=0," ",COUNTRY_INFO!B17)) -> Conakry | C17: =IF(INTRO!$E$39="Non endémique"," ",IF(COUNTRY_INFO!C17=0," ",COUNTRY_INFO!C17)) -> Matam | D17: =IF(INTRO!$E$39="Non endémique",0,IF(INTRO!$E$39="Endémique mais pas de CP",IF(COUNTRY_INFO!$H17=1,COUNTRY_INFO!F17+COUNTRY_INFO!G17,0),IF(COUNTRY_INFO!$H17=1,COUNTRY_INFO!F17+COUNTRY_INFO!G17,IF(COUNTRY_INFO!$I17=1,IF(COUNTRY_INFO!M17>=(COUNTRY_INFO!F17+COUNTRY_INFO!G17),COUNTRY_INFO!F17+COUNTRY_INFO!G17,COUNTRY_INFO!$M17),0)))) -> 0 | E17: =IF(AND(INTRO!$E$39="Non endémique",INTRO!$E$37="Non endémique"),"Non requis",IF(INTRO!$E$39="Non endémique","Traiter avec DEC",COUNTRY_INFO!V17)) -> 0 | F17: =IF(INTRO!$E$39<>"Non endémique",COUNTRY_INFO!W17,"Non requis") -> 0 | G17: =IF(COUNTRY_INFO!H17=1, IF($E17=1,$D17, 0),0) -> 0 | H17: =IF(COUNTRY_INFO!I17=1, IF(AND(COUNTRY_INFO!$I17=1,$F17<>0),IF(COUNTRY_INFO!M17>=(COUNTRY_INFO!F17+COUNTRY_INFO!G17),COUNTRY_INFO!F17+COUNTRY_INFO!G17,COUNTRY_INFO!$M17), 0),0) -> 0 | I17: 0 | J17: 0 | K17: 0 | L17: 0 | N17: 0
A18: =IF(INTRO!$E$39="Non endémique"," ",IF(COUNTRY_INFO!A18=0," ",COUNTRY_INFO!A18)) -> Guinée | B18: =IF(INTRO!$E$39="Non endémique"," ",IF(COUNTRY_INFO!B18=0," ",COUNTRY_INFO!B18)) -> Conakry | C18: =IF(INTRO!$E$39="Non endémique"," ",IF(COUNTRY_INFO!C18=0," ",COUNTRY_INFO!C18)) -> Matoto | D18: =IF(INTRO!$E$39="Non endémique",0,IF(INTRO!$E$39="Endémique mais pas de CP",IF(COUNTRY_INFO!$H18=1,COUNTRY_INFO!F18+COUNTRY_INFO!G18,0),IF(COUNTRY_INFO!$H18=1,COUNTRY_INFO!F18+COUNTRY_INFO!G18,IF(COUNTRY_INFO!$I18=1,IF(COUNTRY_INFO!M18>=(COUNTRY_INFO!F18+COUNTRY_INFO!G18),COUNTRY_INFO!F18+COUNTRY_INFO!G18,COUNTRY_INFO!$M18),0)))) -> 0 | E18: =IF(AND(INTRO!$E$39="Non endémique",INTRO!$E$37="Non endémique"),"Non requis",IF(INTRO!$E$39="Non endémique","Traiter avec DEC",COUNTRY_INFO!V18)) -> 0 | F18: =IF(INTRO!$E$39<>"Non endémique",COUNTRY_INFO!W18,"Non requis") -> 0 | G18: =IF(COUNTRY_INFO!H18=1, IF($E18=1,$D18, 0),0) -> 0 | H18: =IF(COUNTRY_INFO!I18=1, IF(AND(COUNTRY_INFO!$I18=1,$F18<>0),IF(COUNTRY_INFO!M18>=(COUNTRY_INFO!F18+COUNTRY_INFO!G18),COUNTRY_INFO!F18+COUNTRY_INFO!G18,COUNTRY_INFO!$M18), 0),0) -> 0 | I18: 0 | J18: 0 | K18: 0 | L18: 0 | N18: 0
A19: =IF(INTRO!$E$39="Non endémique"," ",IF(COUNTRY_INFO!A19=0," ",COUNTRY_INFO!A19)) -> Guinée | B19: =IF(INTRO!$E$39="Non endémique"," ",IF(COUNTRY_INFO!B19=0," ",COUNTRY_INFO!B19)) -> Conakry | C19: =IF(INTRO!$E$39="Non endémique"," ",IF(COUNTRY_INFO!C19=0," ",COUNTRY_INFO!C19)) -> Ratoma | D19: =IF(INTRO!$E$39="Non endémique",0,IF(INTRO!$E$39="Endémique mais pas de CP",IF(COUNTRY_INFO!$H19=1,COUNTRY_INFO!F19+COUNTRY_INFO!G19,0),IF(COUNTRY_INFO!$H19=1,COUNTRY_INFO!F19+COUNTRY_INFO!G19,IF(COUNTRY_INFO!$I19=1,IF(COUNTRY_INFO!M19>=(COUNTRY_INFO!F19+COUNTRY_INFO!G19),COUNTRY_INFO!F19+COUNTRY_INFO!G19,COUNTRY_INFO!$M19),0)))) -> 0 | E19: =IF(AND(INTRO!$E$39="Non endémique",INTRO!$E$37="Non endémique"),"Non requis",IF(INTRO!$E$39="Non endémique","Traiter avec DEC",COUNTRY_INFO!V19)) -> 0 | F19: =IF(INTRO!$E$39<>"Non endémique",COUNTRY_INFO!W19,"Non requis") -> 0 | G19: =IF(COUNTRY_INFO!H19=1, IF($E19=1,$D19, 0),0) -> 0 | H19: =IF(COUNTRY_INFO!I19=1, IF(AND(COUNTRY_INFO!$I19=1,$F19<>0),IF(COUNTRY_INFO!M19>=(COUNTRY_INFO!F19+COUNTRY_INFO!G19),COUNTRY_INFO!F19+COUNTRY_INFO!G19,COUNTRY_INFO!$M19), 0),0) -> 0 | I19: 0 | J19: 0 | K19: 0 | L19: 0 | N19: 0
A20: =IF(INTRO!$E$39="Non endémique"," ",IF(COUNTRY_INFO!A20=0," ",COUNTRY_INFO!A20)) -> Guinée | B20: =IF(INTRO!$E$39="Non endémique"," ",IF(COUNTRY_INFO!B20=0," ",COUNTRY_INFO!B20)) -> Faranah | C20: =IF(INTRO!$E$39="Non endémique"," ",IF(COUNTRY_INFO!C20=0," ",COUNTRY_INFO!C20)) -> Dabola | D20: =IF(INTRO!$E$39="Non endémique",0,IF(INTRO!$E$39="Endémique mais pas de CP",IF(COUNTRY_INFO!$H20=1,COUNTRY_INFO!F20+COUNTRY_INFO!G20,0),IF(COUNTRY_INFO!$H20=1,COUNTRY_INFO!F20+COUNTRY_INFO!G20,IF(COUNTRY_INFO!$I20=1,IF(COUNTRY_INFO!M20>=(COUNTRY_INFO!F20+COUNTRY_INFO!G20),COUNTRY_INFO!F20+COUNTRY_INFO!G20,COUNTRY_INFO!$M20),0)))) -> 198313 | E20: =IF(AND(INTRO!$E$39="Non endémique",INTRO!$E$37="Non endémique"),"Non requis",IF(INTRO!$E$39="Non endémique","Traiter avec DEC",COUNTRY_INFO!V20)) -> 1 | F20: =IF(INTRO!$E$39<>"Non endémique",COUNTRY_INFO!W20,"Non requis") -> 1 | G20: =IF(COUNTRY_INFO!H20=1, IF($E20=1,$D20, 0),0) -> 198313 | H20: =IF(COUNTRY_INFO!I20=1, IF(AND(COUNTRY_INFO!$I20=1,$F20<>0),IF(COUNTRY_INFO!M20>=(COUNTRY_INFO!F20+COUNTRY_INFO!G20),COUNTRY_INFO!F20+COUNTRY_INFO!G20,COUNTRY_INFO!$M20), 0),0) -> 198313 | I20: 0 | J20: 0 | K20: 555276.4 | L20: 555276.4 | N20: 555276.4
A21: =IF(INTRO!$E$39="Non endémique"," ",IF(COUNTRY_INFO!A21=0," ",COUNTRY_INFO!A21)) -> Guinée | B21: =IF(INTRO!$E$39="Non endémique"," ",IF(COUNTRY_INFO!B21=0," ",COUNTRY_INFO!B21)) -> Faranah | C21: =IF(INTRO!$E$39="Non endémique"," ",IF(COUNTRY_INFO!C21=0," ",COUNTRY_INFO!C21)) -> Dinguiraye | D21: =IF(INTRO!$E$39="Non endémique",0,IF(INTRO!$E$39="Endémique mais pas de CP",IF(COUNTRY_INFO!$H21=1,COUNTRY_INFO!F21+COUNTRY_INFO!G21,0),IF(COUNTRY_INFO!$H21=1,COUNTRY_INFO!F21+COUNTRY_INFO!G21,IF(COUNTRY_INFO!$I21=1,IF(COUNTRY_INFO!M21>=(COUNTRY_INFO!F21+COUNTRY_INFO!G21),COUNTRY_INFO!F21+COUNTRY_INFO!G21,COUNTRY_INFO!$M21),0)))) -> 215028 | E21: =IF(AND(INTRO!$E$39="Non endémique",INTRO!$E$37="Non endémique"),"Non requis",IF(INTRO!$E$39="Non endémique","Traiter avec DEC",COUNTRY_INFO!V21)) -> 0 | F21: =IF(INTRO!$E$39<>"Non endémique",COUNTRY_INFO!W21,"Non requis") -> 1 | G21: =IF(COUNTRY_INFO!H21=1, IF($E21=1,$D21, 0),0) -> 0 | H21: =IF(COUNTRY_INFO!I21=1, IF(AND(COUNTRY_INFO!$I21=1,$F21<>0),IF(COUNTRY_INFO!M21>=(COUNTRY_INFO!F21+COUNTRY_INFO!G21),COUNTRY_INFO!F21+COUNTRY_INFO!G21,COUNTRY_INFO!$M21), 0),0) -> 215028 | I21: 0 | J21: 602078.4 | K21: 0 | L21: 602078.4 | N21: 602078.4
A22: =IF(INTRO!$E$39="Non endémique"," ",IF(COUNTRY_INFO!A22=0," ",COUNTRY_INFO!A22)) -> Guinée | B22: =IF(INTRO!$E$39="Non endémique"," ",IF(COUNTRY_INFO!B22=0," ",COUNTRY_INFO!B22)) -> Faranah | C22: =IF(INTRO!$E$39="Non endémique"," ",IF(COUNTRY_INFO!C22=0," ",COUNTRY_INFO!C22)) -> Faranah | D22: =IF(INTRO!$E$39="Non endémique",0,IF(INTRO!$E$39="Endémique mais pas de CP",IF(COUNTRY_INFO!$H22=1,COUNTRY_INFO!F22+COUNTRY_INFO!G22,0),IF(COUNTRY_INFO!$H22=1,COUNTRY_INFO!F22+COUNTRY_INFO!G22,IF(COUNTRY_INFO!$I22=1,IF(COUNTRY_INFO!M22>=(COUNTRY_INFO!F22+COUNTRY_INFO!G22),COUNTRY_INFO!F22+COUNTRY_INFO!G22,COUNTRY_INFO!$M22),0)))) -> 306723 | E22: =IF(AND(INTRO!$E$39="Non endémique",INTRO!$E$37="Non endémique"),"Non requis",IF(INTRO!$E$39="Non endémique","Traiter avec DEC",COUNTRY_INFO!V22)) -> 1 | F22: =IF(INTRO!$E$39<>"Non endémique",COUNTRY_INFO!W22,"Non requis") -> 1 | G22: =IF(COUNTRY_INFO!H22=1, IF($E22=1,$D22, 0),0) -> 306723 | H22: =IF(COUNTRY_INFO!I22=1, IF(AND(COUNTRY_INFO!$I22=1,$F22<>0),IF(COUNTRY_INFO!M22>=(COUNTRY_INFO!F22+COUNTRY_INFO!G22),COUNTRY_INFO!F22+COUNTRY_INFO!G22,COUNTRY_INFO!$M22), 0),0) -> 306723 | I22: 0 | J22: 0 | K22: 858824.4 | L22: 858824.4 | N22: 858824.4
A23: =IF(INTRO!$E$39="Non endémique"," ",IF(COUNTRY_INFO!A23=0," ",COUNTRY_INFO!A23)) -> Guinée | B23: =IF(INTRO!$E$39="Non endémique"," ",IF(COUNTRY_INFO!B23=0," ",COUNTRY_INFO!B23)) -> Faranah | C23: =IF(INTRO!$E$39="Non endémique"," ",IF(COUNTRY_INFO!C23=0," ",COUNTRY_INFO!C23)) -> Kissidougou | D23: =IF(INTRO!$E$39="Non endémique",0,IF(INTRO!$E$39="Endémique mais pas de CP",IF(COUNTRY_INFO!$H23=1,COUNTRY_INFO!F23+COUNTRY_INFO!G23,0),IF(COUNTRY_INFO!$H23=1,COUNTRY_INFO!F23+COUNTRY_INFO!G23,IF(COUNTRY_INFO!$I23=1,IF(COUNTRY_INFO!M23>=(COUNTRY_INFO!F23+COUNTRY_INFO!G23),COUNTRY_INFO!F23+COUNTRY_INFO!G23,COUNTRY_INFO!$M23),0)))) -> 310130 | E23: =IF(AND(INTRO!$E$39="Non endémique",INTRO!$E$37="Non endémique"),"Non requis",IF(INTRO!$E$39="Non endémique","Traiter avec DEC",COUNTRY_INFO!V23)) -> 1 | F23: =IF(INTRO!$E$39<>"Non endémique",COUNTRY_INFO!W23,"Non requis") -> 1 | G23: =IF(COUNTRY_INFO!H23=1, IF($E23=1,$D23, 0),0) -> 310130 | H23: =IF(COUNTRY_INFO!I23=1, IF(AND(COUNTRY_INFO!$I23=1,$F23<>0),IF(COUNTRY_INFO!M23>=(COUNTRY_INFO!F23+COUNTRY_INFO!G23),COUNTRY_INFO!F23+COUNTRY_INFO!G23,COUNTRY_INFO!$M23), 0),0) -> 310130 | I23: 0 | J23: 0 | K23: 868364 | L23: 868364 | N23: 868364
A24: =IF(INTRO!$E$39="Non endémique"," ",IF(COUNTRY_INFO!A24=0," ",COUNTRY_INFO!A24)) -> Guinée | B24: =IF(INTRO!$E$39="Non endémique"," ",IF(COUNTRY_INFO!B24=0," ",COUNTRY_INFO!B24)) -> Kankan | C24: =IF(INTRO!$E$39="Non endémique"," ",IF(COUNTRY_INFO!C24=0," ",COUNTRY_INFO!C24)) -> Kankan | D24: =IF(INTRO!$E$39="Non endémique",0,IF(INTRO!$E$39="Endémique mais pas de CP",IF(COUNTRY_INFO!$H24=1,COUNTRY_INFO!F24+COUNTRY_INFO!G24,0),IF(COUNTRY_INFO!$H24=1,COUNTRY_INFO!F24+COUNTRY_INFO!G24,IF(COUNTRY_INFO!$I24=1,IF(COUNTRY_INFO!M24>=(COUNTRY_INFO!F24+COUNTRY_INFO!G24),COUNTRY_INFO!F24+COUNTRY_INFO!G24,COUNTRY_INFO!$M24),0)))) -> 516294 | E24: =IF(AND(INTRO!$E$39="Non endémique",INTRO!$E$37="Non endémique"),"Non requis",IF(INTRO!$E$39="Non endémique","Traiter avec DEC",COUNTRY_INFO!V24)) -> 1 | F24: =IF(INTRO!$E$39<>"Non endémique",COUNTRY_INFO!W24,"Non requis") -> 1 | G24: =IF(COUNTRY_INFO!H24=1, IF($E24=1,$D24, 0),0) -> 516294 | H24: =IF(COUNTRY_INFO!I24=1, IF(AND(COUNTRY_INFO!$I24=1,$F24<>0),IF(COUNTRY_INFO!M24>=(COUNTRY_INFO!F24+COUNTRY_INFO!G24),COUNTRY_INFO!F24+COUNTRY_INFO!G24,COUNTRY_INFO!$M24), 0),0) -> 516294 | I24: 0 | J24: 0 | K24: 1445623.2 | L24: 1445623.2 | N24: 1445623.2
A25: =IF(INTRO!$E$39="Non endémique"," ",IF(COUNTRY_INFO!A25=0," ",COUNTRY_INFO!A25)) -> Guinée | B25: =IF(INTRO!$E$39="Non endémique"," ",IF(COUNTRY_INFO!B25=0," ",COUNTRY_INFO!B25)) -> Kankan | C25: =IF(INTRO!$E$39="Non endémique"," ",IF(COUNTRY_INFO!C25=0," ",COUNTRY_INFO!C25)) -> Kerouane | D25: =IF(INTRO!$E$39="Non endémique",0,IF(INTRO!$E$39="Endémique mais pas de CP",IF(COUNTRY_INFO!$H25=1,COUNTRY_INFO!F25+COUNTRY_INFO!G25,0),IF(COUNTRY_INFO!$H25=1,COUNTRY_INFO!F25+COUNTRY_INFO!G25,IF(COUNTRY_INFO!$I25=1,IF(COUNTRY_INFO!M25>=(COUNTRY_INFO!F25+COUNTRY_INFO!G25),COUNTRY_INFO!F25+COUNTRY_INFO!G25,COUNTRY_INFO!$M25),0)))) -> 227228 | E25: =IF(AND(INTRO!$E$39="Non endémique",INTRO!$E$37="Non endémique"),"Non requis",IF(INTRO!$E$39="Non endémique","Traiter avec DEC",COUNTRY_INFO!V25)) -> 0 | F25: =IF(INTRO!$E$39<>"Non endémique",COUNTRY_INFO!W25,"Non requis") -> 1 | G25: =IF(COUNTRY_INFO!H25=1, IF($E25=1,$D25, 0),0) -> 0 | H25: =IF(COUNTRY_INFO!I25=1, IF(AND(COUNTRY_INFO!$I25=1,$F25<>0),IF(COUNTRY_INFO!M25>=(COUNTRY_INFO!F25+COUNTRY_INFO!G25),COUNTRY_INFO!F25+COUNTRY_INFO!G25,COUNTRY_INFO!$M25), 0),0) -> 227228 | I25: 0 | J25: 636238.4 | K25: 0 | L25: 636238.4 | N25: 636238.4
A26: =IF(INTRO!$E$39="Non endémique"," ",IF(COUNTRY_INFO!A26=0," ",COUNTRY_INFO!A26)) -> Guinée | B26: =IF(INTRO!$E$39="Non endémique"," ",IF(COUNTRY_INFO!B26=0," ",COUNTRY_INFO!B26)) -> Kankan | C26: =IF(INTRO!$E$39="Non endémique"," ",IF(COUNTRY_INFO!C26=0," ",COUNTRY_INFO!C26)) -> Kouroussa | D26: =IF(INTRO!$E$39="Non endémique",0,IF(INTRO!$E$39="Endémique mais pas de CP",IF(COUNTRY_INFO!$H26=1,COUNTRY_INFO!F26+COUNTRY_INFO!G26,0),IF(COUNTRY_INFO!$H26=1,COUNTRY_INFO!F26+COUNTRY_INFO!G26,IF(COUNTRY_INFO!$I26=1,IF(COUNTRY_INFO!M26>=(COUNTRY_INFO!F26+COUNTRY_INFO!G26),COUNTRY_INFO!F26+COUNTRY_INFO!G26,COUNTRY_INFO!$M26),0)))) -> 293864 | E26: =IF(AND(INTRO!$E$39="Non endémique",INTRO!$E$37="Non endémique"),"Non requis",IF(INTRO!$E$39="Non endémique","Traiter avec DEC",COUNTRY_INFO!V26)) -> 1 | F26: =IF(INTRO!$E$39<>"Non endémique",COUNTRY_INFO!W26,"Non requis") -> 1 | G26: =IF(COUNTRY_INFO!H26=1, IF($E26=1,$D26, 0),0) -> 293864 | H26: =IF(COUNTRY_INFO!I26=1, IF(AND(COUNTRY_INFO!$I26=1,$F26<>0),IF(COUNTRY_INFO!M26>=(COUNTRY_INFO!F26+COUNTRY_INFO!G26),COUNTRY_INFO!F26+COUNTRY_INFO!G26,COUNTRY_INFO!$M26), 0),0) -> 293864 | I26: 0 | J26: 0 | K26: 822819.2 | L26: 822819.2 | N26: 822819.2
A27: =IF(INTRO!$E$39="Non endémique"," ",IF(COUNTRY_INFO!A27=0," ",COUNTRY_INFO!A27)) -> Guinée | B27: =IF(INTRO!$E$39="Non endémique"," ",IF(COUNTRY_INFO!B27=0," ",COUNTRY_INFO!B27)) -> Kankan | C27: =IF(INTRO!$E$39="Non endémique"," ",IF(COUNTRY_INFO!C27=0," ",COUNTRY_INFO!C27)) -> Mandiana | D27: =IF(INTRO!$E$39="Non endémique",0,IF(INTRO!$E$39="Endémique mais pas de CP",IF(COUNTRY_INFO!$H27=1,COUNTRY_INFO!F27+COUNTRY_INFO!G27,0),IF(COUNTRY_INFO!$H27=1,COUNTRY_INFO!F27+COUNTRY_INFO!G27,IF(COUNTRY_INFO!$I27=1,IF(COUNTRY_INFO!M27>=(COUNTRY_INFO!F27+COUNTRY_INFO!G27),COUNTRY_INFO!F27+COUNTRY_INFO!G27,COUNTRY_INFO!$M27),0)))) -> 367815 | E27: =IF(AND(INTRO!$E$39="Non endémique",INTRO!$E$37="Non endémique"),"Non requis",IF(INTRO!$E$39="Non endémique","Traiter avec DEC",COUNTRY_INFO!V27)) -> 0 | F27: =IF(INTRO!$E$39<>"Non endémique",COUNTRY_INFO!W27,"Non requis") -> 1 | G27: =IF(COUNTRY_INFO!H27=1, IF($E27=1,$D27, 0),0) -> 0 | H27: =IF(COUNTRY_INFO!I27=1, IF(AND(COUNTRY_INFO!$I27=1,$F27<>0),IF(COUNTRY_INFO!M27>=(COUNTRY_INFO!F27+COUNTRY_INFO!G27),COUNTRY_INFO!F27+COUNTRY_INFO!G27,COUNTRY_INFO!$M27), 0),0) -> 367815 | I27: 0 | J27: 1029882 | K27: 0 | L27: 1029882 | N27: 1029882
A28: =IF(INTRO!$E$39="Non endémique"," ",IF(COUNTRY_INFO!A28=0," ",COUNTRY_INFO!A28)) -> Guinée | B28: =IF(INTRO!$E$39="Non endémique"," ",IF(COUNTRY_INFO!B28=0," ",COUNTRY_INFO!B28)) -> Kankan | C28: =IF(INTRO!$E$39="Non endémique"," ",IF(COUNTRY_INFO!C28=0," ",COUNTRY_INFO!C28)) -> Siguiri | D28: =IF(INTRO!$E$39="Non endémique",0,IF(INTRO!$E$39="Endémique mais pas de CP",IF(COUNTRY_INFO!$H28=1,COUNTRY_INFO!F28+COUNTRY_INFO!G28,0),IF(COUNTRY_INFO!$H28=1,COUNTRY_INFO!F28+COUNTRY_INFO!G28,IF(COUNTRY_INFO!$I28=1,IF(COUNTRY_INFO!M28>=(COUNTRY_INFO!F28+COUNTRY_INFO!G28),COUNTRY_INFO!F28+COUNTRY_INFO!G28,COUNTRY_INFO!$M28),0)))) -> 741828 | E28: =IF(AND(INTRO!$E$39="Non endémique",INTRO!$E$37="Non endémique"),"Non requis",IF(INTRO!$E$39="Non endémique","Traiter avec DEC",COUNTRY_INFO!V28)) -> 1 | F28: =IF(INTRO!$E$39<>"Non endémique",COUNTRY_INFO!W28,"Non requis") -> 1 | G28: =IF(COUNTRY_INFO!H28=1, IF($E28=1,$D28, 0),0) -> 741828 | H28: =IF(COUNTRY_INFO!I28=1, IF(AND(COUNTRY_INFO!$I28=1,$F28<>0),IF(COUNTRY_INFO!M28>=(COUNTRY_INFO!F28+COUNTRY_INFO!G28),COUNTRY_INFO!F28+COUNTRY_INFO!G28,COUNTRY_INFO!$M28), 0),0) -> 741828 | I28: 0 | J28: 0 | K28: 2077118.4 | L28: 2077118.4 | N28: 2077118.4
A29: =IF(INTRO!$E$39="Non endémique"," ",IF(COUNTRY_INFO!A29=0," ",COUNTRY_INFO!A29)) -> Guinée | B29: =IF(INTRO!$E$39="Non endémique"," ",IF(COUNTRY_INFO!B29=0," ",COUNTRY_INFO!B29)) -> Kindia | C29: =IF(INTRO!$E$39="Non endémique"," ",IF(COUNTRY_INFO!C29=0," ",COUNTRY_INFO!C29)) -> Coyah | D29: =IF(INTRO!$E$39="Non endémique",0,IF(INTRO!$E$39="Endémique mais pas de CP",IF(COUNTRY_INFO!$H29=1,COUNTRY_INFO!F29+COUNTRY_INFO!G29,0),IF(COUNTRY_INFO!$H29=1,COUNTRY_INFO!F29+COUNTRY_INFO!G29,IF(COUNTRY_INFO!$I29=1,IF(COUNTRY_INFO!M29>=(COUNTRY_INFO!F29+COUNTRY_INFO!G29),COUNTRY_INFO!F29+COUNTRY_INFO!G29,COUNTRY_INFO!$M29),0)))) -> 0 | E29: =IF(AND(INTRO!$E$39="Non endémique",INTRO!$E$37="Non endémique"),"Non requis",IF(INTRO!$E$39="Non endémique","Traiter avec DEC",COUNTRY_INFO!V29)) -> 0 | F29: =IF(INTRO!$E$39<>"Non endémique",COUNTRY_INFO!W29,"Non requis") -> 0 | G29: =IF(COUNTRY_INFO!H29=1, IF($E29=1,$D29, 0),0) -> 0 | H29: =IF(COUNTRY_INFO!I29=1, IF(AND(COUNTRY_INFO!$I29=1,$F29<>0),IF(COUNTRY_INFO!M29>=(COUNTRY_INFO!F29+COUNTRY_INFO!G29),COUNTRY_INFO!F29+COUNTRY_INFO!G29,COUNTRY_INFO!$M29), 0),0) -> 0 | I29: 0 | J29: 0 | K29: 0 | L29: 0 | N29: 0
A30: =IF(INTRO!$E$39="Non endémique"," ",IF(COUNTRY_INFO!A30=0," ",COUNTRY_INFO!A30)) -> Guinée | B30: =IF(INTRO!$E$39="Non endémique"," ",IF(COUNTRY_INFO!B30=0," ",COUNTRY_INFO!B30)) -> Kindia | C30: =IF(INTRO!$E$39="Non endémique"," ",IF(COUNTRY_INFO!C30=0," ",COUNTRY_INFO!C30)) -> Dubreka | D30: =IF(INTRO!$E$39="Non endémique",0,IF(INTRO!$E$39="Endémique mais pas de CP",IF(COUNTRY_INFO!$H30=1,COUNTRY_INFO!F30+COUNTRY_INFO!G30,0),IF(COUNTRY_INFO!$H30=1,COUNTRY_INFO!F30+COUNTRY_INFO!G30,IF(COUNTRY_INFO!$I30=1,IF(COUNTRY_INFO!M30>=(COUNTRY_INFO!F30+COUNTRY_INFO!G30),COUNTRY_INFO!F30+COUNTRY_INFO!G30,COUNTRY_INFO!$M30),0)))) -> 0 | E30: =IF(AND(INTRO!$E$39="Non endémique",INTRO!$E$37="Non endémique"),"Non requis",IF(INTRO!$E$39="Non endémique","Traiter avec DEC",COUNTRY_INFO!V30)) -> 0 | F30: =IF(INTRO!$E$39<>"Non endémique",COUNTRY_INFO!W30,"Non requis") -> 0 | G30: =IF(COUNTRY_INFO!H30=1, IF($E30=1,$D30, 0),0) -> 0 | H30: =IF(COUNTRY_INFO!I30=1, IF(AND(COUNTRY_INFO!$I30=1,$F30<>0),IF(COUNTRY_INFO!M30>=(COUNTRY_INFO!F30+COUNTRY_INFO!G30),COUNTRY_INFO!F30+COUNTRY_INFO!G30,COUNTRY_INFO!$M30), 0),0) -> 0 | I30: 0 | J30: 0 | K30: 0 | L30: 0 | N30: 0
A31: =IF(INTRO!$E$39="Non endémique"," ",IF(COUNTRY_INFO!A31=0," ",COUNTRY_INFO!A31)) -> Guinée | B31: =IF(INTRO!$E$39="Non endémique"," ",IF(COUNTRY_INFO!B31=0," ",COUNTRY_INFO!B31)) -> Kindia | C31: =IF(INTRO!$E$39="Non endémique"," ",IF(COUNTRY_INFO!C31=0," ",COUNTRY_INFO!C31)) -> Forecariah | D31: =IF(INTRO!$E$39="Non endémique",0,IF(INTRO!$E$39="Endémique mais pas de CP",IF(COUNTRY_INFO!$H31=1,COUNTRY_INFO!F31+COUNTRY_INFO!G31,0),IF(COUNTRY_INFO!$H31=1,COUNTRY_INFO!F31+COUNTRY_INFO!G31,IF(COUNTRY_INFO!$I31=1,IF(COUNTRY_INFO!M31>=(COUNTRY_INFO!F31+COUNTRY_INFO!G31),COUNTRY_INFO!F31+COUNTRY_INFO!G31,COUNTRY_INFO!$M31),0)))) -> 265733 | E31: =IF(AND(INTRO!$E$39="Non endémique",INTRO!$E$37="Non endémique"),"Non requis",IF(INTRO!$E$39="Non endémique","Traiter avec DEC",COUNTRY_INFO!V31)) -> 0 | F31: =IF(INTRO!$E$39<>"Non endémique",COUNTRY_INFO!W31,"Non requis") -> 1 | G31: =IF(COUNTRY_INFO!H31=1, IF($E31=1,$D31, 0),0) -> 0 | H31: =IF(COUNTRY_INFO!I31=1, IF(AND(COUNTRY_INFO!$I31=1,$F31<>0),IF(COUNTRY_INFO!M31>=(COUNTRY_INFO!F31+COUNTRY_INFO!G31),COUNTRY_INFO!F31+COUNTRY_INFO!G31,COUNTRY_INFO!$M31), 0),0) -> 265733 | I31: 0 | J31: 744052.4 | K31: 0 | L31: 744052.4 | N31: 744052.4
A32: =IF(INTRO!$E$39="Non endémique"," ",IF(COUNTRY_INFO!A32=0," ",COUNTRY_INFO!A32)) -> Guinée | B32: =IF(INTRO!$E$39="Non endémique"," ",IF(COUNTRY_INFO!B32=0," ",COUNTRY_INFO!B32)) -> Kindia | C32: =IF(INTRO!$E$39="Non endémique"," ",IF(COUNTRY_INFO!C32=0," ",COUNTRY_INFO!C32)) -> Kindia | D32: =IF(INTRO!$E$39="Non endémique",0,IF(INTRO!$E$39="Endémique mais pas de CP",IF(COUNTRY_INFO!$H32=1,COUNTRY_INFO!F32+COUNTRY_INFO!G32,0),IF(COUNTRY_INFO!$H32=1,COUNTRY_INFO!F32+COUNTRY_INFO!G32,IF(COUNTRY_INFO!$I32=1,IF(COUNTRY_INFO!M32>=(COUNTRY_INFO!F32+COUNTRY_INFO!G32),COUNTRY_INFO!F32+COUNTRY_INFO!G32,COUNTRY_INFO!$M32),0)))) -> 480586 | E32: =IF(AND(INTRO!$E$39="Non endémique",INTRO!$E$37="Non endémique"),"Non requis",IF(INTRO!$E$39="Non endémique","Traiter avec DEC",COUNTRY_INFO!V32)) -> 0 | F32: =IF(INTRO!$E$39<>"Non endémique",COUNTRY_INFO!W32,"Non requis") -> 1 | G32: =IF(COUNTRY_INFO!H32=1, IF($E32=1,$D32, 0),0) -> 0 | H32: =IF(COUNTRY_INFO!I32=1, IF(AND(COUNTRY_INFO!$I32=1,$F32<>0),IF(COUNTRY_INFO!M32>=(COUNTRY_INFO!F32+COUNTRY_INFO!G32),COUNTRY_INFO!F32+COUNTRY_INFO!G32,COUNTRY_INFO!$M32), 0),0) -> 480586 | I32: 0 | J32: 1345640.8 | K32: 0 | L32: 1345640.8 | N32: 1345640.8
A33: =IF(INTRO!$E$39="Non endémique"," ",IF(COUNTRY_INFO!A33=0," ",COUNTRY_INFO!A33)) -> Guinée | B33: =IF(INTRO!$E$39="Non endémique"," ",IF(COUNTRY_INFO!B33=0," ",COUNTRY_INFO!B33)) -> Kindia | C33: =IF(INTRO!$E$39="Non endémique"," ",IF(COUNTRY_INFO!C33=0," ",COUNTRY_INFO!C33)) -> Telimele | D33: =IF(INTRO!$E$39="Non endémique",0,IF(INTRO!$E$39="Endémique mais pas de CP",IF(COUNTRY_INFO!$H33=1,COUNTRY_INFO!F33+COUNTRY_INFO!G33,0),IF(COUNTRY_INFO!$H33=1,COUNTRY_INFO!F33+COUNTRY_INFO!G33,IF(COUNTRY_INFO!$I33=1,IF(COUNTRY_INFO!M33>=(COUNTRY_INFO!F33+COUNTRY_INFO!G33),COUNTRY_INFO!F33+COUNTRY_INFO!G33,COUNTRY_INFO!$M33),0)))) -> 0 | E33: =IF(AND(INTRO!$E$39="Non endémique",INTRO!$E$37="Non endémique"),"Non requis",IF(INTRO!$E$39="Non endémique","Traiter avec DEC",COUNTRY_INFO!V33)) -> 0 | F33: =IF(INTRO!$E$39<>"Non endémique",COUNTRY_INFO!W33,"Non requis") -> 0 | G33: =IF(COUNTRY_INFO!H33=1, IF($E33=1,$D33, 0),0) -> 0 | H33: =IF(COUNTRY_INFO!I33=1, IF(AND(COUNTRY_INFO!$I33=1,$F33<>0),IF(COUNTRY_INFO!M33>=(COUNTRY_INFO!F33+COUNTRY_INFO!G33),COUNTRY_INFO!F33+COUNTRY_INFO!G33,COUNTRY_INFO!$M33), 0),0) -> 0 | I33: 0 | J33: 0 | K33: 0 | L33: 0 | N33: 0
A34: =IF(INTRO!$E$39="Non endémique"," ",IF(COUNTRY_INFO!A34=0," ",COUNTRY_INFO!A34)) -> Guinée | B34: =IF(INTRO!$E$39="Non endémique"," ",IF(COUNTRY_INFO!B34=0," ",COUNTRY_INFO!B34)) -> Labe | C34: =IF(INTRO!$E$39="Non endémique"," ",IF(COUNTRY_INFO!C34=0," ",COUNTRY_INFO!C34)) -> Koubia | D34: =IF(INTRO!$E$39="Non endémique",0,IF(INTRO!$E$39="Endémique mais pas de CP",IF(COUNTRY_INFO!$H34=1,COUNTRY_INFO!F34+COUNTRY_INFO!G34,0),IF(COUNTRY_INFO!$H34=1,COUNTRY_INFO!F34+COUNTRY_INFO!G34,IF(COUNTRY_INFO!$I34=1,IF(COUNTRY_INFO!M34>=(COUNTRY_INFO!F34+COUNTRY_INFO!G34),COUNTRY_INFO!F34+COUNTRY_INFO!G34,COUNTRY_INFO!$M34),0)))) -> 109230 | E34: =IF(AND(INTRO!$E$39="Non endémique",INTRO!$E$37="Non endémique"),"Non requis",IF(INTRO!$E$39="Non endémique","Traiter avec DEC",COUNTRY_INFO!V34)) -> 0 | F34: =IF(INTRO!$E$39<>"Non endémique",COUNTRY_INFO!W34,"Non requis") -> 1 | G34: =IF(COUNTRY_INFO!H34=1, IF($E34=1,$D34, 0),0) -> 0 | H34: =IF(COUNTRY_INFO!I34=1, IF(AND(COUNTRY_INFO!$I34=1,$F34<>0),IF(COUNTRY_INFO!M34>=(COUNTRY_INFO!F34+COUNTRY_INFO!G34),COUNTRY_INFO!F34+COUNTRY_INFO!G34,COUNTRY_INFO!$M34), 0),0) -> 109230 | I34: 0 | J34: 305844 | K34: 0 | L34: 305844 | N34: 305844
A35: =IF(INTRO!$E$39="Non endémique"," ",IF(COUNTRY_INFO!A35=0," ",COUNTRY_INFO!A35)) -> Guinée | B35: =IF(INTRO!$E$39="Non endémique"," ",IF(COUNTRY_INFO!B35=0," ",COUNTRY_INFO!B35)) -> Labe | C35: =IF(INTRO!$E$39="Non endémique"," ",IF(COUNTRY_INFO!C35=0," ",COUNTRY_INFO!C35)) -> Labe | D35: =IF(INTRO!$E$39="Non endémique",0,IF(INTRO!$E$39="Endémique mais pas de CP",IF(COUNTRY_INFO!$H35=1,COUNTRY_INFO!F35+COUNTRY_INFO!G35,0),IF(COUNTRY_INFO!$H35=1,COUNTRY_INFO!F35+COUNTRY_INFO!G35,IF(COUNTRY_INFO!$I35=1,IF(COUNTRY_INFO!M35>=(COUNTRY_INFO!F35+COUNTRY_INFO!G35),COUNTRY_INFO!F35+COUNTRY_INFO!G35,COUNTRY_INFO!$M35),0)))) -> 0 | E35: =IF(AND(INTRO!$E$39="Non endémique",INTRO!$E$37="Non endémique"),"Non requis",IF(INTRO!$E$39="Non endémique","Traiter avec DEC",COUNTRY_INFO!V35)) -> 0 | F35: =IF(INTRO!$E$39<>"Non endémique",COUNTRY_INFO!W35,"Non requis") -> 0 | G35: =IF(COUNTRY_INFO!H35=1, IF($E35=1,$D35, 0),0) -> 0 | H35: =IF(COUNTRY_INFO!I35=1, IF(AND(COUNTRY_INFO!$I35=1,$F35<>0),IF(COUNTRY_INFO!M35>=(COUNTRY_INFO!F35+COUNTRY_INFO!G35),COUNTRY_INFO!F35+COUNTRY_INFO!G35,COUNTRY_INFO!$M35), 0),0) -> 0 | I35: 0 | J35: 0 | K35: 0 | L35: 0 | N35: 0
A36: =IF(INTRO!$E$39="Non endémique"," ",IF(COUNTRY_INFO!A36=0," ",COUNTRY_INFO!A36)) -> Guinée | B36: =IF(INTRO!$E$39="Non endémique"," ",IF(COUNTRY_INFO!B36=0," ",COUNTRY_INFO!B36)) -> Labe | C36: =IF(INTRO!$E$39="Non endémique"," ",IF(COUNTRY_INFO!C36=0," ",COUNTRY_INFO!C36)) -> Lelouma | D36: =IF(INTRO!$E$39="Non endémique",0,IF(INTRO!$E$39="Endémique mais pas de CP",IF(COUNTRY_INFO!$H36=1,COUNTRY_INFO!F36+COUNTRY_INFO!G36,0),IF(COUNTRY_INFO!$H36=1,COUNTRY_INFO!F36+COUNTRY_INFO!G36,IF(COUNTRY_INFO!$I36=1,IF(COUNTRY_INFO!M36>=(COUNTRY_INFO!F36+COUNTRY_INFO!G36),COUNTRY_INFO!F36+COUNTRY_INFO!G36,COUNTRY_INFO!$M36),0)))) -> 178335 | E36: =IF(AND(INTRO!$E$39="Non endémique",INTRO!$E$37="Non endémique"),"Non requis",IF(INTRO!$E$39="Non endémique","Traiter avec DEC",COUNTRY_INFO!V36)) -> 1 | F36: =IF(INTRO!$E$39<>"Non endémique",COUNTRY_INFO!W36,"Non requis") -> 1 | G36: =IF(COUNTRY_INFO!H36=1, IF($E36=1,$D36, 0),0) -> 178335 | H36: =IF(COUNTRY_INFO!I36=1, IF(AND(COUNTRY_INFO!$I36=1,$F36<>0),IF(COUNTRY_INFO!M36>=(COUNTRY_INFO!F36+COUNTRY_INFO!G36),COUNTRY_INFO!F36+COUNTRY_INFO!G36,COUNTRY_INFO!$M36), 0),0) -> 178335 | I36: 0 | J36: 0 | K36: 499338 | L36: 499338 | N36: 499338
A37: =IF(INTRO!$E$39="Non endémique"," ",IF(COUNTRY_INFO!A37=0," ",COUNTRY_INFO!A37)) -> Guinée | B37: =IF(INTRO!$E$39="Non endémique"," ",IF(COUNTRY_INFO!B37=0," ",COUNTRY_INFO!B37)) -> Labe | C37: =IF(INTRO!$E$39="Non endémique"," ",IF(COUNTRY_INFO!C37=0," ",COUNTRY_INFO!C37)) -> Mali | D37: =IF(INTRO!$E$39="Non endémique",0,IF(INTRO!$E$39="Endémique mais pas de CP",IF(COUNTRY_INFO!$H37=1,COUNTRY_INFO!F37+COUNTRY_INFO!G37,0),IF(COUNTRY_INFO!$H37=1,COUNTRY_INFO!F37+COUNTRY_INFO!G37,IF(COUNTRY_INFO!$I37=1,IF(COUNTRY_INFO!M37>=(COUNTRY_INFO!F37+COUNTRY_INFO!G37),COUNTRY_INFO!F37+COUNTRY_INFO!G37,COUNTRY_INFO!$M37),0)))) -> 314851 | E37: =IF(AND(INTRO!$E$39="Non endémique",INTRO!$E$37="Non endémique"),"Non requis",IF(INTRO!$E$39="Non endémique","Traiter avec DEC",COUNTRY_INFO!V37)) -> 0 | F37: =IF(INTRO!$E$39<>"Non endémique",COUNTRY_INFO!W37,"Non requis") -> 1 | G37: =IF(COUNTRY_INFO!H37=1, IF($E37=1,$D37, 0),0) -> 0 | H37: =IF(COUNTRY_INFO!I37=1, IF(AND(COUNTRY_INFO!$I37=1,$F37<>0),IF(COUNTRY_INFO!M37>=(COUNTRY_INFO!F37+COUNTRY_INFO!G37),COUNTRY_INFO!F37+COUNTRY_INFO!G37,COUNTRY_INFO!$M37), 0),0) -> 314851 | I37: 0 | J37: 881582.8 | K37: 0 | L37: 881582.8 | N37: 881582.8
A38: =IF(INTRO!$E$39="Non endémique"," ",IF(COUNTRY_INFO!A38=0," ",COUNTRY_INFO!A38)) -> Guinée | B38: =IF(INTRO!$E$39="Non endémique"," ",IF(COUNTRY_INFO!B38=0," ",COUNTRY_INFO!B38)) -> Labe | C38: =IF(INTRO!$E$39="Non endémique"," ",IF(COUNTRY_INFO!C38=0," ",COUNTRY_INFO!C38)) -> Tougue | D38: =IF(INTRO!$E$39="Non endémique",0,IF(INTRO!$E$39="Endémique mais pas de CP",IF(COUNTRY_INFO!$H38=1,COUNTRY_INFO!F38+COUNTRY_INFO!G38,0),IF(COUNTRY_INFO!$H38=1,COUNTRY_INFO!F38+COUNTRY_INFO!G38,IF(COUNTRY_INFO!$I38=1,IF(COUNTRY_INFO!M38>=(COUNTRY_INFO!F38+COUNTRY_INFO!G38),COUNTRY_INFO!F38+COUNTRY_INFO!G38,COUNTRY_INFO!$M38),0)))) -> 136071 | E38: =IF(AND(INTRO!$E$39="Non endémique",INTRO!$E$37="Non endémique"),"Non requis",IF(INTRO!$E$39="Non endémique","Traiter avec DEC",COUNTRY_INFO!V38)) -> 1 | F38: =IF(INTRO!$E$39<>"Non endémique",COUNTRY_INFO!W38,"Non requis") -> 1 | G38: =IF(COUNTRY_INFO!H38=1, IF($E38=1,$D38, 0),0) -> 136071 | H38: =IF(COUNTRY_INFO!I38=1, IF(AND(COUNTRY_INFO!$I38=1,$F38<>0),IF(COUNTRY_INFO!M38>=(COUNTRY_INFO!F38+COUNTRY_INFO!G38),COUNTRY_INFO!F38+COUNTRY_INFO!G38,COUNTRY_INFO!$M38), 0),0) -> 136071 | I38: 0 | J38: 0 | K38: 380998.8 | L38: 380998.8 | N38: 380998.8
A39: =IF(INTRO!$E$39="Non endémique"," ",IF(COUNTRY_INFO!A39=0," ",COUNTRY_INFO!A39)) -> Guinée | B39: =IF(INTRO!$E$39="Non endémique"," ",IF(COUNTRY_INFO!B39=0," ",COUNTRY_INFO!B39)) -> Mamou | C39: =IF(INTRO!$E$39="Non endémique"," ",IF(COUNTRY_INFO!C39=0," ",COUNTRY_INFO!C39)) -> Dalaba | D39: =IF(INTRO!$E$39="Non endémique",0,IF(INTRO!$E$39="Endémique mais pas de CP",IF(COUNTRY_INFO!$H39=1,COUNTRY_INFO!F39+COUNTRY_INFO!G39,0),IF(COUNTRY_INFO!$H39=1,COUNTRY_INFO!F39+COUNTRY_INFO!G39,IF(COUNTRY_INFO!$I39=1,IF(COUNTRY_INFO!M39>=(COUNTRY_INFO!F39+COUNTRY_INFO!G39),COUNTRY_INFO!F39+COUNTRY_INFO!G39,COUNTRY_INFO!$M39),0)))) -> 0 | E39: =IF(AND(INTRO!$E$39="Non endémique",INTRO!$E$37="Non endémique"),"Non requis",IF(INTRO!$E$39="Non endémique","Traiter avec DEC",COUNTRY_INFO!V39)) -> 0 | F39: =IF(INTRO!$E$39<>"Non endémique",COUNTRY_INFO!W39,"Non requis") -> 0 | G39: =IF(COUNTRY_INFO!H39=1, IF($E39=1,$D39, 0),0) -> 0 | H39: =IF(COUNTRY_INFO!I39=1, IF(AND(COUNTRY_INFO!$I39=1,$F39<>0),IF(COUNTRY_INFO!M39>=(COUNTRY_INFO!F39+COUNTRY_INFO!G39),COUNTRY_INFO!F39+COUNTRY_INFO!G39,COUNTRY_INFO!$M39), 0),0) -> 0 | I39: 0 | J39: 0 | K39: 0 | L39: 0 | N39: 0
A40: =IF(INTRO!$E$39="Non endémique"," ",IF(COUNTRY_INFO!A40=0," ",COUNTRY_INFO!A40)) -> Guinée | B40: =IF(INTRO!$E$39="Non endémique"," ",IF(COUNTRY_INFO!B40=0," ",COUNTRY_INFO!B40)) -> Mamou | C40: =IF(INTRO!$E$39="Non endémique"," ",IF(COUNTRY_INFO!C40=0," ",COUNTRY_INFO!C40)) -> Mamou | D40: =IF(INTRO!$E$39="Non endémique",0,IF(INTRO!$E$39="Endémique mais pas de CP",IF(COUNTRY_INFO!$H40=1,COUNTRY_INFO!F40+COUNTRY_INFO!G40,0),IF(COUNTRY_INFO!$H40=1,COUNTRY_INFO!F40+COUNTRY_INFO!G40,IF(COUNTRY_INFO!$I40=1,IF(COUNTRY_INFO!M40>=(COUNTRY_INFO!F40+COUNTRY_INFO!G40),COUNTRY_INFO!F40+COUNTRY_INFO!G40,COUNTRY_INFO!$M40),0)))) -> 349048 | E40: =IF(AND(INTRO!$E$39="Non endémique",INTRO!$E$37="Non endémique"),"Non requis",IF(INTRO!$E$39="Non endémique","Traiter avec DEC",COUNTRY_INFO!V40)) -> 1 | F40: =IF(INTRO!$E$39<>"Non endémique",COUNTRY_INFO!W40,"Non requis") -> 1 | G40: =IF(COUNTRY_INFO!H40=1, IF($E40=1,$D40, 0),0) -> 349048 | H40: =IF(COUNTRY_INFO!I40=1, IF(AND(COUNTRY_INFO!$I40=1,$F40<>0),IF(COUNTRY_INFO!M40>=(COUNTRY_INFO!F40+COUNTRY_INFO!G40),COUNTRY_INFO!F40+COUNTRY_INFO!G40,COUNTRY_INFO!$M40), 0),0) -> 349048 | I40: 0 | J40: 0 | K40: 977334.4 | L40: 977334.4 | N40: 977334.4
A41: =IF(INTRO!$E$39="Non endémique"," ",IF(COUNTRY_INFO!A41=0," ",COUNTRY_INFO!A41)) -> Guinée | B41: =IF(INTRO!$E$39="Non endémique"," ",IF(COUNTRY_INFO!B41=0," ",COUNTRY_INFO!B41)) -> Mamou | C41: =IF(INTRO!$E$39="Non endémique"," ",IF(COUNTRY_INFO!C41=0," ",COUNTRY_INFO!C41)) -> Pita | D41: =IF(INTRO!$E$39="Non endémique",0,IF(INTRO!$E$39="Endémique mais pas de CP",IF(COUNTRY_INFO!$H41=1,COUNTRY_INFO!F41+COUNTRY_INFO!G41,0),IF(COUNTRY_INFO!$H41=1,COUNTRY_INFO!F41+COUNTRY_INFO!G41,IF(COUNTRY_INFO!$I41=1,IF(COUNTRY_INFO!M41>=(COUNTRY_INFO!F41+COUNTRY_INFO!G41),COUNTRY_INFO!F41+COUNTRY_INFO!G41,COUNTRY_INFO!$M41),0)))) -> 304309 | E41: =IF(AND(INTRO!$E$39="Non endémique",INTRO!$E$37="Non endémique"),"Non requis",IF(INTRO!$E$39="Non endémique","Traiter avec DEC",COUNTRY_INFO!V41)) -> 1 | F41: =IF(INTRO!$E$39<>"Non endémique",COUNTRY_INFO!W41,"Non requis") -> 0 | G41: =IF(COUNTRY_INFO!H41=1, IF($E41=1,$D41, 0),0) -> 304309 | H41: =IF(COUNTRY_INFO!I41=1, IF(AND(COUNTRY_INFO!$I41=1,$F41<>0),IF(COUNTRY_INFO!M41>=(COUNTRY_INFO!F41+COUNTRY_INFO!G41),COUNTRY_INFO!F41+COUNTRY_INFO!G41,COUNTRY_INFO!$M41), 0),0) -> 0 | I41: 852065.2 | J41: 0 | K41: 0 | L41: 852065.2 | N41: 852065.2
A42: =IF(INTRO!$E$39="Non endémique"," ",IF(COUNTRY_INFO!A42=0," ",COUNTRY_INFO!A42)) -> Guinée | B42: =IF(INTRO!$E$39="Non endémique"," ",IF(COUNTRY_INFO!B42=0," ",COUNTRY_INFO!B42)) -> N'Zerekore | C42: =IF(INTRO!$E$39="Non endémique"," ",IF(COUNTRY_INFO!C42=0," ",COUNTRY_INFO!C42)) -> Beyla | D42: =IF(INTRO!$E$39="Non endémique",0,IF(INTRO!$E$39="Endémique mais pas de CP",IF(COUNTRY_INFO!$H42=1,COUNTRY_INFO!F42+COUNTRY_INFO!G42,0),IF(COUNTRY_INFO!$H42=1,COUNTRY_INFO!F42+COUNTRY_INFO!G42,IF(COUNTRY_INFO!$I42=1,IF(COUNTRY_INFO!M42>=(COUNTRY_INFO!F42+COUNTRY_INFO!G42),COUNTRY_INFO!F42+COUNTRY_INFO!G42,COUNTRY_INFO!$M42),0)))) -> 357023 | E42: =IF(AND(INTRO!$E$39="Non endémique",INTRO!$E$37="Non endémique"),"Non requis",IF(INTRO!$E$39="Non endémique","Traiter avec DEC",COUNTRY_INFO!V42)) -> 0 | F42: =IF(INTRO!$E$39<>"Non endémique",COUNTRY_INFO!W42,"Non requis") -> 1 | G42: =IF(COUNTRY_INFO!H42=1, IF($E42=1,$D42, 0),0) -> 0 | H42: =IF(COUNTRY_INFO!I42=1, IF(AND(COUNTRY_INFO!$I42=1,$F42<>0),IF(COUNTRY_INFO!M42>=(COUNTRY_INFO!F42+COUNTRY_INFO!G42),COUNTRY_INFO!F42+COUNTRY_INFO!G42,COUNTRY_INFO!$M42), 0),0) -> 357023 | I42: 0 | J42: 999664.4 | K42: 0 | L42: 999664.4 | N42: 999664.4
A43: =IF(INTRO!$E$39="Non endémique"," ",IF(COUNTRY_INFO!A43=0," ",COUNTRY_INFO!A43)) -> Guinée | B43: =IF(INTRO!$E$39="Non endémique"," ",IF(COUNTRY_INFO!B43=0," ",COUNTRY_INFO!B43)) -> N'Zerekore | C43: =IF(INTRO!$E$39="Non endémique"," ",IF(COUNTRY_INFO!C43=0," ",COUNTRY_INFO!C43)) -> Gueckedou | D43: =IF(INTRO!$E$39="Non endémique",0,IF(INTRO!$E$39="Endémique mais pas de CP",IF(COUNTRY_INFO!$H43=1,COUNTRY_INFO!F43+COUNTRY_INFO!G43,0),IF(COUNTRY_INFO!$H43=1,COUNTRY_INFO!F43+COUNTRY_INFO!G43,IF(COUNTRY_INFO!$I43=1,IF(COUNTRY_INFO!M43>=(COUNTRY_INFO!F43+COUNTRY_INFO!G43),COUNTRY_INFO!F43+COUNTRY_INFO!G43,COUNTRY_INFO!$M43),0)))) -> 317973 | E43: =IF(AND(INTRO!$E$39="Non endémique",INTRO!$E$37="Non endémique"),"Non requis",IF(INTRO!$E$39="Non endémique","Traiter avec DEC",COUNTRY_INFO!V43)) -> 0 | F43: =IF(INTRO!$E$39<>"Non endémique",COUNTRY_INFO!W43,"Non requis") -> 1 | G43: =IF(COUNTRY_INFO!H43=1, IF($E43=1,$D43, 0),0) -> 0 | H43: =IF(COUNTRY_INFO!I43=1, IF(AND(COUNTRY_INFO!$I43=1,$F43<>0),IF(COUNTRY_INFO!M43>=(COUNTRY_INFO!F43+COUNTRY_INFO!G43),COUNTRY_INFO!F43+COUNTRY_INFO!G43,COUNTRY_INFO!$M43), 0),0) -> 317973 | I43: 0 | J43: 890324.4 | K43: 0 | L43: 890324.4 | N43: 890324.4
A44: =IF(INTRO!$E$39="Non endémique"," ",IF(COUNTRY_INFO!A44=0," ",COUNTRY_INFO!A44)) -> Guinée | B44: =IF(INTRO!$E$39="Non endémique"," ",IF(COUNTRY_INFO!B44=0," ",COUNTRY_INFO!B44)) -> N'Zerekore | C44: =IF(INTRO!$E$39="Non endémique"," ",IF(COUNTRY_INFO!C44=0," ",COUNTRY_INFO!C44)) -> Lola | D44: =IF(INTRO!$E$39="Non endémique",0,IF(INTRO!$E$39="Endémique mais pas de CP",IF(COUNTRY_INFO!$H44=1,COUNTRY_INFO!F44+COUNTRY_INFO!G44,0),IF(COUNTRY_INFO!$H44=1,COUNTRY_INFO!F44+COUNTRY_INFO!G44,IF(COUNTRY_INFO!$I44=1,IF(COUNTRY_INFO!M44>=(COUNTRY_INFO!F44+COUNTRY_INFO!G44),COUNTRY_INFO!F44+COUNTRY_INFO!G44,COUNTRY_INFO!$M44),0)))) -> 187838 | E44: =IF(AND(INTRO!$E$39="Non endémique",INTRO!$E$37="Non endémique"),"Non requis",IF(INTRO!$E$39="Non endémique","Traiter avec DEC",COUNTRY_INFO!V44)) -> 0 | F44: =IF(INTRO!$E$39<>"Non endémique",COUNTRY_INFO!W44,"Non requis") -> 1 | G44: =IF(COUNTRY_INFO!H44=1, IF($E44=1,$D44, 0),0) -> 0 | H44: =IF(COUNTRY_INFO!I44=1, IF(AND(COUNTRY_INFO!$I44=1,$F44<>0),IF(COUNTRY_INFO!M44>=(COUNTRY_INFO!F44+COUNTRY_INFO!G44),COUNTRY_INFO!F44+COUNTRY_INFO!G44,COUNTRY_INFO!$M44), 0),0) -> 187838 | I44: 0 | J44: 525946.4 | K44: 0 | L44: 525946.4 | N44: 525946.4
A45: =IF(INTRO!$E$39="Non endémique"," ",IF(COUNTRY_INFO!A45=0," ",COUNTRY_INFO!A45)) -> Guinée | B45: =IF(INTRO!$E$39="Non endémique"," ",IF(COUNTRY_INFO!B45=0," ",COUNTRY_INFO!B45)) -> N'Zerekore | C45: =IF(INTRO!$E$39="Non endémique"," ",IF(COUNTRY_INFO!C45=0," ",COUNTRY_INFO!C45)) -> Macenta | D45: =IF(INTRO!$E$39="Non endémique",0,IF(INTRO!$E$39="Endémique mais pas de CP",IF(COUNTRY_INFO!$H45=1,COUNTRY_INFO!F45+COUNTRY_INFO!G45,0),IF(COUNTRY_INFO!$H45=1,COUNTRY_INFO!F45+COUNTRY_INFO!G45,IF(COUNTRY_INFO!$I45=1,IF(COUNTRY_INFO!M45>=(COUNTRY_INFO!F45+COUNTRY_INFO!G45),COUNTRY_INFO!F45+COUNTRY_INFO!G45,COUNTRY_INFO!$M45),0)))) -> 304846 | E45: =IF(AND(INTRO!$E$39="Non endémique",INTRO!$E$37="Non endémique"),"Non requis",IF(INTRO!$E$39="Non endémique","Traiter avec DEC",COUNTRY_INFO!V45)) -> 1 | F45: =IF(INTRO!$E$39<>"Non endémique",COUNTRY_INFO!W45,"Non requis") -> 1 | G45: =IF(COUNTRY_INFO!H45=1, IF($E45=1,$D45, 0),0) -> 304846 | H45: =IF(COUNTRY_INFO!I45=1, IF(AND(COUNTRY_INFO!$I45=1,$F45<>0),IF(COUNTRY_INFO!M45>=(COUNTRY_INFO!F45+COUNTRY_INFO!G45),COUNTRY_INFO!F45+COUNTRY_INFO!G45,COUNTRY_INFO!$M45), 0),0) -> 304846 | I45: 0 | J45: 0 | K45: 853568.8 | L45: 853568.8 | N45: 853568.8
A46: =IF(INTRO!$E$39="Non endémique"," ",IF(COUNTRY_INFO!A46=0," ",COUNTRY_INFO!A46)) -> Guinée | B46: =IF(INTRO!$E$39="Non endémique"," ",IF(COUNTRY_INFO!B46=0," ",COUNTRY_INFO!B46)) -> N'Zerekore | C46: =IF(INTRO!$E$39="Non endémique"," ",IF(COUNTRY_INFO!C46=0," ",COUNTRY_INFO!C46)) -> N'Zerekore | D46: =IF(INTRO!$E$39="Non endémique",0,IF(INTRO!$E$39="Endémique mais pas de CP",IF(COUNTRY_INFO!$H46=1,COUNTRY_INFO!F46+COUNTRY_INFO!G46,0),IF(COUNTRY_INFO!$H46=1,COUNTRY_INFO!F46+COUNTRY_INFO!G46,IF(COUNTRY_INFO!$I46=1,IF(COUNTRY_INFO!M46>=(COUNTRY_INFO!F46+COUNTRY_INFO!G46),COUNTRY_INFO!F46+COUNTRY_INFO!G46,COUNTRY_INFO!$M46),0)))) -> 434012 | E46: =IF(AND(INTRO!$E$39="Non endémique",INTRO!$E$37="Non endémique"),"Non requis",IF(INTRO!$E$39="Non endémique","Traiter avec DEC",COUNTRY_INFO!V46)) -> 0 | F46: =IF(INTRO!$E$39<>"Non endémique",COUNTRY_INFO!W46,"Non requis") -> 1 | G46: =IF(COUNTRY_INFO!H46=1, IF($E46=1,$D46, 0),0) -> 0 | H46: =IF(COUNTRY_INFO!I46=1, IF(AND(COUNTRY_INFO!$I46=1,$F46<>0),IF(COUNTRY_INFO!M46>=(COUNTRY_INFO!F46+COUNTRY_INFO!G46),COUNTRY_INFO!F46+COUNTRY_INFO!G46,COUNTRY_INFO!$M46), 0),0) -> 434012 | I46: 0 | J46: 1215233.6 | K46: 0 | L46: 1215233.6 | N46: 1215233.6
A47: =IF(INTRO!$E$39="Non endémique"," ",IF(COUNTRY_INFO!A47=0," ",COUNTRY_INFO!A47)) -> Guinée | B47: =IF(INTRO!$E$39="Non endémique"," ",IF(COUNTRY_INFO!B47=0," ",COUNTRY_INFO!B47)) -> N'Zerekore | C47: =IF(INTRO!$E$39="Non endémique"," ",IF(COUNTRY_INFO!C47=0," ",COUNTRY_INFO!C47)) -> Yomou | D47: =IF(INTRO!$E$39="Non endémique",0,IF(INTRO!$E$39="Endémique mais pas de CP",IF(COUNTRY_INFO!$H47=1,COUNTRY_INFO!F47+COUNTRY_INFO!G47,0),IF(COUNTRY_INFO!$H47=1,COUNTRY_INFO!F47+COUNTRY_INFO!G47,IF(COUNTRY_INFO!$I47=1,IF(COUNTRY_INFO!M47>=(COUNTRY_INFO!F47+COUNTRY_INFO!G47),COUNTRY_INFO!F47+COUNTRY_INFO!G47,COUNTRY_INFO!$M47),0)))) -> 125138 | E47: =IF(AND(INTRO!$E$39="Non endémique",INTRO!$E$37="Non endémique"),"Non requis",IF(INTRO!$E$39="Non endémique","Traiter avec DEC",COUNTRY_INFO!V47)) -> 0 | F47: =IF(INTRO!$E$39<>"Non endémique",COUNTRY_INFO!W47,"Non requis") -> 1 | G47: =IF(COUNTRY_INFO!H47=1, IF($E47=1,$D47, 0),0) -> 0 | H47: =IF(COUNTRY_INFO!I47=1, IF(AND(COUNTRY_INFO!$I47=1,$F47<>0),IF(COUNTRY_INFO!M47>=(COUNTRY_INFO!F47+COUNTRY_INFO!G47),COUNTRY_INFO!F47+COUNTRY_INFO!G47,COUNTRY_INFO!$M47), 0),0) -> 125138 | I47: 0 | J47: 350386.4 | K47: 0 | L47: 350386.4 | N47: 350386.4

Sheet IVM+ (hidden)
A1: Ivermectine (IVM) pour IDA thérapie
A2: Structure administrative, population ciblée par groupe d'âge, plan de traitement et information sur les comprimés
A4: TOTAL | E4: =SUBTOTAL(9,E$10:E$1010) -> 0 | F4: 0 | G4: 0 | H4: 0
A6: Structure administrative du pays | D6: Plan de traitement | E6: Population nécessitant un traitement avec IVM (IDA thérapie) | F6: Ivermectine (IVM)
A7: Pays | B7: Région/Département | C7: District | D7: FL | F7: Total requis | G7: Reste en stock | H7: Comprimés devant être fournis
A10: =IF(AND(INTRO!$E$37="Endémique",INTRO!$E$39="Non endémique"),IF(COUNTRY_INFO!A10=0," ",COUNTRY_INFO!A10)," ") ->  | B10: =IF(AND(INTRO!$E$37="Endémique",INTRO!$E$39="Non endémique"),IF(COUNTRY_INFO!B10=0," ",COUNTRY_INFO!B10)," ") ->  | C10: =IF(AND(INTRO!$E$37="Endémique",INTRO!$E$39="Non endémique"),IF(COUNTRY_INFO!C10=0," ",COUNTRY_INFO!C10)," ") ->  | D10: =IF(COUNTRY_INFO!Z10<>"",COUNTRY_INFO!V10,0) -> 0 | E10: =IF(AND(COUNTRY_INFO!Z10<>"",COUNTRY_INFO!$H10=1),COUNTRY_INFO!F10+COUNTRY_INFO!G10,0) -> 0 | F10: =E10*2.8 -> 0 | H10: =IF($F10>$G10,$F10-$G10,0) -> 0
A11: =IF(AND(INTRO!$E$37="Endémique",INTRO!$E$39="Non endémique"),IF(COUNTRY_INFO!A11=0," ",COUNTRY_INFO!A11)," ") ->  | B11: =IF(AND(INTRO!$E$37="Endémique",INTRO!$E$39="Non endémique"),IF(COUNTRY_INFO!B11=0," ",COUNTRY_INFO!B11)," ") ->  | C11: =IF(AND(INTRO!$E$37="Endémique",INTRO!$E$39="Non endémique"),IF(COUNTRY_INFO!C11=0," ",COUNTRY_INFO!C11)," ") ->  | D11: =IF(COUNTRY_INFO!Z11<>"",COUNTRY_INFO!V11,0) -> 0 | E11: =IF(AND(COUNTRY_INFO!Z11<>"",COUNTRY_INFO!$H11=1),COUNTRY_INFO!F11+COUNTRY_INFO!G11,0) -> 0 | F11: =E11*2.8 -> 0 | H11: 0
A12: =IF(AND(INTRO!$E$37="Endémique",INTRO!$E$39="Non endémique"),IF(COUNTRY_INFO!A12=0," ",COUNTRY_INFO!A12)," ") ->  | B12: =IF(AND(INTRO!$E$37="Endémique",INTRO!$E$39="Non endémique"),IF(COUNTRY_INFO!B12=0," ",COUNTRY_INFO!B12)," ") ->  | C12: =IF(AND(INTRO!$E$37="Endémique",INTRO!$E$39="Non endémique"),IF(COUNTRY_INFO!C12=0," ",COUNTRY_INFO!C12)," ") ->  | D12: =IF(COUNTRY_INFO!Z12<>"",COUNTRY_INFO!V12,0) -> 0 | E12: =IF(AND(COUNTRY_INFO!Z12<>"",COUNTRY_INFO!$H12=1),COUNTRY_INFO!F12+COUNTRY_INFO!G12,0) -> 0 | F12: 0 | H12: 0
A13: =IF(AND(INTRO!$E$37="Endémique",INTRO!$E$39="Non endémique"),IF(COUNTRY_INFO!A13=0," ",COUNTRY_INFO!A13)," ") ->  | B13: =IF(AND(INTRO!$E$37="Endémique",INTRO!$E$39="Non endémique"),IF(COUNTRY_INFO!B13=0," ",COUNTRY_INFO!B13)," ") ->  | C13: =IF(AND(INTRO!$E$37="Endémique",INTRO!$E$39="Non endémique"),IF(COUNTRY_INFO!C13=0," ",COUNTRY_INFO!C13)," ") ->  | D13: =IF(COUNTRY_INFO!Z13<>"",COUNTRY_INFO!V13,0) -> 0 | E13: =IF(AND(COUNTRY_INFO!Z13<>"",COUNTRY_INFO!$H13=1),COUNTRY_INFO!F13+COUNTRY_INFO!G13,0) -> 0 | F13: 0 | H13: 0
A14: =IF(AND(INTRO!$E$37="Endémique",INTRO!$E$39="Non endémique"),IF(COUNTRY_INFO!A14=0," ",COUNTRY_INFO!A14)," ") ->  | B14: =IF(AND(INTRO!$E$37="Endémique",INTRO!$E$39="Non endémique"),IF(COUNTRY_INFO!B14=0," ",COUNTRY_INFO!B14)," ") ->  | C14: =IF(AND(INTRO!$E$37="Endémique",INTRO!$E$39="Non endémique"),IF(COUNTRY_INFO!C14=0," ",COUNTRY_INFO!C14)," ") ->  | D14: =IF(COUNTRY_INFO!Z14<>"",COUNTRY_INFO!V14,0) -> 0 | E14: =IF(AND(COUNTRY_INFO!Z14<>"",COUNTRY_INFO!$H14=1),COUNTRY_INFO!F14+COUNTRY_INFO!G14,0) -> 0 | F14: 0 | H14: 0
A15: =IF(AND(INTRO!$E$37="Endémique",INTRO!$E$39="Non endémique"),IF(COUNTRY_INFO!A15=0," ",COUNTRY_INFO!A15)," ") ->  | B15: =IF(AND(INTRO!$E$37="Endémique",INTRO!$E$39="Non endémique"),IF(COUNTRY_INFO!B15=0," ",COUNTRY_INFO!B15)," ") ->  | C15: =IF(AND(INTRO!$E$37="Endémique",INTRO!$E$39="Non endémique"),IF(COUNTRY_INFO!C15=0," ",COUNTRY_INFO!C15)," ") ->  | D15: =IF(COUNTRY_INFO!Z15<>"",COUNTRY_INFO!V15,0) -> 0 | E15: =IF(AND(COUNTRY_INFO!Z15<>"",COUNTRY_INFO!$H15=1),COUNTRY_INFO!F15+COUNTRY_INFO!G15,0) -> 0 | F15: 0 | H15: 0
A16: =IF(AND(INTRO!$E$37="Endémique",INTRO!$E$39="Non endémique"),IF(COUNTRY_INFO!A16=0," ",COUNTRY_INFO!A16)," ") ->  | B16: =IF(AND(INTRO!$E$37="Endémique",INTRO!$E$39="Non endémique"),IF(COUNTRY_INFO!B16=0," ",COUNTRY_INFO!B16)," ") ->  | C16: =IF(AND(INTRO!$E$37="Endémique",INTRO!$E$39="Non endémique"),IF(COUNTRY_INFO!C16=0," ",COUNTRY_INFO!C16)," ") ->  | D16: =IF(COUNTRY_INFO!Z16<>"",COUNTRY_INFO!V16,0) -> 0 | E16: =IF(AND(COUNTRY_INFO!Z16<>"",COUNTRY_INFO!$H16=1),COUNTRY_INFO!F16+COUNTRY_INFO!G16,0) -> 0 | F16: 0 | H16: 0
A17: =IF(AND(INTRO!$E$37="Endémique",INTRO!$E$39="Non endémique"),IF(COUNTRY_INFO!A17=0," ",COUNTRY_INFO!A17)," ") ->  | B17: =IF(AND(INTRO!$E$37="Endémique",INTRO!$E$39="Non endémique"),IF(COUNTRY_INFO!B17=0," ",COUNTRY_INFO!B17)," ") ->  | C17: =IF(AND(INTRO!$E$37="Endémique",INTRO!$E$39="Non endémique"),IF(COUNTRY_INFO!C17=0," ",COUNTRY_INFO!C17)," ") ->  | D17: =IF(COUNTRY_INFO!Z17<>"",COUNTRY_INFO!V17,0) -> 0 | E17: =IF(AND(COUNTRY_INFO!Z17<>"",COUNTRY_INFO!$H17=1),COUNTRY_INFO!F17+COUNTRY_INFO!G17,0) -> 0 | F17: 0 | H17: 0
A18: =IF(AND(INTRO!$E$37="Endémique",INTRO!$E$39="Non endémique"),IF(COUNTRY_INFO!A18=0," ",COUNTRY_INFO!A18)," ") ->  | B18: =IF(AND(INTRO!$E$37="Endémique",INTRO!$E$39="Non endémique"),IF(COUNTRY_INFO!B18=0," ",COUNTRY_INFO!B18)," ") ->  | C18: =IF(AND(INTRO!$E$37="Endémique",INTRO!$E$39="Non endémique"),IF(COUNTRY_INFO!C18=0," ",COUNTRY_INFO!C18)," ") ->  | D18: =IF(COUNTRY_INFO!Z18<>"",COUNTRY_INFO!V18,0) -> 0 | E18: =IF(AND(COUNTRY_INFO!Z18<>"",COUNTRY_INFO!$H18=1),COUNTRY_INFO!F18+COUNTRY_INFO!G18,0) -> 0 | F18: 0 | H18: 0
A19: =IF(AND(INTRO!$E$37="Endémique",INTRO!$E$39="Non endémique"),IF(COUNTRY_INFO!A19=0," ",COUNTRY_INFO!A19)," ") ->  | B19: =IF(AND(INTRO!$E$37="Endémique",INTRO!$E$39="Non endémique"),IF(COUNTRY_INFO!B19=0," ",COUNTRY_INFO!B19)," ") ->  | C19: =IF(AND(INTRO!$E$37="Endémique",INTRO!$E$39="Non endémique"),IF(COUNTRY_INFO!C19=0," ",COUNTRY_INFO!C19)," ") ->  | D19: =IF(COUNTRY_INFO!Z19<>"",COUNTRY_INFO!V19,0) -> 0 | E19: =IF(AND(COUNTRY_INFO!Z19<>"",COUNTRY_INFO!$H19=1),COUNTRY_INFO!F19+COUNTRY_INFO!G19,0) -> 0 | F19: 0 | H19: 0
A20: =IF(AND(INTRO!$E$37="Endémique",INTRO!$E$39="Non endémique"),IF(COUNTRY_INFO!A20=0," ",COUNTRY_INFO!A20)," ") ->  | B20: =IF(AND(INTRO!$E$37="Endémique",INTRO!$E$39="Non endémique"),IF(COUNTRY_INFO!B20=0," ",COUNTRY_INFO!B20)," ") ->  | C20: =IF(AND(INTRO!$E$37="Endémique",INTRO!$E$39="Non endémique"),IF(COUNTRY_INFO!C20=0," ",COUNTRY_INFO!C20)," ") ->  | D20: =IF(COUNTRY_INFO!Z20<>"",COUNTRY_INFO!V20,0) -> 0 | E20: =IF(AND(COUNTRY_INFO!Z20<>"",COUNTRY_INFO!$H20=1),COUNTRY_INFO!F20+COUNTRY_INFO!G20,0) -> 0 | F20: 0 | H20: 0
A21: =IF(AND(INTRO!$E$37="Endémique",INTRO!$E$39="Non endémique"),IF(COUNTRY_INFO!A21=0," ",COUNTRY_INFO!A21)," ") ->  | B21: =IF(AND(INTRO!$E$37="Endémique",INTRO!$E$39="Non endémique"),IF(COUNTRY_INFO!B21=0," ",COUNTRY_INFO!B21)," ") ->  | C21: =IF(AND(INTRO!$E$37="Endémique",INTRO!$E$39="Non endémique"),IF(COUNTRY_INFO!C21=0," ",COUNTRY_INFO!C21)," ") ->  | D21: =IF(COUNTRY_INFO!Z21<>"",COUNTRY_INFO!V21,0) -> 0 | E21: =IF(AND(COUNTRY_INFO!Z21<>"",COUNTRY_INFO!$H21=1),COUNTRY_INFO!F21+COUNTRY_INFO!G21,0) -> 0 | F21: 0 | H21: 0
A22: =IF(AND(INTRO!$E$37="Endémique",INTRO!$E$39="Non endémique"),IF(COUNTRY_INFO!A22=0," ",COUNTRY_INFO!A22)," ") ->  | B22: =IF(AND(INTRO!$E$37="Endémique",INTRO!$E$39="Non endémique"),IF(COUNTRY_INFO!B22=0," ",COUNTRY_INFO!B22)," ") ->  | C22: =IF(AND(INTRO!$E$37="Endémique",INTRO!$E$39="Non endémique"),IF(COUNTRY_INFO!C22=0," ",COUNTRY_INFO!C22)," ") ->  | D22: =IF(COUNTRY_INFO!Z22<>"",COUNTRY_INFO!V22,0) -> 0 | E22: =IF(AND(COUNTRY_INFO!Z22<>"",COUNTRY_INFO!$H22=1),COUNTRY_INFO!F22+COUNTRY_INFO!G22,0) -> 0 | F22: 0 | H22: 0
A23: =IF(AND(INTRO!$E$37="Endémique",INTRO!$E$39="Non endémique"),IF(COUNTRY_INFO!A23=0," ",COUNTRY_INFO!A23)," ") ->  | B23: =IF(AND(INTRO!$E$37="Endémique",INTRO!$E$39="Non endémique"),IF(COUNTRY_INFO!B23=0," ",COUNTRY_INFO!B23)," ") ->  | C23: =IF(AND(INTRO!$E$37="Endémique",INTRO!$E$39="Non endémique"),IF(COUNTRY_INFO!C23=0," ",COUNTRY_INFO!C23)," ") ->  | D23: =IF(COUNTRY_INFO!Z23<>"",COUNTRY_INFO!V23,0) -> 0 | E23: =IF(AND(COUNTRY_INFO!Z23<>"",COUNTRY_INFO!$H23=1),COUNTRY_INFO!F23+COUNTRY_INFO!G23,0) -> 0 | F23: 0 | H23: 0
A24: =IF(AND(INTRO!$E$37="Endémique",INTRO!$E$39="Non endémique"),IF(COUNTRY_INFO!A24=0," ",COUNTRY_INFO!A24)," ") ->  | B24: =IF(AND(INTRO!$E$37="Endémique",INTRO!$E$39="Non endémique"),IF(COUNTRY_INFO!B24=0," ",COUNTRY_INFO!B24)," ") ->  | C24: =IF(AND(INTRO!$E$37="Endémique",INTRO!$E$39="Non endémique"),IF(COUNTRY_INFO!C24=0," ",COUNTRY_INFO!C24)," ") ->  | D24: =IF(COUNTRY_INFO!Z24<>"",COUNTRY_INFO!V24,0) -> 0 | E24: =IF(AND(COUNTRY_INFO!Z24<>"",COUNTRY_INFO!$H24=1),COUNTRY_INFO!F24+COUNTRY_INFO!G24,0) -> 0 | F24: 0 | H24: 0
A25: =IF(AND(INTRO!$E$37="Endémique",INTRO!$E$39="Non endémique"),IF(COUNTRY_INFO!A25=0," ",COUNTRY_INFO!A25)," ") ->  | B25: =IF(AND(INTRO!$E$37="Endémique",INTRO!$E$39="Non endémique"),IF(COUNTRY_INFO!B25=0," ",COUNTRY_INFO!B25)," ") ->  | C25: =IF(AND(INTRO!$E$37="Endémique",INTRO!$E$39="Non endémique"),IF(COUNTRY_INFO!C25=0," ",COUNTRY_INFO!C25)," ") ->  | D25: =IF(COUNTRY_INFO!Z25<>"",COUNTRY_INFO!V25,0) -> 0 | E25: =IF(AND(COUNTRY_INFO!Z25<>"",COUNTRY_INFO!$H25=1),COUNTRY_INFO!F25+COUNTRY_INFO!G25,0) -> 0 | F25: 0 | H25: 0
A26: =IF(AND(INTRO!$E$37="Endémique",INTRO!$E$39="Non endémique"),IF(COUNTRY_INFO!A26=0," ",COUNTRY_INFO!A26)," ") ->  | B26: =IF(AND(INTRO!$E$37="Endémique",INTRO!$E$39="Non endémique"),IF(COUNTRY_INFO!B26=0," ",COUNTRY_INFO!B26)," ") ->  | C26: =IF(AND(INTRO!$E$37="Endémique",INTRO!$E$39="Non endémique"),IF(COUNTRY_INFO!C26=0," ",COUNTRY_INFO!C26)," ") ->  | D26: =IF(COUNTRY_INFO!Z26<>"",COUNTRY_INFO!V26,0) -> 0 | E26: =IF(AND(COUNTRY_INFO!Z26<>"",COUNTRY_INFO!$H26=1),COUNTRY_INFO!F26+COUNTRY_INFO!G26,0) -> 0 | F26: 0 | H26: 0
A27: =IF(AND(INTRO!$E$37="Endémique",INTRO!$E$39="Non endémique"),IF(COUNTRY_INFO!A27=0," ",COUNTRY_INFO!A27)," ") ->  | B27: =IF(AND(INTRO!$E$37="Endémique",INTRO!$E$39="Non endémique"),IF(COUNTRY_INFO!B27=0," ",COUNTRY_INFO!B27)," ") ->  | C27: =IF(AND(INTRO!$E$37="Endémique",INTRO!$E$39="Non endémique"),IF(COUNTRY_INFO!C27=0," ",COUNTRY_INFO!C27)," ") ->  | D27: =IF(COUNTRY_INFO!Z27<>"",COUNTRY_INFO!V27,0) -> 0 | E27: =IF(AND(COUNTRY_INFO!Z27<>"",COUNTRY_INFO!$H27=1),COUNTRY_INFO!F27+COUNTRY_INFO!G27,0) -> 0 | F27: 0 | H27: 0
A28: =IF(AND(INTRO!$E$37="Endémique",INTRO!$E$39="Non endémique"),IF(COUNTRY_INFO!A28=0," ",COUNTRY_INFO!A28)," ") ->  | B28: =IF(AND(INTRO!$E$37="Endémique",INTRO!$E$39="Non endémique"),IF(COUNTRY_INFO!B28=0," ",COUNTRY_INFO!B28)," ") ->  | C28: =IF(AND(INTRO!$E$37="Endémique",INTRO!$E$39="Non endémique"),IF(COUNTRY_INFO!C28=0," ",COUNTRY_INFO!C28)," ") ->  | D28: =IF(COUNTRY_INFO!Z28<>"",COUNTRY_INFO!V28,0) -> 0 | E28: =IF(AND(COUNTRY_INFO!Z28<>"",COUNTRY_INFO!$H28=1),COUNTRY_INFO!F28+COUNTRY_INFO!G28,0) -> 0 | F28: 0 | H28: 0
A29: =IF(AND(INTRO!$E$37="Endémique",INTRO!$E$39="Non endémique"),IF(COUNTRY_INFO!A29=0," ",COUNTRY_INFO!A29)," ") ->  | B29: =IF(AND(INTRO!$E$37="Endémique",INTRO!$E$39="Non endémique"),IF(COUNTRY_INFO!B29=0," ",COUNTRY_INFO!B29)," ") ->  | C29: =IF(AND(INTRO!$E$37="Endémique",INTRO!$E$39="Non endémique"),IF(COUNTRY_INFO!C29=0," ",COUNTRY_INFO!C29)," ") ->  | D29: =IF(COUNTRY_INFO!Z29<>"",COUNTRY_INFO!V29,0) -> 0 | E29: =IF(AND(COUNTRY_INFO!Z29<>"",COUNTRY_INFO!$H29=1),COUNTRY_INFO!F29+COUNTRY_INFO!G29,0) -> 0 | F29: 0 | H29: 0
A30: =IF(AND(INTRO!$E$37="Endémique",INTRO!$E$39="Non endémique"),IF(COUNTRY_INFO!A30=0," ",COUNTRY_INFO!A30)," ") ->  | B30: =IF(AND(INTRO!$E$37="Endémique",INTRO!$E$39="Non endémique"),IF(COUNTRY_INFO!B30=0," ",COUNTRY_INFO!B30)," ") ->  | C30: =IF(AND(INTRO!$E$37="Endémique",INTRO!$E$39="Non endémique"),IF(COUNTRY_INFO!C30=0," ",COUNTRY_INFO!C30)," ") ->  | D30: =IF(COUNTRY_INFO!Z30<>"",COUNTRY_INFO!V30,0) -> 0 | E30: =IF(AND(COUNTRY_INFO!Z30<>"",COUNTRY_INFO!$H30=1),COUNTRY_INFO!F30+COUNTRY_INFO!G30,0) -> 0 | F30: 0 | H30: 0
A31: =IF(AND(INTRO!$E$37="Endémique",INTRO!$E$39="Non endémique"),IF(COUNTRY_INFO!A31=0," ",COUNTRY_INFO!A31)," ") ->  | B31: =IF(AND(INTRO!$E$37="Endémique",INTRO!$E$39="Non endémique"),IF(COUNTRY_INFO!B31=0," ",COUNTRY_INFO!B31)," ") ->  | C31: =IF(AND(INTRO!$E$37="Endémique",INTRO!$E$39="Non endémique"),IF(COUNTRY_INFO!C31=0," ",COUNTRY_INFO!C31)," ") ->  | D31: =IF(COUNTRY_INFO!Z31<>"",COUNTRY_INFO!V31,0) -> 0 | E31: =IF(AND(COUNTRY_INFO!Z31<>"",COUNTRY_INFO!$H31=1),COUNTRY_INFO!F31+COUNTRY_INFO!G31,0) -> 0 | F31: 0 | H31: 0
A32: =IF(AND(INTRO!$E$37="Endémique",INTRO!$E$39="Non endémique"),IF(COUNTRY_INFO!A32=0," ",COUNTRY_INFO!A32)," ") ->  | B32: =IF(AND(INTRO!$E$37="Endémique",INTRO!$E$39="Non endémique"),IF(COUNTRY_INFO!B32=0," ",COUNTRY_INFO!B32)," ") ->  | C32: =IF(AND(INTRO!$E$37="Endémique",INTRO!$E$39="Non endémique"),IF(COUNTRY_INFO!C32=0," ",COUNTRY_INFO!C32)," ") ->  | D32: =IF(COUNTRY_INFO!Z32<>"",COUNTRY_INFO!V32,0) -> 0 | E32: =IF(AND(COUNTRY_INFO!Z32<>"",COUNTRY_INFO!$H32=1),COUNTRY_INFO!F32+COUNTRY_INFO!G32,0) -> 0 | F32: 0 | H32: 0
A33: =IF(AND(INTRO!$E$37="Endémique",INTRO!$E$39="Non endémique"),IF(COUNTRY_INFO!A33=0," ",COUNTRY_INFO!A33)," ") ->  | B33: =IF(AND(INTRO!$E$37="Endémique",INTRO!$E$39="Non endémique"),IF(COUNTRY_INFO!B33=0," ",COUNTRY_INFO!B33)," ") ->  | C33: =IF(AND(INTRO!$E$37="Endémique",INTRO!$E$39="Non endémique"),IF(COUNTRY_INFO!C33=0," ",COUNTRY_INFO!C33)," ") ->  | D33: =IF(COUNTRY_INFO!Z33<>"",COUNTRY_INFO!V33,0) -> 0 | E33: =IF(AND(COUNTRY_INFO!Z33<>"",COUNTRY_INFO!$H33=1),COUNTRY_INFO!F33+COUNTRY_INFO!G33,0) -> 0 | F33: 0 | H33: 0
A34: =IF(AND(INTRO!$E$37="Endémique",INTRO!$E$39="Non endémique"),IF(COUNTRY_INFO!A34=0," ",COUNTRY_INFO!A34)," ") ->  | B34: =IF(AND(INTRO!$E$37="Endémique",INTRO!$E$39="Non endémique"),IF(COUNTRY_INFO!B34=0," ",COUNTRY_INFO!B34)," ") ->  | C34: =IF(AND(INTRO!$E$37="Endémique",INTRO!$E$39="Non endémique"),IF(COUNTRY_INFO!C34=0," ",COUNTRY_INFO!C34)," ") ->  | D34: =IF(COUNTRY_INFO!Z34<>"",COUNTRY_INFO!V34,0) -> 0 | E34: =IF(AND(COUNTRY_INFO!Z34<>"",COUNTRY_INFO!$H34=1),COUNTRY_INFO!F34+COUNTRY_INFO!G34,0) -> 0 | F34: 0 | H34: 0
A35: =IF(AND(INTRO!$E$37="Endémique",INTRO!$E$39="Non endémique"),IF(COUNTRY_INFO!A35=0," ",COUNTRY_INFO!A35)," ") ->  | B35: =IF(AND(INTRO!$E$37="Endémique",INTRO!$E$39="Non endémique"),IF(COUNTRY_INFO!B35=0," ",COUNTRY_INFO!B35)," ") ->  | C35: =IF(AND(INTRO!$E$37="Endémique",INTRO!$E$39="Non endémique"),IF(COUNTRY_INFO!C35=0," ",COUNTRY_INFO!C35)," ") ->  | D35: =IF(COUNTRY_INFO!Z35<>"",COUNTRY_INFO!V35,0) -> 0 | E35: =IF(AND(COUNTRY_INFO!Z35<>"",COUNTRY_INFO!$H35=1),COUNTRY_INFO!F35+COUNTRY_INFO!G35,0) -> 0 | F35: 0 | H35: 0
A36: =IF(AND(INTRO!$E$37="Endémique",INTRO!$E$39="Non endémique"),IF(COUNTRY_INFO!A36=0," ",COUNTRY_INFO!A36)," ") ->  | B36: =IF(AND(INTRO!$E$37="Endémique",INTRO!$E$39="Non endémique"),IF(COUNTRY_INFO!B36=0," ",COUNTRY_INFO!B36)," ") ->  | C36: =IF(AND(INTRO!$E$37="Endémique",INTRO!$E$39="Non endémique"),IF(COUNTRY_INFO!C36=0," ",COUNTRY_INFO!C36)," ") ->  | D36: =IF(COUNTRY_INFO!Z36<>"",COUNTRY_INFO!V36,0) -> 0 | E36: =IF(AND(COUNTRY_INFO!Z36<>"",COUNTRY_INFO!$H36=1),COUNTRY_INFO!F36+COUNTRY_INFO!G36,0) -> 0 | F36: 0 | H36: 0
A37: =IF(AND(INTRO!$E$37="Endémique",INTRO!$E$39="Non endémique"),IF(COUNTRY_INFO!A37=0," ",COUNTRY_INFO!A37)," ") ->  | B37: =IF(AND(INTRO!$E$37="Endémique",INTRO!$E$39="Non endémique"),IF(COUNTRY_INFO!B37=0," ",COUNTRY_INFO!B37)," ") ->  | C37: =IF(AND(INTRO!$E$37="Endémique",INTRO!$E$39="Non endémique"),IF(COUNTRY_INFO!C37=0," ",COUNTRY_INFO!C37)," ") ->  | D37: =IF(COUNTRY_INFO!Z37<>"",COUNTRY_INFO!V37,0) -> 0 | E37: =IF(AND(COUNTRY_INFO!Z37<>"",COUNTRY_INFO!$H37=1),COUNTRY_INFO!F37+COUNTRY_INFO!G37,0) -> 0 | F37: 0 | H37: 0
A38: =IF(AND(INTRO!$E$37="Endémique",INTRO!$E$39="Non endémique"),IF(COUNTRY_INFO!A38=0," ",COUNTRY_INFO!A38)," ") ->  | B38: =IF(AND(INTRO!$E$37="Endémique",INTRO!$E$39="Non endémique"),IF(COUNTRY_INFO!B38=0," ",COUNTRY_INFO!B38)," ") ->  | C38: =IF(AND(INTRO!$E$37="Endémique",INTRO!$E$39="Non endémique"),IF(COUNTRY_INFO!C38=0," ",COUNTRY_INFO!C38)," ") ->  | D38: =IF(COUNTRY_INFO!Z38<>"",COUNTRY_INFO!V38,0) -> 0 | E38: =IF(AND(COUNTRY_INFO!Z38<>"",COUNTRY_INFO!$H38=1),COUNTRY_INFO!F38+COUNTRY_INFO!G38,0) -> 0 | F38: 0 | H38: 0
A39: =IF(AND(INTRO!$E$37="Endémique",INTRO!$E$39="Non endémique"),IF(COUNTRY_INFO!A39=0," ",COUNTRY_INFO!A39)," ") ->  | B39: =IF(AND(INTRO!$E$37="Endémique",INTRO!$E$39="Non endémique"),IF(COUNTRY_INFO!B39=0," ",COUNTRY_INFO!B39)," ") ->  | C39: =IF(AND(INTRO!$E$37="Endémique",INTRO!$E$39="Non endémique"),IF(COUNTRY_INFO!C39=0," ",COUNTRY_INFO!C39)," ") ->  | D39: =IF(COUNTRY_INFO!Z39<>"",COUNTRY_INFO!V39,0) -> 0 | E39: =IF(AND(COUNTRY_INFO!Z39<>"",COUNTRY_INFO!$H39=1),COUNTRY_INFO!F39+COUNTRY_INFO!G39,0) -> 0 | F39: 0 | H39: 0
A40: =IF(AND(INTRO!$E$37="Endémique",INTRO!$E$39="Non endémique"),IF(COUNTRY_INFO!A40=0," ",COUNTRY_INFO!A40)," ") ->  | B40: =IF(AND(INTRO!$E$37="Endémique",INTRO!$E$39="Non endémique"),IF(COUNTRY_INFO!B40=0," ",COUNTRY_INFO!B40)," ") ->  | C40: =IF(AND(INTRO!$E$37="Endémique",INTRO!$E$39="Non endémique"),IF(COUNTRY_INFO!C40=0," ",COUNTRY_INFO!C40)," ") ->  | D40: =IF(COUNTRY_INFO!Z40<>"",COUNTRY_INFO!V40,0) -> 0 | E40: =IF(AND(COUNTRY_INFO!Z40<>"",COUNTRY_INFO!$H40=1),COUNTRY_INFO!F40+COUNTRY_INFO!G40,0) -> 0 | F40: 0 | H40: 0
A41: =IF(AND(INTRO!$E$37="Endémique",INTRO!$E$39="Non endémique"),IF(COUNTRY_INFO!A41=0," ",COUNTRY_INFO!A41)," ") ->  | B41: =IF(AND(INTRO!$E$37="Endémique",INTRO!$E$39="Non endémique"),IF(COUNTRY_INFO!B41=0," ",COUNTRY_INFO!B41)," ") ->  | C41: =IF(AND(INTRO!$E$37="Endémique",INTRO!$E$39="Non endémique"),IF(COUNTRY_INFO!C41=0," ",COUNTRY_INFO!C41)," ") ->  | D41: =IF(COUNTRY_INFO!Z41<>"",COUNTRY_INFO!V41,0) -> 0 | E41: =IF(AND(COUNTRY_INFO!Z41<>"",COUNTRY_INFO!$H41=1),COUNTRY_INFO!F41+COUNTRY_INFO!G41,0) -> 0 | F41: 0 | H41: 0
A42: =IF(AND(INTRO!$E$37="Endémique",INTRO!$E$39="Non endémique"),IF(COUNTRY_INFO!A42=0," ",COUNTRY_INFO!A42)," ") ->  | B42: =IF(AND(INTRO!$E$37="Endémique",INTRO!$E$39="Non endémique"),IF(COUNTRY_INFO!B42=0," ",COUNTRY_INFO!B42)," ") ->  | C42: =IF(AND(INTRO!$E$37="Endémique",INTRO!$E$39="Non endémique"),IF(COUNTRY_INFO!C42=0," ",COUNTRY_INFO!C42)," ") ->  | D42: =IF(COUNTRY_INFO!Z42<>"",COUNTRY_INFO!V42,0) -> 0 | E42: =IF(AND(COUNTRY_INFO!Z42<>"",COUNTRY_INFO!$H42=1),COUNTRY_INFO!F42+COUNTRY_INFO!G42,0) -> 0 | F42: 0 | H42: 0
A43: =IF(AND(INTRO!$E$37="Endémique",INTRO!$E$39="Non endémique"),IF(COUNTRY_INFO!A43=0," ",COUNTRY_INFO!A43)," ") ->  | B43: =IF(AND(INTRO!$E$37="Endémique",INTRO!$E$39="Non endémique"),IF(COUNTRY_INFO!B43=0," ",COUNTRY_INFO!B43)," ") ->  | C43: =IF(AND(INTRO!$E$37="Endémique",INTRO!$E$39="Non endémique"),IF(COUNTRY_INFO!C43=0," ",COUNTRY_INFO!C43)," ") ->  | D43: =IF(COUNTRY_INFO!Z43<>"",COUNTRY_INFO!V43,0) -> 0 | E43: =IF(AND(COUNTRY_INFO!Z43<>"",COUNTRY_INFO!$H43=1),COUNTRY_INFO!F43+COUNTRY_INFO!G43,0) -> 0 | F43: 0 | H43: 0
A44: =IF(AND(INTRO!$E$37="Endémique",INTRO!$E$39="Non endémique"),IF(COUNTRY_INFO!A44=0," ",COUNTRY_INFO!A44)," ") ->  | B44: =IF(AND(INTRO!$E$37="Endémique",INTRO!$E$39="Non endémique"),IF(COUNTRY_INFO!B44=0," ",COUNTRY_INFO!B44)," ") ->  | C44: =IF(AND(INTRO!$E$37="Endémique",INTRO!$E$39="Non endémique"),IF(COUNTRY_INFO!C44=0," ",COUNTRY_INFO!C44)," ") ->  | D44: =IF(COUNTRY_INFO!Z44<>"",COUNTRY_INFO!V44,0) -> 0 | E44: =IF(AND(COUNTRY_INFO!Z44<>"",COUNTRY_INFO!$H44=1),COUNTRY_INFO!F44+COUNTRY_INFO!G44,0) -> 0 | F44: 0 | H44: 0
A45: =IF(AND(INTRO!$E$37="Endémique",INTRO!$E$39="Non endémique"),IF(COUNTRY_INFO!A45=0," ",COUNTRY_INFO!A45)," ") ->  | B45: =IF(AND(INTRO!$E$37="Endémique",INTRO!$E$39="Non endémique"),IF(COUNTRY_INFO!B45=0," ",COUNTRY_INFO!B45)," ") ->  | C45: =IF(AND(INTRO!$E$37="Endémique",INTRO!$E$39="Non endémique"),IF(COUNTRY_INFO!C45=0," ",COUNTRY_INFO!C45)," ") ->  | D45: =IF(COUNTRY_INFO!Z45<>"",COUNTRY_INFO!V45,0) -> 0 | E45: =IF(AND(COUNTRY_INFO!Z45<>"",COUNTRY_INFO!$H45=1),COUNTRY_INFO!F45+COUNTRY_INFO!G45,0) -> 0 | F45: 0 | H45: 0
A46: =IF(AND(INTRO!$E$37="Endémique",INTRO!$E$39="Non endémique"),IF(COUNTRY_INFO!A46=0," ",COUNTRY_INFO!A46)," ") ->  | B46: =IF(AND(INTRO!$E$37="Endémique",INTRO!$E$39="Non endémique"),IF(COUNTRY_INFO!B46=0," ",COUNTRY_INFO!B46)," ") ->  | C46: =IF(AND(INTRO!$E$37="Endémique",INTRO!$E$39="Non endémique"),IF(COUNTRY_INFO!C46=0," ",COUNTRY_INFO!C46)," ") ->  | D46: =IF(COUNTRY_INFO!Z46<>"",COUNTRY_INFO!V46,0) -> 0 | E46: =IF(AND(COUNTRY_INFO!Z46<>"",COUNTRY_INFO!$H46=1),COUNTRY_INFO!F46+COUNTRY_INFO!G46,0) -> 0 | F46: 0 | H46: 0
A47: =IF(AND(INTRO!$E$37="Endémique",INTRO!$E$39="Non endémique"),IF(COUNTRY_INFO!A47=0," ",COUNTRY_INFO!A47)," ") ->  | B47: =IF(AND(INTRO!$E$37="Endémique",INTRO!$E$39="Non endémique"),IF(COUNTRY_INFO!B47=0," ",COUNTRY_INFO!B47)," ") ->  | C47: =IF(AND(INTRO!$E$37="Endémique",INTRO!$E$39="Non endémique"),IF(COUNTRY_INFO!C47=0," ",COUNTRY_INFO!C47)," ") ->  | D47: =IF(COUNTRY_INFO!Z47<>"",COUNTRY_INFO!V47,0) -> 0 | E47: =IF(AND(COUNTRY_INFO!Z47<>"",COUNTRY_INFO!$H47=1),COUNTRY_INFO!F47+COUNTRY_INFO!G47,0) -> 0 | F47: 0 | H47: 0

Sheet SUMMARY
B2: Formulaire de demande commune de médicaments pour CP v.4.1
B4: Ce formulaire constitue une demande officielle du Gouvernement à l'OMS pour l'approvisionnement des médicaments mentionnés ci-dessus. Pour garantir la livraison des médicaments à temps, la demande de médicaments CP doit être soumise au moins 9 mois avant la première date d'administration massive de médicaments prévue dans l'année civile de la demande.
B6: Pays | C6: =IF(INTRO!$E$33<>0,INTRO!$E$33," ") -> Guinée | G6: Année | H6: =IF(INTRO!$E$35<>0,INTRO!$E$35," ") -> 2024
B8: Information on PC medicines requested to WHO
B10: Le médicament | C10: Groupe ciblé | D10: Nombre de comprimés | H10: Préciser l’origine
D11: Requis | E11: En stock | F11: En cours de demande | G11: Demandés
B12: Diethylcarbamazine | C12: TOUTE | D12: 0 | E12: 0 | G12: =IF(D12>(E12+F12),D12-E12-F12, 0) -> 0
G13: 0
B14: Ivermectine | C14: TOUTE | D14: 20709796.8 | E14: 0 | G14: 20709796.8 | H14: MDP
B16: Albendazole pour FL | C16: TOUTE | D16: 3993901 | E16: 1547000 | G16: 2446901 | H16: OMS
G17: 0
B18: Albendazole pour STH | C18: EAPréS | D18: 1486920 | G18: 1486920 | H18: OMS
C19: EAS | D19: 1843290 | G19: 1843290 | H19: OMS
C20: Adultes | D20: 3279973 | G20: 3279973 | H20: OMS
B22: Mebendazole | C22: EAPréS | G22: 0
C23: EAS | G23: =IF(D23>(E23+F23),D23-E23-F23, 0) -> 0
C24: Adultes | G24: =IF(D24>(E24+F24),D24-E24-F24, 0) -> 0
B26: Praziquantel | C26: EAPréS | D26: 0 | G26: 0
C27: EAS | D27: 4799812 | E27: 754908 | G27: =IF(D27>(E27+F27),D27-E27-F27, 0) -> 4044904 | H27: OMS
C28: Adultes | D28: 14558241 | G28: =IF(D28>(E28+F28),D28-E28-F28, 0) -> 14558241 | H28: OMS
B30: Nombre de personnes devant être traitées avec le médicament donné
B32: La maladie | F32: 1er tour | G32: 2ème tour | H32: 3ème tour
B33: Filariose lymphatique | C33: Ces chiffres sont estimés uniquement pour les goupes d'âge ciblés pour le traitement avec les médicaments donnés, dans les régions où le traitement de maladies spécifiques est requis | F33: 3993901
B34: Onchocercose | F34: 7092047 | G34: 0
B35: Schistosomiase | F35: 7252653 | G35: 0
B36: Géohelminthiases | F36: 6226842 | G36: 2748747 | H36: 0
B40: Informations sur les interventions CP planifiées
B42: Le médicament | C42: Veuillez sélectionner une date (mois et année) pour la 1ère tournée de CP | E42: Veuillez sélectionner une date (mois et année) pour la 2ème tournée de CP | G42: Date à laquelle les médicaments devraient atteindre l’entrepôt national
B43: Diethylcarbamazine
B44: Ivermectine | C44: Mars | D44: 2024 | G44: Janvier | H44: 2024
B45: Albendazole pour FL | C45: Mars | D45: 2024 | G45: Janvier | H45: 2024
B46: Albendazole pour STH | C46: Mars | D46: 2024 | E46: Juin | F46: 2024 | G46: Janvier | H46: 2024
B47: Mebendazole
B48: Praziquantel | C48: Mars | D48: 2024 | G48: Janvier | H48: 2024
B50: Récapitulatif - Checklist
B51: Submission
B52: Que faut-il soumettre ?
B53: L'approvisionnement des médicaments demandés doit être basé sur des données épidémiologiques à jour, des plans d'utilisation des médicaments spécifiques et sur la capacité de mise en oeuvre. La liste suivante permet d'assurer que tous les formulaires et toutes les informations sont fournis à l'OMS (en format électronique).
B54: Formulaire de demande commune de médicaments pour chimioprévention
B55: Formulaire de rapport commun
B56: Déclaration des données épidémiologiques pour la CP
B58: Disponibilité de financement pour la mise en oeuvre de tournées pendant l’année pour laquelle les medicaments ont été demandés
B60: Maladies ciblées pour la mise en oeuvre | C60: # de traitements | D60: Financement assuré pour | E60: Origine | H60: Montant
B61: Filariose lymphatique | C61: =SUM(F33:H33) -> 3993901 | D61: Tous | E61: USAID/FHI360/Helen Keller
B62: Onchocercose | C62: =SUM(F34:H34) -> 7092047 | D62: Tous | E62: USAID/FHI360/Helen Keller
B63: Schistosomiase | C63: =SUM(F35:H35) -> 7252653 | D63: Tous | E63: USAID/FHI360/Helen Keller/SIGHTSAVERS
B64: Géohelminthiases | C64: =SUM(F36:H36) -> 8975589 | D64: Tous | E64: USAID/FHI360/Helen Keller/SIGHTSAVERS
B66: Qui doit remplir le formulaire ?
B67: Le Coordonnateur national MTN doit compiler toutes les informations nécessaires pour compléter le formulaire de demande. En l'absence d'un coordonnateur, les gestionnaires de programmes spécifiques devraient coordonner leurs sections respectives. Une fois finalisée, chaque demande individuelle doit être approuvée par le Ministère de la Santé.
B69: Informations concernant la (les) personne(s) ayant rempli le formulaire
B71: Titre/fonction | C71: Nom | E71: Téléphone | G71: Email | H71: Date
B72: Coordonnateur MTN/CP | C72: Dr Nouhou Konkouré Diallo | E72: (00224) 623791095 | G72: dnouhoufr@yahoo.fr | H72: 2023-03-14
B73: Gestionnaire de Programme FL | C73: Aissatou DIABY | E73: (00224) 628193379 | G73: adiabyaicha58@gmail.com | H73: 2023-03-14
B74: autre | C74: Mohamed Lamine BANGOURA (Pharmacien) | E74: (00224) 621730081 | G74: mbangoura489@gmail.com | H74: 2023-03-14
B75: Gestionnaire de données | C75: Gaston CHERIF | E75: (00224) 627258386 | G75: sgcherif25@gmail.com 14/03/2023
B76: autre | C76: Lamine LAMAH | E76: (00224) 625259023 | G76: llamah@hki.org | H76: 2023-03-14
B79: L’OMS recommende que tous les effets secondaires graves suspectés d’être associés à l’ingestion de médicaments de CP soient rapportés en suivant les lignes directrices nationales de pharmacovigilance. En l’absence d’un système de pharmacovigilance national, contactez le département de Contrôle des Maladies Tropicales Négligées pour être conseillé.
B80: L’OMS s’est engagée à rendre possible la donation de médicaments en fournissant gratuitement: a) albendazole, mebendazole et praziquantel à l’entrepôt national du Ministère de la Santé et b) diethylcarbamazine au port d’entrée du pays receveur.
B81: L’institution soumettant la présente requête est responsable de: a) l’organisation du déchargement des médicaments du camion, du stockage dans l’entrepôt national et de l’expédition vers les centres où aura lieu la distribution finale; b) de l’enregistrement, si nécessaire, des médicaments donnés, auprès des autorités nationales en charge; et de c) de l’information de n’importe quels changements ayant trait à leurs campagnes de traitement (par exemple le report d’une date planifiée de distribution en masse de médicaments, le remplacement d’un coordonateur MTN, etc.).
C82: J’ai pris connaissance et accepté la politique de la communication de données de l’OMS
C83: Je confirme que toutes les informations fournies dans ce formulaire sont complètes et correctes
B84: Nom et signature du Coordonnateur MTN ou du Représentant du Ministère de la Santé | D84: Dr Nouhou Konkouré DIALLO
B85: Date | D85: 2023-03-14
B87: Si vous avez plus d'un destinataire final pour les médicaments de chimioprévention demandés, veuillez compléter les informations de la rubrique "Informations concernant l'envoi et le destinataire" dans la feuille de travail SHIPMENT.
B88: Veuillez envoyer le rapport national (signé et sous format électronique) au représentant de I'OMS du pays en mettant en copie:
B89: Siège de l'OMS | C89: PC_JointForms@who.int
B90: Bureau régional de l'OMS | C90: Conseiller régional MTN
B91: Mectizan donation programme | C91: Dr Yao Sodahlon, email: ysodahlon@taskforce.org
B93: Veuillez noter que votre demande sera examinée par un panel d'experts indépendants (Comité ad hoc d’évaluation conjointe). Les informations contenues dans ce formulaire, le rapport commun d'activités (ou rapport national d'activités) et le plan d'action annuel sont essentiels à l'OMS pour assurer un usage optimal des médicaments. Dans le cadre de ses activités courantes de suivi et d'évaluation, et afin d'honorer ses obligations contractuelles envers les bailleurs de fonds et autres partenaires, l'OMS et ses agents affiliés se réservent le droit d'inspecter, périodiquement, les stocks de médicaments au niveau national.

Sheet SHIPMENT
B2: Formulaire de demande commune de médicaments pour CP v.4.1
B4: Pays | C4: =IF(INTRO!$E$33<>0,INTRO!$E$33," ") -> Guinée | G4: Année | H4: =IF(INTRO!$E$35<>0,INTRO!$E$35," ") -> 2024
B6: Information on shipment and consignee
B8: IVM, ALB pour FL, ALB pour STH, PZQ | C8: Destinataire | F8: Destinataire final si différent du destinaire précédent
B9: Nom | C9: KIPELA Jean Marie | F9: Dr Nouhou Konkouré Diallo
B10: Département/Unité | C10: Représentant Bureau pays, OMS-Guinée | F10: Coordonnateur National du Programme MTN/CTP
B11: Organisation | C11: OMS | F11: Ministère de la Santé
B12: Téléphone | F12: (00224) 623791095
B13: Fax
B14: E-mail | F14: dnouhoufr@yahoo.fr
B15: Adresse postale | F15: 585
C17: Destinataire | F17: Destinataire final si différent du destinaire précédent
B18: Nom
B19: Département/Unité
B20: Organisation
B21: Téléphone
B22: Fax
B23: E-mail
B24: Adresse postale
C26: Destinataire | F26: Destinataire final si différent du destinaire précédent
B27: Nom
B28: Département/Unité
B29: Organisation
B30: Téléphone
B31: Fax
B32: E-mail
B33: Adresse postale
B36: Information concernant les obligations légales d’importation
B38: Est le permis d'importation nécessaire? | H38: Oui
B39: Combien de temps cela prend-il pour obtenir le permis d’importation? | G39: 3 | H39: Semaines
B40: Avez vous besoin que certains documents soient remis en même temps que la demande de permis d’importation? | H40: Oui
B41: Lettre de transport aerien ou maritime, Certificat de donation, Facture proformat, Liste de colisage, Certificat d'analyse et Certificat d'origine.
B42: Est-ce que le destinataire doit procéder au dédouanement avant que l’expédition puisse avoir lieu? | H42: No
B43: Y a-t-il des informations supplémentaires qui pourraient être utiles afin d’assurer un dédouanement et une livraison rapide des médicaments dans votre pays? | H43: No
B46: Remarques supplémentaires éventuelles liées à cette requête

Sheet DATA_POLICY (hidden)
B2: Formulaire de demande commune de médicaments pour CP v.4.1
B4: Pays | D4: =IF(INTRO!$E$33<>0,INTRO!$E$33," ") -> Guinée | G4: Année | H4: =IF(INTRO!$E$35<>0,INTRO!$E$35," ") -> 2024
B7: Déclaration de principe sur la communication de données par l’OMS
B9: Les données sont le fondement de toutes les mesures rationnelles de santé publique et les avantages de la communication de données, y compris pour la science et la santé publique, sont largement reconnus. L’OMS souhaite promouvoir autant que possible la communication de données sanitaires, y compris, mais pas uniquement, de données épidémiologiques et de surveillance.
B14: ="À cet égard, et sans préjudice des instruments juridiquement contraignants régissant la communication et la publication d’informations, le Ministère de la santé de " & D4 & ", en fournissant des données à l’OMS :" -> À cet égard, et sans préjudice des instruments juridiquement contraignants régissant la communication et la publication d’informations, le Ministère de la santé de Guinée, en fournissant des données à l’OMS :
B18: confirme que toutes les données à fournir à l’OMS, ont été collectées conformément à la législation nationale applicable, y compris aux lois de protection des données visant à préserver l’anonymat des personnes identifiables ;
B23: ="convient que l’OMS aura le droit, toujours sous réserve des mesures visant à garantir l’utilisation éthique et sécurisée des données et toujours sous réserve d’une reconnaissance appropriée de la part de "&D4&":" -> convient que l’OMS aura le droit, toujours sous réserve des mesures visant à garantir l’utilisation éthique et sécurisée des données et toujours sous réserve d’une reconnaissance appropriée de la part de Guinée:
C27: de publier les données, dépourvues de tout élément d’identification personnelle (ci-après dénommées « les données ») et de les mettre à la disposition de toute partie intéressée, sur demande (dans la mesure où elles n’ont pas, ou pas encore, été publiées par l’OMS), selon des modalités autorisant leur utilisation non commerciale et sans but lucratif à des fins de santé publique (pour autant que l’OMS garde la maîtrise de la publication des données) ; d’utiliser, de compiler, d’agréger, d’évaluer et d’analyser les données et de publier et de diffuser les résultats obtenus grâce à ces données en rapport avec des travaux de l’OMS et conformément aux politiques et pratiques de l’Organisation.
B39: =CONCATENATE("Sauf lorsque des instruments juridiquement contraignants (RSI, Règlement de Nomenclature de l’OMS, de 1967, etc.) disposent que les données doivent être communiquées et publiées, le Ministère de la santé de ", D4," peut, pour certaines données, décider de ne pas appliquer (tout ou partie des) (les) dispositions qui précèdent," & " en informant l’OMS par écrit à l’adresse suivante, à condition que cette notification précise clairement les données, " & "dont il s’agit et indique clairement lesquelles des dispositions qui précèdent ne seront pas appliquées, et pour quels motifs.") -> Sauf lorsque des instruments juridiquement contraignants (RSI, Règlement de Nomenclature de l’OMS, de 1967, etc.) disposent que les données doivent être communiquées et publiées, le Ministère de la santé de Guinée peut, pour certaines données, décider de ne pas appliquer (tout ou partie des) (les) dispositions qui précèdent, en informant l’OMS par écrit à l’adresse suivante, à condition que cette notification précise clairement les données, dont il s’agit et indique clairement lesquelles des dispositions qui précèdent ne seront pas appliquées, et pour quels motifs.
